Workbook

Sheet 법정동(2014.12월말)
A1: 여수시 지적(地籍) 통계 현황
A3: (기준일자 : 2014. 12. 31. / 단위 : 필지, ㎡)
A4: 구 분 | B4: 계 | D4: 전 | F4: 답 | H4: 과수원 | J4: 목장용지 | L4: 임야 | N4: 광천지 | P4: 염전 | R4: 대 | T4: 공장용지 | V4: 학교용지 | X4: 주차장 | Z4: 주유소용지 | AB4: 창고용지 | AD4: 도로 | AF4: 철도용지 | AH4: 제방 | AJ4: 하천 | AL4: 구거 | AN4: 유지 | AP4: 양어장 | AR4: 수도용지 | AT4: 공원 | AV4: 체육용지 | AX4: 유원지 | AZ4: 종교용지 | BB4: 사적지 | BD4: 묘지 | BF4: 잡종지
B5: 면 적 | C5: 지번수 | D5: 면 적 | E5: 지번수 | F5: 면 적 | G5: 지번수 | H5: 면 적 | I5: 지번수 | J5: 면 적 | K5: 지번수 | L5: 면 적 | M5: 지번수 | N5: 면 적 | O5: 지번수 | P5: 면 적 | Q5: 지번수 | R5: 면 적 | S5: 지번수 | T5: 면 적 | U5: 지번수 | V5: 면 적 | W5: 지번수 | X5: 면 적 | Y5: 지번수 | Z5: 면 적 | AA5: 지번수 | AB5: 면 적 | AC5: 지번수 | AD5: 면 적 | AE5: 지번수 | AF5: 면 적 | AG5: 지번수 | AH5: 면 적 | AI5: 지번수 | AJ5: 면 적 | AK5: 지번수 | AL5: 면 적 | AM5: 지번수 | AN5: 면 적 | AO5: 지번수 | AP5: 면 적 | AQ5: 지번수 | AR5: 면 적 | AS5: 지번수 | AT5: 면 적 | AU5: 지번수 | AV5: 면 적 | AW5: 지번수 | AX5: 면 적 | AY5: 지번수 | AZ5: 면 적 | BA5: 지번수 | BB5: 면 적 | BC5: 지번수 | BD5: 면 적 | BE5: 지번수 | BF5: 면 적 | BG5: 지번수
A6: 합 계 | B6: 508,836,884.3 | C6: 309,282 | D6: 66,385,322.5 | E6: 74,227 | F6: 41,244,470.8 | G6: 46,273 | H6: 561,258.0 | I6: 203 | J6: 1,855,401.0 | K6: 516 | L6: 305,225,765.5 | M6: 54,199 | N6: 0 | O6: 0 | P6: 10,562.0 | Q6: 6 | R6: 22,213,345.1 | S6: 65,905 | T6: 19,766,125.3 | U6: 1,268 | V6: 2,005,052.1 | W6: 369 | X6: 421,874.3 | Y6: 430 | Z6: 504,572.2 | AA6: 246 | AB6: 272,901.6 | AC6: 402 | AD6: 20,346,112.8 | AE6: 48,670 | AF6: 1,029,622.2 | AG6: 884 | AH6: 661,176.9 | AI6: 782 | AJ6: 2,524,558.9 | AK6: 962 | AL6: 4,663,201.7 | AM6: 4,774 | AN6: 2,805,965.9 | AO6: 1,416 | AP6: 238,838.1 | AQ6: 157 | AR6: 464,351.9 | AS6: 399 | AT6: 1,803,193.5 | AU6: 307 | AV6: 1,595,435.1 | AW6: 50 | AX6: 263,794.9 | AY6: 4 | AZ6: 420,205.1 | BA6: 449 | BB6: 20,795.0 | BC6: 15 | BD6: 1,816,520.0 | BE6: 1,911 | BF6: 9,716,461.9 | BG6: 4,458
A7: 종화동 | B7: 402,812.0 | C7: 1,646 | D7: 67,025.0 | E7: 198 | F7: 1,267.0 | G7: 12 | H7: 0 | I7: 0 | J7: 0 | K7: 0 | L7: 22,714.0 | M7: 48 | N7: 0 | O7: 0 | P7: 0 | Q7: 0 | R7: 110,404.0 | S7: 1,027 | T7: 0 | U7: 0 | V7: 16,641.0 | W7: 1 | X7: 60.0 | Y7: 1 | Z7: 0 | AA7: 0 | AB7: 0 | AC7: 0 | AD7: 77,340.0 | AE7: 295 | AF7: 0 | AG7: 0 | AH7: 2,134.0 | AI7: 5 | AJ7: 0 | AK7: 0 | AL7: 2,501.0 | AM7: 12 | AN7: 0 | AO7: 0 | AP7: 0 | AQ7: 0 | AR7: 985.0 | AS7: 2 | AT7: 84,607.0 | AU7: 15 | AV7: 0 | AW7: 0 | AX7: 0 | AY7: 0 | AZ7: 676.0 | BA7: 3 | BB7: 0 | BC7: 0 | BD7: 3,587.0 | BE7: 12 | BF7: 12,871.0 | BG7: 15
A8: 수정동 | B8: 636,365.5 | C8: 1,294 | D8: 37,186.0 | E8: 200 | F8: 0 | G8: 0 | H8: 0 | I8: 0 | J8: 0 | K8: 0 | L8: 131,491.0 | M8: 50 | N8: 0 | O8: 0 | P8: 0 | Q8: 0 | R8: 177,346.3 | S8: 725 | T8: 0 | U8: 0 | V8: 37,527.0 | W8: 2 | X8: 12,434.8 | Y8: 7 | Z8: 0 | AA8: 0 | AB8: 0 | AC8: 0 | AD8: 128,681.9 | AE8: 272 | AF8: 22.0 | AG8: 2 | AH8: 11,759.0 | AI8: 4 | AJ8: 0 | AK8: 0 | AL8: 0 | AM8: 0 | AN8: 0 | AO8: 0 | AP8: 0 | AQ8: 0 | AR8: 0 | AS8: 0 | AT8: 69,680.8 | AU8: 6 | AV8: 0 | AW8: 0 | AX8: 0 | AY8: 0 | AZ8: 0 | BA8: 0 | BB8: 0 | BC8: 0 | BD8: 1,128.0 | BE8: 5 | BF8: 29,108.7 | BG8: 21
A9: 공화동 | B9: 313,483.2 | C9: 1,746 | D9: 3,371.0 | E9: 35 | F9: 0 | G9: 0 | H9: 0 | I9: 0 | J9: 0 | K9: 0 | L9: 388.0 | M9: 1 | N9: 0 | O9: 0 | P9: 0 | Q9: 0 | R9: 140,339.5 | S9: 1,392 | T9: 0 | U9: 0 | V9: 51,511.0 | W9: 5 | X9: 2,236.0 | Y9: 5 | Z9: 1,141.0 | AA9: 4 | AB9: 0 | AC9: 0 | AD9: 91,613.4 | AE9: 241 | AF9: 3,836.0 | AG9: 26 | AH9: 0 | AI9: 0 | AJ9: 0 | AK9: 0 | AL9: 3,500.0 | AM9: 23 | AN9: 0 | AO9: 0 | AP9: 0 | AQ9: 0 | AR9: 0 | AS9: 0 | AT9: 4,034.8 | AU9: 2 | AV9: 0 | AW9: 0 | AX9: 0 | AY9: 0 | AZ9: 6,337.0 | BA9: 9 | BB9: 0 | BC9: 0 | BD9: 0 | BE9: 0 | BF9: 5,175.5 | BG9: 3
A10: 관문동 | B10: 248,473.0 | C10: 1,567 | D10: 4,326.0 | E10: 57 | F10: 221.0 | G10: 5 | H10: 0 | I10: 0 | J10: 0 | K10: 0 | L10: 5,182.0 | M10: 27 | N10: 0 | O10: 0 | P10: 0 | Q10: 0 | R10: 143,816.0 | S10: 1,214 | T10: 0 | U10: 0 | V10: 48,685.0 | W10: 6 | X10: 1,009.0 | Y10: 6 | Z10: 0 | AA10: 0 | AB10: 0 | AC10: 0 | AD10: 43,201.0 | AE10: 241 | AF10: 0 | AG10: 0 | AH10: 0 | AI10: 0 | AJ10: 0 | AK10: 0 | AL10: 139.0 | AM10: 5 | AN10: 0 | AO10: 0 | AP10: 0 | AQ10: 0 | AR10: 0 | AS10: 0 | AT10: 0 | AU10: 0 | AV10: 0 | AW10: 0 | AX10: 0 | AY10: 0 | AZ10: 1,704.0 | BA10: 4 | BB10: 0 | BC10: 0 | BD10: 0 | BE10: 0 | BF10: 190.0 | BG10: 2
A11: 고소동 | B11: 176,521.0 | C11: 1,324 | D11: 16,236.0 | E11: 99 | F11: 0 | G11: 0 | H11: 0 | I11: 0 | J11: 0 | K11: 0 | L11: 496.0 | M11: 7 | N11: 0 | O11: 0 | P11: 0 | Q11: 0 | R11: 117,389.0 | S11: 896 | T11: 0 | U11: 0 | V11: 0 | W11: 0 | X11: 324.0 | Y11: 2 | Z11: 0 | AA11: 0 | AB11: 0 | AC11: 0 | AD11: 35,633.0 | AE11: 306 | AF11: 0 | AG11: 0 | AH11: 0 | AI11: 0 | AJ11: 0 | AK11: 0 | AL11: 0 | AM11: 0 | AN11: 0 | AO11: 0 | AP11: 0 | AQ11: 0 | AR11: 671.0 | AS11: 1 | AT11: 0 | AU11: 0 | AV11: 0 | AW11: 0 | AX11: 0 | AY11: 0 | AZ11: 3,526.0 | BA11: 4 | BB11: 1,583.0 | BC11: 1 | BD11: 78.0 | BE11: 3 | BF11: 585.0 | BG11: 5
A12: 동산동 | B12: 279,543.0 | C12: 1,227 | D12: 32,423.0 | E12: 77 | F12: 2,765.0 | G12: 6 | H12: 0 | I12: 0 | J12: 0 | K12: 0 | L12: 125,534.0 | M12: 27 | N12: 0 | O12: 0 | P12: 0 | Q12: 0 | R12: 85,938.0 | S12: 927 | T12: 0 | U12: 0 | V12: 10,782.0 | W12: 1 | X12: 556.0 | Y12: 4 | Z12: 0 | AA12: 0 | AB12: 0 | AC12: 0 | AD12: 13,199.0 | AE12: 173 | AF12: 0 | AG12: 0 | AH12: 0 | AI12: 0 | AJ12: 0 | AK12: 0 | AL12: 2,688.0 | AM12: 4 | AN12: 0 | AO12: 0 | AP12: 0 | AQ12: 0 | AR12: 4,960.0 | AS12: 4 | AT12: 0 | AU12: 0 | AV12: 0 | AW12: 0 | AX12: 0 | AY12: 0 | AZ12: 662.0 | BA12: 3 | BB12: 0 | BC12: 0 | BD12: 0 | BE12: 0 | BF12: 36.0 | BG12: 1
A13: 중앙동 | B13: 159,282.0 | C13: 801 | D13: 52.0 | E13: 4 | F13: 0 | G13: 0 | H13: 0 | I13: 0 | J13: 0 | K13: 0 | L13: 20,706.0 | M13: 17 | N13: 0 | O13: 0 | P13: 0 | Q13: 0 | R13: 65,799.0 | S13: 586 | T13: 0 | U13: 0 | V13: 0 | W13: 0 | X13: 1,679.0 | Y13: 1 | Z13: 0 | AA13: 0 | AB13: 0 | AC13: 0 | AD13: 49,561.0 | AE13: 182 | AF13: 0 | AG13: 0 | AH13: 0 | AI13: 0 | AJ13: 0 | AK13: 0 | AL13: 0 | AM13: 0 | AN13: 0 | AO13: 0 | AP13: 0 | AQ13: 0 | AR13: 0 | AS13: 0 | AT13: 9,732.0 | AU13: 1 | AV13: 0 | AW13: 0 | AX13: 0 | AY13: 0 | AZ13: 0 | BA13: 0 | BB13: 0 | BC13: 0 | BD13: 0 | BE13: 0 | BF13: 11,753.0 | BG13: 10
A14: 교동 | B14: 166,086.2 | C14: 1,170 | D14: 0 | E14: 0 | F14: 0 | G14: 0 | H14: 0 | I14: 0 | J14: 0 | K14: 0 | L14: 0 | M14: 0 | N14: 0 | O14: 0 | P14: 0 | Q14: 0 | R14: 96,868.0 | S14: 1,079 | T14: 0 | U14: 0 | V14: 0 | W14: 0 | X14: 4,238.2 | Y14: 4 | Z14: 0 | AA14: 0 | AB14: 0 | AC14: 0 | AD14: 50,034.0 | AE14: 76 | AF14: 0 | AG14: 0 | AH14: 800.0 | AI14: 2 | AJ14: 9,005.0 | AK14: 1 | AL14: 445.0 | AM14: 5 | AN14: 0 | AO14: 0 | AP14: 0 | AQ14: 0 | AR14: 0 | AS14: 0 | AT14: 0 | AU14: 0 | AV14: 0 | AW14: 0 | AX14: 0 | AY14: 0 | AZ14: 0 | BA14: 0 | BB14: 0 | BC14: 0 | BD14: 0 | BE14: 0 | BF14: 4,696.0 | BG14: 3
A15: 군자동 | B15: 121,235.0 | C15: 645 | D15: 34,418.0 | E15: 77 | F15: 0 | G15: 0 | H15: 0 | I15: 0 | J15: 0 | K15: 0 | L15: 0 | M15: 0 | N15: 0 | O15: 0 | P15: 0 | Q15: 0 | R15: 53,813.0 | S15: 493 | T15: 0 | U15: 0 | V15: 7,308.0 | W15: 1 | X15: 827.0 | Y15: 4 | Z15: 0 | AA15: 0 | AB15: 0 | AC15: 0 | AD15: 14,973.0 | AE15: 57 | AF15: 0 | AG15: 0 | AH15: 0 | AI15: 0 | AJ15: 0 | AK15: 0 | AL15: 1,068.0 | AM15: 3 | AN15: 0 | AO15: 0 | AP15: 0 | AQ15: 0 | AR15: 363.0 | AS15: 2 | AT15: 0 | AU15: 0 | AV15: 0 | AW15: 0 | AX15: 0 | AY15: 0 | AZ15: 2,650.0 | BA15: 2 | BB15: 5,642.0 | BC15: 4 | BD15: 0 | BE15: 0 | BF15: 173.0 | BG15: 2
A16: 충무동 | B16: 144,556.0 | C16: 996 | D16: 2,822.0 | E16: 21 | F16: 2,141.0 | G16: 12 | H16: 0 | I16: 0 | J16: 0 | K16: 0 | L16: 0 | M16: 0 | N16: 0 | O16: 0 | P16: 0 | Q16: 0 | R16: 93,681.0 | S16: 834 | T16: 0 | U16: 0 | V16: 0 | W16: 0 | X16: 1,690.0 | Y16: 7 | Z16: 0 | AA16: 0 | AB16: 0 | AC16: 0 | AD16: 36,048.0 | AE16: 103 | AF16: 0 | AG16: 0 | AH16: 0 | AI16: 0 | AJ16: 5,576.0 | AK16: 2 | AL16: 271.0 | AM16: 1 | AN16: 0 | AO16: 0 | AP16: 0 | AQ16: 0 | AR16: 0 | AS16: 0 | AT16: 0 | AU16: 0 | AV16: 0 | AW16: 0 | AX16: 0 | AY16: 0 | AZ16: 1,799.0 | BA16: 10 | BB16: 0 | BC16: 0 | BD16: 0 | BE16: 0 | BF16: 528.0 | BG16: 6
A17: 연등동 | B17: 1,081,869.5 | C17: 2,154 | D17: 193,912.0 | E17: 417 | F17: 43,758.0 | G17: 70 | H17: 0 | I17: 0 | J17: 0 | K17: 0 | L17: 447,669.8 | M17: 157 | N17: 0 | O17: 0 | P17: 0 | Q17: 0 | R17: 160,817.1 | S17: 1,137 | T17: 696.7 | U17: 1 | V17: 14,194.0 | W17: 2 | X17: 321.0 | Y17: 1 | Z17: 1,946.1 | AA17: 7 | AB17: 2,638.4 | AC17: 3 | AD17: 151,149.0 | AE17: 288 | AF17: 0 | AG17: 0 | AH17: 0 | AI17: 0 | AJ17: 12,654.0 | AK17: 21 | AL17: 32,734.4 | AM17: 22 | AN17: 0 | AO17: 0 | AP17: 0 | AQ17: 0 | AR17: 1,826.1 | AS17: 2 | AT17: 991.9 | AU17: 1 | AV17: 0 | AW17: 0 | AX17: 0 | AY17: 0 | AZ17: 4,986.0 | BA17: 5 | BB17: 76.0 | BC17: 1 | BD17: 5,021.0 | BE17: 9 | BF17: 6,478.0 | BG17: 10
A18: 광무동 | B18: 1,266,051.4 | C18: 2,923 | D18: 224,167.0 | E18: 432 | F18: 6,722.0 | G18: 36 | H18: 0 | I18: 0 | J18: 0 | K18: 0 | L18: 624,287.0 | M18: 95 | N18: 0 | O18: 0 | P18: 0 | Q18: 0 | R18: 233,793.4 | S18: 1,799 | T18: 0 | U18: 0 | V18: 19,814.0 | W18: 5 | X18: 2,331.0 | Y18: 4 | Z18: 695.8 | AA18: 1 | AB18: 0 | AC18: 0 | AD18: 121,915.7 | AE18: 477 | AF18: 0 | AG18: 0 | AH18: 0 | AI18: 0 | AJ18: 8,810.0 | AK18: 10 | AL18: 3,739.9 | AM18: 10 | AN18: 0 | AO18: 0 | AP18: 0 | AQ18: 0 | AR18: 3,837.0 | AS18: 11 | AT18: 616.0 | AU18: 1 | AV18: 0 | AW18: 0 | AX18: 0 | AY18: 0 | AZ18: 5,548.0 | BA18: 9 | BB18: 0 | BC18: 0 | BD18: 4,347.0 | BE18: 16 | BF18: 5,427.6 | BG18: 17
A19: 서교동 | B19: 169,257.0 | C19: 1,153 | D19: 136.0 | E19: 2 | F19: 378.0 | G19: 7 | H19: 0 | I19: 0 | J19: 0 | K19: 0 | L19: 0 | M19: 0 | N19: 0 | O19: 0 | P19: 0 | Q19: 0 | R19: 84,959.0 | S19: 853 | T19: 0 | U19: 0 | V19: 19,165.0 | W19: 1 | X19: 6,975.0 | Y19: 5 | Z19: 0 | AA19: 0 | AB19: 0 | AC19: 0 | AD19: 43,029.0 | AE19: 264 | AF19: 0 | AG19: 0 | AH19: 0 | AI19: 0 | AJ19: 8,724.0 | AK19: 4 | AL19: 753.0 | AM19: 13 | AN19: 0 | AO19: 0 | AP19: 0 | AQ19: 0 | AR19: 0 | AS19: 0 | AT19: 143.0 | AU19: 1 | AV19: 0 | AW19: 0 | AX19: 0 | AY19: 0 | AZ19: 4,598.0 | BA19: 2 | BB19: 0 | BC19: 0 | BD19: 0 | BE19: 0 | BF19: 397.0 | BG19: 1
A20: 봉강동 | B20: 486,141.5 | C20: 1,593 | D20: 79,362.0 | E20: 166 | F20: 26,972.0 | G20: 51 | H20: 0 | I20: 0 | J20: 0 | K20: 0 | L20: 156,344.0 | M20: 55 | N20: 0 | O20: 0 | P20: 0 | Q20: 0 | R20: 122,269.2 | S20: 907 | T20: 0 | U20: 0 | V20: 35,979.0 | W20: 2 | X20: 578.0 | Y20: 2 | Z20: 0 | AA20: 0 | AB20: 0 | AC20: 0 | AD20: 52,513.7 | AE20: 368 | AF20: 0 | AG20: 0 | AH20: 0 | AI20: 0 | AJ20: 0 | AK20: 0 | AL20: 3,404.0 | AM20: 13 | AN20: 0 | AO20: 0 | AP20: 0 | AQ20: 0 | AR20: 0 | AS20: 0 | AT20: 1,906.9 | AU20: 1 | AV20: 0 | AW20: 0 | AX20: 0 | AY20: 0 | AZ20: 3,652.0 | BA20: 6 | BB20: 0 | BC20: 0 | BD20: 0 | BE20: 0 | BF20: 3,160.7 | BG20: 22
A21: 봉산동 | B21: 1,213,833.7 | C21: 2,907 | D21: 145,978.0 | E21: 307 | F21: 42,678.0 | G21: 98 | H21: 0 | I21: 0 | J21: 0 | K21: 0 | L21: 352,775.0 | M21: 63 | N21: 0 | O21: 0 | P21: 0 | Q21: 0 | R21: 413,999.1 | S21: 1,934 | T21: 353.1 | U21: 1 | V21: 29,460.0 | W21: 6 | X21: 560.1 | Y21: 3 | Z21: 2,234.6 | AA21: 4 | AB21: 1,877.1 | AC21: 5 | AD21: 185,425.7 | AE21: 451 | AF21: 0 | AG21: 0 | AH21: 0 | AI21: 0 | AJ21: 0 | AK21: 0 | AL21: 3,826.0 | AM21: 10 | AN21: 27.0 | AO21: 2 | AP21: 0 | AQ21: 0 | AR21: 0 | AS21: 0 | AT21: 0 | AU21: 0 | AV21: 0 | AW21: 0 | AX21: 0 | AY21: 0 | AZ21: 7,586.0 | BA21: 6 | BB21: 0 | BC21: 0 | BD21: 2,507.0 | BE21: 9 | BF21: 24,547.0 | BG21: 8
A22: 남산동 | B22: 400,273.0 | C22: 1,871 | D22: 95,695.0 | E22: 217 | F22: 83.0 | G22: 3 | H22: 0 | I22: 0 | J22: 0 | K22: 0 | L22: 32,758.0 | M22: 32 | N22: 0 | O22: 0 | P22: 0 | Q22: 0 | R22: 131,740.0 | S22: 1,218 | T22: 0 | U22: 0 | V22: 4,469.0 | W22: 2 | X22: 3,833.0 | Y22: 8 | Z22: 0 | AA22: 0 | AB22: 0 | AC22: 0 | AD22: 99,871.0 | AE22: 346 | AF22: 0 | AG22: 0 | AH22: 273.0 | AI22: 4 | AJ22: 9,140.0 | AK22: 1 | AL22: 595.0 | AM22: 6 | AN22: 0 | AO22: 0 | AP22: 0 | AQ22: 0 | AR22: 283.0 | AS22: 2 | AT22: 0 | AU22: 0 | AV22: 0 | AW22: 0 | AX22: 0 | AY22: 0 | AZ22: 0 | BA22: 0 | BB22: 0 | BC22: 0 | BD22: 58.0 | BE22: 2 | BF22: 21,475.0 | BG22: 30
A23: 국동 | B23: 1,533,342.3 | C23: 3,193 | D23: 94,774.0 | E23: 441 | F23: 14,589.0 | G23: 71 | H23: 815.0 | I23: 1 | J23: 0 | K23: 0 | L23: 485,995.0 | M23: 90 | N23: 0 | O23: 0 | P23: 0 | Q23: 0 | R23: 527,682.2 | S23: 1,868 | T23: 6,735.0 | U23: 12 | V23: 125,624.2 | W23: 28 | X23: 6,061.0 | Y23: 6 | Z23: 1,291.0 | AA23: 2 | AB23: 912.0 | AC23: 5 | AD23: 176,536.6 | AE23: 573 | AF23: 0 | AG23: 0 | AH23: 2,006.0 | AI23: 1 | AJ23: 0 | AK23: 0 | AL23: 15,756.0 | AM23: 13 | AN23: 0 | AO23: 0 | AP23: 0 | AQ23: 0 | AR23: 3,092.0 | AS23: 6 | AT23: 0 | AU23: 0 | AV23: 1,163.0 | AW23: 1 | AX23: 0 | AY23: 0 | AZ23: 7,538.5 | BA23: 14 | BB23: 0 | BC23: 0 | BD23: 760.0 | BE23: 5 | BF23: 62,011.8 | BG23: 56
A24: 신월동 | B24: 3,713,031.5 | C24: 2,504 | D24: 610,939.0 | E24: 835 | F24: 117,843.0 | G24: 184 | H24: 0 | I24: 0 | J24: 0 | K24: 0 | L24: 1,401,195.0 | M24: 326 | N24: 0 | O24: 0 | P24: 0 | Q24: 0 | R24: 241,223.5 | S24: 495 | T24: 851,758.0 | U24: 132 | V24: 7,970.0 | W24: 1 | X24: 1,587.0 | Y24: 1 | Z24: 2,571.0 | AA24: 10 | AB24: 1,810.0 | AC24: 2 | AD24: 205,289.0 | AE24: 327 | AF24: 0 | AG24: 0 | AH24: 5,881.0 | AI24: 19 | AJ24: 0 | AK24: 0 | AL24: 45,454.0 | AM24: 20 | AN24: 0 | AO24: 0 | AP24: 0 | AQ24: 0 | AR24: 0 | AS24: 0 | AT24: 0 | AU24: 0 | AV24: 0 | AW24: 0 | AX24: 0 | AY24: 0 | AZ24: 9,241.0 | BA24: 9 | BB24: 0 | BC24: 0 | BD24: 6,008.0 | BE24: 26 | BF24: 204,262.0 | BG24: 117
A25: 여서동 | B25: 2,575,285.9 | C25: 1,928 | D25: 203,915.0 | E25: 277 | F25: 116,410.0 | G25: 188 | H25: 0 | I25: 0 | J25: 0 | K25: 0 | L25: 1,223,622.0 | M25: 293 | N25: 0 | O25: 0 | P25: 0 | Q25: 0 | R25: 562,646.2 | S25: 755 | T25: 0 | U25: 0 | V25: 58,011.0 | W25: 4 | X25: 2,518.0 | Y25: 14 | Z25: 1,488.0 | AA25: 1 | AB25: 741.0 | AC25: 1 | AD25: 291,367.5 | AE25: 283 | AF25: 0 | AG25: 0 | AH25: 0 | AI25: 0 | AJ25: 0 | AK25: 0 | AL25: 15,119.9 | AM25: 20 | AN25: 958.0 | AO25: 2 | AP25: 0 | AQ25: 0 | AR25: 11,855.0 | AS25: 5 | AT25: 32,420.4 | AU25: 8 | AV25: 9,361.0 | AW25: 5 | AX25: 0 | AY25: 0 | AZ25: 15,908.4 | BA25: 22 | BB25: 0 | BC25: 0 | BD25: 2,630.0 | BE25: 8 | BF25: 26,314.5 | BG25: 42
A26: 문수동 | B26: 2,244,118.3 | C26: 3,182 | D26: 174,533.0 | E26: 317 | F26: 33,691.0 | G26: 92 | H26: 0 | I26: 0 | J26: 0 | K26: 0 | L26: 836,075.7 | M26: 315 | N26: 0 | O26: 0 | P26: 0 | Q26: 0 | R26: 717,070.5 | S26: 1,895 | T26: 0 | U26: 0 | V26: 122,894.6 | W26: 10 | X26: 13,625.4 | Y26: 46 | Z26: 1,109.1 | AA26: 2 | AB26: 205.0 | AC26: 1 | AD26: 225,536.9 | AE26: 373 | AF26: 0 | AG26: 0 | AH26: 0 | AI26: 0 | AJ26: 8,513.0 | AK26: 5 | AL26: 9,438.4 | AM26: 13 | AN26: 0 | AO26: 0 | AP26: 0 | AQ26: 0 | AR26: 31.0 | AS26: 1 | AT26: 54,362.1 | AU26: 21 | AV26: 0 | AW26: 0 | AX26: 0 | AY26: 0 | AZ26: 25,861.0 | BA26: 15 | BB26: 0 | BC26: 0 | BD26: 3,861.0 | BE26: 19 | BF26: 17,310.6 | BG26: 57
A27: 오림동 | B27: 2,129,905.7 | C27: 1,657 | D27: 149,027.0 | E27: 268 | F27: 58,336.0 | G27: 115 | H27: 0 | I27: 0 | J27: 0 | K27: 0 | L27: 1,139,109.0 | M27: 295 | N27: 0 | O27: 0 | P27: 0 | Q27: 0 | R27: 177,334.6 | S27: 554 | T27: 895.0 | U27: 2 | V27: 25,821.0 | W27: 2 | X27: 65.3 | Y27: 1 | Z27: 2,939.8 | AA27: 8 | AB27: 894.0 | AC27: 2 | AD27: 143,273.1 | AE27: 291 | AF27: 33,331.0 | AG27: 33 | AH27: 0 | AI27: 0 | AJ27: 17,042.4 | AK27: 6 | AL27: 15,312.2 | AM27: 33 | AN27: 10.0 | AO27: 1 | AP27: 0 | AQ27: 0 | AR27: 9,101.0 | AS27: 5 | AT27: 1,699.4 | AU27: 1 | AV27: 310,227.0 | AW27: 14 | AX27: 0 | AY27: 0 | AZ27: 3,107.9 | BA27: 3 | BB27: 0 | BC27: 0 | BD27: 35,390.0 | BE27: 11 | BF27: 6,990.0 | BG27: 12
A28: 미평동 | B28: 3,088,607.9 | C28: 2,704 | D28: 139,407.0 | E28: 326 | F28: 94,931.0 | G28: 229 | H28: 0 | I28: 0 | J28: 0 | K28: 0 | L28: 1,766,916.0 | M28: 209 | N28: 0 | O28: 0 | P28: 0 | Q28: 0 | R28: 473,837.1 | S28: 1,180 | T28: 1,501.0 | U28: 3 | V28: 64,631.1 | W28: 10 | X28: 6,876.8 | Y28: 15 | Z28: 1,804.2 | AA28: 3 | AB28: 177.4 | AC28: 1 | AD28: 285,308.4 | AE28: 541 | AF28: 53,203.0 | AG28: 33 | AH28: 0 | AI28: 0 | AJ28: 9,529.4 | AK28: 3 | AL28: 25,651.0 | AM28: 50 | AN28: 0 | AO28: 0 | AP28: 0 | AQ28: 0 | AR28: 91,230.5 | AS28: 57 | AT28: 16,700.4 | AU28: 10 | AV28: 0 | AW28: 0 | AX28: 0 | AY28: 0 | AZ28: 8,992.4 | BA28: 9 | BB28: 0 | BC28: 0 | BD28: 5,712.0 | BE28: 7 | BF28: 42,199.2 | BG28: 18
A29: 둔덕동 | B29: 4,075,966.1 | C29: 2,319 | D29: 177,878.0 | E29: 286 | F29: 425,547.0 | G29: 480 | H29: 0 | I29: 0 | J29: 0 | K29: 0 | L29: 2,180,556.0 | M29: 333 | N29: 0 | O29: 0 | P29: 0 | Q29: 0 | R29: 475,353.9 | S29: 646 | T29: 362.0 | U29: 1 | V29: 722.0 | W29: 1 | X29: 2,833.7 | Y29: 6 | Z29: 10,143.9 | AA29: 8 | AB29: 6,602.7 | AC29: 10 | AD29: 383,823.6 | AE29: 417 | AF29: 22,933.0 | AG29: 33 | AH29: 0 | AI29: 0 | AJ29: 9,119.1 | AK29: 3 | AL29: 21,254.0 | AM29: 11 | AN29: 0 | AO29: 0 | AP29: 0 | AQ29: 0 | AR29: 72,838.0 | AS29: 4 | AT29: 18,073.4 | AU29: 8 | AV29: 166,279.0 | AW29: 6 | AX29: 0 | AY29: 0 | AZ29: 14,763.3 | BA29: 10 | BB29: 0 | BC29: 0 | BD29: 3,315.0 | BE29: 9 | BF29: 83,568.5 | BG29: 47
A30: 오천동 | B30: 5,604,875.9 | C30: 1,308 | D30: 269,255.0 | E30: 320 | F30: 95,900.0 | G30: 149 | H30: 0 | I30: 0 | J30: 0 | K30: 0 | L30: 3,739,230.6 | M30: 172 | N30: 0 | O30: 0 | P30: 0 | Q30: 0 | R30: 513,754.4 | S30: 302 | T30: 91,583.9 | U30: 58 | V30: 0 | W30: 0 | X30: 25.0 | Y30: 1 | Z30: 0 | AA30: 0 | AB30: 288.0 | AC30: 1 | AD30: 99,142.7 | AE30: 232 | AF30: 0 | AG30: 0 | AH30: 1,109.0 | AI30: 2 | AJ30: 5,346.3 | AK30: 3 | AL30: 19,327.9 | AM30: 30 | AN30: 0 | AO30: 0 | AP30: 0 | AQ30: 0 | AR30: 921.0 | AS30: 18 | AT30: 372,271.6 | AU30: 5 | AV30: 388,946.5 | AW30: 1 | AX30: 0 | AY30: 0 | AZ30: 1,566.0 | BA30: 1 | BB30: 0 | BC30: 0 | BD30: 2,428.0 | BE30: 7 | BF30: 3,780.0 | BG30: 6
A31: 만흥동 | B31: 7,434,058.5 | C31: 3,938 | D31: 832,179.0 | E31: 1,050 | F31: 628,153.0 | G31: 716 | H31: 0 | I31: 0 | J31: 0 | K31: 0 | L31: 5,047,718.0 | M31: 694 | N31: 0 | O31: 0 | P31: 0 | Q31: 0 | R31: 138,979.0 | S31: 417 | T31: 45,135.0 | U31: 22 | V31: 11,073.0 | W31: 1 | X31: 2,793.0 | Y31: 3 | Z31: 1,185.0 | AA31: 3 | AB31: 3,536.0 | AC31: 7 | AD31: 367,782.6 | AE31: 732 | AF31: 107,838.0 | AG31: 71 | AH31: 927.0 | AI31: 3 | AJ31: 7,761.0 | AK31: 5 | AL31: 71,514.9 | AM31: 56 | AN31: 0 | AO31: 0 | AP31: 0 | AQ31: 0 | AR31: 8,882.0 | AS31: 33 | AT31: 0 | AU31: 0 | AV31: 0 | AW31: 0 | AX31: 0 | AY31: 0 | AZ31: 3,841.0 | BA31: 2 | BB31: 0 | BC31: 0 | BD31: 20,885.0 | BE31: 47 | BF31: 133,876.0 | BG31: 76
A32: 덕충동 | B32: 2,921,653.4 | C32: 3,013 | D32: 349,264.0 | E32: 705 | F32: 70,403.0 | G32: 145 | H32: 0 | I32: 0 | J32: 0 | K32: 0 | L32: 1,121,120.0 | M32: 361 | N32: 0 | O32: 0 | P32: 0 | Q32: 0 | R32: 573,484.2 | S32: 1,050 | T32: 17,722.0 | U32: 9 | V32: 55,703.1 | W32: 6 | X32: 32,438.8 | Y32: 6 | Z32: 2,745.0 | AA32: 4 | AB32: 429.0 | AC32: 2 | AD32: 243,366.1 | AE32: 461 | AF32: 63,179.0 | AG32: 111 | AH32: 12,306.4 | AI32: 6 | AJ32: 6,663.6 | AK32: 1 | AL32: 21,495.0 | AM32: 23 | AN32: 0 | AO32: 0 | AP32: 0 | AQ32: 0 | AR32: 9,638.7 | AS32: 13 | AT32: 136,370.2 | AU32: 27 | AV32: 400.0 | AW32: 3 | AX32: 0 | AY32: 0 | AZ32: 15,792.8 | BA32: 18 | BB32: 0 | BC32: 0 | BD32: 22,244.0 | BE32: 35 | BF32: 166,888.5 | BG32: 27
A33: 경호동 | B33: 3,082,493.0 | C33: 3,909 | D33: 1,125,433.0 | E33: 1,376 | F33: 158,586.0 | G33: 264 | H33: 0 | I33: 0 | J33: 0 | K33: 0 | L33: 1,527,859.0 | M33: 899 | N33: 0 | O33: 0 | P33: 0 | Q33: 0 | R33: 145,262.7 | S33: 722 | T33: 0 | U33: 0 | V33: 11,350.0 | W33: 2 | X33: 821.6 | Y33: 8 | Z33: 0 | AA33: 0 | AB33: 0 | AC33: 0 | AD33: 55,796.1 | AE33: 516 | AF33: 0 | AG33: 0 | AH33: 11,307.0 | AI33: 27 | AJ33: 1,220.0 | AK33: 5 | AL33: 107.0 | AM33: 1 | AN33: 2,473.0 | AO33: 2 | AP33: 1,601.0 | AQ33: 1 | AR33: 0 | AS33: 0 | AT33: 7,918.6 | AU33: 11 | AV33: 0 | AW33: 0 | AX33: 0 | AY33: 0 | AZ33: 1,216.0 | BA33: 3 | BB33: 0 | BC33: 0 | BD33: 11,777.0 | BE33: 26 | BF33: 19,765.0 | BG33: 46
A34: 학동 | B34: 1,429,258.9 | C34: 1,774 | D34: 7,488.0 | E34: 30 | F34: 646.0 | G34: 8 | H34: 0 | I34: 0 | J34: 0 | K34: 0 | L34: 79,011.2 | M34: 34 | N34: 0 | O34: 0 | P34: 0 | Q34: 0 | R34: 807,109.1 | S34: 1,499 | T34: 0 | U34: 0 | V34: 23,943.0 | W34: 2 | X34: 10,098.3 | Y34: 15 | Z34: 2,423.0 | AA34: 4 | AB34: 299.0 | AC34: 1 | AD34: 360,678.8 | AE34: 150 | AF34: 0 | AG34: 0 | AH34: 0 | AI34: 0 | AJ34: 0 | AK34: 0 | AL34: 830.7 | AM34: 9 | AN34: 7,506.5 | AO34: 1 | AP34: 0 | AQ34: 0 | AR34: 0 | AS34: 0 | AT34: 115,353.4 | AU34: 14 | AV34: 10,945.6 | AW34: 1 | AX34: 66.0 | AY34: 1 | AZ34: 1,125.0 | BA34: 1 | BB34: 0 | BC34: 0 | BD34: 0 | BE34: 0 | BF34: 1,735.3 | BG34: 4
A35: 학용동 | B35: 966,619.0 | C35: 574 | D35: 129,040.0 | E35: 235 | F35: 11,542.0 | G35: 26 | H35: 3,486.0 | I35: 3 | J35: 0 | K35: 0 | L35: 672,245.0 | M35: 145 | N35: 0 | O35: 0 | P35: 0 | Q35: 0 | R35: 2,737.0 | S35: 6 | T35: 0 | U35: 0 | V35: 0 | W35: 0 | X35: 0 | Y35: 0 | Z35: 3,215.0 | AA35: 3 | AB35: 0 | AC35: 0 | AD35: 21,192.0 | AE35: 35 | AF35: 73,480.0 | AG35: 71 | AH35: 0 | AI35: 0 | AJ35: 5,158.0 | AK35: 12 | AL35: 3,960.0 | AM35: 9 | AN35: 0 | AO35: 0 | AP35: 0 | AQ35: 0 | AR35: 20,058.0 | AS35: 3 | AT35: 2,489.0 | AU35: 5 | AV35: 0 | AW35: 0 | AX35: 0 | AY35: 0 | AZ35: 0 | BA35: 0 | BB35: 0 | BC35: 0 | BD35: 18,017.0 | BE35: 21 | BF35: 0 | BG35: 0
A36: 안산동 | B36: 1,468,379.8 | C36: 1,534 | D36: 53,240.0 | E36: 124 | F36: 23,047.0 | G36: 46 | H36: 0 | I36: 0 | J36: 0 | K36: 0 | L36: 523,049.6 | M36: 154 | N36: 0 | O36: 0 | P36: 0 | Q36: 0 | R36: 587,516.5 | S36: 1,032 | T36: 0 | U36: 0 | V36: 38,644.1 | W36: 4 | X36: 2,124.9 | Y36: 5 | Z36: 440.2 | AA36: 2 | AB36: 363.0 | AC36: 1 | AD36: 196,504.1 | AE36: 133 | AF36: 0 | AG36: 0 | AH36: 1,296.4 | AI36: 1 | AJ36: 1,060.0 | AK36: 2 | AL36: 4,498.8 | AM36: 10 | AN36: 0 | AO36: 0 | AP36: 0 | AQ36: 0 | AR36: 0 | AS36: 0 | AT36: 21,255.1 | AU36: 3 | AV36: 0 | AW36: 0 | AX36: 0 | AY36: 0 | AZ36: 14,502.1 | BA36: 12 | BB36: 0 | BC36: 0 | BD36: 317.0 | BE36: 2 | BF36: 521.0 | BG36: 3
A37: 소호동 | B37: 3,301,703.2 | C37: 2,205 | D37: 311,970.0 | E37: 393 | F37: 307,763.0 | G37: 312 | H37: 340.0 | I37: 1 | J37: 0 | K37: 0 | L37: 1,508,412.4 | M37: 325 | N37: 0 | O37: 0 | P37: 0 | Q37: 0 | R37: 681,584.7 | S37: 682 | T37: 12,954.0 | U37: 11 | V37: 30,757.4 | W37: 3 | X37: 14,595.6 | Y37: 14 | Z37: 1,526.0 | AA37: 1 | AB37: 2,480.0 | AC37: 2 | AD37: 293,093.1 | AE37: 362 | AF37: 0 | AG37: 0 | AH37: 5,785.8 | AI37: 6 | AJ37: 144.0 | AK37: 2 | AL37: 17,152.0 | AM37: 10 | AN37: 3,942.0 | AO37: 2 | AP37: 0 | AQ37: 0 | AR37: 0 | AS37: 0 | AT37: 4,193.0 | AU37: 2 | AV37: 0 | AW37: 0 | AX37: 49,588.3 | AY37: 1 | AZ37: 6,488.0 | BA37: 6 | BB37: 0 | BC37: 0 | BD37: 13,896.0 | BE37: 30 | BF37: 35,037.9 | BG37: 40
A38: 시전동 | B38: 1,851,919.4 | C38: 976 | D38: 272,258.0 | E38: 319 | F38: 89,758.0 | G38: 120 | H38: 0 | I38: 0 | J38: 0 | K38: 0 | L38: 1,206,490.0 | M38: 319 | N38: 0 | O38: 0 | P38: 0 | Q38: 0 | R38: 38,328.4 | S38: 58 | T38: 0 | U38: 0 | V38: 0 | W38: 0 | X38: 0 | Y38: 0 | Z38: 3,904.0 | AA38: 4 | AB38: 0 | AC38: 0 | AD38: 41,468.0 | AE38: 94 | AF38: 0 | AG38: 0 | AH38: 0 | AI38: 0 | AJ38: 177.0 | AK38: 2 | AL38: 13,583.0 | AM38: 25 | AN38: 0 | AO38: 0 | AP38: 0 | AQ38: 0 | AR38: 9.0 | AS38: 1 | AT38: 0 | AU38: 0 | AV38: 157,345.0 | AW38: 4 | AX38: 0 | AY38: 0 | AZ38: 13,946.0 | BA38: 3 | BB38: 0 | BC38: 0 | BD38: 8,810.0 | BE38: 22 | BF38: 5,843.0 | BG38: 5
A39: 신기동 | B39: 984,004.0 | C39: 1,489 | D39: 0 | E39: 0 | F39: 0 | G39: 0 | H39: 0 | I39: 0 | J39: 0 | K39: 0 | L39: 43,922.6 | M39: 15 | N39: 0 | O39: 0 | P39: 0 | Q39: 0 | R39: 615,116.7 | S39: 1,402 | T39: 0 | U39: 0 | V39: 34,096.3 | W39: 2 | X39: 3,549.1 | Y39: 11 | Z39: 661.2 | AA39: 1 | AB39: 0 | AC39: 0 | AD39: 261,986.2 | AE39: 42 | AF39: 0 | AG39: 0 | AH39: 0 | AI39: 0 | AJ39: 0 | AK39: 0 | AL39: 0 | AM39: 0 | AN39: 0 | AO39: 0 | AP39: 0 | AQ39: 0 | AR39: 0 | AS39: 0 | AT39: 19,675.2 | AU39: 11 | AV39: 0 | AW39: 0 | AX39: 0 | AY39: 0 | AZ39: 4,996.7 | BA39: 5 | BB39: 0 | BC39: 0 | BD39: 0 | BE39: 0 | BF39: 0 | BG39: 0
A40: 웅천동 | B40: 3,421,085.4 | C40: 3,895 | D40: 781,202.0 | E40: 1,009 | F40: 363,582.0 | G40: 603 | H40: 4,119.0 | I40: 4 | J40: 0 | K40: 0 | L40: 1,165,846.0 | M40: 621 | N40: 0 | O40: 0 | P40: 0 | Q40: 0 | R40: 453,229.2 | S40: 946 | T40: 0 | U40: 0 | V40: 30,448.7 | W40: 2 | X40: 23,241.5 | Y40: 12 | Z40: 0 | AA40: 0 | AB40: 350.0 | AC40: 1 | AD40: 301,800.7 | AE40: 551 | AF40: 0 | AG40: 0 | AH40: 1,881.6 | AI40: 6 | AJ40: 378.0 | AK40: 2 | AL40: 34,973.0 | AM40: 23 | AN40: 22,484.0 | AO40: 30 | AP40: 0 | AQ40: 0 | AR40: 3,733.1 | AS40: 12 | AT40: 156,130.5 | AU40: 30 | AV40: 0 | AW40: 0 | AX40: 0 | AY40: 0 | AZ40: 2,475.9 | BA40: 3 | BB40: 0 | BC40: 0 | BD40: 15,241.0 | BE40: 28 | BF40: 59,969.2 | BG40: 12
A41: 선원동 | B41: 2,552,162.3 | C41: 2,824 | D41: 287,205.0 | E41: 379 | F41: 319,501.0 | G41: 384 | H41: 5,341.0 | I41: 4 | J41: 0 | K41: 0 | L41: 715,447.0 | M41: 299 | N41: 0 | O41: 0 | P41: 0 | Q41: 0 | R41: 663,797.0 | S41: 1,348 | T41: 2,149.0 | U41: 1 | V41: 79,321.7 | W41: 4 | X41: 14,773.8 | Y41: 18 | Z41: 2,143.0 | AA41: 6 | AB41: 7,380.0 | AC41: 3 | AD41: 329,587.7 | AE41: 262 | AF41: 46,158.0 | AG41: 33 | AH41: 0 | AI41: 0 | AJ41: 23,299.0 | AK41: 5 | AL41: 29,266.8 | AM41: 49 | AN41: 20.0 | AO41: 1 | AP41: 0 | AQ41: 0 | AR41: 0 | AS41: 0 | AT41: 5,252.0 | AU41: 5 | AV41: 0 | AW41: 0 | AX41: 0 | AY41: 0 | AZ41: 10,177.2 | BA41: 6 | BB41: 0 | BC41: 0 | BD41: 8,214.0 | BE41: 12 | BF41: 3,129.1 | BG41: 5
A42: 여천동 | B42: 2,390,634.0 | C42: 1,892 | D42: 322,986.0 | E42: 370 | F42: 705,096.0 | G42: 699 | H42: 0 | I42: 0 | J42: 1,905.0 | K42: 4 | L42: 912,524.0 | M42: 97 | N42: 0 | O42: 0 | P42: 0 | Q42: 0 | R42: 79,564.0 | S42: 181 | T42: 5,478.0 | U42: 4 | V42: 0 | W42: 0 | X42: 7,304.0 | Y42: 11 | Z42: 6,626.0 | AA42: 9 | AB42: 9,641.0 | AC42: 13 | AD42: 149,823.0 | AE42: 316 | AF42: 0 | AG42: 0 | AH42: 0 | AI42: 0 | AJ42: 49,201.0 | AK42: 40 | AL42: 51,312.0 | AM42: 83 | AN42: 23,868.0 | AO42: 16 | AP42: 1,016.0 | AQ42: 1 | AR42: 30,576.0 | AS42: 9 | AT42: 0 | AU42: 0 | AV42: 0 | AW42: 0 | AX42: 0 | AY42: 0 | AZ42: 9,967.0 | BA42: 6 | BB42: 6,450.0 | BC42: 2 | BD42: 2,113.0 | BE42: 9 | BF42: 15,184.0 | BG42: 22
A43: 화장동 | B43: 2,588,568.3 | C43: 2,708 | D43: 211,626.0 | E43: 250 | F43: 204,625.0 | G43: 233 | H43: 12,103.0 | I43: 1 | J43: 1,758.0 | K43: 2 | L43: 806,963.5 | M43: 209 | N43: 0 | O43: 0 | P43: 0 | Q43: 0 | R43: 579,407.0 | S43: 1,651 | T43: 307.0 | U43: 1 | V43: 83,225.7 | W43: 4 | X43: 20,608.1 | Y43: 20 | Z43: 5,317.7 | AA43: 3 | AB43: 2,156.0 | AC43: 2 | AD43: 386,462.0 | AE43: 223 | AF43: 29,038.0 | AG43: 23 | AH43: 0 | AI43: 0 | AJ43: 14,754.0 | AK43: 7 | AL43: 9,251.1 | AM43: 32 | AN43: 0 | AO43: 0 | AP43: 0 | AQ43: 0 | AR43: 2,005.0 | AS43: 4 | AT43: 171,055.4 | AU43: 22 | AV43: 28,326.0 | AW43: 3 | AX43: 0 | AY43: 0 | AZ43: 1,189.8 | BA43: 3 | BB43: 0 | BC43: 0 | BD43: 4,377.0 | BE43: 6 | BF43: 14,013.0 | BG43: 9
A44: 주삼동 | B44: 3,678,065.1 | C44: 3,094 | D44: 386,675.0 | E44: 429 | F44: 974,676.0 | G44: 926 | H44: 0 | I44: 0 | J44: 2,919.0 | K44: 5 | L44: 1,331,401.0 | M44: 344 | N44: 0 | O44: 0 | P44: 0 | Q44: 0 | R44: 175,920.0 | S44: 359 | T44: 132,724.9 | U44: 48 | V44: 22,025.0 | W44: 2 | X44: 62,095.9 | Y44: 9 | Z44: 13,248.0 | AA44: 8 | AB44: 3,032.0 | AC44: 6 | AD44: 392,455.7 | AE44: 806 | AF44: 11,899.0 | AG44: 14 | AH44: 4,129.0 | AI44: 7 | AJ44: 10,347.0 | AK44: 9 | AL44: 83,827.0 | AM44: 56 | AN44: 4,734.0 | AO44: 9 | AP44: 0 | AQ44: 0 | AR44: 0 | AS44: 0 | AT44: 0 | AU44: 0 | AV44: 6,682.0 | AW44: 1 | AX44: 0 | AY44: 0 | AZ44: 0 | BA44: 0 | BB44: 0 | BC44: 0 | BD44: 7,583.0 | BE44: 5 | BF44: 51,691.6 | BG44: 51
A45: 봉계동 | B45: 5,349,147.0 | C45: 2,660 | D45: 352,400.0 | E45: 443 | F45: 373,490.0 | G45: 402 | H45: 0 | I45: 0 | J45: 993.0 | K45: 1 | L45: 3,275,182.0 | M45: 503 | N45: 0 | O45: 0 | P45: 0 | Q45: 0 | R45: 314,084.0 | S45: 422 | T45: 13,882.0 | U45: 7 | V45: 62,850.0 | W45: 1 | X45: 10,250.0 | Y45: 8 | Z45: 5,879.0 | AA45: 7 | AB45: 7,597.0 | AC45: 13 | AD45: 222,278.0 | AE45: 705 | AF45: 0 | AG45: 0 | AH45: 536.0 | AI45: 1 | AJ45: 5,447.0 | AK45: 8 | AL45: 68,612.0 | AM45: 51 | AN45: 92,036.0 | AO45: 35 | AP45: 0 | AQ45: 0 | AR45: 0 | AS45: 0 | AT45: 0 | AU45: 0 | AV45: 508,106.0 | AW45: 1 | AX45: 0 | AY45: 0 | AZ45: 9,549.0 | BA45: 7 | BB45: 0 | BC45: 0 | BD45: 1,452.0 | BE45: 3 | BF45: 24,524.0 | BG45: 42
A46: 해산동 | B46: 2,501,363.0 | C46: 2,512 | D46: 290,377.0 | E46: 434 | F46: 662,143.4 | G46: 743 | H46: 3,307.0 | I46: 1 | J46: 1,746.0 | K46: 3 | L46: 841,745.0 | M46: 238 | N46: 0 | O46: 0 | P46: 0 | Q46: 0 | R46: 102,083.7 | S46: 213 | T46: 4,976.0 | U46: 3 | V46: 0 | W46: 0 | X46: 4,614.0 | Y46: 4 | Z46: 7,656.0 | AA46: 9 | AB46: 5,300.0 | AC46: 6 | AD46: 325,287.7 | AE46: 551 | AF46: 48,430.2 | AG46: 64 | AH46: 4,536.0 | AI46: 3 | AJ46: 93,230.0 | AK46: 41 | AL46: 49,375.0 | AM46: 124 | AN46: 23,174.0 | AO46: 14 | AP46: 0 | AQ46: 0 | AR46: 3,567.0 | AS46: 7 | AT46: 0 | AU46: 0 | AV46: 0 | AW46: 0 | AX46: 0 | AY46: 0 | AZ46: 0 | BA46: 0 | BB46: 0 | BC46: 0 | BD46: 2,891.0 | BE46: 10 | BF46: 26,924.0 | BG46: 44
A47: 화치동 | B47: 6,912,484.7 | C47: 892 | D47: 108,739.0 | E47: 100 | F47: 129,425.5 | G47: 128 | H47: 0 | I47: 0 | J47: 0 | K47: 0 | L47: 1,624,727.6 | M47: 250 | N47: 0 | O47: 0 | P47: 0 | Q47: 0 | R47: 180,722.9 | S47: 42 | T47: 3,867,778.5 | U47: 155 | V47: 0 | W47: 0 | X47: 3,683.0 | Y47: 1 | Z47: 769.9 | AA47: 1 | AB47: 11,159.4 | AC47: 2 | AD47: 447,391.6 | AE47: 80 | AF47: 4,905.0 | AG47: 4 | AH47: 21,555.6 | AI47: 15 | AJ47: 370,946.2 | AK47: 14 | AL47: 28,459.3 | AM47: 54 | AN47: 2,313.0 | AO47: 5 | AP47: 0 | AQ47: 0 | AR47: 13,143.0 | AS47: 10 | AT47: 4,064.2 | AU47: 1 | AV47: 0 | AW47: 0 | AX47: 0 | AY47: 0 | AZ47: 0 | BA47: 0 | BB47: 0 | BC47: 0 | BD47: 11,217.0 | BE47: 3 | BF47: 81,484.0 | BG47: 27
A48: 월하동 | B48: 2,833,857.4 | C48: 615 | D48: 32,141.0 | E48: 56 | F48: 6,152.0 | G48: 18 | H48: 0 | I48: 0 | J48: 0 | K48: 0 | L48: 782,238.3 | M48: 80 | N48: 0 | O48: 0 | P48: 0 | Q48: 0 | R48: 59,451.8 | S48: 47 | T48: 1,493,000.6 | U48: 77 | V48: 0 | W48: 0 | X48: 999.9 | Y48: 1 | Z48: 3,085.0 | AA48: 10 | AB48: 4,004.0 | AC48: 2 | AD48: 253,147.5 | AE48: 229 | AF48: 29,456.0 | AG48: 6 | AH48: 0 | AI48: 0 | AJ48: 44,367.0 | AK48: 13 | AL48: 29,379.9 | AM48: 25 | AN48: 0 | AO48: 0 | AP48: 0 | AQ48: 0 | AR48: 7,282.0 | AS48: 2 | AT48: 0 | AU48: 0 | AV48: 0 | AW48: 0 | AX48: 0 | AY48: 0 | AZ48: 0 | BA48: 0 | BB48: 0 | BC48: 0 | BD48: 0 | BE48: 0 | BF48: 89,152.4 | BG48: 49
A49: 평여동 | B49: 6,851,431.4 | C49: 721 | D49: 41,946.0 | E49: 61 | F49: 28,288.0 | G49: 59 | H49: 0 | I49: 0 | J49: 0 | K49: 0 | L49: 4,317,786.1 | M49: 317 | N49: 0 | O49: 0 | P49: 0 | Q49: 0 | R49: 16,392.7 | S49: 32 | T49: 1,860,078.2 | U49: 47 | V49: 0 | W49: 0 | X49: 0 | Y49: 0 | Z49: 2,739.0 | AA49: 2 | AB49: 0 | AC49: 0 | AD49: 250,444.0 | AE49: 72 | AF49: 69,285.0 | AG49: 14 | AH49: 0 | AI49: 0 | AJ49: 52,523.4 | AK49: 13 | AL49: 33,233.8 | AM49: 24 | AN49: 64,841.0 | AO49: 30 | AP49: 0 | AQ49: 0 | AR49: 28,134.0 | AS49: 4 | AT49: 4,556.2 | AU49: 1 | AV49: 0 | AW49: 0 | AX49: 0 | AY49: 0 | AZ49: 0 | BA49: 0 | BB49: 0 | BC49: 0 | BD49: 123.0 | BE49: 2 | BF49: 81,061.0 | BG49: 43
A50: 중흥동 | B50: 13,748,951.9 | C50: 2,860 | D50: 169,258.0 | E50: 373 | F50: 100,059.0 | G50: 201 | H50: 8,766.0 | I50: 3 | J50: 250.0 | K50: 1 | L50: 5,806,317.9 | M50: 401 | N50: 0 | O50: 0 | P50: 0 | Q50: 0 | R50: 414,365.7 | S50: 659 | T50: 5,600,375.9 | U50: 153 | V50: 27,075.0 | W50: 6 | X50: 4,867.8 | Y50: 2 | Z50: 9,239.0 | AA50: 7 | AB50: 5,826.0 | AC50: 3 | AD50: 659,164.7 | AE50: 637 | AF50: 94,385.0 | AG50: 92 | AH50: 30,997.4 | AI50: 12 | AJ50: 205,133.6 | AK50: 72 | AL50: 101,052.8 | AM50: 51 | AN50: 10,299.0 | AO50: 14 | AP50: 0 | AQ50: 0 | AR50: 10,112.2 | AS50: 7 | AT50: 79,298.7 | AU50: 6 | AV50: 1,544.0 | AW50: 2 | AX50: 0 | AY50: 0 | AZ50: 29,235.0 | BA50: 16 | BB50: 0 | BC50: 0 | BD50: 24,262.0 | BE50: 18 | BF50: 357,067.2 | BG50: 124
A51: 적량동 | B51: 4,970,447.4 | C51: 1,166 | D51: 267,187.0 | E51: 281 | F51: 180,823.0 | G51: 222 | H51: 5,808.0 | I51: 3 | J51: 0 | K51: 0 | L51: 2,177,017.8 | M51: 311 | N51: 0 | O51: 0 | P51: 0 | Q51: 0 | R51: 18,697.0 | S51: 62 | T51: 1,969,023.7 | U51: 40 | V51: 9,924.0 | W51: 2 | X51: 0 | Y51: 0 | Z51: 0 | AA51: 0 | AB51: 0 | AC51: 0 | AD51: 138,417.5 | AE51: 107 | AF51: 29,159.0 | AG51: 14 | AH51: 5,385.1 | AI51: 3 | AJ51: 25,378.0 | AK51: 15 | AL51: 40,515.3 | AM51: 24 | AN51: 42,003.0 | AO51: 37 | AP51: 0 | AQ51: 0 | AR51: 0 | AS51: 0 | AT51: 14,667.2 | AU51: 2 | AV51: 0 | AW51: 0 | AX51: 0 | AY51: 0 | AZ51: 290.0 | BA51: 1 | BB51: 0 | BC51: 0 | BD51: 3,358.0 | BE51: 5 | BF51: 42,793.8 | BG51: 37
A52: 월내동 | B52: 5,489,996.0 | C52: 1,177 | D52: 201,089.0 | E52: 202 | F52: 185,570.0 | G52: 202 | H52: 0 | I52: 0 | J52: 0 | K52: 0 | L52: 2,150,061.9 | M52: 262 | N52: 0 | O52: 0 | P52: 0 | Q52: 0 | R52: 105,304.0 | S52: 24 | T52: 1,917,085.3 | U52: 53 | V52: 1,103.0 | W52: 1 | X52: 0 | Y52: 0 | Z52: 0 | AA52: 0 | AB52: 0 | AC52: 0 | AD52: 191,210.6 | AE52: 171 | AF52: 44,995.0 | AG52: 54 | AH52: 14,333.0 | AI52: 7 | AJ52: 10,172.0 | AK52: 23 | AL52: 37,258.4 | AM52: 54 | AN52: 11,926.0 | AO52: 15 | AP52: 0 | AQ52: 0 | AR52: 0 | AS52: 0 | AT52: 0 | AU52: 0 | AV52: 0 | AW52: 0 | AX52: 0 | AY52: 0 | AZ52: 0 | BA52: 0 | BB52: 0 | BC52: 0 | BD52: 3,705.0 | BE52: 18 | BF52: 616,182.8 | BG52: 91
A53: 묘도동 | B53: 11,515,923.6 | C53: 5,960 | D53: 1,320,764.0 | E53: 1,335 | F53: 932,873.0 | G53: 1,115 | H53: 3,155.0 | I53: 3 | J53: 1,592.0 | K53: 4 | L53: 5,651,723.0 | M53: 1,728 | N53: 0 | O53: 0 | P53: 0 | Q53: 0 | R53: 183,133.0 | S53: 669 | T53: 0 | U53: 0 | V53: 18,801.0 | W53: 4 | X53: 28.0 | Y53: 1 | Z53: 589.0 | AA53: 2 | AB53: 3,651.0 | AC53: 8 | AD53: 137,631.0 | AE53: 922 | AF53: 0 | AG53: 0 | AH53: 113,676.6 | AI53: 14 | AJ53: 15,454.0 | AK53: 7 | AL53: 64,259.0 | AM53: 28 | AN53: 22,036.0 | AO53: 27 | AP53: 0 | AQ53: 0 | AR53: 0 | AS53: 0 | AT53: 0 | AU53: 0 | AV53: 0 | AW53: 0 | AX53: 0 | AY53: 0 | AZ53: 3,681.0 | BA53: 3 | BB53: 0 | BC53: 0 | BD53: 29,108.0 | BE53: 39 | BF53: 3,013,769.0 | BG53: 51
A54: 낙포동 | B54: 8,489,546.2 | C54: 1,846 | D54: 343,422.0 | E54: 386 | F54: 164,211.0 | G54: 216 | H54: 0 | I54: 0 | J54: 0 | K54: 0 | L54: 4,611,110.6 | M54: 375 | N54: 0 | O54: 0 | P54: 0 | Q54: 0 | R54: 119,017.4 | S54: 40 | T54: 1,103,012.4 | U54: 192 | V54: 0 | W54: 0 | X54: 0 | Y54: 0 | Z54: 180,944.8 | AA54: 18 | AB54: 0 | AC54: 0 | AD54: 300,375.8 | AE54: 197 | AF54: 2,969.0 | AG54: 1 | AH54: 55,471.0 | AI54: 31 | AJ54: 101,731.0 | AK54: 33 | AL54: 21,570.0 | AM54: 50 | AN54: 8,417.0 | AO54: 1 | AP54: 0 | AQ54: 0 | AR54: 6,417.5 | AS54: 5 | AT54: 0 | AU54: 0 | AV54: 0 | AW54: 0 | AX54: 0 | AY54: 0 | AZ54: 264.0 | BA54: 1 | BB54: 0 | BC54: 0 | BD54: 3,588.0 | BE54: 10 | BF54: 1,467,024.7 | BG54: 290
A55: 신덕동 | B55: 5,668,176.4 | C55: 1,819 | D55: 254,304.0 | E55: 363 | F55: 171,741.0 | G55: 239 | H55: 11,302.0 | I55: 4 | J55: 0 | K55: 0 | L55: 4,560,715.0 | M55: 403 | N55: 0 | O55: 0 | P55: 0 | Q55: 0 | R55: 65,616.0 | S55: 251 | T55: 0 | U55: 0 | V55: 4,555.0 | W55: 1 | X55: 2,843.0 | Y55: 2 | Z55: 141,181.2 | AA55: 2 | AB55: 0 | AC55: 0 | AD55: 242,230.4 | AE55: 465 | AF55: 0 | AG55: 0 | AH55: 1,518.1 | AI55: 2 | AJ55: 51,435.0 | AK55: 33 | AL55: 1,084.0 | AM55: 5 | AN55: 7,634.0 | AO55: 17 | AP55: 0 | AQ55: 0 | AR55: 0 | AS55: 0 | AT55: 2,677.7 | AU55: 3 | AV55: 0 | AW55: 0 | AX55: 0 | AY55: 0 | AZ55: 1,185.0 | BA55: 1 | BB55: 0 | BC55: 0 | BD55: 6,720.0 | BE55: 11 | BF55: 141,435.0 | BG55: 17
A56: 상암동 | B56: 6,714,977.0 | C56: 4,342 | D56: 706,552.0 | E56: 833 | F56: 1,119,193.0 | G56: 1,226 | H56: 2,815.0 | I56: 3 | J56: 0 | K56: 0 | L56: 4,209,198.0 | M56: 411 | N56: 0 | O56: 0 | P56: 0 | Q56: 0 | R56: 228,371.0 | S56: 598 | T56: 9,844.0 | U56: 10 | V56: 19,951.0 | W56: 2 | X56: 5,479.0 | Y56: 11 | Z56: 3,690.0 | AA56: 3 | AB56: 1,046.0 | AC56: 3 | AD56: 199,369.0 | AE56: 1,012 | AF56: 0 | AG56: 0 | AH56: 149.0 | AI56: 1 | AJ56: 78,697.0 | AK56: 65 | AL56: 55,186.0 | AM56: 52 | AN56: 28,805.0 | AO56: 39 | AP56: 0 | AQ56: 0 | AR56: 0 | AS56: 0 | AT56: 0 | AU56: 0 | AV56: 0 | AW56: 0 | AX56: 0 | AY56: 0 | AZ56: 3,728.0 | BA56: 8 | BB56: 0 | BC56: 0 | BD56: 11,711.0 | BE56: 22 | BF56: 31,193.0 | BG56: 43
A57: 호명동 | B57: 10,859,052.0 | C57: 3,815 | D57: 679,401.0 | E57: 764 | F57: 1,065,388.0 | G57: 992 | H57: 7,648.0 | I57: 1 | J57: 7,221.0 | K57: 4 | L57: 8,408,378.0 | M57: 665 | N57: 0 | O57: 0 | P57: 0 | Q57: 0 | R57: 190,412.0 | S57: 388 | T57: 0 | U57: 0 | V57: 0 | W57: 0 | X57: 0 | Y57: 0 | Z57: 3,982.0 | AA57: 6 | AB57: 2,312.0 | AC57: 2 | AD57: 270,427.0 | AE57: 831 | AF57: 0 | AG57: 0 | AH57: 0 | AI57: 0 | AJ57: 78,165.0 | AK57: 64 | AL57: 70,219.0 | AM57: 25 | AN57: 25,005.0 | AO57: 29 | AP57: 0 | AQ57: 0 | AR57: 0 | AS57: 0 | AT57: 0 | AU57: 0 | AV57: 0 | AW57: 0 | AX57: 0 | AY57: 0 | AZ57: 2,634.0 | BA57: 3 | BB57: 0 | BC57: 0 | BD57: 22,113.0 | BE57: 20 | BF57: 25,747.0 | BG57: 21
A58: 돌산읍 군내리 | B58: 3,830,439.0 | C58: 3,490 | D58: 1,060,702.0 | E58: 1,259 | F58: 68,622.0 | G58: 136 | H58: 3,389.0 | I58: 2 | J58: 0 | K58: 0 | L58: 2,255,493.0 | M58: 645 | N58: 0 | O58: 0 | P58: 0 | Q58: 0 | R58: 134,612.0 | S58: 733 | T58: 3,276.0 | U58: 3 | V58: 50,877.0 | W58: 9 | X58: 0 | Y58: 0 | Z58: 947.0 | AA58: 4 | AB58: 2,294.0 | AC58: 5 | AD58: 123,257.0 | AE58: 454 | AF58: 0 | AG58: 0 | AH58: 3,736.0 | AI58: 19 | AJ58: 3,154.0 | AK58: 4 | AL58: 33,389.0 | AM58: 48 | AN58: 4,553.0 | AO58: 13 | AP58: 18,436.0 | AQ58: 7 | AR58: 0 | AS58: 0 | AT58: 0 | AU58: 0 | AV58: 0 | AW58: 0 | AX58: 0 | AY58: 0 | AZ58: 6,538.0 | BA58: 10 | BB58: 883.0 | BC58: 4 | BD58: 19,273.0 | BE58: 39 | BF58: 37,008.0 | BG58: 96
A59: 돌산읍 신복리 | B59: 8,278,502.4 | C59: 4,202 | D59: 1,003,487.0 | E59: 914 | F59: 606,508.0 | G59: 748 | H59: 0 | I59: 0 | J59: 16,201.0 | K59: 8 | L59: 5,962,933.0 | M59: 760 | N59: 0 | O59: 0 | P59: 0 | Q59: 0 | R59: 113,269.0 | S59: 493 | T59: 10,525.0 | U59: 5 | V59: 11,467.0 | W59: 1 | X59: 0 | Y59: 0 | Z59: 0 | AA59: 0 | AB59: 5,983.0 | AC59: 13 | AD59: 170,852.7 | AE59: 859 | AF59: 0 | AG59: 0 | AH59: 23,510.9 | AI59: 38 | AJ59: 3,568.0 | AK59: 16 | AL59: 73,212.0 | AM59: 79 | AN59: 113,200.0 | AO59: 160 | AP59: 38,569.0 | AQ59: 20 | AR59: 99.0 | AS59: 1 | AT59: 0 | AU59: 0 | AV59: 0 | AW59: 0 | AX59: 0 | AY59: 0 | AZ59: 7,667.0 | BA59: 4 | BB59: 0 | BC59: 0 | BD59: 65,591.0 | BE59: 21 | BF59: 51,859.8 | BG59: 62
A60: 돌산읍 금성리 | B60: 5,508,147.0 | C60: 2,428 | D60: 835,939.0 | E60: 868 | F60: 53,662.0 | G60: 127 | H60: 0 | I60: 0 | J60: 387.0 | K60: 1 | L60: 4,330,530.0 | M60: 608 | N60: 0 | O60: 0 | P60: 0 | Q60: 0 | R60: 80,378.0 | S60: 343 | T60: 0 | U60: 0 | V60: 6,963.0 | W60: 1 | X60: 0 | Y60: 0 | Z60: 0 | AA60: 0 | AB60: 740.0 | AC60: 2 | AD60: 151,614.0 | AE60: 405 | AF60: 0 | AG60: 0 | AH60: 2,067.0 | AI60: 5 | AJ60: 1,852.0 | AK60: 11 | AL60: 14,698.0 | AM60: 10 | AN60: 149.0 | AO60: 1 | AP60: 3,627.0 | AQ60: 6 | AR60: 0 | AS60: 0 | AT60: 0 | AU60: 0 | AV60: 0 | AW60: 0 | AX60: 0 | AY60: 0 | AZ60: 796.0 | BA60: 2 | BB60: 0 | BC60: 0 | BD60: 7,022.0 | BE60: 12 | BF60: 17,723.0 | BG60: 26
A61: 돌산읍 율림리 | B61: 7,065,517.0 | C61: 2,977 | D61: 761,438.0 | E61: 885 | F61: 69,152.0 | G61: 128 | H61: 0 | I61: 0 | J61: 1,140.0 | K61: 1 | L61: 5,739,039.0 | M61: 700 | N61: 0 | O61: 0 | P61: 0 | Q61: 0 | R61: 124,845.0 | S61: 412 | T61: 0 | U61: 0 | V61: 6,136.0 | W61: 8 | X61: 435.0 | Y61: 2 | Z61: 796.0 | AA61: 1 | AB61: 6,325.0 | AC61: 5 | AD61: 217,071.0 | AE61: 727 | AF61: 0 | AG61: 0 | AH61: 1,292.0 | AI61: 4 | AJ61: 442.0 | AK61: 7 | AL61: 52,129.0 | AM61: 39 | AN61: 0 | AO61: 0 | AP61: 23,086.0 | AQ61: 6 | AR61: 0 | AS61: 0 | AT61: 0 | AU61: 0 | AV61: 0 | AW61: 0 | AX61: 0 | AY61: 0 | AZ61: 860.0 | BA61: 2 | BB61: 0 | BC61: 0 | BD61: 8,182.0 | BE61: 9 | BF61: 53,149.0 | BG61: 41
A62: 돌산읍 죽포리 | B62: 5,934,132.0 | C62: 4,917 | D62: 1,068,969.0 | E62: 1,241 | F62: 793,983.0 | G62: 1,058 | H62: 0 | I62: 0 | J62: 11,612.0 | K62: 3 | L62: 3,503,905.0 | M62: 513 | N62: 0 | O62: 0 | P62: 0 | Q62: 0 | R62: 176,304.0 | S62: 624 | T62: 3,760.0 | U62: 2 | V62: 16,300.0 | W62: 3 | X62: 0 | Y62: 0 | Z62: 1,221.0 | AA62: 4 | AB62: 5,017.0 | AC62: 10 | AD62: 182,389.0 | AE62: 1,193 | AF62: 0 | AG62: 0 | AH62: 4,534.0 | AI62: 12 | AJ62: 14,195.0 | AK62: 9 | AL62: 72,158.0 | AM62: 134 | AN62: 2,083.0 | AO62: 2 | AP62: 4,713.0 | AQ62: 5 | AR62: 0 | AS62: 0 | AT62: 0 | AU62: 0 | AV62: 0 | AW62: 0 | AX62: 0 | AY62: 0 | AZ62: 1,781.0 | BA62: 2 | BB62: 0 | BC62: 0 | BD62: 25,252.0 | BE62: 51 | BF62: 45,956.0 | BG62: 51
A63: 돌산읍 서덕리 | B63: 4,662,413.0 | C63: 3,260 | D63: 733,376.0 | E63: 853 | F63: 492,285.0 | G63: 718 | H63: 0 | I63: 0 | J63: 119,707.0 | K63: 12 | L63: 2,955,177.0 | M63: 573 | N63: 0 | O63: 0 | P63: 0 | Q63: 0 | R63: 65,815.0 | S63: 264 | T63: 2,118.0 | U63: 1 | V63: 0 | W63: 0 | X63: 0 | Y63: 0 | Z63: 0 | AA63: 0 | AB63: 1,020.0 | AC63: 2 | AD63: 69,735.0 | AE63: 587 | AF63: 0 | AG63: 0 | AH63: 25,372.0 | AI63: 69 | AJ63: 105.0 | AK63: 4 | AL63: 39,026.0 | AM63: 69 | AN63: 125,530.0 | AO63: 61 | AP63: 0 | AQ63: 0 | AR63: 734.0 | AS63: 1 | AT63: 0 | AU63: 0 | AV63: 0 | AW63: 0 | AX63: 0 | AY63: 0 | AZ63: 632.0 | BA63: 2 | BB63: 0 | BC63: 0 | BD63: 25,844.0 | BE63: 28 | BF63: 5,937.0 | BG63: 16
A64: 돌산읍 금봉리 | B64: 8,262,636.0 | C64: 5,115 | D64: 1,249,829.0 | E64: 1,345 | F64: 759,443.0 | G64: 976 | H64: 5,767.0 | I64: 4 | J64: 10,002.0 | K64: 2 | L64: 5,661,483.0 | M64: 975 | N64: 0 | O64: 0 | P64: 0 | Q64: 0 | R64: 166,535.0 | S64: 526 | T64: 5,255.0 | U64: 6 | V64: 3,285.0 | W64: 5 | X64: 0 | Y64: 0 | Z64: 0 | AA64: 0 | AB64: 4,720.0 | AC64: 10 | AD64: 167,335.0 | AE64: 879 | AF64: 0 | AG64: 0 | AH64: 2,744.0 | AI64: 4 | AJ64: 771.0 | AK64: 9 | AL64: 83,341.0 | AM64: 64 | AN64: 15,733.0 | AO64: 36 | AP64: 27,521.0 | AQ64: 18 | AR64: 0 | AS64: 0 | AT64: 0 | AU64: 0 | AV64: 0 | AW64: 0 | AX64: 0 | AY64: 0 | AZ64: 3,791.0 | BA64: 4 | BB64: 0 | BC64: 0 | BD64: 26,883.0 | BE64: 27 | BF64: 68,198.0 | BG64: 225
A65: 돌산읍 둔전리 | B65: 5,391,243.2 | C65: 3,744 | D65: 681,575.0 | E65: 828 | F65: 912,651.0 | G65: 869 | H65: 6,852.0 | I65: 2 | J65: 33,087.0 | K65: 10 | L65: 3,269,377.0 | M65: 600 | N65: 0 | O65: 0 | P65: 0 | Q65: 0 | R65: 112,433.0 | S65: 332 | T65: 4,370.7 | U65: 5 | V65: 26,614.0 | W65: 9 | X65: 0 | Y65: 0 | Z65: 0 | AA65: 0 | AB65: 2,515.0 | AC65: 7 | AD65: 174,210.9 | AE65: 907 | AF65: 0 | AG65: 0 | AH65: 0 | AI65: 0 | AJ65: 545.0 | AK65: 3 | AL65: 114,016.5 | AM65: 93 | AN65: 27,550.0 | AO65: 36 | AP65: 3,253.1 | AQ65: 4 | AR65: 0 | AS65: 0 | AT65: 0 | AU65: 0 | AV65: 0 | AW65: 0 | AX65: 0 | AY65: 0 | AZ65: 980.0 | BA65: 2 | BB65: 0 | BC65: 0 | BD65: 5,621.0 | BE65: 16 | BF65: 15,592.0 | BG65: 21
A66: 돌산읍 평사리 | B66: 15,229,810.9 | C66: 8,194 | D66: 1,794,310.0 | E66: 1,832 | F66: 735,033.2 | G66: 954 | H66: 75,756.0 | I66: 14 | J66: 813,335.0 | K66: 26 | L66: 10,445,480.0 | M66: 1,974 | N66: 0 | O66: 0 | P66: 0 | Q66: 0 | R66: 376,206.0 | S66: 985 | T66: 9,737.0 | U66: 17 | V66: 13,092.0 | W66: 3 | X66: 2,297.0 | Y66: 6 | Z66: 2,939.0 | AA66: 4 | AB66: 8,523.0 | AC66: 15 | AD66: 529,755.0 | AE66: 1,874 | AF66: 0 | AG66: 0 | AH66: 18,673.0 | AI66: 24 | AJ66: 34,879.3 | AK66: 24 | AL66: 58,965.8 | AM66: 117 | AN66: 116,024.0 | AO66: 19 | AP66: 0 | AQ66: 0 | AR66: 0 | AS66: 0 | AT66: 0 | AU66: 0 | AV66: 0 | AW66: 0 | AX66: 38,544.6 | AY66: 1 | AZ66: 19,021.0 | BA66: 10 | BB66: 0 | BC66: 0 | BD66: 26,784.0 | BE66: 25 | BF66: 110,456.0 | BG66: 270
A67: 돌산읍 우두리 | B67: 7,749,834.1 | C67: 6,844 | D67: 1,261,062.7 | E67: 1,364 | F67: 494,594.0 | G67: 602 | H67: 3,347.0 | I67: 3 | J67: 2,124.0 | K67: 2 | L67: 3,981,557.0 | M67: 1,513 | N67: 0 | O67: 0 | P67: 0 | Q67: 0 | R67: 879,659.9 | S67: 2,312 | T67: 17,238.0 | U67: 16 | V67: 37,447.5 | W67: 4 | X67: 4,358.6 | Y67: 5 | Z67: 1,981.0 | AA67: 4 | AB67: 12,489.6 | AC67: 16 | AD67: 558,430.1 | AE67: 659 | AF67: 0 | AG67: 0 | AH67: 12,894.4 | AI67: 16 | AJ67: 0 | AK67: 0 | AL67: 36,651.0 | AM67: 37 | AN67: 22,150.0 | AO67: 24 | AP67: 6,892.0 | AQ67: 7 | AR67: 0 | AS67: 0 | AT67: 56,646.3 | AU67: 12 | AV67: 0 | AW67: 0 | AX67: 175,596.0 | AY67: 1 | AZ67: 16,061.8 | BA67: 10 | BB67: 0 | BC67: 0 | BD67: 8,479.0 | BE67: 21 | BF67: 160,174.2 | BG67: 216
A68: 소라면 덕양리 | B68: 6,256,830.3 | C68: 5,506 | D68: 869,250.0 | E68: 1,237 | F68: 903,946.8 | G68: 1,057 | H68: 0 | I68: 0 | J68: 6,256.0 | K68: 13 | L68: 3,193,672.0 | M68: 532 | N68: 0 | O68: 0 | P68: 0 | Q68: 0 | R68: 368,226.0 | S68: 1,246 | T68: 11,311.0 | U68: 7 | V68: 35,902.0 | W68: 8 | X68: 6,521.0 | Y68: 8 | Z68: 12,478.0 | AA68: 16 | AB68: 14,582.0 | AC68: 18 | AD68: 416,605.7 | AE68: 1,042 | AF68: 64,766.0 | AG68: 34 | AH68: 7,630.0 | AI68: 3 | AJ68: 124,055.0 | AK68: 26 | AL68: 120,189.8 | AM68: 127 | AN68: 21,372.0 | AO68: 1 | AP68: 0 | AQ68: 0 | AR68: 3,552.0 | AS68: 25 | AT68: 1,111.0 | AU68: 1 | AV68: 0 | AW68: 0 | AX68: 0 | AY68: 0 | AZ68: 7,592.0 | BA68: 11 | BB68: 0 | BC68: 0 | BD68: 11,159.0 | BE68: 14 | BF68: 56,653.0 | BG68: 80
A69: 소라면 죽림리 | B69: 4,051,859.8 | C69: 3,397 | D69: 517,855.0 | E69: 729 | F69: 584,483.8 | G69: 703 | H69: 1,653.0 | I69: 5 | J69: 6,724.0 | K69: 3 | L69: 1,731,779.0 | M69: 929 | N69: 0 | O69: 0 | P69: 0 | Q69: 0 | R69: 373,278.1 | S69: 481 | T69: 229.0 | U69: 1 | V69: 19,658.7 | W69: 2 | X69: 8,031.1 | Y69: 12 | Z69: 675.7 | AA69: 1 | AB69: 200.0 | AC69: 1 | AD69: 309,454.5 | AE69: 385 | AF69: 0 | AG69: 0 | AH69: 0 | AI69: 0 | AJ69: 14,425.0 | AK69: 8 | AL69: 39,893.8 | AM69: 28 | AN69: 263,646.0 | AO69: 18 | AP69: 0 | AQ69: 0 | AR69: 0 | AS69: 0 | AT69: 144,569.8 | AU69: 51 | AV69: 6,110.0 | AW69: 8 | AX69: 0 | AY69: 0 | AZ69: 6,224.3 | BA69: 4 | BB69: 0 | BC69: 0 | BD69: 13,542.0 | BE69: 21 | BF69: 9,427.0 | BG69: 7
A70: 소라면 관기리 | B70: 4,106,573.9 | C70: 4,099 | D70: 624,485.6 | E70: 803 | F70: 1,758,159.3 | G70: 1,510 | H70: 0 | I70: 0 | J70: 0 | K70: 0 | L70: 1,099,669.0 | M70: 716 | N70: 0 | O70: 0 | P70: 0 | Q70: 0 | R70: 130,793.0 | S70: 342 | T70: 0 | U70: 0 | V70: 10,598.0 | W70: 2 | X70: 3,451.0 | Y70: 3 | Z70: 3,407.0 | AA70: 2 | AB70: 2,589.0 | AC70: 4 | AD70: 260,461.4 | AE70: 593 | AF70: 0 | AG70: 0 | AH70: 8,113.4 | AI70: 3 | AJ70: 63,689.5 | AK70: 18 | AL70: 99,370.7 | AM70: 67 | AN70: 14,736.0 | AO70: 1 | AP70: 0 | AQ70: 0 | AR70: 0 | AS70: 0 | AT70: 0 | AU70: 0 | AV70: 0 | AW70: 0 | AX70: 0 | AY70: 0 | AZ70: 2,112.0 | BA70: 2 | BB70: 0 | BC70: 0 | BD70: 14,568.0 | BE70: 24 | BF70: 10,371.0 | BG70: 9
A71: 소라면 현천리 | B71: 5,577,256.6 | C71: 3,007 | D71: 754,887.0 | E71: 758 | F71: 1,252,755.4 | G71: 731 | H71: 0 | I71: 0 | J71: 9,881.0 | K71: 11 | L71: 2,763,843.0 | M71: 470 | N71: 0 | O71: 0 | P71: 0 | Q71: 0 | R71: 184,341.0 | S71: 351 | T71: 2,736.0 | U71: 2 | V71: 9,141.0 | W71: 1 | X71: 0 | Y71: 0 | Z71: 0 | AA71: 0 | AB71: 3,790.0 | AC71: 10 | AD71: 187,126.2 | AE71: 516 | AF71: 0 | AG71: 0 | AH71: 19,477.2 | AI71: 7 | AJ71: 38,076.0 | AK71: 8 | AL71: 107,108.2 | AM71: 81 | AN71: 211,411.6 | AO71: 9 | AP71: 0 | AQ71: 0 | AR71: 0 | AS71: 0 | AT71: 0 | AU71: 0 | AV71: 0 | AW71: 0 | AX71: 0 | AY71: 0 | AZ71: 2,258.0 | BA71: 5 | BB71: 0 | BC71: 0 | BD71: 14,906.0 | BE71: 18 | BF71: 15,519.0 | BG71: 29
A72: 소라면 복산리 | B72: 10,087,782.4 | C72: 6,075 | D72: 1,648,535.0 | E72: 1,546 | F72: 1,415,150.9 | G72: 1,145 | H72: 22,480.0 | I72: 3 | J72: 89,388.0 | K72: 35 | L72: 5,704,489.0 | M72: 1,184 | N72: 0 | O72: 0 | P72: 0 | Q72: 0 | R72: 241,379.0 | S72: 571 | T72: 27,187.0 | U72: 8 | V72: 14,027.0 | W72: 2 | X72: 10,816.0 | Y72: 11 | Z72: 4,120.0 | AA72: 3 | AB72: 18,407.0 | AC72: 18 | AD72: 429,668.1 | AE72: 1,252 | AF72: 0 | AG72: 0 | AH72: 11,412.0 | AI72: 16 | AJ72: 52,341.0 | AK72: 1 | AL72: 158,626.4 | AM72: 104 | AN72: 114,331.0 | AO72: 62 | AP72: 1,375.0 | AQ72: 1 | AR72: 0 | AS72: 0 | AT72: 0 | AU72: 0 | AV72: 0 | AW72: 0 | AX72: 0 | AY72: 0 | AZ72: 4,486.0 | BA72: 6 | BB72: 0 | BC72: 0 | BD72: 55,922.0 | BE72: 53 | BF72: 63,642.0 | BG72: 54
A73: 소라면 사곡리 | B73: 6,380,570.0 | C73: 3,486 | D73: 1,006,700.0 | E73: 979 | F73: 487,320.0 | G73: 602 | H73: 0 | I73: 0 | J73: 42,091.0 | K73: 22 | L73: 4,243,337.0 | M73: 648 | N73: 0 | O73: 0 | P73: 0 | Q73: 0 | R73: 163,694.0 | S73: 415 | T73: 2,082.0 | U73: 2 | V73: 6,591.0 | W73: 1 | X73: 2,164.0 | Y73: 3 | Z73: 2,599.0 | AA73: 4 | AB73: 1,621.0 | AC73: 4 | AD73: 274,920.0 | AE73: 689 | AF73: 0 | AG73: 0 | AH73: 3,338.0 | AI73: 6 | AJ73: 0 | AK73: 0 | AL73: 91,805.0 | AM73: 44 | AN73: 19,679.0 | AO73: 22 | AP73: 0 | AQ73: 0 | AR73: 0 | AS73: 0 | AT73: 0 | AU73: 0 | AV73: 0 | AW73: 0 | AX73: 0 | AY73: 0 | AZ73: 821.0 | BA73: 2 | BB73: 0 | BC73: 0 | BD73: 9,582.0 | BE73: 12 | BF73: 22,226.0 | BG73: 31
A74: 소라면 봉두리 | B74: 13,498,698.0 | C74: 3,426 | D74: 668,451.0 | E74: 636 | F74: 831,767.0 | G74: 748 | H74: 11,874.0 | I74: 4 | J74: 6,946.0 | K74: 7 | L74: 11,087,222.0 | M74: 852 | N74: 0 | O74: 0 | P74: 0 | Q74: 0 | R74: 110,816.0 | S74: 288 | T74: 10,965.0 | U74: 4 | V74: 6,193.0 | W74: 1 | X74: 2,120.0 | Y74: 4 | Z74: 0 | AA74: 0 | AB74: 5,331.0 | AC74: 11 | AD74: 230,967.0 | AE74: 691 | AF74: 0 | AG74: 0 | AH74: 0 | AI74: 0 | AJ74: 116,321.0 | AK74: 10 | AL74: 99,855.0 | AM74: 78 | AN74: 41,516.0 | AO74: 11 | AP74: 0 | AQ74: 0 | AR74: 0 | AS74: 0 | AT74: 0 | AU74: 0 | AV74: 0 | AW74: 0 | AX74: 0 | AY74: 0 | AZ74: 1,154.0 | BA74: 3 | BB74: 0 | BC74: 0 | BD74: 221,487.0 | BE74: 27 | BF74: 45,713.0 | BG74: 51
A75: 소라면 대포리 | B75: 10,605,629.2 | C75: 5,738 | D75: 741,544.0 | E75: 1,155 | F75: 2,440,723.8 | G75: 1,699 | H75: 0 | I75: 0 | J75: 378.0 | K75: 2 | L75: 5,674,287.0 | M75: 582 | N75: 0 | O75: 0 | P75: 0 | Q75: 0 | R75: 254,735.0 | S75: 711 | T75: 14,827.0 | U75: 14 | V75: 0 | W75: 0 | X75: 18,473.0 | Y75: 14 | Z75: 8,162.0 | AA75: 10 | AB75: 13,994.0 | AC75: 18 | AD75: 344,179.4 | AE75: 916 | AF75: 30,277.0 | AG75: 26 | AH75: 13,561.0 | AI75: 5 | AJ75: 383,937.0 | AK75: 49 | AL75: 232,086.2 | AM75: 334 | AN75: 264,724.0 | AO75: 64 | AP75: 0 | AQ75: 0 | AR75: 21,162.8 | AS75: 34 | AT75: 0 | AU75: 0 | AV75: 0 | AW75: 0 | AX75: 0 | AY75: 0 | AZ75: 4,225.0 | BA75: 7 | BB75: 0 | BC75: 0 | BD75: 7,437.0 | BE75: 15 | BF75: 136,916.0 | BG75: 83
A76: 율촌면 조화리 | B76: 3,209,412.7 | C76: 3,670 | D76: 376,441.0 | E76: 564 | F76: 928,215.0 | G76: 1,228 | H76: 30,833.0 | I76: 18 | J76: 2,898.0 | K76: 2 | L76: 235,380.0 | M76: 138 | N76: 0 | O76: 0 | P76: 0 | Q76: 0 | R76: 212,847.0 | S76: 747 | T76: 158,390.4 | U76: 8 | V76: 30,492.0 | W76: 3 | X76: 20,263.8 | Y76: 5 | Z76: 7,590.0 | AA76: 10 | AB76: 7,017.0 | AC76: 11 | AD76: 405,194.0 | AE76: 660 | AF76: 60,135.0 | AG76: 31 | AH76: 15,512.0 | AI76: 6 | AJ76: 31,101.0 | AK76: 4 | AL76: 74,960.3 | AM76: 89 | AN76: 72,259.0 | AO76: 17 | AP76: 2,992.0 | AQ76: 2 | AR76: 28,082.0 | AS76: 47 | AT76: 177,938.1 | AU76: 15 | AV76: 0 | AW76: 0 | AX76: 0 | AY76: 0 | AZ76: 7,727.0 | BA76: 4 | BB76: 0 | BC76: 0 | BD76: 14,765.0 | BE76: 11 | BF76: 308,380.1 | BG76: 50
A77: 율촌면 월산리 | B77: 4,433,447.7 | C77: 4,152 | D77: 493,493.0 | E77: 590 | F77: 861,687.0 | G77: 1,082 | H77: 58,546.0 | I77: 21 | J77: 4,665.0 | K77: 4 | L77: 2,283,524.7 | M77: 904 | N77: 0 | O77: 0 | P77: 0 | Q77: 0 | R77: 267,079.6 | S77: 545 | T77: 10,477.0 | U77: 5 | V77: 7,621.0 | W77: 2 | X77: 6,522.7 | Y77: 9 | Z77: 1,445.0 | AA77: 3 | AB77: 7,048.0 | AC77: 4 | AD77: 302,950.8 | AE77: 775 | AF77: 0 | AG77: 0 | AH77: 0 | AI77: 0 | AJ77: 18,988.0 | AK77: 10 | AL77: 71,366.0 | AM77: 132 | AN77: 1,528.0 | AO77: 6 | AP77: 0 | AQ77: 0 | AR77: 0 | AS77: 0 | AT77: 9,716.8 | AU77: 3 | AV77: 0 | AW77: 0 | AX77: 0 | AY77: 0 | AZ77: 4,634.0 | BA77: 6 | BB77: 0 | BC77: 0 | BD77: 2,184.0 | BE77: 10 | BF77: 19,971.1 | BG77: 41
A78: 율촌면 산수리 | B78: 5,323,241.0 | C78: 3,843 | D78: 499,065.0 | E78: 611 | F78: 1,066,353.0 | G78: 1,084 | H78: 9,349.0 | I78: 2 | J78: 18,129.0 | K78: 17 | L78: 3,252,657.0 | M78: 958 | N78: 0 | O78: 0 | P78: 0 | Q78: 0 | R78: 151,190.0 | S78: 399 | T78: 1,200.0 | U78: 1 | V78: 8,387.0 | W78: 3 | X78: 0 | Y78: 0 | Z78: 0 | AA78: 0 | AB78: 0 | AC78: 0 | AD78: 141,417.0 | AE78: 626 | AF78: 0 | AG78: 0 | AH78: 0 | AI78: 0 | AJ78: 10,955.0 | AK78: 4 | AL78: 112,127.0 | AM78: 71 | AN78: 25,680.0 | AO78: 25 | AP78: 0 | AQ78: 0 | AR78: 549.0 | AS78: 1 | AT78: 0 | AU78: 0 | AV78: 0 | AW78: 0 | AX78: 0 | AY78: 0 | AZ78: 2,870.0 | BA78: 4 | BB78: 0 | BC78: 0 | BD78: 5,413.0 | BE78: 14 | BF78: 17,900.0 | BG78: 23
A79: 율촌면 가장리 | B79: 9,705,370.7 | C79: 4,411 | D79: 811,753.0 | E79: 716 | F79: 1,562,305.0 | G79: 1,255 | H79: 32,100.0 | I79: 5 | J79: 212,239.0 | K79: 36 | L79: 6,334,322.4 | M79: 1,020 | N79: 0 | O79: 0 | P79: 0 | Q79: 0 | R79: 181,742.9 | S79: 391 | T79: 0 | U79: 0 | V79: 0 | W79: 0 | X79: 5,035.0 | Y79: 3 | Z79: 0 | AA79: 0 | AB79: 516.0 | AC79: 1 | AD79: 214,200.0 | AE79: 709 | AF79: 0 | AG79: 0 | AH79: 0 | AI79: 0 | AJ79: 61,605.0 | AK79: 18 | AL79: 198,676.0 | AM79: 181 | AN79: 51,340.0 | AO79: 34 | AP79: 0 | AQ79: 0 | AR79: 0 | AS79: 0 | AT79: 1,015.4 | AU79: 1 | AV79: 0 | AW79: 0 | AX79: 0 | AY79: 0 | AZ79: 3,845.0 | BA79: 5 | BB79: 0 | BC79: 0 | BD79: 16,248.0 | BE79: 17 | BF79: 18,428.0 | BG79: 19
A80: 율촌면 봉전리 | B80: 4,094,245.0 | C80: 2,194 | D80: 608,026.0 | E80: 635 | F80: 385,783.0 | G80: 358 | H80: 0 | I80: 0 | J80: 2,789.0 | K80: 2 | L80: 2,791,828.0 | M80: 496 | N80: 0 | O80: 0 | P80: 1,937.0 | Q80: 4 | R80: 73,744.0 | S80: 190 | T80: 7,693.0 | U80: 2 | V80: 0 | W80: 0 | X80: 0 | Y80: 0 | Z80: 0 | AA80: 0 | AB80: 1,179.0 | AC80: 3 | AD80: 95,667.0 | AE80: 401 | AF80: 0 | AG80: 0 | AH80: 4,488.0 | AI80: 6 | AJ80: 777.0 | AK80: 1 | AL80: 34,686.0 | AM80: 20 | AN80: 16,514.0 | AO80: 9 | AP80: 0 | AQ80: 0 | AR80: 0 | AS80: 0 | AT80: 0 | AU80: 0 | AV80: 0 | AW80: 0 | AX80: 0 | AY80: 0 | AZ80: 1,740.0 | BA80: 5 | BB80: 0 | BC80: 0 | BD80: 17,603.0 | BE80: 40 | BF80: 49,791.0 | BG80: 22
A81: 율촌면 반월리 | B81: 2,277,936.0 | C81: 1,309 | D81: 320,434.0 | E81: 337 | F81: 306,616.0 | G81: 290 | H81: 0 | I81: 0 | J81: 5,573.0 | K81: 2 | L81: 1,450,667.0 | M81: 243 | N81: 0 | O81: 0 | P81: 0 | Q81: 0 | R81: 45,965.0 | S81: 147 | T81: 0 | U81: 0 | V81: 0 | W81: 0 | X81: 0 | Y81: 0 | Z81: 618.0 | AA81: 1 | AB81: 306.0 | AC81: 2 | AD81: 56,906.0 | AE81: 215 | AF81: 0 | AG81: 0 | AH81: 1,679.0 | AI81: 2 | AJ81: 0 | AK81: 0 | AL81: 53,541.0 | AM81: 22 | AN81: 23,227.0 | AO81: 18 | AP81: 0 | AQ81: 0 | AR81: 0 | AS81: 0 | AT81: 0 | AU81: 0 | AV81: 0 | AW81: 0 | AX81: 0 | AY81: 0 | AZ81: 607.0 | BA81: 1 | BB81: 0 | BC81: 0 | BD81: 6,884.0 | BE81: 17 | BF81: 4,913.0 | BG81: 12
A82: 율촌면 취적리 | B82: 7,664,357.0 | C82: 4,229 | D82: 790,456.0 | E82: 860 | F82: 975,988.0 | G82: 1,054 | H82: 4,732.0 | I82: 1 | J82: 601.0 | K82: 1 | L82: 5,025,631.0 | M82: 699 | N82: 0 | O82: 0 | P82: 0 | Q82: 0 | R82: 213,790.0 | S82: 457 | T82: 15,602.0 | U82: 6 | V82: 0 | W82: 0 | X82: 3,780.0 | Y82: 7 | Z82: 11,117.0 | AA82: 5 | AB82: 1,403.0 | AC82: 2 | AD82: 257,136.0 | AE82: 781 | AF82: 51,732.0 | AG82: 59 | AH82: 3,356.0 | AI82: 4 | AJ82: 7,481.0 | AK82: 12 | AL82: 120,720.0 | AM82: 122 | AN82: 41,915.0 | AO82: 41 | AP82: 0 | AQ82: 0 | AR82: 36,527.0 | AS82: 33 | AT82: 0 | AU82: 0 | AV82: 0 | AW82: 0 | AX82: 0 | AY82: 0 | AZ82: 0 | BA82: 0 | BB82: 0 | BC82: 0 | BD82: 28,898.0 | BE82: 31 | BF82: 73,492.0 | BG82: 54
A83: 율촌면 신풍리 | B83: 6,263,166.6 | C83: 4,945 | D83: 570,363.0 | E83: 763 | F83: 1,408,600.0 | G83: 1,352 | H83: 76,011.0 | I83: 29 | J83: 91,478.0 | K83: 158 | L83: 2,537,113.0 | M83: 486 | N83: 0 | O83: 0 | P83: 0 | Q83: 0 | R83: 408,359.4 | S83: 802 | T83: 20,943.0 | U83: 11 | V83: 15,992.0 | W83: 3 | X83: 3,368.0 | Y83: 4 | Z83: 1,840.0 | AA83: 1 | AB83: 4,952.0 | AC83: 8 | AD83: 226,436.8 | AE83: 880 | AF83: 54,211.0 | AG83: 35 | AH83: 7,354.0 | AI83: 7 | AJ83: 52,152.0 | AK83: 13 | AL83: 163,272.0 | AM83: 134 | AN83: 108,889.0 | AO83: 41 | AP83: 0 | AQ83: 0 | AR83: 25,685.0 | AS83: 22 | AT83: 0 | AU83: 0 | AV83: 0 | AW83: 0 | AX83: 0 | AY83: 0 | AZ83: 3,814.0 | BA83: 4 | BB83: 0 | BC83: 0 | BD83: 18,554.0 | BE83: 19 | BF83: 463,779.4 | BG83: 173
A84: 율촌면 상봉리 | B84: 3,343,442.0 | C84: 1,928 | D84: 441,974.0 | E84: 442 | F84: 357,019.0 | G84: 360 | H84: 1,693.0 | I84: 1 | J84: 27,928.0 | K84: 16 | L84: 2,175,694.0 | M84: 368 | N84: 0 | O84: 0 | P84: 0 | Q84: 0 | R84: 80,120.0 | S84: 188 | T84: 8,952.0 | U84: 3 | V84: 12,729.0 | W84: 2 | X84: 1,358.0 | Y84: 1 | Z84: 331.0 | AA84: 1 | AB84: 7,898.0 | AC84: 9 | AD84: 143,230.0 | AE84: 465 | AF84: 0 | AG84: 0 | AH84: 1,263.0 | AI84: 2 | AJ84: 869.0 | AK84: 1 | AL84: 61,606.0 | AM84: 48 | AN84: 0 | AO84: 0 | AP84: 0 | AQ84: 0 | AR84: 0 | AS84: 0 | AT84: 0 | AU84: 0 | AV84: 0 | AW84: 0 | AX84: 0 | AY84: 0 | AZ84: 3,436.0 | BA84: 2 | BB84: 0 | BC84: 0 | BD84: 11,675.0 | BE84: 6 | BF84: 5,667.0 | BG84: 13
A85: 율촌면 여동리 | B85: 1,272,931.8 | C85: 614 | D85: 226,722.0 | E85: 206 | F85: 16,175.0 | G85: 30 | H85: 14,883.0 | I85: 2 | J85: 1,011.0 | K85: 1 | L85: 723,461.0 | M85: 190 | N85: 0 | O85: 0 | P85: 0 | Q85: 0 | R85: 28,318.0 | S85: 102 | T85: 181,217.8 | U85: 17 | V85: 7,128.0 | W85: 4 | X85: 12,483.5 | Y85: 2 | Z85: 0 | AA85: 0 | AB85: 0 | AC85: 0 | AD85: 55,666.5 | AE85: 46 | AF85: 0 | AG85: 0 | AH85: 483.0 | AI85: 5 | AJ85: 0 | AK85: 0 | AL85: 836.0 | AM85: 1 | AN85: 0 | AO85: 0 | AP85: 0 | AQ85: 0 | AR85: 0 | AS85: 0 | AT85: 0 | AU85: 0 | AV85: 0 | AW85: 0 | AX85: 0 | AY85: 0 | AZ85: 0 | BA85: 0 | BB85: 0 | BC85: 0 | BD85: 2,585.0 | BE85: 1 | BF85: 1,962.0 | BG85: 7
A86: 화양면 나진리 | B86: 5,832,098.8 | C86: 3,056 | D86: 592,647.0 | E86: 608 | F86: 425,137.4 | G86: 414 | H86: 9,693.0 | I86: 3 | J86: 6,456.0 | K86: 8 | L86: 4,248,387.0 | M86: 837 | N86: 0 | O86: 0 | P86: 0 | Q86: 0 | R86: 145,319.0 | S86: 361 | T86: 46,586.0 | U86: 17 | V86: 30,464.0 | W86: 11 | X86: 647.0 | Y86: 2 | Z86: 0 | AA86: 0 | AB86: 4,373.0 | AC86: 4 | AD86: 187,747.7 | AE86: 644 | AF86: 0 | AG86: 0 | AH86: 2,307.0 | AI86: 12 | AJ86: 393.0 | AK86: 1 | AL86: 66,371.9 | AM86: 74 | AN86: 11,023.8 | AO86: 10 | AP86: 654.0 | AQ86: 1 | AR86: 0 | AS86: 0 | AT86: 0 | AU86: 0 | AV86: 0 | AW86: 0 | AX86: 0 | AY86: 0 | AZ86: 6,314.0 | BA86: 9 | BB86: 0 | BC86: 0 | BD86: 6,108.0 | BE86: 8 | BF86: 41,470.0 | BG86: 32
A87: 화양면 용주리 | B87: 4,529,423.0 | C87: 3,575 | D87: 1,248,686.0 | E87: 1,154 | F87: 516,443.0 | G87: 379 | H87: 14,075.0 | I87: 26 | J87: 26,913.0 | K87: 5 | L87: 2,104,361.0 | M87: 546 | N87: 0 | O87: 0 | P87: 0 | Q87: 0 | R87: 171,425.0 | S87: 548 | T87: 39,150.0 | U87: 18 | V87: 10,482.0 | W87: 2 | X87: 330.0 | Y87: 1 | Z87: 1,123.0 | AA87: 1 | AB87: 9,566.0 | AC87: 13 | AD87: 197,563.0 | AE87: 729 | AF87: 0 | AG87: 0 | AH87: 8,892.0 | AI87: 11 | AJ87: 8,213.0 | AK87: 8 | AL87: 47,340.0 | AM87: 21 | AN87: 19,287.0 | AO87: 12 | AP87: 10,905.0 | AQ87: 5 | AR87: 0 | AS87: 0 | AT87: 0 | AU87: 0 | AV87: 0 | AW87: 0 | AX87: 0 | AY87: 0 | AZ87: 4,604.0 | BA87: 5 | BB87: 6,161.0 | BC87: 3 | BD87: 26,285.0 | BE87: 31 | BF87: 57,619.0 | BG87: 57
A88: 화양면 창무리 | B88: 3,959,726.3 | C88: 2,468 | D88: 812,889.0 | E88: 764 | F88: 386,467.0 | G88: 323 | H88: 0 | I88: 0 | J88: 10,950.0 | K88: 3 | L88: 2,226,205.0 | M88: 385 | N88: 0 | O88: 0 | P88: 0 | Q88: 0 | R88: 101,873.0 | S88: 286 | T88: 9,573.0 | U88: 5 | V88: 0 | W88: 0 | X88: 1,164.0 | Y88: 2 | Z88: 7,189.0 | AA88: 4 | AB88: 6,026.0 | AC88: 11 | AD88: 104,317.7 | AE88: 584 | AF88: 0 | AG88: 0 | AH88: 3,438.0 | AI88: 1 | AJ88: 25,355.7 | AK88: 18 | AL88: 47,501.4 | AM88: 42 | AN88: 194,774.0 | AO88: 4 | AP88: 3,193.0 | AQ88: 2 | AR88: 0 | AS88: 0 | AT88: 0 | AU88: 0 | AV88: 0 | AW88: 0 | AX88: 0 | AY88: 0 | AZ88: 1,103.0 | BA88: 5 | BB88: 0 | BC88: 0 | BD88: 5,902.0 | BE88: 3 | BF88: 11,805.5 | BG88: 26
A89: 화양면 이천리 | B89: 3,554,065.0 | C89: 2,080 | D89: 778,078.0 | E89: 763 | F89: 111,021.0 | G89: 172 | H89: 5,849.0 | I89: 2 | J89: 1,761.0 | K89: 1 | L89: 2,341,645.0 | M89: 423 | N89: 0 | O89: 0 | P89: 0 | Q89: 0 | R89: 114,759.0 | S89: 310 | T89: 444.0 | U89: 1 | V89: 9,352.0 | W89: 6 | X89: 1,265.0 | Y89: 2 | Z89: 0 | AA89: 0 | AB89: 1,054.0 | AC89: 2 | AD89: 146,302.0 | AE89: 335 | AF89: 0 | AG89: 0 | AH89: 4,742.0 | AI89: 14 | AJ89: 0 | AK89: 0 | AL89: 19,164.0 | AM89: 22 | AN89: 3,481.0 | AO89: 2 | AP89: 0 | AQ89: 0 | AR89: 0 | AS89: 0 | AT89: 0 | AU89: 0 | AV89: 0 | AW89: 0 | AX89: 0 | AY89: 0 | AZ89: 992.0 | BA89: 1 | BB89: 0 | BC89: 0 | BD89: 1,478.0 | BE89: 4 | BF89: 12,678.0 | BG89: 20
A90: 화양면 옥적리 | B90: 11,945,873.3 | C90: 4,845 | D90: 1,446,969.0 | E90: 1,362 | F90: 1,290,014.6 | G90: 1,170 | H90: 56,059.0 | I90: 9 | J90: 31,798.0 | K90: 6 | L90: 8,301,956.0 | M90: 939 | N90: 0 | O90: 0 | P90: 0 | Q90: 0 | R90: 124,864.0 | S90: 340 | T90: 13,000.0 | U90: 9 | V90: 30.0 | W90: 1 | X90: 2,538.0 | Y90: 3 | Z90: 0 | AA90: 0 | AB90: 4,276.0 | AC90: 9 | AD90: 246,392.2 | AE90: 712 | AF90: 0 | AG90: 0 | AH90: 8,921.0 | AI90: 5 | AJ90: 60,004.4 | AK90: 16 | AL90: 165,629.1 | AM90: 129 | AN90: 161,919.0 | AO90: 100 | AP90: 0 | AQ90: 0 | AR90: 0 | AS90: 0 | AT90: 0 | AU90: 0 | AV90: 0 | AW90: 0 | AX90: 0 | AY90: 0 | AZ90: 1,692.0 | BA90: 2 | BB90: 0 | BC90: 0 | BD90: 16,545.0 | BE90: 12 | BF90: 13,266.0 | BG90: 21
A91: 화양면 화동리 | B91: 7,419,021.7 | C91: 4,104 | D91: 1,061,504.7 | E91: 1,040 | F91: 864,472.7 | G91: 822 | H91: 1,850.0 | I91: 2 | J91: 12,543.0 | K91: 4 | L91: 4,740,885.8 | M91: 745 | N91: 0 | O91: 0 | P91: 0 | Q91: 0 | R91: 126,553.5 | S91: 425 | T91: 105,496.2 | U91: 24 | V91: 33,365.0 | W91: 4 | X91: 1,088.0 | Y91: 1 | Z91: 1,811.0 | AA91: 1 | AB91: 5,756.0 | AC91: 12 | AD91: 204,779.5 | AE91: 683 | AF91: 0 | AG91: 0 | AH91: 0 | AI91: 0 | AJ91: 3,568.0 | AK91: 10 | AL91: 132,195.1 | AM91: 244 | AN91: 79,538.0 | AO91: 36 | AP91: 0 | AQ91: 0 | AR91: 0 | AS91: 0 | AT91: 0 | AU91: 0 | AV91: 0 | AW91: 0 | AX91: 0 | AY91: 0 | AZ91: 2,095.0 | BA91: 5 | BB91: 0 | BC91: 0 | BD91: 22,954.0 | BE91: 17 | BF91: 18,566.2 | BG91: 29
A92: 화양면 서촌리 | B92: 6,223,717.7 | C92: 3,237 | D92: 952,353.0 | E92: 875 | F92: 710,973.0 | G92: 693 | H92: 10,611.0 | I92: 2 | J92: 16,806.0 | K92: 12 | L92: 4,162,365.0 | M92: 556 | N92: 0 | O92: 0 | P92: 0 | Q92: 0 | R92: 89,299.0 | S92: 321 | T92: 2,921.0 | U92: 1 | V92: 0 | W92: 0 | X92: 0 | Y92: 0 | Z92: 0 | AA92: 0 | AB92: 1,029.0 | AC92: 3 | AD92: 116,996.6 | AE92: 580 | AF92: 0 | AG92: 0 | AH92: 2,298.0 | AI92: 1 | AJ92: 1,736.0 | AK92: 10 | AL92: 105,848.1 | AM92: 137 | AN92: 18,192.0 | AO92: 14 | AP92: 0 | AQ92: 0 | AR92: 0 | AS92: 0 | AT92: 0 | AU92: 0 | AV92: 0 | AW92: 0 | AX92: 0 | AY92: 0 | AZ92: 1,718.0 | BA92: 5 | BB92: 0 | BC92: 0 | BD92: 12,032.0 | BE92: 12 | BF92: 18,540.0 | BG92: 15
A93: 화양면 이목리 | B93: 8,998,261.0 | C93: 4,885 | D93: 1,075,545.0 | E93: 1,018 | F93: 639,652.0 | G93: 986 | H93: 0 | I93: 0 | J93: 44,312.0 | K93: 8 | L93: 6,726,583.0 | M93: 1,532 | N93: 0 | O93: 0 | P93: 0 | Q93: 0 | R93: 154,960.0 | S93: 434 | T93: 0 | U93: 0 | V93: 5,586.0 | W93: 7 | X93: 0 | Y93: 0 | Z93: 0 | AA93: 0 | AB93: 958.0 | AC93: 3 | AD93: 240,058.0 | AE93: 783 | AF93: 0 | AG93: 0 | AH93: 2,730.0 | AI93: 16 | AJ93: 205.0 | AK93: 2 | AL93: 67,408.0 | AM93: 35 | AN93: 10,156.0 | AO93: 8 | AP93: 0 | AQ93: 0 | AR93: 0 | AS93: 0 | AT93: 0 | AU93: 0 | AV93: 0 | AW93: 0 | AX93: 0 | AY93: 0 | AZ93: 1,344.0 | BA93: 3 | BB93: 0 | BC93: 0 | BD93: 13,686.0 | BE93: 20 | BF93: 15,078.0 | BG93: 30
A94: 화양면 장수리 | B94: 5,244,685.0 | C94: 3,670 | D94: 1,164,006.0 | E94: 1,169 | F94: 301,300.0 | G94: 512 | H94: 2,420.0 | I94: 1 | J94: 12,255.0 | K94: 10 | L94: 3,354,556.0 | M94: 827 | N94: 0 | O94: 0 | P94: 0 | Q94: 0 | R94: 130,291.0 | S94: 431 | T94: 370.0 | U94: 1 | V94: 21,516.0 | W94: 5 | X94: 0 | Y94: 0 | Z94: 0 | AA94: 0 | AB94: 1,209.0 | AC94: 5 | AD94: 194,783.0 | AE94: 598 | AF94: 0 | AG94: 0 | AH94: 7,575.0 | AI94: 18 | AJ94: 0 | AK94: 0 | AL94: 22,526.0 | AM94: 30 | AN94: 0 | AO94: 0 | AP94: 1,524.0 | AQ94: 2 | AR94: 0 | AS94: 0 | AT94: 0 | AU94: 0 | AV94: 0 | AW94: 0 | AX94: 0 | AY94: 0 | AZ94: 0 | BA94: 0 | BB94: 0 | BC94: 0 | BD94: 14,188.0 | BE94: 23 | BF94: 16,166.0 | BG94: 38
A95: 화양면 안포리 | B95: 12,411,146.3 | C95: 6,879 | D95: 1,559,511.5 | E95: 1,765 | F95: 783,784.0 | G95: 1,132 | H95: 29,555.0 | I95: 7 | J95: 51,637.0 | K95: 28 | L95: 9,127,098.0 | M95: 1,801 | N95: 0 | O95: 0 | P95: 0 | Q95: 0 | R95: 215,543.0 | S95: 648 | T95: 7,050.0 | U95: 2 | V95: 6,792.0 | W95: 2 | X95: 2,857.0 | Y95: 3 | Z95: 1,629.0 | AA95: 1 | AB95: 8,885.0 | AC95: 15 | AD95: 359,752.9 | AE95: 1,114 | AF95: 0 | AG95: 0 | AH95: 7,422.0 | AI95: 19 | AJ95: 393.0 | AK95: 2 | AL95: 95,720.9 | AM95: 108 | AN95: 66,302.0 | AO95: 85 | AP95: 20,344.0 | AQ95: 13 | AR95: 0 | AS95: 0 | AT95: 0 | AU95: 0 | AV95: 0 | AW95: 0 | AX95: 0 | AY95: 0 | AZ95: 3,533.0 | BA95: 5 | BB95: 0 | BC95: 0 | BD95: 16,871.0 | BE95: 31 | BF95: 46,466.0 | BG95: 98
A96: 남면 우학리 | B96: 4,512,729.0 | C96: 2,773 | D96: 1,230,047.0 | E96: 930 | F96: 235,308.0 | G96: 477 | H96: 0 | I96: 0 | J96: 0 | K96: 0 | L96: 2,685,190.0 | M96: 523 | N96: 0 | O96: 0 | P96: 0 | Q96: 0 | R96: 92,437.0 | S96: 346 | T96: 0 | U96: 0 | V96: 33,393.0 | W96: 6 | X96: 54.0 | Y96: 1 | Z96: 0 | AA96: 0 | AB96: 0 | AC96: 0 | AD96: 152,102.0 | AE96: 420 | AF96: 0 | AG96: 0 | AH96: 1,925.0 | AI96: 8 | AJ96: 0 | AK96: 0 | AL96: 26,106.0 | AM96: 20 | AN96: 0 | AO96: 0 | AP96: 4,524.0 | AQ96: 3 | AR96: 926.0 | AS96: 3 | AT96: 0 | AU96: 0 | AV96: 0 | AW96: 0 | AX96: 0 | AY96: 0 | AZ96: 1,523.0 | BA96: 3 | BB96: 0 | BC96: 0 | BD96: 27,528.0 | BE96: 5 | BF96: 21,666.0 | BG96: 28
A97: 남면 심장리 | B97: 4,435,606.0 | C97: 2,521 | D97: 1,415,368.0 | E97: 955 | F97: 122,507.0 | G97: 307 | H97: 0 | I97: 0 | J97: 0 | K97: 0 | L97: 2,625,292.0 | M97: 423 | N97: 0 | O97: 0 | P97: 0 | Q97: 0 | R97: 96,108.0 | S97: 403 | T97: 2,032.0 | U97: 1 | V97: 4,663.0 | W97: 2 | X97: 0 | Y97: 0 | Z97: 0 | AA97: 0 | AB97: 243.0 | AC97: 1 | AD97: 113,634.0 | AE97: 316 | AF97: 0 | AG97: 0 | AH97: 4,234.0 | AI97: 15 | AJ97: 403.0 | AK97: 1 | AL97: 15,387.0 | AM97: 16 | AN97: 582.0 | AO97: 1 | AP97: 8,684.0 | AQ97: 10 | AR97: 0 | AS97: 0 | AT97: 0 | AU97: 0 | AV97: 0 | AW97: 0 | AX97: 0 | AY97: 0 | AZ97: 232.0 | BA97: 1 | BB97: 0 | BC97: 0 | BD97: 16,265.0 | BE97: 15 | BF97: 9,972.0 | BG97: 54
A98: 남면 두모리 | B98: 11,120,425.0 | C98: 3,558 | D98: 1,266,068.0 | E98: 1,067 | F98: 438,058.0 | G98: 917 | H98: 0 | I98: 0 | J98: 0 | K98: 0 | L98: 9,092,165.0 | M98: 697 | N98: 0 | O98: 0 | P98: 0 | Q98: 0 | R98: 67,628.0 | S98: 254 | T98: 0 | U98: 0 | V98: 5,557.0 | W98: 5 | X98: 0 | Y98: 0 | Z98: 0 | AA98: 0 | AB98: 465.0 | AC98: 2 | AD98: 174,635.0 | AE98: 471 | AF98: 0 | AG98: 0 | AH98: 3,155.0 | AI98: 9 | AJ98: 12,780.0 | AK98: 43 | AL98: 17,309.0 | AM98: 18 | AN98: 29,746.0 | AO98: 40 | AP98: 400.0 | AQ98: 1 | AR98: 1,484.0 | AS98: 2 | AT98: 0 | AU98: 0 | AV98: 0 | AW98: 0 | AX98: 0 | AY98: 0 | AZ98: 805.0 | BA98: 1 | BB98: 0 | BC98: 0 | BD98: 1,200.0 | BE98: 3 | BF98: 8,970.0 | BG98: 28
A99: 남면 유송리 | B99: 7,687,272.0 | C99: 3,247 | D99: 1,649,378.0 | E99: 1,374 | F99: 166,070.0 | G99: 423 | H99: 0 | I99: 0 | J99: 0 | K99: 0 | L99: 5,615,414.0 | M99: 716 | N99: 0 | O99: 0 | P99: 0 | Q99: 0 | R99: 90,059.0 | S99: 373 | T99: 0 | U99: 0 | V99: 12,875.0 | W99: 5 | X99: 0 | Y99: 0 | Z99: 0 | AA99: 0 | AB99: 732.0 | AC99: 2 | AD99: 94,236.0 | AE99: 266 | AF99: 0 | AG99: 0 | AH99: 7,454.0 | AI99: 20 | AJ99: 1,015.0 | AK99: 3 | AL99: 23,784.0 | AM99: 29 | AN99: 0 | AO99: 0 | AP99: 0 | AQ99: 0 | AR99: 0 | AS99: 0 | AT99: 0 | AU99: 0 | AV99: 0 | AW99: 0 | AX99: 0 | AY99: 0 | AZ99: 317.0 | BA99: 2 | BB99: 0 | BC99: 0 | BD99: 12,476.0 | BE99: 3 | BF99: 13,462.0 | BG99: 31
A100: 남면 안도리 | B100: 3,744,761.0 | C100: 2,552 | D100: 1,131,397.0 | E100: 1,212 | F100: 55,180.0 | G100: 151 | H100: 0 | I100: 0 | J100: 0 | K100: 0 | L100: 2,339,157.0 | M100: 566 | N100: 0 | O100: 0 | P100: 0 | Q100: 0 | R100: 90,524.0 | S100: 386 | T100: 0 | U100: 0 | V100: 5,182.0 | W100: 7 | X100: 0 | Y100: 0 | Z100: 0 | AA100: 0 | AB100: 0 | AC100: 0 | AD100: 43,878.0 | AE100: 142 | AF100: 0 | AG100: 0 | AH100: 4,513.0 | AI100: 5 | AJ100: 390.0 | AK100: 1 | AL100: 17,466.0 | AM100: 17 | AN100: 0 | AO100: 0 | AP100: 0 | AQ100: 0 | AR100: 0 | AS100: 0 | AT100: 0 | AU100: 0 | AV100: 0 | AW100: 0 | AX100: 0 | AY100: 0 | AZ100: 231.0 | BA100: 1 | BB100: 0 | BC100: 0 | BD100: 20,261.0 | BE100: 40 | BF100: 36,582.0 | BG100: 24
A101: 남면 연도리 | B101: 7,097,890.0 | C101: 3,485 | D101: 1,146,544.0 | E101: 1,377 | F101: 267,742.0 | G101: 626 | H101: 0 | I101: 0 | J101: 598.0 | K101: 1 | L101: 5,317,225.0 | M101: 711 | N101: 0 | O101: 0 | P101: 0 | Q101: 0 | R101: 103,176.0 | S101: 469 | T101: 0 | U101: 0 | V101: 11,875.0 | W101: 9 | X101: 0 | Y101: 0 | Z101: 0 | AA101: 0 | AB101: 0 | AC101: 0 | AD101: 108,490.0 | AE101: 150 | AF101: 0 | AG101: 0 | AH101: 3,309.0 | AI101: 16 | AJ101: 0 | AK101: 0 | AL101: 21,531.0 | AM101: 39 | AN101: 0 | AO101: 0 | AP101: 9,786.0 | AQ101: 3 | AR101: 0 | AS101: 0 | AT101: 0 | AU101: 0 | AV101: 0 | AW101: 0 | AX101: 0 | AY101: 0 | AZ101: 0 | BA101: 0 | BB101: 0 | BC101: 0 | BD101: 38,318.0 | BE101: 36 | BF101: 69,296.0 | BG101: 48
A102: 남면 두라리 | B102: 1,328,121.0 | C102: 924 | D102: 400,690.0 | E102: 470 | F102: 19,318.0 | G102: 58 | H102: 0 | I102: 0 | J102: 0 | K102: 0 | L102: 844,388.0 | M102: 210 | N102: 0 | O102: 0 | P102: 0 | Q102: 0 | R102: 30,137.0 | S102: 121 | T102: 0 | U102: 0 | V102: 6,844.0 | W102: 4 | X102: 0 | Y102: 0 | Z102: 0 | AA102: 0 | AB102: 0 | AC102: 0 | AD102: 18,156.0 | AE102: 31 | AF102: 0 | AG102: 0 | AH102: 1,233.0 | AI102: 5 | AJ102: 0 | AK102: 0 | AL102: 886.0 | AM102: 2 | AN102: 1,025.0 | AO102: 3 | AP102: 195.0 | AQ102: 1 | AR102: 0 | AS102: 0 | AT102: 0 | AU102: 0 | AV102: 0 | AW102: 0 | AX102: 0 | AY102: 0 | AZ102: 1,037.0 | BA102: 1 | BB102: 0 | BC102: 0 | BD102: 1,164.0 | BE102: 4 | BF102: 3,048.0 | BG102: 14
A103: 남면 화태리 | B103: 2,189,331.0 | C103: 1,778 | D103: 645,342.0 | E103: 692 | F103: 115,682.0 | G103: 225 | H103: 0 | I103: 0 | J103: 0 | K103: 0 | L103: 1,252,975.0 | M103: 433 | N103: 0 | O103: 0 | P103: 0 | Q103: 0 | R103: 59,410.0 | S103: 241 | T103: 0 | U103: 0 | V103: 12,637.0 | W103: 4 | X103: 0 | Y103: 0 | Z103: 0 | AA103: 0 | AB103: 0 | AC103: 0 | AD103: 65,315.0 | AE103: 112 | AF103: 0 | AG103: 0 | AH103: 6,159.0 | AI103: 19 | AJ103: 0 | AK103: 0 | AL103: 4,965.0 | AM103: 9 | AN103: 6,712.0 | AO103: 9 | AP103: 2,923.0 | AQ103: 3 | AR103: 0 | AS103: 0 | AT103: 0 | AU103: 0 | AV103: 0 | AW103: 0 | AX103: 0 | AY103: 0 | AZ103: 544.0 | BA103: 4 | BB103: 0 | BC103: 0 | BD103: 6,354.0 | BE103: 8 | BF103: 10,313.0 | BG103: 19
A104: 남면 횡간리 | B104: 431,660.0 | C104: 526 | D104: 263,932.0 | E104: 308 | F104: 7,482.0 | G104: 21 | H104: 0 | I104: 0 | J104: 0 | K104: 0 | L104: 114,747.0 | M104: 32 | N104: 0 | O104: 0 | P104: 0 | Q104: 0 | R104: 19,294.0 | S104: 104 | T104: 0 | U104: 0 | V104: 4,408.0 | W104: 4 | X104: 0 | Y104: 0 | Z104: 0 | AA104: 0 | AB104: 0 | AC104: 0 | AD104: 8,244.0 | AE104: 9 | AF104: 0 | AG104: 0 | AH104: 1,599.0 | AI104: 7 | AJ104: 129.0 | AK104: 1 | AL104: 254.0 | AM104: 1 | AN104: 43.0 | AO104: 1 | AP104: 0 | AQ104: 0 | AR104: 0 | AS104: 0 | AT104: 0 | AU104: 0 | AV104: 0 | AW104: 0 | AX104: 0 | AY104: 0 | AZ104: 128.0 | BA104: 1 | BB104: 0 | BC104: 0 | BD104: 2,942.0 | BE104: 13 | BF104: 8,458.0 | BG104: 24
A105: 화정면 백야리 | B105: 3,058,890.0 | C105: 2,101 | D105: 880,672.0 | E105: 855 | F105: 152,301.0 | G105: 204 | H105: 0 | I105: 0 | J105: 1,208.0 | K105: 1 | L105: 1,836,525.0 | M105: 470 | N105: 0 | O105: 0 | P105: 0 | Q105: 0 | R105: 84,334.0 | S105: 268 | T105: 0 | U105: 0 | V105: 16,874.0 | W105: 4 | X105: 0 | Y105: 0 | Z105: 0 | AA105: 0 | AB105: 0 | AC105: 0 | AD105: 51,357.0 | AE105: 257 | AF105: 0 | AG105: 0 | AH105: 3,313.0 | AI105: 11 | AJ105: 0 | AK105: 0 | AL105: 1,706.0 | AM105: 2 | AN105: 1,513.0 | AO105: 2 | AP105: 9,763.0 | AQ105: 3 | AR105: 0 | AS105: 0 | AT105: 0 | AU105: 0 | AV105: 0 | AW105: 0 | AX105: 0 | AY105: 0 | AZ105: 1,892.0 | BA105: 4 | BB105: 0 | BC105: 0 | BD105: 4,530.0 | BE105: 4 | BF105: 12,902.0 | BG105: 16
A106: 화정면 월호리 | B106: 2,023,140.0 | C106: 1,046 | D106: 636,729.0 | E106: 514 | F106: 41,547.0 | G106: 80 | H106: 0 | I106: 0 | J106: 0 | K106: 0 | L106: 1,254,387.0 | M106: 240 | N106: 0 | O106: 0 | P106: 0 | Q106: 0 | R106: 39,814.0 | S106: 137 | T106: 0 | U106: 0 | V106: 7,999.0 | W106: 3 | X106: 0 | Y106: 0 | Z106: 0 | AA106: 0 | AB106: 0 | AC106: 0 | AD106: 21,946.0 | AE106: 34 | AF106: 0 | AG106: 0 | AH106: 1,909.0 | AI106: 10 | AJ106: 0 | AK106: 0 | AL106: 2,956.0 | AM106: 6 | AN106: 40.0 | AO106: 1 | AP106: 1,561.0 | AQ106: 3 | AR106: 0 | AS106: 0 | AT106: 0 | AU106: 0 | AV106: 0 | AW106: 0 | AX106: 0 | AY106: 0 | AZ106: 0 | BA106: 0 | BB106: 0 | BC106: 0 | BD106: 1,818.0 | BE106: 4 | BF106: 12,434.0 | BG106: 14
A107: 화정면 개도리 | B107: 9,728,737.0 | C107: 4,573 | D107: 1,574,114.0 | E107: 1,504 | F107: 461,036.0 | G107: 459 | H107: 0 | I107: 0 | J107: 0 | K107: 0 | L107: 7,082,662.0 | M107: 1,358 | N107: 0 | O107: 0 | P107: 0 | Q107: 0 | R107: 139,000.0 | S107: 514 | T107: 0 | U107: 0 | V107: 19,803.0 | W107: 4 | X107: 0 | Y107: 0 | Z107: 0 | AA107: 0 | AB107: 0 | AC107: 0 | AD107: 214,861.0 | AE107: 574 | AF107: 0 | AG107: 0 | AH107: 21,970.0 | AI107: 17 | AJ107: 0 | AK107: 0 | AL107: 86,466.0 | AM107: 50 | AN107: 63,652.0 | AO107: 19 | AP107: 19,921.0 | AQ107: 17 | AR107: 0 | AS107: 0 | AT107: 0 | AU107: 0 | AV107: 0 | AW107: 0 | AX107: 0 | AY107: 0 | AZ107: 1,336.0 | BA107: 4 | BB107: 0 | BC107: 0 | BD107: 12,085.0 | BE107: 11 | BF107: 31,831.0 | BG107: 42
A108: 화정면 제도리 | B108: 1,098,088.0 | C108: 810 | D108: 366,730.0 | E108: 308 | F108: 51,007.0 | G108: 80 | H108: 0 | I108: 0 | J108: 1,719.0 | K108: 2 | L108: 603,017.0 | M108: 164 | N108: 0 | O108: 0 | P108: 0 | Q108: 0 | R108: 34,418.0 | S108: 105 | T108: 0 | U108: 0 | V108: 81.0 | W108: 3 | X108: 0 | Y108: 0 | Z108: 0 | AA108: 0 | AB108: 0 | AC108: 0 | AD108: 16,816.0 | AE108: 109 | AF108: 0 | AG108: 0 | AH108: 2,932.0 | AI108: 9 | AJ108: 0 | AK108: 0 | AL108: 4,572.0 | AM108: 3 | AN108: 1,842.0 | AO108: 1 | AP108: 0 | AQ108: 0 | AR108: 0 | AS108: 0 | AT108: 0 | AU108: 0 | AV108: 0 | AW108: 0 | AX108: 0 | AY108: 0 | AZ108: 0 | BA108: 0 | BB108: 0 | BC108: 0 | BD108: 3,114.0 | BE108: 10 | BF108: 11,840.0 | BG108: 16
A109: 화정면 상화리 | B109: 672,426.0 | C109: 577 | D109: 301,408.0 | E109: 342 | F109: 5,980.0 | G109: 17 | H109: 0 | I109: 0 | J109: 0 | K109: 0 | L109: 325,737.0 | M109: 109 | N109: 0 | O109: 0 | P109: 0 | Q109: 0 | R109: 20,999.0 | S109: 82 | T109: 0 | U109: 0 | V109: 54.0 | W109: 1 | X109: 0 | Y109: 0 | Z109: 0 | AA109: 0 | AB109: 0 | AC109: 0 | AD109: 11,087.0 | AE109: 10 | AF109: 0 | AG109: 0 | AH109: 1,519.0 | AI109: 4 | AJ109: 0 | AK109: 0 | AL109: 0 | AM109: 0 | AN109: 0 | AO109: 0 | AP109: 0 | AQ109: 0 | AR109: 0 | AS109: 0 | AT109: 0 | AU109: 0 | AV109: 0 | AW109: 0 | AX109: 0 | AY109: 0 | AZ109: 1,117.0 | BA109: 1 | BB109: 0 | BC109: 0 | BD109: 2,446.0 | BE109: 8 | BF109: 2,079.0 | BG109: 3
A110: 화정면 하화리 | B110: 673,278.0 | C110: 535 | D110: 256,302.0 | E110: 288 | F110: 2,435.0 | G110: 15 | H110: 0 | I110: 0 | J110: 0 | K110: 0 | L110: 369,876.0 | M110: 116 | N110: 0 | O110: 0 | P110: 0 | Q110: 0 | R110: 17,529.0 | S110: 66 | T110: 0 | U110: 0 | V110: 1,908.0 | W110: 3 | X110: 0 | Y110: 0 | Z110: 0 | AA110: 0 | AB110: 0 | AC110: 0 | AD110: 4,531.0 | AE110: 12 | AF110: 0 | AG110: 0 | AH110: 606.0 | AI110: 5 | AJ110: 0 | AK110: 0 | AL110: 9,045.0 | AM110: 8 | AN110: 0 | AO110: 0 | AP110: 0 | AQ110: 0 | AR110: 0 | AS110: 0 | AT110: 0 | AU110: 0 | AV110: 0 | AW110: 0 | AX110: 0 | AY110: 0 | AZ110: 0 | BA110: 0 | BB110: 0 | BC110: 0 | BD110: 7,061.0 | BE110: 13 | BF110: 3,985.0 | BG110: 9
A111: 화정면 낭도리 | B111: 5,608,745.0 | C111: 3,251 | D111: 1,443,180.0 | E111: 1,572 | F111: 155,524.0 | G111: 209 | H111: 1,895.0 | I111: 2 | J111: 0 | K111: 0 | L111: 3,708,952.0 | M111: 745 | N111: 0 | O111: 0 | P111: 8,625.0 | Q111: 2 | R111: 72,869.0 | S111: 361 | T111: 0 | U111: 0 | V111: 33,324.0 | W111: 13 | X111: 0 | Y111: 0 | Z111: 0 | AA111: 0 | AB111: 395.0 | AC111: 1 | AD111: 57,290.0 | AE111: 212 | AF111: 0 | AG111: 0 | AH111: 10,962.0 | AI111: 17 | AJ111: 11,323.0 | AK111: 5 | AL111: 25,833.0 | AM111: 27 | AN111: 7,590.0 | AO111: 3 | AP111: 0 | AQ111: 0 | AR111: 0 | AS111: 0 | AT111: 0 | AU111: 0 | AV111: 0 | AW111: 0 | AX111: 0 | AY111: 0 | AZ111: 753.0 | BA111: 2 | BB111: 0 | BC111: 0 | BD111: 20,087.0 | BE111: 37 | BF111: 50,143.0 | BG111: 43
A112: 화정면 조발리 | B112: 1,941,156.0 | C112: 962 | D112: 344,423.0 | E112: 409 | F112: 17,238.0 | G112: 32 | H112: 0 | I112: 0 | J112: 0 | K112: 0 | L112: 1,532,129.0 | M112: 339 | N112: 0 | O112: 0 | P112: 0 | Q112: 0 | R112: 23,495.0 | S112: 120 | T112: 0 | U112: 0 | V112: 2,465.0 | W112: 5 | X112: 0 | Y112: 0 | Z112: 0 | AA112: 0 | AB112: 0 | AC112: 0 | AD112: 13,072.0 | AE112: 26 | AF112: 0 | AG112: 0 | AH112: 616.0 | AI112: 6 | AJ112: 0 | AK112: 0 | AL112: 1,074.0 | AM112: 5 | AN112: 0 | AO112: 0 | AP112: 0 | AQ112: 0 | AR112: 0 | AS112: 0 | AT112: 0 | AU112: 0 | AV112: 0 | AW112: 0 | AX112: 0 | AY112: 0 | AZ112: 0 | BA112: 0 | BB112: 0 | BC112: 0 | BD112: 3,829.0 | BE112: 10 | BF112: 2,815.0 | BG112: 10
A113: 화정면 적금리 | B113: 855,046.0 | C113: 1,187 | D113: 556,292.0 | E113: 789 | F113: 17,487.0 | G113: 24 | H113: 0 | I113: 0 | J113: 0 | K113: 0 | L113: 157,636.0 | M113: 66 | N113: 0 | O113: 0 | P113: 0 | Q113: 0 | R113: 48,700.0 | S113: 189 | T113: 0 | U113: 0 | V113: 4,543.0 | W113: 5 | X113: 0 | Y113: 0 | Z113: 0 | AA113: 0 | AB113: 0 | AC113: 0 | AD113: 18,639.0 | AE113: 11 | AF113: 0 | AG113: 0 | AH113: 1,318.0 | AI113: 5 | AJ113: 4,642.0 | AK113: 11 | AL113: 790.0 | AM113: 1 | AN113: 0 | AO113: 0 | AP113: 0 | AQ113: 0 | AR113: 0 | AS113: 0 | AT113: 0 | AU113: 0 | AV113: 0 | AW113: 0 | AX113: 0 | AY113: 0 | AZ113: 0 | BA113: 0 | BB113: 0 | BC113: 0 | BD113: 40,152.0 | BE113: 72 | BF113: 4,847.0 | BG113: 14
A114: 화정면 여자리 | B114: 694,152.0 | C114: 847 | D114: 365,177.0 | E114: 409 | F114: 7,848.0 | G114: 10 | H114: 0 | I114: 0 | J114: 0 | K114: 0 | L114: 213,155.0 | M114: 109 | N114: 0 | O114: 0 | P114: 0 | Q114: 0 | R114: 45,085.0 | S114: 188 | T114: 0 | U114: 0 | V114: 8,371.0 | W114: 3 | X114: 0 | Y114: 0 | Z114: 0 | AA114: 0 | AB114: 0 | AC114: 0 | AD114: 26,673.0 | AE114: 56 | AF114: 0 | AG114: 0 | AH114: 2,998.0 | AI114: 10 | AJ114: 0 | AK114: 0 | AL114: 1,656.0 | AM114: 1 | AN114: 0 | AO114: 0 | AP114: 662.0 | AQ114: 1 | AR114: 0 | AS114: 0 | AT114: 0 | AU114: 0 | AV114: 0 | AW114: 0 | AX114: 0 | AY114: 0 | AZ114: 2,273.0 | BA114: 2 | BB114: 0 | BC114: 0 | BD114: 13,946.0 | BE114: 43 | BF114: 6,308.0 | BG114: 15
A115: 삼산면 거문리 | B115: 934,124.0 | C115: 681 | D115: 106,524.0 | E115: 157 | F115: 0 | G115: 0 | H115: 0 | I115: 0 | J115: 0 | K115: 0 | L115: 737,137.0 | M115: 123 | N115: 0 | O115: 0 | P115: 0 | Q115: 0 | R115: 44,025.0 | S115: 347 | T115: 0 | U115: 0 | V115: 6,338.0 | W115: 2 | X115: 0 | Y115: 0 | Z115: 0 | AA115: 0 | AB115: 0 | AC115: 0 | AD115: 14,267.0 | AE115: 30 | AF115: 0 | AG115: 0 | AH115: 4,275.0 | AI115: 5 | AJ115: 0 | AK115: 0 | AL115: 0 | AM115: 0 | AN115: 0 | AO115: 0 | AP115: 0 | AQ115: 0 | AR115: 0 | AS115: 0 | AT115: 0 | AU115: 0 | AV115: 0 | AW115: 0 | AX115: 0 | AY115: 0 | AZ115: 208.0 | BA115: 1 | BB115: 0 | BC115: 0 | BD115: 641.0 | BE115: 2 | BF115: 20,709.0 | BG115: 14
A116: 삼산면 덕촌리 | B116: 3,849,842.0 | C116: 2,533 | D116: 571,632.0 | E116: 801 | F116: 22,013.0 | G116: 89 | H116: 981.0 | I116: 1 | J116: 0 | K116: 0 | L116: 2,795,389.0 | M116: 1,101 | N116: 0 | O116: 0 | P116: 0 | Q116: 0 | R116: 89,867.0 | S116: 381 | T116: 0 | U116: 0 | V116: 17,072.0 | W116: 3 | X116: 0 | Y116: 0 | Z116: 0 | AA116: 0 | AB116: 612.0 | AC116: 1 | AD116: 52,240.0 | AE116: 93 | AF116: 0 | AG116: 0 | AH116: 1,687.0 | AI116: 3 | AJ116: 1,127.0 | AK116: 6 | AL116: 6,576.0 | AM116: 5 | AN116: 1,404.0 | AO116: 2 | AP116: 0 | AQ116: 0 | AR116: 0 | AS116: 0 | AT116: 0 | AU116: 0 | AV116: 0 | AW116: 0 | AX116: 0 | AY116: 0 | AZ116: 0 | BA116: 0 | BB116: 0 | BC116: 0 | BD116: 268,109.0 | BE116: 37 | BF116: 21,133.0 | BG116: 10
A117: 삼산면 서도리 | B117: 3,430,497.0 | C117: 2,500 | D117: 704,909.0 | E117: 1,028 | F117: 28,626.0 | G117: 93 | H117: 0 | I117: 0 | J117: 0 | K117: 0 | L117: 2,426,864.0 | M117: 691 | N117: 0 | O117: 0 | P117: 0 | Q117: 0 | R117: 71,555.0 | S117: 377 | T117: 0 | U117: 0 | V117: 7,708.0 | W117: 6 | X117: 0 | Y117: 0 | Z117: 0 | AA117: 0 | AB117: 0 | AC117: 0 | AD117: 52,908.0 | AE117: 103 | AF117: 0 | AG117: 0 | AH117: 2,707.0 | AI117: 6 | AJ117: 0 | AK117: 0 | AL117: 6,271.0 | AM117: 5 | AN117: 122.0 | AO117: 1 | AP117: 3,702.0 | AQ117: 4 | AR117: 0 | AS117: 0 | AT117: 0 | AU117: 0 | AV117: 0 | AW117: 0 | AX117: 0 | AY117: 0 | AZ117: 539.0 | BA117: 4 | BB117: 0 | BC117: 0 | BD117: 55,427.0 | BE117: 111 | BF117: 69,159.0 | BG117: 71
A118: 삼산면 동도리 | B118: 4,565,912.0 | C118: 2,618 | D118: 874,710.0 | E118: 1,130 | F118: 6,382.0 | G118: 27 | H118: 0 | I118: 0 | J118: 0 | K118: 0 | L118: 3,447,411.0 | M118: 910 | N118: 0 | O118: 0 | P118: 0 | Q118: 0 | R118: 65,256.0 | S118: 336 | T118: 0 | U118: 0 | V118: 7,242.0 | W118: 5 | X118: 0 | Y118: 0 | Z118: 0 | AA118: 0 | AB118: 0 | AC118: 0 | AD118: 34,586.0 | AE118: 44 | AF118: 0 | AG118: 0 | AH118: 11,599.0 | AI118: 10 | AJ118: 0 | AK118: 0 | AL118: 12,089.0 | AM118: 9 | AN118: 1,878.0 | AO118: 1 | AP118: 6,222.0 | AQ118: 5 | AR118: 0 | AS118: 0 | AT118: 0 | AU118: 0 | AV118: 0 | AW118: 0 | AX118: 0 | AY118: 0 | AZ118: 225.0 | BA118: 1 | BB118: 0 | BC118: 0 | BD118: 81,359.0 | BE118: 105 | BF118: 16,953.0 | BG118: 35
A119: 삼산면 초도리 | B119: 8,557,524.0 | C119: 3,723 | D119: 1,642,254.0 | E119: 1,569 | F119: 186,959.0 | G119: 350 | H119: 0 | I119: 0 | J119: 61,489.0 | K119: 5 | L119: 6,270,624.0 | M119: 968 | N119: 0 | O119: 0 | P119: 0 | Q119: 0 | R119: 124,669.0 | S119: 418 | T119: 0 | U119: 0 | V119: 23,337.0 | W119: 5 | X119: 0 | Y119: 0 | Z119: 0 | AA119: 0 | AB119: 156.0 | AC119: 1 | AD119: 177,356.0 | AE119: 359 | AF119: 0 | AG119: 0 | AH119: 7,593.0 | AI119: 13 | AJ119: 0 | AK119: 0 | AL119: 10,019.0 | AM119: 8 | AN119: 0 | AO119: 0 | AP119: 794.0 | AQ119: 2 | AR119: 0 | AS119: 0 | AT119: 0 | AU119: 0 | AV119: 0 | AW119: 0 | AX119: 0 | AY119: 0 | AZ119: 793.0 | BA119: 2 | BB119: 0 | BC119: 0 | BD119: 12,496.0 | BE119: 1 | BF119: 38,985.0 | BG119: 22
A120: 삼산면 손죽리 | B120: 6,207,214.0 | C120: 1,953 | D120: 903,206.0 | E120: 1,014 | F120: 41,528.0 | G120: 119 | H120: 0 | I120: 0 | J120: 20,002.0 | K120: 1 | L120: 5,058,865.0 | M120: 440 | N120: 0 | O120: 0 | P120: 0 | Q120: 0 | R120: 86,035.0 | S120: 302 | T120: 0 | U120: 0 | V120: 10,215.0 | W120: 4 | X120: 0 | Y120: 0 | Z120: 0 | AA120: 0 | AB120: 0 | AC120: 0 | AD120: 60,428.0 | AE120: 36 | AF120: 0 | AG120: 0 | AH120: 1,024.0 | AI120: 5 | AJ120: 297.0 | AK120: 2 | AL120: 13,491.0 | AM120: 8 | AN120: 893.0 | AO120: 1 | AP120: 0 | AQ120: 0 | AR120: 0 | AS120: 0 | AT120: 0 | AU120: 0 | AV120: 0 | AW120: 0 | AX120: 0 | AY120: 0 | AZ120: 198.0 | BA120: 1 | BB120: 0 | BC120: 0 | BD120: 3,968.0 | BE120: 4 | BF120: 7,064.0 | BG120: 16

Sheet 행정동(2014.12월말)
A1: 여수시 지적(地籍) 통계 현황
A3: (기준일자 : 2014. 12. 31. / 단위 : 필지, ㎡)
A4: 구 분 | B4: 합 계 | D4: 전 | F4: 답 | H4: 과수원 | J4: 목장용지 | L4: 임야 | N4: 광천지 | P4: 염전 | R4: 대 | T4: 공장용지 | V4: 학교용지 | X4: 주차장 | Z4: 주유소용지 | AB4: 창고용지 | AD4: 도로 | AF4: 철도용지 | AH4: 제방 | AJ4: 하천 | AL4: 구거 | AN4: 유지 | AP4: 양어장 | AR4: 수도용지 | AT4: 공원 | AV4: 체육용지 | AX4: 유원지 | AZ4: 종교용지 | BB4: 사적지 | BD4: 묘지 | BF4: 잡종지
B5: 면 적 | C5: 지번수 | D5: 면 적 | E5: 지번수 | F5: 면 적 | G5: 지번수 | H5: 면 적 | I5: 지번수 | J5: 면 적 | K5: 지번수 | L5: 면 적 | M5: 지번수 | N5: 면 적 | O5: 지번수 | P5: 면 적 | Q5: 지번수 | R5: 면 적 | S5: 지번수 | T5: 면 적 | U5: 지번수 | V5: 면 적 | W5: 지번수 | X5: 면 적 | Y5: 지번수 | Z5: 면 적 | AA5: 지번수 | AB5: 면 적 | AC5: 지번수 | AD5: 면 적 | AE5: 지번수 | AF5: 면 적 | AG5: 지번수 | AH5: 면 적 | AI5: 지번수 | AJ5: 면 적 | AK5: 지번수 | AL5: 면 적 | AM5: 지번수 | AN5: 면 적 | AO5: 지번수 | AP5: 면 적 | AQ5: 지번수 | AR5: 면 적 | AS5: 지번수 | AT5: 면 적 | AU5: 지번수 | AV5: 면 적 | AW5: 지번수 | AX5: 면 적 | AY5: 지번수 | AZ5: 면 적 | BA5: 지번수 | BB5: 면 적 | BC5: 지번수 | BD5: 면 적 | BE5: 지번수 | BF5: 면 적 | BG5: 지번수
A6: 합 계 | B6: =SUM(B7:B33) -> 508,836,884.3 | C6: =SUM(C7:C33) -> 309,282 | D6: 66,385,322.50 | E6: 74,227 | F6: 41,244,470.80 | G6: 46,273 | H6: 561,258.00 | I6: 203 | J6: 1,855,401.00 | K6: 516 | L6: 305,225,765.50 | M6: 54,199 | N6: 0 | O6: 0 | P6: 10,562.00 | Q6: 6 | R6: 22,213,345.10 | S6: 65,905 | T6: 19,766,125.30 | U6: 1,268 | V6: 2,005,052.10 | W6: 369 | X6: 421,874.30 | Y6: 430 | Z6: 504,572.20 | AA6: 246 | AB6: 272,901.60 | AC6: 402 | AD6: 20,346,112.80 | AE6: 48,670 | AF6: 1,029,622.20 | AG6: 884 | AH6: =SUM(AH7:AH33) -> 661,176.90 | AI6: 782 | AJ6: 2,524,558.90 | AK6: 962 | AL6: 4,663,201.70 | AM6: 4,774 | AN6: 2,805,965.90 | AO6: 1,416 | AP6: 238,838.10 | AQ6: 157 | AR6: 464,351.90 | AS6: 399 | AT6: 1,803,193.50 | AU6: 307 | AV6: 1,595,435.10 | AW6: 50 | AX6: 263,794.90 | AY6: 4 | AZ6: 420,205.10 | BA6: 449 | BB6: 20,795.00 | BC6: 15 | BD6: 1,816,520.00 | BE6: 1,911 | BF6: 9,716,461.90 | BG6: 4,458
A7: 돌산읍 | B7: =SUM('법정동(2014.12월말)'!B58:B67) -> 71,912,674.6 | C7: =SUM('법정동(2014.12월말)'!C58:C67) -> 45,171 | D7: =SUM('법정동(2014.12월말)'!D58:D67) -> 10,450,687.70 | E7: =SUM('법정동(2014.12월말)'!E58:E67) -> 11,389 | F7: =SUM('법정동(2014.12월말)'!F58:F67) -> 4,985,933.20 | G7: =SUM('법정동(2014.12월말)'!G58:G67) -> 6,316 | H7: =SUM('법정동(2014.12월말)'!H58:H67) -> 95,111.00 | I7: =SUM('법정동(2014.12월말)'!I58:I67) -> 25 | J7: =SUM('법정동(2014.12월말)'!J58:J67) -> 1,007,595.00 | K7: =SUM('법정동(2014.12월말)'!K58:K67) -> 65 | L7: =SUM('법정동(2014.12월말)'!L58:L67) -> 48,104,974.00 | M7: =SUM('법정동(2014.12월말)'!M58:M67) -> 8,861 | N7: =SUM('법정동(2014.12월말)'!N58:N67) -> 0 | O7: =SUM('법정동(2014.12월말)'!O58:O67) -> 0 | P7: =SUM('법정동(2014.12월말)'!P58:P67) -> 0 | Q7: =SUM('법정동(2014.12월말)'!Q58:Q67) -> 0 | R7: =SUM('법정동(2014.12월말)'!R58:R67) -> 2,230,056.90 | S7: =SUM('법정동(2014.12월말)'!S58:S67) -> 7,024 | T7: =SUM('법정동(2014.12월말)'!T58:T67) -> 56,279.70 | U7: =SUM('법정동(2014.12월말)'!U58:U67) -> 55 | V7: =SUM('법정동(2014.12월말)'!V58:V67) -> 172,181.50 | W7: =SUM('법정동(2014.12월말)'!W58:W67) -> 43 | X7: =SUM('법정동(2014.12월말)'!X58:X67) -> 7,090.60 | Y7: =SUM('법정동(2014.12월말)'!Y58:Y67) -> 13 | Z7: =SUM('법정동(2014.12월말)'!Z58:Z67) -> 7,884.00 | AA7: =SUM('법정동(2014.12월말)'!AA58:AA67) -> 17 | AB7: =SUM('법정동(2014.12월말)'!AB58:AB67) -> 49,626.60 | AC7: =SUM('법정동(2014.12월말)'!AC58:AC67) -> 85 | AD7: =SUM('법정동(2014.12월말)'!AD58:AD67) -> 2,344,649.70 | AE7: =SUM('법정동(2014.12월말)'!AE58:AE67) -> 8,544 | AF7: =SUM('법정동(2014.12월말)'!AF58:AF67) -> 0 | AG7: =SUM('법정동(2014.12월말)'!AG58:AG67) -> 0 | AH7: =SUM('법정동(2014.12월말)'!AH58:AH67) -> 94,823.30 | AI7: =SUM('법정동(2014.12월말)'!AI58:AI67) -> 191 | AJ7: =SUM('법정동(2014.12월말)'!AJ58:AJ67) -> 59,511.30 | AK7: =SUM('법정동(2014.12월말)'!AK58:AK67) -> 87 | AL7: =SUM('법정동(2014.12월말)'!AL58:AL67) -> 577,586.30 | AM7: =SUM('법정동(2014.12월말)'!AM58:AM67) -> 690 | AN7: =SUM('법정동(2014.12월말)'!AN58:AN67) -> 426,972.00 | AO7: =SUM('법정동(2014.12월말)'!AO58:AO67) -> 352 | AP7: =SUM('법정동(2014.12월말)'!AP58:AP67) -> 126,097.10 | AQ7: =SUM('법정동(2014.12월말)'!AQ58:AQ67) -> 73 | AR7: =SUM('법정동(2014.12월말)'!AR58:AR67) -> 833.00 | AS7: =SUM('법정동(2014.12월말)'!AS58:AS67) -> 2 | AT7: =SUM('법정동(2014.12월말)'!AT58:AT67) -> 56,646.30 | AU7: =SUM('법정동(2014.12월말)'!AU58:AU67) -> 12 | AV7: =SUM('법정동(2014.12월말)'!AV58:AV67) -> 0 | AW7: =SUM('법정동(2014.12월말)'!AW58:AW67) -> 0 | AX7: =SUM('법정동(2014.12월말)'!AX58:AX67) -> 214,140.60 | AY7: =SUM('법정동(2014.12월말)'!AY58:AY67) -> 2 | AZ7: =SUM('법정동(2014.12월말)'!AZ58:AZ67) -> 58,127.80 | BA7: =SUM('법정동(2014.12월말)'!BA58:BA67) -> 48 | BB7: =SUM('법정동(2014.12월말)'!BB58:BB67) -> 883.00 | BC7: =SUM('법정동(2014.12월말)'!BC58:BC67) -> 4 | BD7: =SUM('법정동(2014.12월말)'!BD58:BD67) -> 218,931.00 | BE7: =SUM('법정동(2014.12월말)'!BE58:BE67) -> 249 | BF7: =SUM('법정동(2014.12월말)'!BF58:BF67) -> 566,053.00 | BG7: =SUM('법정동(2014.12월말)'!BG58:BG67) -> 1,024
A8: 소라면 | B8: =SUM('법정동(2014.12월말)'!B68:B75) -> 60,565,200.2 | C8: =SUM('법정동(2014.12월말)'!C68:C75) -> 34,734 | D8: =SUM('법정동(2014.12월말)'!D68:D75) -> 6,831,707.60 | E8: =SUM('법정동(2014.12월말)'!E68:E75) -> 7,843 | F8: =SUM('법정동(2014.12월말)'!F68:F75) -> 9,674,307.00 | G8: =SUM('법정동(2014.12월말)'!G68:G75) -> 8,195 | H8: =SUM('법정동(2014.12월말)'!H68:H75) -> 36,007.00 | I8: =SUM('법정동(2014.12월말)'!I68:I75) -> 12 | J8: =SUM('법정동(2014.12월말)'!J68:J75) -> 161,664.00 | K8: =SUM('법정동(2014.12월말)'!K68:K75) -> 93 | L8: =SUM('법정동(2014.12월말)'!L68:L75) -> 35,498,298.00 | M8: =SUM('법정동(2014.12월말)'!M68:M75) -> 5,913 | N8: =SUM('법정동(2014.12월말)'!N68:N75) -> 0 | O8: =SUM('법정동(2014.12월말)'!O68:O75) -> 0 | P8: =SUM('법정동(2014.12월말)'!P68:P75) -> 0 | Q8: =SUM('법정동(2014.12월말)'!Q68:Q75) -> 0 | R8: =SUM('법정동(2014.12월말)'!R68:R75) -> 1,827,262.10 | S8: =SUM('법정동(2014.12월말)'!S68:S75) -> 4,405 | T8: =SUM('법정동(2014.12월말)'!T68:T75) -> 69,337.00 | U8: =SUM('법정동(2014.12월말)'!U68:U75) -> 38 | V8: =SUM('법정동(2014.12월말)'!V68:V75) -> 102,110.70 | W8: =SUM('법정동(2014.12월말)'!W68:W75) -> 17 | X8: =SUM('법정동(2014.12월말)'!X68:X75) -> 51,576.10 | Y8: =SUM('법정동(2014.12월말)'!Y68:Y75) -> 55 | Z8: =SUM('법정동(2014.12월말)'!Z68:Z75) -> 31,441.70 | AA8: =SUM('법정동(2014.12월말)'!AA68:AA75) -> 36 | AB8: =SUM('법정동(2014.12월말)'!AB68:AB75) -> 60,514.00 | AC8: =SUM('법정동(2014.12월말)'!AC68:AC75) -> 84 | AD8: =SUM('법정동(2014.12월말)'!AD68:AD75) -> 2,453,382.30 | AE8: =SUM('법정동(2014.12월말)'!AE68:AE75) -> 6,084 | AF8: =SUM('법정동(2014.12월말)'!AF68:AF75) -> 95,043.00 | AG8: =SUM('법정동(2014.12월말)'!AG68:AG75) -> 60 | AH8: =SUM('법정동(2014.12월말)'!AH68:AH75) -> 63,531.60 | AI8: =SUM('법정동(2014.12월말)'!AI68:AI75) -> 40 | AJ8: =SUM('법정동(2014.12월말)'!AJ68:AJ75) -> 792,844.50 | AK8: =SUM('법정동(2014.12월말)'!AK68:AK75) -> 120 | AL8: =SUM('법정동(2014.12월말)'!AL68:AL75) -> 948,935.10 | AM8: =SUM('법정동(2014.12월말)'!AM68:AM75) -> 863 | AN8: =SUM('법정동(2014.12월말)'!AN68:AN75) -> 951,415.60 | AO8: =SUM('법정동(2014.12월말)'!AO68:AO75) -> 188 | AP8: =SUM('법정동(2014.12월말)'!AP68:AP75) -> 1,375.00 | AQ8: =SUM('법정동(2014.12월말)'!AQ68:AQ75) -> 1 | AR8: =SUM('법정동(2014.12월말)'!AR68:AR75) -> 24,714.80 | AS8: =SUM('법정동(2014.12월말)'!AS68:AS75) -> 59 | AT8: =SUM('법정동(2014.12월말)'!AT68:AT75) -> 145,680.80 | AU8: =SUM('법정동(2014.12월말)'!AU68:AU75) -> 52 | AV8: =SUM('법정동(2014.12월말)'!AV68:AV75) -> 6,110.00 | AW8: =SUM('법정동(2014.12월말)'!AW68:AW75) -> 8 | AX8: =SUM('법정동(2014.12월말)'!AX68:AX75) -> 0 | AY8: =SUM('법정동(2014.12월말)'!AY68:AY75) -> 0 | AZ8: =SUM('법정동(2014.12월말)'!AZ68:AZ75) -> 28,872.30 | BA8: =SUM('법정동(2014.12월말)'!BA68:BA75) -> 40 | BB8: =SUM('법정동(2014.12월말)'!BB68:BB75) -> 0 | BC8: =SUM('법정동(2014.12월말)'!BC68:BC75) -> 0 | BD8: =SUM('법정동(2014.12월말)'!BD68:BD75) -> 348,603.00 | BE8: =SUM('법정동(2014.12월말)'!BE68:BE75) -> 184 | BF8: =SUM('법정동(2014.12월말)'!BF68:BF75) -> 360,467.00 | BG8: =SUM('법정동(2014.12월말)'!BG68:BG75) -> 344
A9: 율촌면 | B9: =SUM('법정동(2014.12월말)'!B76:B85) -> 47,587,550.5 | C9: =SUM('법정동(2014.12월말)'!C76:C85) -> 31,295 | D9: =SUM('법정동(2014.12월말)'!D76:D85) -> 5,138,727.00 | E9: =SUM('법정동(2014.12월말)'!E76:E85) -> 5,724 | F9: =SUM('법정동(2014.12월말)'!F76:F85) -> 7,868,741.00 | G9: =SUM('법정동(2014.12월말)'!G76:G85) -> 8,093 | H9: =SUM('법정동(2014.12월말)'!H76:H85) -> 228,147.00 | I9: =SUM('법정동(2014.12월말)'!I76:I85) -> 79 | J9: =SUM('법정동(2014.12월말)'!J76:J85) -> 367,311.00 | K9: =SUM('법정동(2014.12월말)'!K76:K85) -> 239 | L9: =SUM('법정동(2014.12월말)'!L76:L85) -> 26,810,278.10 | M9: =SUM('법정동(2014.12월말)'!M76:M85) -> 5,502 | N9: =SUM('법정동(2014.12월말)'!N76:N85) -> 0 | O9: =SUM('법정동(2014.12월말)'!O76:O85) -> 0 | P9: =SUM('법정동(2014.12월말)'!P76:P85) -> 1,937.00 | Q9: =SUM('법정동(2014.12월말)'!Q76:Q85) -> 4 | R9: =SUM('법정동(2014.12월말)'!R76:R85) -> 1,663,155.90 | S9: =SUM('법정동(2014.12월말)'!S76:S85) -> 3,968 | T9: =SUM('법정동(2014.12월말)'!T76:T85) -> 404,475.20 | U9: =SUM('법정동(2014.12월말)'!U76:U85) -> 53 | V9: =SUM('법정동(2014.12월말)'!V76:V85) -> 82,349.00 | W9: =SUM('법정동(2014.12월말)'!W76:W85) -> 17 | X9: =SUM('법정동(2014.12월말)'!X76:X85) -> 52,811.00 | Y9: =SUM('법정동(2014.12월말)'!Y76:Y85) -> 31 | Z9: =SUM('법정동(2014.12월말)'!Z76:Z85) -> 22,941.00 | AA9: =SUM('법정동(2014.12월말)'!AA76:AA85) -> 21 | AB9: =SUM('법정동(2014.12월말)'!AB76:AB85) -> 30,319.00 | AC9: =SUM('법정동(2014.12월말)'!AC76:AC85) -> 40 | AD9: =SUM('법정동(2014.12월말)'!AD76:AD85) -> 1,898,804.10 | AE9: =SUM('법정동(2014.12월말)'!AE76:AE85) -> 5,558 | AF9: =SUM('법정동(2014.12월말)'!AF76:AF85) -> 166,078.00 | AG9: =SUM('법정동(2014.12월말)'!AG76:AG85) -> 125 | AH9: =SUM('법정동(2014.12월말)'!AH76:AH85) -> 34,135.00 | AI9: =SUM('법정동(2014.12월말)'!AI76:AI85) -> 32 | AJ9: =SUM('법정동(2014.12월말)'!AJ76:AJ85) -> 183,928.00 | AK9: =SUM('법정동(2014.12월말)'!AK76:AK85) -> 63 | AL9: =SUM('법정동(2014.12월말)'!AL76:AL85) -> 891,790.30 | AM9: =SUM('법정동(2014.12월말)'!AM76:AM85) -> 820 | AN9: =SUM('법정동(2014.12월말)'!AN76:AN85) -> 341,352.00 | AO9: =SUM('법정동(2014.12월말)'!AO76:AO85) -> 191 | AP9: =SUM('법정동(2014.12월말)'!AP76:AP85) -> 2,992.00 | AQ9: =SUM('법정동(2014.12월말)'!AQ76:AQ85) -> 2 | AR9: =SUM('법정동(2014.12월말)'!AR76:AR85) -> 90,843.00 | AS9: =SUM('법정동(2014.12월말)'!AS76:AS85) -> 103 | AT9: =SUM('법정동(2014.12월말)'!AT76:AT85) -> 188,670.30 | AU9: =SUM('법정동(2014.12월말)'!AU76:AU85) -> 19 | AV9: =SUM('법정동(2014.12월말)'!AV76:AV85) -> 0 | AW9: =SUM('법정동(2014.12월말)'!AW76:AW85) -> 0 | AX9: =SUM('법정동(2014.12월말)'!AX76:AX85) -> 0 | AY9: =SUM('법정동(2014.12월말)'!AY76:AY85) -> 0 | AZ9: =SUM('법정동(2014.12월말)'!AZ76:AZ85) -> 28,673.00 | BA9: =SUM('법정동(2014.12월말)'!BA76:BA85) -> 31 | BB9: =SUM('법정동(2014.12월말)'!BB76:BB85) -> 0 | BC9: =SUM('법정동(2014.12월말)'!BC76:BC85) -> 0 | BD9: =SUM('법정동(2014.12월말)'!BD76:BD85) -> 124,809.00 | BE9: =SUM('법정동(2014.12월말)'!BE76:BE85) -> 166 | BF9: =SUM('법정동(2014.12월말)'!BF76:BF85) -> 964,283.60 | BG9: =SUM('법정동(2014.12월말)'!BG76:BG85) -> 414
A10: 화양면 | B10: =SUM('법정동(2014.12월말)'!B86:B95) -> 70,118,018.1 | C10: =SUM('법정동(2014.12월말)'!C86:C95) -> 38,799 | D10: =SUM('법정동(2014.12월말)'!D86:D95) -> 10,692,189.20 | E10: =SUM('법정동(2014.12월말)'!E86:E95) -> 10,518 | F10: =SUM('법정동(2014.12월말)'!F86:F95) -> 6,029,264.70 | G10: =SUM('법정동(2014.12월말)'!G86:G95) -> 6,603 | H10: =SUM('법정동(2014.12월말)'!H86:H95) -> 130,112.00 | I10: =SUM('법정동(2014.12월말)'!I86:I95) -> 52 | J10: =SUM('법정동(2014.12월말)'!J86:J95) -> 215,431.00 | K10: =SUM('법정동(2014.12월말)'!K86:K95) -> 85 | L10: =SUM('법정동(2014.12월말)'!L86:L95) -> 47,334,041.80 | M10: =SUM('법정동(2014.12월말)'!M86:M95) -> 8,591 | N10: =SUM('법정동(2014.12월말)'!N86:N95) -> 0 | O10: =SUM('법정동(2014.12월말)'!O86:O95) -> 0 | P10: =SUM('법정동(2014.12월말)'!P86:P95) -> 0 | Q10: =SUM('법정동(2014.12월말)'!Q86:Q95) -> 0 | R10: =SUM('법정동(2014.12월말)'!R86:R95) -> 1,374,886.50 | S10: =SUM('법정동(2014.12월말)'!S86:S95) -> 4,104 | T10: =SUM('법정동(2014.12월말)'!T86:T95) -> 224,590.20 | U10: =SUM('법정동(2014.12월말)'!U86:U95) -> 78 | V10: =SUM('법정동(2014.12월말)'!V86:V95) -> 117,587.00 | W10: =SUM('법정동(2014.12월말)'!W86:W95) -> 38 | X10: =SUM('법정동(2014.12월말)'!X86:X95) -> 9,889.00 | Y10: =SUM('법정동(2014.12월말)'!Y86:Y95) -> 14 | Z10: =SUM('법정동(2014.12월말)'!Z86:Z95) -> 11,752.00 | AA10: =SUM('법정동(2014.12월말)'!AA86:AA95) -> 7 | AB10: =SUM('법정동(2014.12월말)'!AB86:AB95) -> 43,132.00 | AC10: =SUM('법정동(2014.12월말)'!AC86:AC95) -> 77 | AD10: =SUM('법정동(2014.12월말)'!AD86:AD95) -> 1,998,692.60 | AE10: =SUM('법정동(2014.12월말)'!AE86:AE95) -> 6,762 | AF10: =SUM('법정동(2014.12월말)'!AF86:AF95) -> 0 | AG10: =SUM('법정동(2014.12월말)'!AG86:AG95) -> 0 | AH10: =SUM('법정동(2014.12월말)'!AH86:AH95) -> 48,325.00 | AI10: =SUM('법정동(2014.12월말)'!AI86:AI95) -> 97 | AJ10: =SUM('법정동(2014.12월말)'!AJ86:AJ95) -> 99,868.10 | AK10: =SUM('법정동(2014.12월말)'!AK86:AK95) -> 67 | AL10: =SUM('법정동(2014.12월말)'!AL86:AL95) -> 769,704.50 | AM10: =SUM('법정동(2014.12월말)'!AM86:AM95) -> 842 | AN10: =SUM('법정동(2014.12월말)'!AN86:AN95) -> 564,672.80 | AO10: =SUM('법정동(2014.12월말)'!AO86:AO95) -> 271 | AP10: =SUM('법정동(2014.12월말)'!AP86:AP95) -> 36,620.00 | AQ10: =SUM('법정동(2014.12월말)'!AQ86:AQ95) -> 23 | AR10: =SUM('법정동(2014.12월말)'!AR86:AR95) -> 0 | AS10: =SUM('법정동(2014.12월말)'!AS86:AS95) -> 0 | AT10: =SUM('법정동(2014.12월말)'!AT86:AT95) -> 0 | AU10: =SUM('법정동(2014.12월말)'!AU86:AU95) -> 0 | AV10: =SUM('법정동(2014.12월말)'!AV86:AV95) -> 0 | AW10: =SUM('법정동(2014.12월말)'!AW86:AW95) -> 0 | AX10: =SUM('법정동(2014.12월말)'!AX86:AX95) -> 0 | AY10: =SUM('법정동(2014.12월말)'!AY86:AY95) -> 0 | AZ10: =SUM('법정동(2014.12월말)'!AZ86:AZ95) -> 23,395.00 | BA10: =SUM('법정동(2014.12월말)'!BA86:BA95) -> 40 | BB10: =SUM('법정동(2014.12월말)'!BB86:BB95) -> 6,161.00 | BC10: =SUM('법정동(2014.12월말)'!BC86:BC95) -> 3 | BD10: =SUM('법정동(2014.12월말)'!BD86:BD95) -> 136,049.00 | BE10: =SUM('법정동(2014.12월말)'!BE86:BE95) -> 161 | BF10: =SUM('법정동(2014.12월말)'!BF86:BF95) -> 251,654.70 | BG10: =SUM('법정동(2014.12월말)'!BG86:BG95) -> 366
A11: 남 면 | B11: =SUM('법정동(2014.12월말)'!B96:B104) -> 42,547,795.0 | C11: =SUM('법정동(2014.12월말)'!C96:C104) -> 21,364 | D11: =SUM('법정동(2014.12월말)'!D96:D104) -> 9,148,766.00 | E11: =SUM('법정동(2014.12월말)'!E96:E104) -> 8,385 | F11: =SUM('법정동(2014.12월말)'!F96:F104) -> 1,427,347.00 | G11: =SUM('법정동(2014.12월말)'!G96:G104) -> 3,205 | H11: =SUM('법정동(2014.12월말)'!H96:H104) -> 0 | I11: =SUM('법정동(2014.12월말)'!I96:I104) -> 0 | J11: =SUM('법정동(2014.12월말)'!J96:J104) -> 598.00 | K11: =SUM('법정동(2014.12월말)'!K96:K104) -> 1 | L11: =SUM('법정동(2014.12월말)'!L96:L104) -> 29,886,553.00 | M11: =SUM('법정동(2014.12월말)'!M96:M104) -> 4,311 | N11: =SUM('법정동(2014.12월말)'!N96:N104) -> 0 | O11: =SUM('법정동(2014.12월말)'!O96:O104) -> 0 | P11: =SUM('법정동(2014.12월말)'!P96:P104) -> 0 | Q11: =SUM('법정동(2014.12월말)'!Q96:Q104) -> 0 | R11: =SUM('법정동(2014.12월말)'!R96:R104) -> 648,773.00 | S11: =SUM('법정동(2014.12월말)'!S96:S104) -> 2,697 | T11: =SUM('법정동(2014.12월말)'!T96:T104) -> 2,032.00 | U11: =SUM('법정동(2014.12월말)'!U96:U104) -> 1 | V11: =SUM('법정동(2014.12월말)'!V96:V104) -> 97,434.00 | W11: =SUM('법정동(2014.12월말)'!W96:W104) -> 46 | X11: =SUM('법정동(2014.12월말)'!X96:X104) -> 54.00 | Y11: =SUM('법정동(2014.12월말)'!Y96:Y104) -> 1 | Z11: =SUM('법정동(2014.12월말)'!Z96:Z104) -> 0 | AA11: =SUM('법정동(2014.12월말)'!AA96:AA104) -> 0 | AB11: =SUM('법정동(2014.12월말)'!AB96:AB104) -> 1,440.00 | AC11: =SUM('법정동(2014.12월말)'!AC96:AC104) -> 5 | AD11: =SUM('법정동(2014.12월말)'!AD96:AD104) -> 778,690.00 | AE11: =SUM('법정동(2014.12월말)'!AE96:AE104) -> 1,917 | AF11: =SUM('법정동(2014.12월말)'!AF96:AF104) -> 0 | AG11: =SUM('법정동(2014.12월말)'!AG96:AG104) -> 0 | AH11: =SUM('법정동(2014.12월말)'!AH96:AH104) -> 33,581.00 | AI11: =SUM('법정동(2014.12월말)'!AI96:AI104) -> 104 | AJ11: =SUM('법정동(2014.12월말)'!AJ96:AJ104) -> 14,717.00 | AK11: =SUM('법정동(2014.12월말)'!AK96:AK104) -> 49 | AL11: =SUM('법정동(2014.12월말)'!AL96:AL104) -> 127,688.00 | AM11: =SUM('법정동(2014.12월말)'!AM96:AM104) -> 151 | AN11: =SUM('법정동(2014.12월말)'!AN96:AN104) -> 38,108.00 | AO11: =SUM('법정동(2014.12월말)'!AO96:AO104) -> 54 | AP11: =SUM('법정동(2014.12월말)'!AP96:AP104) -> 26,512.00 | AQ11: =SUM('법정동(2014.12월말)'!AQ96:AQ104) -> 21 | AR11: =SUM('법정동(2014.12월말)'!AR96:AR104) -> 2,410.00 | AS11: =SUM('법정동(2014.12월말)'!AS96:AS104) -> 5 | AT11: =SUM('법정동(2014.12월말)'!AT96:AT104) -> 0 | AU11: =SUM('법정동(2014.12월말)'!AU96:AU104) -> 0 | AV11: =SUM('법정동(2014.12월말)'!AV96:AV104) -> 0 | AW11: =SUM('법정동(2014.12월말)'!AW96:AW104) -> 0 | AX11: =SUM('법정동(2014.12월말)'!AX96:AX104) -> 0 | AY11: =SUM('법정동(2014.12월말)'!AY96:AY104) -> 0 | AZ11: =SUM('법정동(2014.12월말)'!AZ96:AZ104) -> 4,817.00 | BA11: =SUM('법정동(2014.12월말)'!BA96:BA104) -> 14 | BB11: =SUM('법정동(2014.12월말)'!BB96:BB104) -> 0 | BC11: =SUM('법정동(2014.12월말)'!BC96:BC104) -> 0 | BD11: =SUM('법정동(2014.12월말)'!BD96:BD104) -> 126,508.00 | BE11: =SUM('법정동(2014.12월말)'!BE96:BE104) -> 127 | BF11: =SUM('법정동(2014.12월말)'!BF96:BF104) -> 181,767.00 | BG11: =SUM('법정동(2014.12월말)'!BG96:BG104) -> 270
A12: 화정면 | B12: =SUM('법정동(2014.12월말)'!B105:B114) -> 26,353,658.0 | C12: =SUM('법정동(2014.12월말)'!C105:C114) -> 15,889 | D12: =SUM('법정동(2014.12월말)'!D105:D114) -> 6,725,027.00 | E12: =SUM('법정동(2014.12월말)'!E105:E114) -> 6,990 | F12: =SUM('법정동(2014.12월말)'!F105:F114) -> 912,403.00 | G12: =SUM('법정동(2014.12월말)'!G105:G114) -> 1,130 | H12: =SUM('법정동(2014.12월말)'!H105:H114) -> 1,895.00 | I12: =SUM('법정동(2014.12월말)'!I105:I114) -> 2 | J12: =SUM('법정동(2014.12월말)'!J105:J114) -> 2,927.00 | K12: =SUM('법정동(2014.12월말)'!K105:K114) -> 3 | L12: =SUM('법정동(2014.12월말)'!L105:L114) -> 17,084,076.00 | M12: =SUM('법정동(2014.12월말)'!M105:M114) -> 3,716 | N12: =SUM('법정동(2014.12월말)'!N105:N114) -> 0 | O12: =SUM('법정동(2014.12월말)'!O105:O114) -> 0 | P12: =SUM('법정동(2014.12월말)'!P105:P114) -> 8,625.00 | Q12: =SUM('법정동(2014.12월말)'!Q105:Q114) -> 2 | R12: =SUM('법정동(2014.12월말)'!R105:R114) -> 526,243.00 | S12: =SUM('법정동(2014.12월말)'!S105:S114) -> 2,030 | T12: =SUM('법정동(2014.12월말)'!T105:T114) -> 0 | U12: =SUM('법정동(2014.12월말)'!U105:U114) -> 0 | V12: =SUM('법정동(2014.12월말)'!V105:V114) -> 95,422.00 | W12: =SUM('법정동(2014.12월말)'!W105:W114) -> 44 | X12: =SUM('법정동(2014.12월말)'!X105:X114) -> 0 | Y12: =SUM('법정동(2014.12월말)'!Y105:Y114) -> 0 | Z12: =SUM('법정동(2014.12월말)'!Z105:Z114) -> 0 | AA12: =SUM('법정동(2014.12월말)'!AA105:AA114) -> 0 | AB12: =SUM('법정동(2014.12월말)'!AB105:AB114) -> 395.00 | AC12: =SUM('법정동(2014.12월말)'!AC105:AC114) -> 1 | AD12: =SUM('법정동(2014.12월말)'!AD105:AD114) -> 436,272.00 | AE12: =SUM('법정동(2014.12월말)'!AE105:AE114) -> 1,301 | AF12: =SUM('법정동(2014.12월말)'!AF105:AF114) -> 0 | AG12: =SUM('법정동(2014.12월말)'!AG105:AG114) -> 0 | AH12: =SUM('법정동(2014.12월말)'!AH105:AH114) -> 48,143.00 | AI12: =SUM('법정동(2014.12월말)'!AI105:AI114) -> 94 | AJ12: =SUM('법정동(2014.12월말)'!AJ105:AJ114) -> 15,965.00 | AK12: =SUM('법정동(2014.12월말)'!AK105:AK114) -> 16 | AL12: =SUM('법정동(2014.12월말)'!AL105:AL114) -> 134,098.00 | AM12: =SUM('법정동(2014.12월말)'!AM105:AM114) -> 103 | AN12: =SUM('법정동(2014.12월말)'!AN105:AN114) -> 74,637.00 | AO12: =SUM('법정동(2014.12월말)'!AO105:AO114) -> 26 | AP12: =SUM('법정동(2014.12월말)'!AP105:AP114) -> 31,907.00 | AQ12: =SUM('법정동(2014.12월말)'!AQ105:AQ114) -> 24 | AR12: =SUM('법정동(2014.12월말)'!AR105:AR114) -> 0 | AS12: =SUM('법정동(2014.12월말)'!AS105:AS114) -> 0 | AT12: =SUM('법정동(2014.12월말)'!AT105:AT114) -> 0 | AU12: =SUM('법정동(2014.12월말)'!AU105:AU114) -> 0 | AV12: =SUM('법정동(2014.12월말)'!AV105:AV114) -> 0 | AW12: =SUM('법정동(2014.12월말)'!AW105:AW114) -> 0 | AX12: =SUM('법정동(2014.12월말)'!AX105:AX114) -> 0 | AY12: =SUM('법정동(2014.12월말)'!AY105:AY114) -> 0 | AZ12: =SUM('법정동(2014.12월말)'!AZ105:AZ114) -> 7,371.00 | BA12: =SUM('법정동(2014.12월말)'!BA105:BA114) -> 13 | BB12: =SUM('법정동(2014.12월말)'!BB105:BB114) -> 0 | BC12: =SUM('법정동(2014.12월말)'!BC105:BC114) -> 0 | BD12: =SUM('법정동(2014.12월말)'!BD105:BD114) -> 109,068.00 | BE12: =SUM('법정동(2014.12월말)'!BE105:BE114) -> 212 | BF12: =SUM('법정동(2014.12월말)'!BF105:BF114) -> 139,184.00 | BG12: =SUM('법정동(2014.12월말)'!BG105:BG114) -> 182
A13: 삼산면 | B13: =SUM('법정동(2014.12월말)'!B115:B120) -> 27,545,113.0 | C13: =SUM('법정동(2014.12월말)'!C115:C120) -> 14,008 | D13: =SUM('법정동(2014.12월말)'!D115:D120) -> 4,803,235.00 | E13: =SUM('법정동(2014.12월말)'!E115:E120) -> 5,699 | F13: =SUM('법정동(2014.12월말)'!F115:F120) -> 285,508.00 | G13: =SUM('법정동(2014.12월말)'!G115:G120) -> 678 | H13: =SUM('법정동(2014.12월말)'!H115:H120) -> 981.00 | I13: =SUM('법정동(2014.12월말)'!I115:I120) -> 1 | J13: =SUM('법정동(2014.12월말)'!J115:J120) -> 81,491.00 | K13: =SUM('법정동(2014.12월말)'!K115:K120) -> 6 | L13: =SUM('법정동(2014.12월말)'!L115:L120) -> 20,736,290.00 | M13: =SUM('법정동(2014.12월말)'!M115:M120) -> 4,233 | N13: =SUM('법정동(2014.12월말)'!N115:N120) -> 0 | O13: =SUM('법정동(2014.12월말)'!O115:O120) -> 0 | P13: =SUM('법정동(2014.12월말)'!P115:P120) -> 0 | Q13: =SUM('법정동(2014.12월말)'!Q115:Q120) -> 0 | R13: =SUM('법정동(2014.12월말)'!R115:R120) -> 481,407.00 | S13: =SUM('법정동(2014.12월말)'!S115:S120) -> 2,161 | T13: =SUM('법정동(2014.12월말)'!T115:T120) -> 0 | U13: =SUM('법정동(2014.12월말)'!U115:U120) -> 0 | V13: =SUM('법정동(2014.12월말)'!V115:V120) -> 71,912.00 | W13: =SUM('법정동(2014.12월말)'!W115:W120) -> 25 | X13: =SUM('법정동(2014.12월말)'!X115:X120) -> 0 | Y13: =SUM('법정동(2014.12월말)'!Y115:Y120) -> 0 | Z13: =SUM('법정동(2014.12월말)'!Z115:Z120) -> 0 | AA13: =SUM('법정동(2014.12월말)'!AA115:AA120) -> 0 | AB13: =SUM('법정동(2014.12월말)'!AB115:AB120) -> 768.00 | AC13: =SUM('법정동(2014.12월말)'!AC115:AC120) -> 2 | AD13: =SUM('법정동(2014.12월말)'!AD115:AD120) -> 391,785.00 | AE13: =SUM('법정동(2014.12월말)'!AE115:AE120) -> 665 | AF13: =SUM('법정동(2014.12월말)'!AF115:AF120) -> 0 | AG13: =SUM('법정동(2014.12월말)'!AG115:AG120) -> 0 | AH13: =SUM('법정동(2014.12월말)'!AH115:AH120) -> 28,885.00 | AI13: =SUM('법정동(2014.12월말)'!AI115:AI120) -> 42 | AJ13: =SUM('법정동(2014.12월말)'!AJ115:AJ120) -> 1,424.00 | AK13: =SUM('법정동(2014.12월말)'!AK115:AK120) -> 8 | AL13: =SUM('법정동(2014.12월말)'!AL115:AL120) -> 48,446.00 | AM13: =SUM('법정동(2014.12월말)'!AM115:AM120) -> 35 | AN13: =SUM('법정동(2014.12월말)'!AN115:AN120) -> 4,297.00 | AO13: =SUM('법정동(2014.12월말)'!AO115:AO120) -> 5 | AP13: =SUM('법정동(2014.12월말)'!AP115:AP120) -> 10,718.00 | AQ13: =SUM('법정동(2014.12월말)'!AQ115:AQ120) -> 11 | AR13: =SUM('법정동(2014.12월말)'!AR115:AR120) -> 0 | AS13: =SUM('법정동(2014.12월말)'!AS115:AS120) -> 0 | AT13: =SUM('법정동(2014.12월말)'!AT115:AT120) -> 0 | AU13: =SUM('법정동(2014.12월말)'!AU115:AU120) -> 0 | AV13: =SUM('법정동(2014.12월말)'!AV115:AV120) -> 0 | AW13: =SUM('법정동(2014.12월말)'!AW115:AW120) -> 0 | AX13: =SUM('법정동(2014.12월말)'!AX115:AX120) -> 0 | AY13: =SUM('법정동(2014.12월말)'!AY115:AY120) -> 0 | AZ13: =SUM('법정동(2014.12월말)'!AZ115:AZ120) -> 1,963.00 | BA13: =SUM('법정동(2014.12월말)'!BA115:BA120) -> 9 | BB13: =SUM('법정동(2014.12월말)'!BB115:BB120) -> 0 | BC13: =SUM('법정동(2014.12월말)'!BC115:BC120) -> 0 | BD13: =SUM('법정동(2014.12월말)'!BD115:BD120) -> 422,000.00 | BE13: =SUM('법정동(2014.12월말)'!BE115:BE120) -> 260 | BF13: =SUM('법정동(2014.12월말)'!BF115:BF120) -> 174,003.00 | BG13: =SUM('법정동(2014.12월말)'!BG115:BG120) -> 168
A14: 동문동 | B14: =SUM('법정동(2014.12월말)'!B7,'법정동(2014.12월말)'!B10,'법정동(2014.12월말)'!B12) -> 930,828.0 | C14: =SUM('법정동(2014.12월말)'!C7,'법정동(2014.12월말)'!C10,'법정동(2014.12월말)'!C12) -> 4,440 | D14: =SUM('법정동(2014.12월말)'!D7,'법정동(2014.12월말)'!D10,'법정동(2014.12월말)'!D12) -> 103,774.00 | E14: =SUM('법정동(2014.12월말)'!E7,'법정동(2014.12월말)'!E10,'법정동(2014.12월말)'!E12) -> 332 | F14: =SUM('법정동(2014.12월말)'!F7,'법정동(2014.12월말)'!F10,'법정동(2014.12월말)'!F12) -> 4,253.00 | G14: =SUM('법정동(2014.12월말)'!G7,'법정동(2014.12월말)'!G10,'법정동(2014.12월말)'!G12) -> 23 | H14: =SUM('법정동(2014.12월말)'!H7,'법정동(2014.12월말)'!H10,'법정동(2014.12월말)'!H12) -> 0 | I14: =SUM('법정동(2014.12월말)'!I7,'법정동(2014.12월말)'!I10,'법정동(2014.12월말)'!I12) -> 0 | J14: =SUM('법정동(2014.12월말)'!J7,'법정동(2014.12월말)'!J10,'법정동(2014.12월말)'!J12) -> 0 | K14: =SUM('법정동(2014.12월말)'!K7,'법정동(2014.12월말)'!K10,'법정동(2014.12월말)'!K12) -> 0 | L14: =SUM('법정동(2014.12월말)'!L7,'법정동(2014.12월말)'!L10,'법정동(2014.12월말)'!L12) -> 153,430.00 | M14: =SUM('법정동(2014.12월말)'!M7,'법정동(2014.12월말)'!M10,'법정동(2014.12월말)'!M12) -> 102 | N14: =SUM('법정동(2014.12월말)'!N7,'법정동(2014.12월말)'!N10,'법정동(2014.12월말)'!N12) -> 0 | O14: =SUM('법정동(2014.12월말)'!O7,'법정동(2014.12월말)'!O10,'법정동(2014.12월말)'!O12) -> 0 | P14: =SUM('법정동(2014.12월말)'!P7,'법정동(2014.12월말)'!P10,'법정동(2014.12월말)'!P12) -> 0 | Q14: =SUM('법정동(2014.12월말)'!Q7,'법정동(2014.12월말)'!Q10,'법정동(2014.12월말)'!Q12) -> 0 | R14: =SUM('법정동(2014.12월말)'!R7,'법정동(2014.12월말)'!R10,'법정동(2014.12월말)'!R12) -> 340,158.00 | S14: =SUM('법정동(2014.12월말)'!S7,'법정동(2014.12월말)'!S10,'법정동(2014.12월말)'!S12) -> 3,168 | T14: =SUM('법정동(2014.12월말)'!T7,'법정동(2014.12월말)'!T10,'법정동(2014.12월말)'!T12) -> 0 | U14: =SUM('법정동(2014.12월말)'!U7,'법정동(2014.12월말)'!U10,'법정동(2014.12월말)'!U12) -> 0 | V14: =SUM('법정동(2014.12월말)'!V7,'법정동(2014.12월말)'!V10,'법정동(2014.12월말)'!V12) -> 76,108.00 | W14: =SUM('법정동(2014.12월말)'!W7,'법정동(2014.12월말)'!W10,'법정동(2014.12월말)'!W12) -> 8 | X14: =SUM('법정동(2014.12월말)'!X7,'법정동(2014.12월말)'!X10,'법정동(2014.12월말)'!X12) -> 1,625.00 | Y14: =SUM('법정동(2014.12월말)'!Y7,'법정동(2014.12월말)'!Y10,'법정동(2014.12월말)'!Y12) -> 11 | Z14: =SUM('법정동(2014.12월말)'!Z7,'법정동(2014.12월말)'!Z10,'법정동(2014.12월말)'!Z12) -> 0 | AA14: =SUM('법정동(2014.12월말)'!AA7,'법정동(2014.12월말)'!AA10,'법정동(2014.12월말)'!AA12) -> 0 | AB14: =SUM('법정동(2014.12월말)'!AB7,'법정동(2014.12월말)'!AB10,'법정동(2014.12월말)'!AB12) -> 0 | AC14: =SUM('법정동(2014.12월말)'!AC7,'법정동(2014.12월말)'!AC10,'법정동(2014.12월말)'!AC12) -> 0 | AD14: =SUM('법정동(2014.12월말)'!AD7,'법정동(2014.12월말)'!AD10,'법정동(2014.12월말)'!AD12) -> 133,740.00 | AE14: =SUM('법정동(2014.12월말)'!AE7,'법정동(2014.12월말)'!AE10,'법정동(2014.12월말)'!AE12) -> 709 | AF14: =SUM('법정동(2014.12월말)'!AF7,'법정동(2014.12월말)'!AF10,'법정동(2014.12월말)'!AF12) -> 0 | AG14: =SUM('법정동(2014.12월말)'!AG7,'법정동(2014.12월말)'!AG10,'법정동(2014.12월말)'!AG12) -> 0 | AH14: =SUM('법정동(2014.12월말)'!AH7,'법정동(2014.12월말)'!AH10,'법정동(2014.12월말)'!AH12) -> 2,134.00 | AI14: =SUM('법정동(2014.12월말)'!AI7,'법정동(2014.12월말)'!AI10,'법정동(2014.12월말)'!AI12) -> 5 | AJ14: =SUM('법정동(2014.12월말)'!AJ7,'법정동(2014.12월말)'!AJ10,'법정동(2014.12월말)'!AJ12) -> 0 | AK14: =SUM('법정동(2014.12월말)'!AK7,'법정동(2014.12월말)'!AK10,'법정동(2014.12월말)'!AK12) -> 0 | AL14: =SUM('법정동(2014.12월말)'!AL7,'법정동(2014.12월말)'!AL10,'법정동(2014.12월말)'!AL12) -> 5,328.00 | AM14: =SUM('법정동(2014.12월말)'!AM7,'법정동(2014.12월말)'!AM10,'법정동(2014.12월말)'!AM12) -> 21 | AN14: =SUM('법정동(2014.12월말)'!AN7,'법정동(2014.12월말)'!AN10,'법정동(2014.12월말)'!AN12) -> 0 | AO14: =SUM('법정동(2014.12월말)'!AO7,'법정동(2014.12월말)'!AO10,'법정동(2014.12월말)'!AO12) -> 0 | AP14: =SUM('법정동(2014.12월말)'!AP7,'법정동(2014.12월말)'!AP10,'법정동(2014.12월말)'!AP12) -> 0 | AQ14: =SUM('법정동(2014.12월말)'!AQ7,'법정동(2014.12월말)'!AQ10,'법정동(2014.12월말)'!AQ12) -> 0 | AR14: =SUM('법정동(2014.12월말)'!AR7,'법정동(2014.12월말)'!AR10,'법정동(2014.12월말)'!AR12) -> 5,945.00 | AS14: =SUM('법정동(2014.12월말)'!AS7,'법정동(2014.12월말)'!AS10,'법정동(2014.12월말)'!AS12) -> 6 | AT14: =SUM('법정동(2014.12월말)'!AT7,'법정동(2014.12월말)'!AT10,'법정동(2014.12월말)'!AT12) -> 84,607.00 | AU14: =SUM('법정동(2014.12월말)'!AU7,'법정동(2014.12월말)'!AU10,'법정동(2014.12월말)'!AU12) -> 15 | AV14: =SUM('법정동(2014.12월말)'!AV7,'법정동(2014.12월말)'!AV10,'법정동(2014.12월말)'!AV12) -> 0 | AW14: =SUM('법정동(2014.12월말)'!AW7,'법정동(2014.12월말)'!AW10,'법정동(2014.12월말)'!AW12) -> 0 | AX14: =SUM('법정동(2014.12월말)'!AX7,'법정동(2014.12월말)'!AX10,'법정동(2014.12월말)'!AX12) -> 0 | AY14: =SUM('법정동(2014.12월말)'!AY7,'법정동(2014.12월말)'!AY10,'법정동(2014.12월말)'!AY12) -> 0 | AZ14: =SUM('법정동(2014.12월말)'!AZ7,'법정동(2014.12월말)'!AZ10,'법정동(2014.12월말)'!AZ12) -> 3,042.00 | BA14: =SUM('법정동(2014.12월말)'!BA7,'법정동(2014.12월말)'!BA10,'법정동(2014.12월말)'!BA12) -> 10 | BB14: =SUM('법정동(2014.12월말)'!BB7,'법정동(2014.12월말)'!BB10,'법정동(2014.12월말)'!BB12) -> 0 | BC14: =SUM('법정동(2014.12월말)'!BC7,'법정동(2014.12월말)'!BC10,'법정동(2014.12월말)'!BC12) -> 0 | BD14: =SUM('법정동(2014.12월말)'!BD7,'법정동(2014.12월말)'!BD10,'법정동(2014.12월말)'!BD12) -> 3,587.00 | BE14: =SUM('법정동(2014.12월말)'!BE7,'법정동(2014.12월말)'!BE10,'법정동(2014.12월말)'!BE12) -> 12 | BF14: =SUM('법정동(2014.12월말)'!BF7,'법정동(2014.12월말)'!BF10,'법정동(2014.12월말)'!BF12) -> 13,097.00 | BG14: =SUM('법정동(2014.12월말)'!BG7,'법정동(2014.12월말)'!BG10,'법정동(2014.12월말)'!BG12) -> 18
A15: 한려동 | B15: =SUM('법정동(2014.12월말)'!B8:B9) -> 949,848.7 | C15: =SUM('법정동(2014.12월말)'!C8:C9) -> 3,040 | D15: =SUM('법정동(2014.12월말)'!D8:D9) -> 40,557.00 | E15: =SUM('법정동(2014.12월말)'!E8:E9) -> 235 | F15: =SUM('법정동(2014.12월말)'!F8:F9) -> 0 | G15: =SUM('법정동(2014.12월말)'!G8:G9) -> 0 | H15: =SUM('법정동(2014.12월말)'!H8:H9) -> 0 | I15: =SUM('법정동(2014.12월말)'!I8:I9) -> 0 | J15: =SUM('법정동(2014.12월말)'!J8:J9) -> 0 | K15: =SUM('법정동(2014.12월말)'!K8:K9) -> 0 | L15: =SUM('법정동(2014.12월말)'!L8:L9) -> 131,879.00 | M15: =SUM('법정동(2014.12월말)'!M8:M9) -> 51 | N15: =SUM('법정동(2014.12월말)'!N8:N9) -> 0 | O15: =SUM('법정동(2014.12월말)'!O8:O9) -> 0 | P15: =SUM('법정동(2014.12월말)'!P8:P9) -> 0 | Q15: =SUM('법정동(2014.12월말)'!Q8:Q9) -> 0 | R15: =SUM('법정동(2014.12월말)'!R8:R9) -> 317,685.80 | S15: =SUM('법정동(2014.12월말)'!S8:S9) -> 2,117 | T15: =SUM('법정동(2014.12월말)'!T8:T9) -> 0 | U15: =SUM('법정동(2014.12월말)'!U8:U9) -> 0 | V15: =SUM('법정동(2014.12월말)'!V8:V9) -> 89,038.00 | W15: =SUM('법정동(2014.12월말)'!W8:W9) -> 7 | X15: =SUM('법정동(2014.12월말)'!X8:X9) -> 14,670.80 | Y15: =SUM('법정동(2014.12월말)'!Y8:Y9) -> 12 | Z15: =SUM('법정동(2014.12월말)'!Z8:Z9) -> 1,141.00 | AA15: =SUM('법정동(2014.12월말)'!AA8:AA9) -> 4 | AB15: =SUM('법정동(2014.12월말)'!AB8:AB9) -> 0 | AC15: =SUM('법정동(2014.12월말)'!AC8:AC9) -> 0 | AD15: =SUM('법정동(2014.12월말)'!AD8:AD9) -> 220,295.30 | AE15: =SUM('법정동(2014.12월말)'!AE8:AE9) -> 513 | AF15: =SUM('법정동(2014.12월말)'!AF8:AF9) -> 3,858.00 | AG15: =SUM('법정동(2014.12월말)'!AG8:AG9) -> 28 | AH15: =SUM('법정동(2014.12월말)'!AH8:AH9) -> 11,759.00 | AI15: =SUM('법정동(2014.12월말)'!AI8:AI9) -> 4 | AJ15: =SUM('법정동(2014.12월말)'!AJ8:AJ9) -> 0 | AK15: =SUM('법정동(2014.12월말)'!AK8:AK9) -> 0 | AL15: =SUM('법정동(2014.12월말)'!AL8:AL9) -> 3,500.00 | AM15: =SUM('법정동(2014.12월말)'!AM8:AM9) -> 23 | AN15: =SUM('법정동(2014.12월말)'!AN8:AN9) -> 0 | AO15: =SUM('법정동(2014.12월말)'!AO8:AO9) -> 0 | AP15: =SUM('법정동(2014.12월말)'!AP8:AP9) -> 0 | AQ15: =SUM('법정동(2014.12월말)'!AQ8:AQ9) -> 0 | AR15: =SUM('법정동(2014.12월말)'!AR8:AR9) -> 0 | AS15: =SUM('법정동(2014.12월말)'!AS8:AS9) -> 0 | AT15: =SUM('법정동(2014.12월말)'!AT8:AT9) -> 73,715.60 | AU15: =SUM('법정동(2014.12월말)'!AU8:AU9) -> 8 | AV15: =SUM('법정동(2014.12월말)'!AV8:AV9) -> 0 | AW15: =SUM('법정동(2014.12월말)'!AW8:AW9) -> 0 | AX15: =SUM('법정동(2014.12월말)'!AX8:AX9) -> 0 | AY15: =SUM('법정동(2014.12월말)'!AY8:AY9) -> 0 | AZ15: =SUM('법정동(2014.12월말)'!AZ8:AZ9) -> 6,337.00 | BA15: =SUM('법정동(2014.12월말)'!BA8:BA9) -> 9 | BB15: =SUM('법정동(2014.12월말)'!BB8:BB9) -> 0 | BC15: =SUM('법정동(2014.12월말)'!BC8:BC9) -> 0 | BD15: =SUM('법정동(2014.12월말)'!BD8:BD9) -> 1,128.00 | BE15: =SUM('법정동(2014.12월말)'!BE8:BE9) -> 5 | BF15: =SUM('법정동(2014.12월말)'!BF8:BF9) -> 34,284.20 | BG15: =SUM('법정동(2014.12월말)'!BG8:BG9) -> 24
A16: 중앙동 | B16: =SUM('법정동(2014.12월말)'!B11,'법정동(2014.12월말)'!B13:B14) -> 501,889.2 | C16: =SUM('법정동(2014.12월말)'!C11,'법정동(2014.12월말)'!C13:C14) -> 3,295 | D16: =SUM('법정동(2014.12월말)'!D11,'법정동(2014.12월말)'!D13:D14) -> 16,288.00 | E16: =SUM('법정동(2014.12월말)'!E11,'법정동(2014.12월말)'!E13:E14) -> 103 | F16: =SUM('법정동(2014.12월말)'!F11,'법정동(2014.12월말)'!F13:F14) -> 0 | G16: =SUM('법정동(2014.12월말)'!G11,'법정동(2014.12월말)'!G13:G14) -> 0 | H16: =SUM('법정동(2014.12월말)'!H11,'법정동(2014.12월말)'!H13:H14) -> 0 | I16: =SUM('법정동(2014.12월말)'!I11,'법정동(2014.12월말)'!I13:I14) -> 0 | J16: =SUM('법정동(2014.12월말)'!J11,'법정동(2014.12월말)'!J13:J14) -> 0 | K16: =SUM('법정동(2014.12월말)'!K11,'법정동(2014.12월말)'!K13:K14) -> 0 | L16: =SUM('법정동(2014.12월말)'!L11,'법정동(2014.12월말)'!L13:L14) -> 21,202.00 | M16: =SUM('법정동(2014.12월말)'!M11,'법정동(2014.12월말)'!M13:M14) -> 24 | N16: =SUM('법정동(2014.12월말)'!N11,'법정동(2014.12월말)'!N13:N14) -> 0 | O16: =SUM('법정동(2014.12월말)'!O11,'법정동(2014.12월말)'!O13:O14) -> 0 | P16: =SUM('법정동(2014.12월말)'!P11,'법정동(2014.12월말)'!P13:P14) -> 0 | Q16: =SUM('법정동(2014.12월말)'!Q11,'법정동(2014.12월말)'!Q13:Q14) -> 0 | R16: =SUM('법정동(2014.12월말)'!R11,'법정동(2014.12월말)'!R13:R14) -> 280,056.00 | S16: =SUM('법정동(2014.12월말)'!S11,'법정동(2014.12월말)'!S13:S14) -> 2,561 | T16: =SUM('법정동(2014.12월말)'!T11,'법정동(2014.12월말)'!T13:T14) -> 0 | U16: =SUM('법정동(2014.12월말)'!U11,'법정동(2014.12월말)'!U13:U14) -> 0 | V16: =SUM('법정동(2014.12월말)'!V11,'법정동(2014.12월말)'!V13:V14) -> 0 | W16: =SUM('법정동(2014.12월말)'!W11,'법정동(2014.12월말)'!W13:W14) -> 0 | X16: =SUM('법정동(2014.12월말)'!X11,'법정동(2014.12월말)'!X13:X14) -> 6,241.20 | Y16: =SUM('법정동(2014.12월말)'!Y11,'법정동(2014.12월말)'!Y13:Y14) -> 7 | Z16: =SUM('법정동(2014.12월말)'!Z11,'법정동(2014.12월말)'!Z13:Z14) -> 0 | AA16: =SUM('법정동(2014.12월말)'!AA11,'법정동(2014.12월말)'!AA13:AA14) -> 0 | AB16: =SUM('법정동(2014.12월말)'!AB11,'법정동(2014.12월말)'!AB13:AB14) -> 0 | AC16: =SUM('법정동(2014.12월말)'!AC11,'법정동(2014.12월말)'!AC13:AC14) -> 0 | AD16: =SUM('법정동(2014.12월말)'!AD11,'법정동(2014.12월말)'!AD13:AD14) -> 135,228.00 | AE16: =SUM('법정동(2014.12월말)'!AE11,'법정동(2014.12월말)'!AE13:AE14) -> 564 | AF16: =SUM('법정동(2014.12월말)'!AF11,'법정동(2014.12월말)'!AF13:AF14) -> 0 | AG16: =SUM('법정동(2014.12월말)'!AG11,'법정동(2014.12월말)'!AG13:AG14) -> 0 | AH16: =SUM('법정동(2014.12월말)'!AH11,'법정동(2014.12월말)'!AH13:AH14) -> 800.00 | AI16: =SUM('법정동(2014.12월말)'!AI11,'법정동(2014.12월말)'!AI13:AI14) -> 2 | AJ16: =SUM('법정동(2014.12월말)'!AJ11,'법정동(2014.12월말)'!AJ13:AJ14) -> 9,005.00 | AK16: =SUM('법정동(2014.12월말)'!AK11,'법정동(2014.12월말)'!AK13:AK14) -> 1 | AL16: =SUM('법정동(2014.12월말)'!AL11,'법정동(2014.12월말)'!AL13:AL14) -> 445.00 | AM16: =SUM('법정동(2014.12월말)'!AM11,'법정동(2014.12월말)'!AM13:AM14) -> 5 | AN16: =SUM('법정동(2014.12월말)'!AN11,'법정동(2014.12월말)'!AN13:AN14) -> 0 | AO16: =SUM('법정동(2014.12월말)'!AO11,'법정동(2014.12월말)'!AO13:AO14) -> 0 | AP16: =SUM('법정동(2014.12월말)'!AP11,'법정동(2014.12월말)'!AP13:AP14) -> 0 | AQ16: =SUM('법정동(2014.12월말)'!AQ11,'법정동(2014.12월말)'!AQ13:AQ14) -> 0 | AR16: =SUM('법정동(2014.12월말)'!AR11,'법정동(2014.12월말)'!AR13:AR14) -> 671.00 | AS16: =SUM('법정동(2014.12월말)'!AS11,'법정동(2014.12월말)'!AS13:AS14) -> 1 | AT16: =SUM('법정동(2014.12월말)'!AT11,'법정동(2014.12월말)'!AT13:AT14) -> 9,732.00 | AU16: =SUM('법정동(2014.12월말)'!AU11,'법정동(2014.12월말)'!AU13:AU14) -> 1 | AV16: =SUM('법정동(2014.12월말)'!AV11,'법정동(2014.12월말)'!AV13:AV14) -> 0 | AW16: =SUM('법정동(2014.12월말)'!AW11,'법정동(2014.12월말)'!AW13:AW14) -> 0 | AX16: =SUM('법정동(2014.12월말)'!AX11,'법정동(2014.12월말)'!AX13:AX14) -> 0 | AY16: =SUM('법정동(2014.12월말)'!AY11,'법정동(2014.12월말)'!AY13:AY14) -> 0 | AZ16: =SUM('법정동(2014.12월말)'!AZ11,'법정동(2014.12월말)'!AZ13:AZ14) -> 3,526.00 | BA16: =SUM('법정동(2014.12월말)'!BA11,'법정동(2014.12월말)'!BA13:BA14) -> 4 | BB16: =SUM('법정동(2014.12월말)'!BB11,'법정동(2014.12월말)'!BB13:BB14) -> 1,583.00 | BC16: =SUM('법정동(2014.12월말)'!BC11,'법정동(2014.12월말)'!BC13:BC14) -> 1 | BD16: =SUM('법정동(2014.12월말)'!BD11,'법정동(2014.12월말)'!BD13:BD14) -> 78.00 | BE16: =SUM('법정동(2014.12월말)'!BE11,'법정동(2014.12월말)'!BE13:BE14) -> 3 | BF16: =SUM('법정동(2014.12월말)'!BF11,'법정동(2014.12월말)'!BF13:BF14) -> 17,034.00 | BG16: =SUM('법정동(2014.12월말)'!BG11,'법정동(2014.12월말)'!BG13:BG14) -> 18
A17: 충무동 | B17: =SUM('법정동(2014.12월말)'!B15:B17) -> 1,347,660.5 | C17: =SUM('법정동(2014.12월말)'!C15:C17) -> 3,795 | D17: =SUM('법정동(2014.12월말)'!D15:D17) -> 231,152.00 | E17: =SUM('법정동(2014.12월말)'!E15:E17) -> 515 | F17: =SUM('법정동(2014.12월말)'!F15:F17) -> 45,899.00 | G17: =SUM('법정동(2014.12월말)'!G15:G17) -> 82 | H17: =SUM('법정동(2014.12월말)'!H15:H17) -> 0 | I17: =SUM('법정동(2014.12월말)'!I15:I17) -> 0 | J17: =SUM('법정동(2014.12월말)'!J15:J17) -> 0 | K17: =SUM('법정동(2014.12월말)'!K15:K17) -> 0 | L17: =SUM('법정동(2014.12월말)'!L15:L17) -> 447,669.80 | M17: =SUM('법정동(2014.12월말)'!M15:M17) -> 157 | N17: =SUM('법정동(2014.12월말)'!N15:N17) -> 0 | O17: =SUM('법정동(2014.12월말)'!O15:O17) -> 0 | P17: =SUM('법정동(2014.12월말)'!P15:P17) -> 0 | Q17: =SUM('법정동(2014.12월말)'!Q15:Q17) -> 0 | R17: =SUM('법정동(2014.12월말)'!R15:R17) -> 308,311.10 | S17: =SUM('법정동(2014.12월말)'!S15:S17) -> 2,464 | T17: =SUM('법정동(2014.12월말)'!T15:T17) -> 696.70 | U17: =SUM('법정동(2014.12월말)'!U15:U17) -> 1 | V17: =SUM('법정동(2014.12월말)'!V15:V17) -> 21,502.00 | W17: =SUM('법정동(2014.12월말)'!W15:W17) -> 3 | X17: =SUM('법정동(2014.12월말)'!X15:X17) -> 2,838.00 | Y17: =SUM('법정동(2014.12월말)'!Y15:Y17) -> 12 | Z17: =SUM('법정동(2014.12월말)'!Z15:Z17) -> 1,946.10 | AA17: =SUM('법정동(2014.12월말)'!AA15:AA17) -> 7 | AB17: =SUM('법정동(2014.12월말)'!AB15:AB17) -> 2,638.40 | AC17: =SUM('법정동(2014.12월말)'!AC15:AC17) -> 3 | AD17: =SUM('법정동(2014.12월말)'!AD15:AD17) -> 202,170.00 | AE17: =SUM('법정동(2014.12월말)'!AE15:AE17) -> 448 | AF17: =SUM('법정동(2014.12월말)'!AF15:AF17) -> 0 | AG17: =SUM('법정동(2014.12월말)'!AG15:AG17) -> 0 | AH17: =SUM('법정동(2014.12월말)'!AH15:AH17) -> 0 | AI17: =SUM('법정동(2014.12월말)'!AI15:AI17) -> 0 | AJ17: =SUM('법정동(2014.12월말)'!AJ15:AJ17) -> 18,230.00 | AK17: =SUM('법정동(2014.12월말)'!AK15:AK17) -> 23 | AL17: =SUM('법정동(2014.12월말)'!AL15:AL17) -> 34,073.40 | AM17: =SUM('법정동(2014.12월말)'!AM15:AM17) -> 26 | AN17: =SUM('법정동(2014.12월말)'!AN15:AN17) -> 0 | AO17: =SUM('법정동(2014.12월말)'!AO15:AO17) -> 0 | AP17: =SUM('법정동(2014.12월말)'!AP15:AP17) -> 0 | AQ17: =SUM('법정동(2014.12월말)'!AQ15:AQ17) -> 0 | AR17: =SUM('법정동(2014.12월말)'!AR15:AR17) -> 2,189.10 | AS17: =SUM('법정동(2014.12월말)'!AS15:AS17) -> 4 | AT17: =SUM('법정동(2014.12월말)'!AT15:AT17) -> 991.90 | AU17: =SUM('법정동(2014.12월말)'!AU15:AU17) -> 1 | AV17: =SUM('법정동(2014.12월말)'!AV15:AV17) -> 0 | AW17: =SUM('법정동(2014.12월말)'!AW15:AW17) -> 0 | AX17: =SUM('법정동(2014.12월말)'!AX15:AX17) -> 0 | AY17: =SUM('법정동(2014.12월말)'!AY15:AY17) -> 0 | AZ17: =SUM('법정동(2014.12월말)'!AZ15:AZ17) -> 9,435.00 | BA17: =SUM('법정동(2014.12월말)'!BA15:BA17) -> 17 | BB17: =SUM('법정동(2014.12월말)'!BB15:BB17) -> 5,718.00 | BC17: =SUM('법정동(2014.12월말)'!BC15:BC17) -> 5 | BD17: =SUM('법정동(2014.12월말)'!BD15:BD17) -> 5,021.00 | BE17: =SUM('법정동(2014.12월말)'!BE15:BE17) -> 9 | BF17: =SUM('법정동(2014.12월말)'!BF15:BF17) -> 7,179.00 | BG17: =SUM('법정동(2014.12월말)'!BG15:BG17) -> 18
A18: 광림동 | B18: =SUM('법정동(2014.12월말)'!B18,'법정동(2014.12월말)'!B27) -> 3,395,957.1 | C18: =SUM('법정동(2014.12월말)'!C18,'법정동(2014.12월말)'!C27) -> 4,580 | D18: =SUM('법정동(2014.12월말)'!D18,'법정동(2014.12월말)'!D27) -> 373,194.00 | E18: =SUM('법정동(2014.12월말)'!E18,'법정동(2014.12월말)'!E27) -> 700 | F18: =SUM('법정동(2014.12월말)'!F18,'법정동(2014.12월말)'!F27) -> 65,058.00 | G18: =SUM('법정동(2014.12월말)'!G18,'법정동(2014.12월말)'!G27) -> 151 | H18: =SUM('법정동(2014.12월말)'!H18,'법정동(2014.12월말)'!H27) -> 0 | I18: =SUM('법정동(2014.12월말)'!I18,'법정동(2014.12월말)'!I27) -> 0 | J18: =SUM('법정동(2014.12월말)'!J18,'법정동(2014.12월말)'!J27) -> 0 | K18: =SUM('법정동(2014.12월말)'!K18,'법정동(2014.12월말)'!K27) -> 0 | L18: =SUM('법정동(2014.12월말)'!L18,'법정동(2014.12월말)'!L27) -> 1,763,396.00 | M18: =SUM('법정동(2014.12월말)'!M18,'법정동(2014.12월말)'!M27) -> 390 | N18: =SUM('법정동(2014.12월말)'!N18,'법정동(2014.12월말)'!N27) -> 0 | O18: =SUM('법정동(2014.12월말)'!O18,'법정동(2014.12월말)'!O27) -> 0 | P18: =SUM('법정동(2014.12월말)'!P18,'법정동(2014.12월말)'!P27) -> 0 | Q18: =SUM('법정동(2014.12월말)'!Q18,'법정동(2014.12월말)'!Q27) -> 0 | R18: =SUM('법정동(2014.12월말)'!R18,'법정동(2014.12월말)'!R27) -> 411,128.00 | S18: =SUM('법정동(2014.12월말)'!S18,'법정동(2014.12월말)'!S27) -> 2,353 | T18: =SUM('법정동(2014.12월말)'!T18,'법정동(2014.12월말)'!T27) -> 895.00 | U18: =SUM('법정동(2014.12월말)'!U18,'법정동(2014.12월말)'!U27) -> 2 | V18: =SUM('법정동(2014.12월말)'!V18,'법정동(2014.12월말)'!V27) -> 45,635.00 | W18: =SUM('법정동(2014.12월말)'!W18,'법정동(2014.12월말)'!W27) -> 7 | X18: =SUM('법정동(2014.12월말)'!X18,'법정동(2014.12월말)'!X27) -> 2,396.30 | Y18: =SUM('법정동(2014.12월말)'!Y18,'법정동(2014.12월말)'!Y27) -> 5 | Z18: =SUM('법정동(2014.12월말)'!Z18,'법정동(2014.12월말)'!Z27) -> 3,635.60 | AA18: =SUM('법정동(2014.12월말)'!AA18,'법정동(2014.12월말)'!AA27) -> 9 | AB18: =SUM('법정동(2014.12월말)'!AB18,'법정동(2014.12월말)'!AB27) -> 894.00 | AC18: =SUM('법정동(2014.12월말)'!AC18,'법정동(2014.12월말)'!AC27) -> 2 | AD18: =SUM('법정동(2014.12월말)'!AD18,'법정동(2014.12월말)'!AD27) -> 265,188.80 | AE18: =SUM('법정동(2014.12월말)'!AE18,'법정동(2014.12월말)'!AE27) -> 768 | AF18: =SUM('법정동(2014.12월말)'!AF18,'법정동(2014.12월말)'!AF27) -> 33,331.00 | AG18: =SUM('법정동(2014.12월말)'!AG18,'법정동(2014.12월말)'!AG27) -> 33 | AH18: =SUM('법정동(2014.12월말)'!AH18,'법정동(2014.12월말)'!AH27) -> 0 | AI18: =SUM('법정동(2014.12월말)'!AI18,'법정동(2014.12월말)'!AI27) -> 0 | AJ18: =SUM('법정동(2014.12월말)'!AJ18,'법정동(2014.12월말)'!AJ27) -> 25,852.40 | AK18: =SUM('법정동(2014.12월말)'!AK18,'법정동(2014.12월말)'!AK27) -> 16 | AL18: =SUM('법정동(2014.12월말)'!AL18,'법정동(2014.12월말)'!AL27) -> 19,052.10 | AM18: =SUM('법정동(2014.12월말)'!AM18,'법정동(2014.12월말)'!AM27) -> 43 | AN18: =SUM('법정동(2014.12월말)'!AN18,'법정동(2014.12월말)'!AN27) -> 10.00 | AO18: =SUM('법정동(2014.12월말)'!AO18,'법정동(2014.12월말)'!AO27) -> 1 | AP18: =SUM('법정동(2014.12월말)'!AP18,'법정동(2014.12월말)'!AP27) -> 0 | AQ18: =SUM('법정동(2014.12월말)'!AQ18,'법정동(2014.12월말)'!AQ27) -> 0 | AR18: =SUM('법정동(2014.12월말)'!AR18,'법정동(2014.12월말)'!AR27) -> 12,938.00 | AS18: =SUM('법정동(2014.12월말)'!AS18,'법정동(2014.12월말)'!AS27) -> 16 | AT18: =SUM('법정동(2014.12월말)'!AT18,'법정동(2014.12월말)'!AT27) -> 2,315.40 | AU18: =SUM('법정동(2014.12월말)'!AU18,'법정동(2014.12월말)'!AU27) -> 2 | AV18: =SUM('법정동(2014.12월말)'!AV18,'법정동(2014.12월말)'!AV27) -> 310,227.00 | AW18: =SUM('법정동(2014.12월말)'!AW18,'법정동(2014.12월말)'!AW27) -> 14 | AX18: =SUM('법정동(2014.12월말)'!AX18,'법정동(2014.12월말)'!AX27) -> 0 | AY18: =SUM('법정동(2014.12월말)'!AY18,'법정동(2014.12월말)'!AY27) -> 0 | AZ18: =SUM('법정동(2014.12월말)'!AZ18,'법정동(2014.12월말)'!AZ27) -> 8,655.90 | BA18: =SUM('법정동(2014.12월말)'!BA18,'법정동(2014.12월말)'!BA27) -> 12 | BB18: =SUM('법정동(2014.12월말)'!BB18,'법정동(2014.12월말)'!BB27) -> 0 | BC18: =SUM('법정동(2014.12월말)'!BC18,'법정동(2014.12월말)'!BC27) -> 0 | BD18: =SUM('법정동(2014.12월말)'!BD18,'법정동(2014.12월말)'!BD27) -> 39,737.00 | BE18: =SUM('법정동(2014.12월말)'!BE18,'법정동(2014.12월말)'!BE27) -> 27 | BF18: =SUM('법정동(2014.12월말)'!BF18,'법정동(2014.12월말)'!BF27) -> 12,417.60 | BG18: =SUM('법정동(2014.12월말)'!BG18,'법정동(2014.12월말)'!BG27) -> 29
A19: 서강동 | B19: =SUM('법정동(2014.12월말)'!B19:B20) -> 655,398.5 | C19: =SUM('법정동(2014.12월말)'!C19:C20) -> 2,746 | D19: =SUM('법정동(2014.12월말)'!D19:D20) -> 79,498.00 | E19: =SUM('법정동(2014.12월말)'!E19:E20) -> 168 | F19: =SUM('법정동(2014.12월말)'!F19:F20) -> 27,350.00 | G19: =SUM('법정동(2014.12월말)'!G19:G20) -> 58 | H19: =SUM('법정동(2014.12월말)'!H19:H20) -> 0 | I19: =SUM('법정동(2014.12월말)'!I19:I20) -> 0 | J19: =SUM('법정동(2014.12월말)'!J19:J20) -> 0 | K19: =SUM('법정동(2014.12월말)'!K19:K20) -> 0 | L19: =SUM('법정동(2014.12월말)'!L19:L20) -> 156,344.00 | M19: =SUM('법정동(2014.12월말)'!M19:M20) -> 55 | N19: =SUM('법정동(2014.12월말)'!N19:N20) -> 0 | O19: =SUM('법정동(2014.12월말)'!O19:O20) -> 0 | P19: =SUM('법정동(2014.12월말)'!P19:P20) -> 0 | Q19: =SUM('법정동(2014.12월말)'!Q19:Q20) -> 0 | R19: =SUM('법정동(2014.12월말)'!R19:R20) -> 207,228.20 | S19: =SUM('법정동(2014.12월말)'!S19:S20) -> 1,760 | T19: =SUM('법정동(2014.12월말)'!T19:T20) -> 0 | U19: =SUM('법정동(2014.12월말)'!U19:U20) -> 0 | V19: =SUM('법정동(2014.12월말)'!V19:V20) -> 55,144.00 | W19: =SUM('법정동(2014.12월말)'!W19:W20) -> 3 | X19: =SUM('법정동(2014.12월말)'!X19:X20) -> 7,553.00 | Y19: =SUM('법정동(2014.12월말)'!Y19:Y20) -> 7 | Z19: =SUM('법정동(2014.12월말)'!Z19:Z20) -> 0 | AA19: =SUM('법정동(2014.12월말)'!AA19:AA20) -> 0 | AB19: =SUM('법정동(2014.12월말)'!AB19:AB20) -> 0 | AC19: =SUM('법정동(2014.12월말)'!AC19:AC20) -> 0 | AD19: =SUM('법정동(2014.12월말)'!AD19:AD20) -> 95,542.70 | AE19: =SUM('법정동(2014.12월말)'!AE19:AE20) -> 632 | AF19: =SUM('법정동(2014.12월말)'!AF19:AF20) -> 0 | AG19: =SUM('법정동(2014.12월말)'!AG19:AG20) -> 0 | AH19: =SUM('법정동(2014.12월말)'!AH19:AH20) -> 0 | AI19: =SUM('법정동(2014.12월말)'!AI19:AI20) -> 0 | AJ19: =SUM('법정동(2014.12월말)'!AJ19:AJ20) -> 8,724.00 | AK19: =SUM('법정동(2014.12월말)'!AK19:AK20) -> 4 | AL19: =SUM('법정동(2014.12월말)'!AL19:AL20) -> 4,157.00 | AM19: =SUM('법정동(2014.12월말)'!AM19:AM20) -> 26 | AN19: =SUM('법정동(2014.12월말)'!AN19:AN20) -> 0 | AO19: =SUM('법정동(2014.12월말)'!AO19:AO20) -> 0 | AP19: =SUM('법정동(2014.12월말)'!AP19:AP20) -> 0 | AQ19: =SUM('법정동(2014.12월말)'!AQ19:AQ20) -> 0 | AR19: =SUM('법정동(2014.12월말)'!AR19:AR20) -> 0 | AS19: =SUM('법정동(2014.12월말)'!AS19:AS20) -> 0 | AT19: =SUM('법정동(2014.12월말)'!AT19:AT20) -> 2,049.90 | AU19: =SUM('법정동(2014.12월말)'!AU19:AU20) -> 2 | AV19: =SUM('법정동(2014.12월말)'!AV19:AV20) -> 0 | AW19: =SUM('법정동(2014.12월말)'!AW19:AW20) -> 0 | AX19: =SUM('법정동(2014.12월말)'!AX19:AX20) -> 0 | AY19: =SUM('법정동(2014.12월말)'!AY19:AY20) -> 0 | AZ19: =SUM('법정동(2014.12월말)'!AZ19:AZ20) -> 8,250.00 | BA19: =SUM('법정동(2014.12월말)'!BA19:BA20) -> 8 | BB19: =SUM('법정동(2014.12월말)'!BB19:BB20) -> 0 | BC19: =SUM('법정동(2014.12월말)'!BC19:BC20) -> 0 | BD19: =SUM('법정동(2014.12월말)'!BD19:BD20) -> 0 | BE19: =SUM('법정동(2014.12월말)'!BE19:BE20) -> 0 | BF19: =SUM('법정동(2014.12월말)'!BF19:BF20) -> 3,557.70 | BG19: =SUM('법정동(2014.12월말)'!BG19:BG20) -> 23
A20: 대교동 | B20: =SUM('법정동(2014.12월말)'!B21:B22) -> 1,614,106.7 | C20: =SUM('법정동(2014.12월말)'!C21:C22) -> 4,778 | D20: =SUM('법정동(2014.12월말)'!D21:D22) -> 241,673.00 | E20: =SUM('법정동(2014.12월말)'!E21:E22) -> 524 | F20: =SUM('법정동(2014.12월말)'!F21:F22) -> 42,761.00 | G20: =SUM('법정동(2014.12월말)'!G21:G22) -> 101 | H20: =SUM('법정동(2014.12월말)'!H21:H22) -> 0 | I20: =SUM('법정동(2014.12월말)'!I21:I22) -> 0 | J20: =SUM('법정동(2014.12월말)'!J21:J22) -> 0 | K20: =SUM('법정동(2014.12월말)'!K21:K22) -> 0 | L20: =SUM('법정동(2014.12월말)'!L21:L22) -> 385,533.00 | M20: =SUM('법정동(2014.12월말)'!M21:M22) -> 95 | N20: =SUM('법정동(2014.12월말)'!N21:N22) -> 0 | O20: =SUM('법정동(2014.12월말)'!O21:O22) -> 0 | P20: =SUM('법정동(2014.12월말)'!P21:P22) -> 0 | Q20: =SUM('법정동(2014.12월말)'!Q21:Q22) -> 0 | R20: =SUM('법정동(2014.12월말)'!R21:R22) -> 545,739.10 | S20: =SUM('법정동(2014.12월말)'!S21:S22) -> 3,152 | T20: =SUM('법정동(2014.12월말)'!T21:T22) -> 353.10 | U20: =SUM('법정동(2014.12월말)'!U21:U22) -> 1 | V20: =SUM('법정동(2014.12월말)'!V21:V22) -> 33,929.00 | W20: =SUM('법정동(2014.12월말)'!W21:W22) -> 8 | X20: =SUM('법정동(2014.12월말)'!X21:X22) -> 4,393.10 | Y20: =SUM('법정동(2014.12월말)'!Y21:Y22) -> 11 | Z20: =SUM('법정동(2014.12월말)'!Z21:Z22) -> 2,234.60 | AA20: =SUM('법정동(2014.12월말)'!AA21:AA22) -> 4 | AB20: =SUM('법정동(2014.12월말)'!AB21:AB22) -> 1,877.10 | AC20: =SUM('법정동(2014.12월말)'!AC21:AC22) -> 5 | AD20: =SUM('법정동(2014.12월말)'!AD21:AD22) -> 285,296.70 | AE20: =SUM('법정동(2014.12월말)'!AE21:AE22) -> 797 | AF20: =SUM('법정동(2014.12월말)'!AF21:AF22) -> 0 | AG20: =SUM('법정동(2014.12월말)'!AG21:AG22) -> 0 | AH20: =SUM('법정동(2014.12월말)'!AH21:AH22) -> 273.00 | AI20: =SUM('법정동(2014.12월말)'!AI21:AI22) -> 4 | AJ20: =SUM('법정동(2014.12월말)'!AJ21:AJ22) -> 9,140.00 | AK20: =SUM('법정동(2014.12월말)'!AK21:AK22) -> 1 | AL20: =SUM('법정동(2014.12월말)'!AL21:AL22) -> 4,421.00 | AM20: =SUM('법정동(2014.12월말)'!AM21:AM22) -> 16 | AN20: =SUM('법정동(2014.12월말)'!AN21:AN22) -> 27.00 | AO20: =SUM('법정동(2014.12월말)'!AO21:AO22) -> 2 | AP20: =SUM('법정동(2014.12월말)'!AP21:AP22) -> 0 | AQ20: =SUM('법정동(2014.12월말)'!AQ21:AQ22) -> 0 | AR20: =SUM('법정동(2014.12월말)'!AR21:AR22) -> 283.00 | AS20: =SUM('법정동(2014.12월말)'!AS21:AS22) -> 2 | AT20: =SUM('법정동(2014.12월말)'!AT21:AT22) -> 0 | AU20: =SUM('법정동(2014.12월말)'!AU21:AU22) -> 0 | AV20: =SUM('법정동(2014.12월말)'!AV21:AV22) -> 0 | AW20: =SUM('법정동(2014.12월말)'!AW21:AW22) -> 0 | AX20: =SUM('법정동(2014.12월말)'!AX21:AX22) -> 0 | AY20: =SUM('법정동(2014.12월말)'!AY21:AY22) -> 0 | AZ20: =SUM('법정동(2014.12월말)'!AZ21:AZ22) -> 7,586.00 | BA20: =SUM('법정동(2014.12월말)'!BA21:BA22) -> 6 | BB20: =SUM('법정동(2014.12월말)'!BB21:BB22) -> 0 | BC20: =SUM('법정동(2014.12월말)'!BC21:BC22) -> 0 | BD20: =SUM('법정동(2014.12월말)'!BD21:BD22) -> 2,565.00 | BE20: =SUM('법정동(2014.12월말)'!BE21:BE22) -> 11 | BF20: =SUM('법정동(2014.12월말)'!BF21:BF22) -> 46,022.00 | BG20: =SUM('법정동(2014.12월말)'!BG21:BG22) -> 38
A21: 국 동 | B21: =SUM('법정동(2014.12월말)'!B23) -> 1,533,342.3 | C21: =SUM('법정동(2014.12월말)'!C23) -> 3,193 | D21: =SUM('법정동(2014.12월말)'!D23) -> 94,774.00 | E21: =SUM('법정동(2014.12월말)'!E23) -> 441 | F21: =SUM('법정동(2014.12월말)'!F23) -> 14,589.00 | G21: =SUM('법정동(2014.12월말)'!G23) -> 71 | H21: =SUM('법정동(2014.12월말)'!H23) -> 815.00 | I21: =SUM('법정동(2014.12월말)'!I23) -> 1 | J21: =SUM('법정동(2014.12월말)'!J23) -> 0 | K21: =SUM('법정동(2014.12월말)'!K23) -> 0 | L21: =SUM('법정동(2014.12월말)'!L23) -> 485,995.00 | M21: =SUM('법정동(2014.12월말)'!M23) -> 90 | N21: =SUM('법정동(2014.12월말)'!N23) -> 0 | O21: =SUM('법정동(2014.12월말)'!O23) -> 0 | P21: =SUM('법정동(2014.12월말)'!P23) -> 0 | Q21: =SUM('법정동(2014.12월말)'!Q23) -> 0 | R21: =SUM('법정동(2014.12월말)'!R23) -> 527,682.20 | S21: =SUM('법정동(2014.12월말)'!S23) -> 1,868 | T21: =SUM('법정동(2014.12월말)'!T23) -> 6,735.00 | U21: =SUM('법정동(2014.12월말)'!U23) -> 12 | V21: =SUM('법정동(2014.12월말)'!V23) -> 125,624.20 | W21: =SUM('법정동(2014.12월말)'!W23) -> 28 | X21: =SUM('법정동(2014.12월말)'!X23) -> 6,061.00 | Y21: =SUM('법정동(2014.12월말)'!Y23) -> 6 | Z21: =SUM('법정동(2014.12월말)'!Z23) -> 1,291.00 | AA21: =SUM('법정동(2014.12월말)'!AA23) -> 2 | AB21: =SUM('법정동(2014.12월말)'!AB23) -> 912.00 | AC21: =SUM('법정동(2014.12월말)'!AC23) -> 5 | AD21: =SUM('법정동(2014.12월말)'!AD23) -> 176,536.60 | AE21: =SUM('법정동(2014.12월말)'!AE23) -> 573 | AF21: =SUM('법정동(2014.12월말)'!AF23) -> 0 | AG21: =SUM('법정동(2014.12월말)'!AG23) -> 0 | AH21: =SUM('법정동(2014.12월말)'!AH23) -> 2,006.00 | AI21: =SUM('법정동(2014.12월말)'!AI23) -> 1 | AJ21: =SUM('법정동(2014.12월말)'!AJ23) -> 0 | AK21: =SUM('법정동(2014.12월말)'!AK23) -> 0 | AL21: =SUM('법정동(2014.12월말)'!AL23) -> 15,756.00 | AM21: =SUM('법정동(2014.12월말)'!AM23) -> 13 | AN21: =SUM('법정동(2014.12월말)'!AN23) -> 0 | AO21: =SUM('법정동(2014.12월말)'!AO23) -> 0 | AP21: =SUM('법정동(2014.12월말)'!AP23) -> 0 | AQ21: =SUM('법정동(2014.12월말)'!AQ23) -> 0 | AR21: =SUM('법정동(2014.12월말)'!AR23) -> 3,092.00 | AS21: =SUM('법정동(2014.12월말)'!AS23) -> 6 | AT21: =SUM('법정동(2014.12월말)'!AT23) -> 0 | AU21: =SUM('법정동(2014.12월말)'!AU23) -> 0 | AV21: =SUM('법정동(2014.12월말)'!AV23) -> 1,163.00 | AW21: =SUM('법정동(2014.12월말)'!AW23) -> 1 | AX21: =SUM('법정동(2014.12월말)'!AX23) -> 0 | AY21: =SUM('법정동(2014.12월말)'!AY23) -> 0 | AZ21: =SUM('법정동(2014.12월말)'!AZ23) -> 7,538.50 | BA21: =SUM('법정동(2014.12월말)'!BA23) -> 14 | BB21: =SUM('법정동(2014.12월말)'!BB23) -> 0 | BC21: =SUM('법정동(2014.12월말)'!BC23) -> 0 | BD21: =SUM('법정동(2014.12월말)'!BD23) -> 760.00 | BE21: =SUM('법정동(2014.12월말)'!BE23) -> 5 | BF21: =SUM('법정동(2014.12월말)'!BF23) -> 62,011.80 | BG21: =SUM('법정동(2014.12월말)'!BG23) -> 56
A22: 월호동 | B22: =SUM('법정동(2014.12월말)'!B24,'법정동(2014.12월말)'!B33) -> 6,795,524.5 | C22: =SUM('법정동(2014.12월말)'!C24,'법정동(2014.12월말)'!C33) -> 6,413 | D22: =SUM('법정동(2014.12월말)'!D24,'법정동(2014.12월말)'!D33) -> 1,736,372.00 | E22: =SUM('법정동(2014.12월말)'!E24,'법정동(2014.12월말)'!E33) -> 2,211 | F22: =SUM('법정동(2014.12월말)'!F24,'법정동(2014.12월말)'!F33) -> 276,429.00 | G22: =SUM('법정동(2014.12월말)'!G24,'법정동(2014.12월말)'!G33) -> 448 | H22: =SUM('법정동(2014.12월말)'!H24,'법정동(2014.12월말)'!H33) -> 0 | I22: =SUM('법정동(2014.12월말)'!I24,'법정동(2014.12월말)'!I33) -> 0 | J22: =SUM('법정동(2014.12월말)'!J24,'법정동(2014.12월말)'!J33) -> 0 | K22: =SUM('법정동(2014.12월말)'!K24,'법정동(2014.12월말)'!K33) -> 0 | L22: =SUM('법정동(2014.12월말)'!L24,'법정동(2014.12월말)'!L33) -> 2,929,054.00 | M22: =SUM('법정동(2014.12월말)'!M24,'법정동(2014.12월말)'!M33) -> 1,225 | N22: =SUM('법정동(2014.12월말)'!N24,'법정동(2014.12월말)'!N33) -> 0 | O22: =SUM('법정동(2014.12월말)'!O24,'법정동(2014.12월말)'!O33) -> 0 | P22: =SUM('법정동(2014.12월말)'!P24,'법정동(2014.12월말)'!P33) -> 0 | Q22: =SUM('법정동(2014.12월말)'!Q24,'법정동(2014.12월말)'!Q33) -> 0 | R22: =SUM('법정동(2014.12월말)'!R24,'법정동(2014.12월말)'!R33) -> 386,486.20 | S22: =SUM('법정동(2014.12월말)'!S24,'법정동(2014.12월말)'!S33) -> 1,217 | T22: =SUM('법정동(2014.12월말)'!T24,'법정동(2014.12월말)'!T33) -> 851,758.00 | U22: =SUM('법정동(2014.12월말)'!U24,'법정동(2014.12월말)'!U33) -> 132 | V22: =SUM('법정동(2014.12월말)'!V24,'법정동(2014.12월말)'!V33) -> 19,320.00 | W22: =SUM('법정동(2014.12월말)'!W24,'법정동(2014.12월말)'!W33) -> 3 | X22: =SUM('법정동(2014.12월말)'!X24,'법정동(2014.12월말)'!X33) -> 2,408.60 | Y22: =SUM('법정동(2014.12월말)'!Y24,'법정동(2014.12월말)'!Y33) -> 9 | Z22: =SUM('법정동(2014.12월말)'!Z24,'법정동(2014.12월말)'!Z33) -> 2,571.00 | AA22: =SUM('법정동(2014.12월말)'!AA24,'법정동(2014.12월말)'!AA33) -> 10 | AB22: =SUM('법정동(2014.12월말)'!AB24,'법정동(2014.12월말)'!AB33) -> 1,810.00 | AC22: =SUM('법정동(2014.12월말)'!AC24,'법정동(2014.12월말)'!AC33) -> 2 | AD22: =SUM('법정동(2014.12월말)'!AD24,'법정동(2014.12월말)'!AD33) -> 261,085.10 | AE22: =SUM('법정동(2014.12월말)'!AE24,'법정동(2014.12월말)'!AE33) -> 843 | AF22: =SUM('법정동(2014.12월말)'!AF24,'법정동(2014.12월말)'!AF33) -> 0 | AG22: =SUM('법정동(2014.12월말)'!AG24,'법정동(2014.12월말)'!AG33) -> 0 | AH22: =SUM('법정동(2014.12월말)'!AH24,'법정동(2014.12월말)'!AH33) -> 17,188.00 | AI22: =SUM('법정동(2014.12월말)'!AI24,'법정동(2014.12월말)'!AI33) -> 46 | AJ22: =SUM('법정동(2014.12월말)'!AJ24,'법정동(2014.12월말)'!AJ33) -> 1,220.00 | AK22: =SUM('법정동(2014.12월말)'!AK24,'법정동(2014.12월말)'!AK33) -> 5 | AL22: =SUM('법정동(2014.12월말)'!AL24,'법정동(2014.12월말)'!AL33) -> 45,561.00 | AM22: =SUM('법정동(2014.12월말)'!AM24,'법정동(2014.12월말)'!AM33) -> 21 | AN22: =SUM('법정동(2014.12월말)'!AN24,'법정동(2014.12월말)'!AN33) -> 2,473.00 | AO22: =SUM('법정동(2014.12월말)'!AO24,'법정동(2014.12월말)'!AO33) -> 2 | AP22: =SUM('법정동(2014.12월말)'!AP24,'법정동(2014.12월말)'!AP33) -> 1,601.00 | AQ22: =SUM('법정동(2014.12월말)'!AQ24,'법정동(2014.12월말)'!AQ33) -> 1 | AR22: =SUM('법정동(2014.12월말)'!AR24,'법정동(2014.12월말)'!AR33) -> 0 | AS22: =SUM('법정동(2014.12월말)'!AS24,'법정동(2014.12월말)'!AS33) -> 0 | AT22: =SUM('법정동(2014.12월말)'!AT24,'법정동(2014.12월말)'!AT33) -> 7,918.60 | AU22: =SUM('법정동(2014.12월말)'!AU24,'법정동(2014.12월말)'!AU33) -> 11 | AV22: =SUM('법정동(2014.12월말)'!AV24,'법정동(2014.12월말)'!AV33) -> 0 | AW22: =SUM('법정동(2014.12월말)'!AW24,'법정동(2014.12월말)'!AW33) -> 0 | AX22: =SUM('법정동(2014.12월말)'!AX24,'법정동(2014.12월말)'!AX33) -> 0 | AY22: =SUM('법정동(2014.12월말)'!AY24,'법정동(2014.12월말)'!AY33) -> 0 | AZ22: =SUM('법정동(2014.12월말)'!AZ24,'법정동(2014.12월말)'!AZ33) -> 10,457.00 | BA22: =SUM('법정동(2014.12월말)'!BA24,'법정동(2014.12월말)'!BA33) -> 12 | BB22: =SUM('법정동(2014.12월말)'!BB24,'법정동(2014.12월말)'!BB33) -> 0 | BC22: =SUM('법정동(2014.12월말)'!BC24,'법정동(2014.12월말)'!BC33) -> 0 | BD22: =SUM('법정동(2014.12월말)'!BD24,'법정동(2014.12월말)'!BD33) -> 17,785.00 | BE22: =SUM('법정동(2014.12월말)'!BE24,'법정동(2014.12월말)'!BE33) -> 52 | BF22: =SUM('법정동(2014.12월말)'!BF24,'법정동(2014.12월말)'!BF33) -> 224,027.00 | BG22: =SUM('법정동(2014.12월말)'!BG24,'법정동(2014.12월말)'!BG33) -> 163
A23: 여서동 | B23: =SUM('법정동(2014.12월말)'!B25) -> 2,575,285.9 | C23: =SUM('법정동(2014.12월말)'!C25) -> 1,928 | D23: =SUM('법정동(2014.12월말)'!D25) -> 203,915.00 | E23: =SUM('법정동(2014.12월말)'!E25) -> 277 | F23: =SUM('법정동(2014.12월말)'!F25) -> 116,410.00 | G23: =SUM('법정동(2014.12월말)'!G25) -> 188 | H23: =SUM('법정동(2014.12월말)'!H25) -> 0 | I23: =SUM('법정동(2014.12월말)'!I25) -> 0 | J23: =SUM('법정동(2014.12월말)'!J25) -> 0 | K23: =SUM('법정동(2014.12월말)'!K25) -> 0 | L23: =SUM('법정동(2014.12월말)'!L25) -> 1,223,622.00 | M23: =SUM('법정동(2014.12월말)'!M25) -> 293 | N23: =SUM('법정동(2014.12월말)'!N25) -> 0 | O23: =SUM('법정동(2014.12월말)'!O25) -> 0 | P23: =SUM('법정동(2014.12월말)'!P25) -> 0 | Q23: =SUM('법정동(2014.12월말)'!Q25) -> 0 | R23: =SUM('법정동(2014.12월말)'!R25) -> 562,646.20 | S23: =SUM('법정동(2014.12월말)'!S25) -> 755 | T23: =SUM('법정동(2014.12월말)'!T25) -> 0 | U23: =SUM('법정동(2014.12월말)'!U25) -> 0 | V23: =SUM('법정동(2014.12월말)'!V25) -> 58,011.00 | W23: =SUM('법정동(2014.12월말)'!W25) -> 4 | X23: =SUM('법정동(2014.12월말)'!X25) -> 2,518.00 | Y23: =SUM('법정동(2014.12월말)'!Y25) -> 14 | Z23: =SUM('법정동(2014.12월말)'!Z25) -> 1,488.00 | AA23: =SUM('법정동(2014.12월말)'!AA25) -> 1 | AB23: =SUM('법정동(2014.12월말)'!AB25) -> 741.00 | AC23: =SUM('법정동(2014.12월말)'!AC25) -> 1 | AD23: =SUM('법정동(2014.12월말)'!AD25) -> 291,367.50 | AE23: =SUM('법정동(2014.12월말)'!AE25) -> 283 | AF23: =SUM('법정동(2014.12월말)'!AF25) -> 0 | AG23: =SUM('법정동(2014.12월말)'!AG25) -> 0 | AH23: =SUM('법정동(2014.12월말)'!AH25) -> 0 | AI23: =SUM('법정동(2014.12월말)'!AI25) -> 0 | AJ23: =SUM('법정동(2014.12월말)'!AJ25) -> 0 | AK23: =SUM('법정동(2014.12월말)'!AK25) -> 0 | AL23: =SUM('법정동(2014.12월말)'!AL25) -> 15,119.90 | AM23: =SUM('법정동(2014.12월말)'!AM25) -> 20 | AN23: =SUM('법정동(2014.12월말)'!AN25) -> 958.00 | AO23: =SUM('법정동(2014.12월말)'!AO25) -> 2 | AP23: =SUM('법정동(2014.12월말)'!AP25) -> 0 | AQ23: =SUM('법정동(2014.12월말)'!AQ25) -> 0 | AR23: =SUM('법정동(2014.12월말)'!AR25) -> 11,855.00 | AS23: =SUM('법정동(2014.12월말)'!AS25) -> 5 | AT23: =SUM('법정동(2014.12월말)'!AT25) -> 32,420.40 | AU23: =SUM('법정동(2014.12월말)'!AU25) -> 8 | AV23: =SUM('법정동(2014.12월말)'!AV25) -> 9,361.00 | AW23: =SUM('법정동(2014.12월말)'!AW25) -> 5 | AX23: =SUM('법정동(2014.12월말)'!AX25) -> 0 | AY23: =SUM('법정동(2014.12월말)'!AY25) -> 0 | AZ23: =SUM('법정동(2014.12월말)'!AZ25) -> 15,908.40 | BA23: =SUM('법정동(2014.12월말)'!BA25) -> 22 | BB23: =SUM('법정동(2014.12월말)'!BB25) -> 0 | BC23: =SUM('법정동(2014.12월말)'!BC25) -> 0 | BD23: =SUM('법정동(2014.12월말)'!BD25) -> 2,630.00 | BE23: =SUM('법정동(2014.12월말)'!BE25) -> 8 | BF23: =SUM('법정동(2014.12월말)'!BF25) -> 26,314.50 | BG23: =SUM('법정동(2014.12월말)'!BG25) -> 42
A24: 문수동 | B24: =SUM('법정동(2014.12월말)'!B26) -> 2,244,118.3 | C24: =SUM('법정동(2014.12월말)'!C26) -> 3,182 | D24: =SUM('법정동(2014.12월말)'!D26) -> 174,533.00 | E24: =SUM('법정동(2014.12월말)'!E26) -> 317 | F24: =SUM('법정동(2014.12월말)'!F26) -> 33,691.00 | G24: =SUM('법정동(2014.12월말)'!G26) -> 92 | H24: =SUM('법정동(2014.12월말)'!H26) -> 0 | I24: =SUM('법정동(2014.12월말)'!I26) -> 0 | J24: =SUM('법정동(2014.12월말)'!J26) -> 0 | K24: =SUM('법정동(2014.12월말)'!K26) -> 0 | L24: =SUM('법정동(2014.12월말)'!L26) -> 836,075.70 | M24: =SUM('법정동(2014.12월말)'!M26) -> 315 | N24: =SUM('법정동(2014.12월말)'!N26) -> 0 | O24: =SUM('법정동(2014.12월말)'!O26) -> 0 | P24: =SUM('법정동(2014.12월말)'!P26) -> 0 | Q24: =SUM('법정동(2014.12월말)'!Q26) -> 0 | R24: =SUM('법정동(2014.12월말)'!R26) -> 717,070.50 | S24: =SUM('법정동(2014.12월말)'!S26) -> 1,895 | T24: =SUM('법정동(2014.12월말)'!T26) -> 0 | U24: =SUM('법정동(2014.12월말)'!U26) -> 0 | V24: =SUM('법정동(2014.12월말)'!V26) -> 122,894.60 | W24: =SUM('법정동(2014.12월말)'!W26) -> 10 | X24: =SUM('법정동(2014.12월말)'!X26) -> 13,625.40 | Y24: =SUM('법정동(2014.12월말)'!Y26) -> 46 | Z24: =SUM('법정동(2014.12월말)'!Z26) -> 1,109.10 | AA24: =SUM('법정동(2014.12월말)'!AA26) -> 2 | AB24: =SUM('법정동(2014.12월말)'!AB26) -> 205.00 | AC24: =SUM('법정동(2014.12월말)'!AC26) -> 1 | AD24: =SUM('법정동(2014.12월말)'!AD26) -> 225,536.90 | AE24: =SUM('법정동(2014.12월말)'!AE26) -> 373 | AF24: =SUM('법정동(2014.12월말)'!AF26) -> 0 | AG24: =SUM('법정동(2014.12월말)'!AG26) -> 0 | AH24: =SUM('법정동(2014.12월말)'!AH26) -> 0 | AI24: =SUM('법정동(2014.12월말)'!AI26) -> 0 | AJ24: =SUM('법정동(2014.12월말)'!AJ26) -> 8,513.00 | AK24: =SUM('법정동(2014.12월말)'!AK26) -> 5 | AL24: =SUM('법정동(2014.12월말)'!AL26) -> 9,438.40 | AM24: =SUM('법정동(2014.12월말)'!AM26) -> 13 | AN24: =SUM('법정동(2014.12월말)'!AN26) -> 0 | AO24: =SUM('법정동(2014.12월말)'!AO26) -> 0 | AP24: =SUM('법정동(2014.12월말)'!AP26) -> 0 | AQ24: =SUM('법정동(2014.12월말)'!AQ26) -> 0 | AR24: =SUM('법정동(2014.12월말)'!AR26) -> 31.00 | AS24: =SUM('법정동(2014.12월말)'!AS26) -> 1 | AT24: =SUM('법정동(2014.12월말)'!AT26) -> 54,362.10 | AU24: =SUM('법정동(2014.12월말)'!AU26) -> 21 | AV24: =SUM('법정동(2014.12월말)'!AV26) -> 0 | AW24: =SUM('법정동(2014.12월말)'!AW26) -> 0 | AX24: =SUM('법정동(2014.12월말)'!AX26) -> 0 | AY24: =SUM('법정동(2014.12월말)'!AY26) -> 0 | AZ24: =SUM('법정동(2014.12월말)'!AZ26) -> 25,861.00 | BA24: =SUM('법정동(2014.12월말)'!BA26) -> 15 | BB24: =SUM('법정동(2014.12월말)'!BB26) -> 0 | BC24: =SUM('법정동(2014.12월말)'!BC26) -> 0 | BD24: =SUM('법정동(2014.12월말)'!BD26) -> 3,861.00 | BE24: =SUM('법정동(2014.12월말)'!BE26) -> 19 | BF24: =SUM('법정동(2014.12월말)'!BF26) -> 17,310.60 | BG24: =SUM('법정동(2014.12월말)'!BG26) -> 57
A25: 미평동 | B25: =SUM('법정동(2014.12월말)'!B28) -> 3,088,607.9 | C25: =SUM('법정동(2014.12월말)'!C28) -> 2,704 | D25: =SUM('법정동(2014.12월말)'!D28) -> 139,407.00 | E25: =SUM('법정동(2014.12월말)'!E28) -> 326 | F25: =SUM('법정동(2014.12월말)'!F28) -> 94,931.00 | G25: =SUM('법정동(2014.12월말)'!G28) -> 229 | H25: =SUM('법정동(2014.12월말)'!H28) -> 0 | I25: =SUM('법정동(2014.12월말)'!I28) -> 0 | J25: =SUM('법정동(2014.12월말)'!J28) -> 0 | K25: =SUM('법정동(2014.12월말)'!K28) -> 0 | L25: =SUM('법정동(2014.12월말)'!L28) -> 1,766,916.00 | M25: =SUM('법정동(2014.12월말)'!M28) -> 209 | N25: =SUM('법정동(2014.12월말)'!N28) -> 0 | O25: =SUM('법정동(2014.12월말)'!O28) -> 0 | P25: =SUM('법정동(2014.12월말)'!P28) -> 0 | Q25: =SUM('법정동(2014.12월말)'!Q28) -> 0 | R25: =SUM('법정동(2014.12월말)'!R28) -> 473,837.10 | S25: =SUM('법정동(2014.12월말)'!S28) -> 1,180 | T25: =SUM('법정동(2014.12월말)'!T28) -> 1,501.00 | U25: =SUM('법정동(2014.12월말)'!U28) -> 3 | V25: =SUM('법정동(2014.12월말)'!V28) -> 64,631.10 | W25: =SUM('법정동(2014.12월말)'!W28) -> 10 | X25: =SUM('법정동(2014.12월말)'!X28) -> 6,876.80 | Y25: =SUM('법정동(2014.12월말)'!Y28) -> 15 | Z25: =SUM('법정동(2014.12월말)'!Z28) -> 1,804.20 | AA25: =SUM('법정동(2014.12월말)'!AA28) -> 3 | AB25: =SUM('법정동(2014.12월말)'!AB28) -> 177.40 | AC25: =SUM('법정동(2014.12월말)'!AC28) -> 1 | AD25: =SUM('법정동(2014.12월말)'!AD28) -> 285,308.40 | AE25: =SUM('법정동(2014.12월말)'!AE28) -> 541 | AF25: =SUM('법정동(2014.12월말)'!AF28) -> 53,203.00 | AG25: =SUM('법정동(2014.12월말)'!AG28) -> 33 | AH25: =SUM('법정동(2014.12월말)'!AH28) -> 0 | AI25: =SUM('법정동(2014.12월말)'!AI28) -> 0 | AJ25: =SUM('법정동(2014.12월말)'!AJ28) -> 9,529.40 | AK25: =SUM('법정동(2014.12월말)'!AK28) -> 3 | AL25: =SUM('법정동(2014.12월말)'!AL28) -> 25,651.00 | AM25: =SUM('법정동(2014.12월말)'!AM28) -> 50 | AN25: =SUM('법정동(2014.12월말)'!AN28) -> 0 | AO25: =SUM('법정동(2014.12월말)'!AO28) -> 0 | AP25: =SUM('법정동(2014.12월말)'!AP28) -> 0 | AQ25: =SUM('법정동(2014.12월말)'!AQ28) -> 0 | AR25: =SUM('법정동(2014.12월말)'!AR28) -> 91,230.50 | AS25: =SUM('법정동(2014.12월말)'!AS28) -> 57 | AT25: =SUM('법정동(2014.12월말)'!AT28) -> 16,700.40 | AU25: =SUM('법정동(2014.12월말)'!AU28) -> 10 | AV25: =SUM('법정동(2014.12월말)'!AV28) -> 0 | AW25: =SUM('법정동(2014.12월말)'!AW28) -> 0 | AX25: =SUM('법정동(2014.12월말)'!AX28) -> 0 | AY25: =SUM('법정동(2014.12월말)'!AY28) -> 0 | AZ25: =SUM('법정동(2014.12월말)'!AZ28) -> 8,992.40 | BA25: =SUM('법정동(2014.12월말)'!BA28) -> 9 | BB25: =SUM('법정동(2014.12월말)'!BB28) -> 0 | BC25: =SUM('법정동(2014.12월말)'!BC28) -> 0 | BD25: =SUM('법정동(2014.12월말)'!BD28) -> 5,712.00 | BE25: =SUM('법정동(2014.12월말)'!BE28) -> 7 | BF25: =SUM('법정동(2014.12월말)'!BF28) -> 42,199.20 | BG25: =SUM('법정동(2014.12월말)'!BG28) -> 18
A26: 둔덕동 | B26: =SUM('법정동(2014.12월말)'!B29) -> 4,075,966.1 | C26: =SUM('법정동(2014.12월말)'!C29) -> 2,319 | D26: =SUM('법정동(2014.12월말)'!D29) -> 177,878.00 | E26: =SUM('법정동(2014.12월말)'!E29) -> 286 | F26: =SUM('법정동(2014.12월말)'!F29) -> 425,547.00 | G26: =SUM('법정동(2014.12월말)'!G29) -> 480 | H26: =SUM('법정동(2014.12월말)'!H29) -> 0 | I26: =SUM('법정동(2014.12월말)'!I29) -> 0 | J26: =SUM('법정동(2014.12월말)'!J29) -> 0 | K26: =SUM('법정동(2014.12월말)'!K29) -> 0 | L26: =SUM('법정동(2014.12월말)'!L29) -> 2,180,556.00 | M26: =SUM('법정동(2014.12월말)'!M29) -> 333 | N26: =SUM('법정동(2014.12월말)'!N29) -> 0 | O26: =SUM('법정동(2014.12월말)'!O29) -> 0 | P26: =SUM('법정동(2014.12월말)'!P29) -> 0 | Q26: =SUM('법정동(2014.12월말)'!Q29) -> 0 | R26: =SUM('법정동(2014.12월말)'!R29) -> 475,353.90 | S26: =SUM('법정동(2014.12월말)'!S29) -> 646 | T26: =SUM('법정동(2014.12월말)'!T29) -> 362.00 | U26: =SUM('법정동(2014.12월말)'!U29) -> 1 | V26: =SUM('법정동(2014.12월말)'!V29) -> 722.00 | W26: =SUM('법정동(2014.12월말)'!W29) -> 1 | X26: =SUM('법정동(2014.12월말)'!X29) -> 2,833.70 | Y26: =SUM('법정동(2014.12월말)'!Y29) -> 6 | Z26: =SUM('법정동(2014.12월말)'!Z29) -> 10,143.90 | AA26: =SUM('법정동(2014.12월말)'!AA29) -> 8 | AB26: =SUM('법정동(2014.12월말)'!AB29) -> 6,602.70 | AC26: =SUM('법정동(2014.12월말)'!AC29) -> 10 | AD26: =SUM('법정동(2014.12월말)'!AD29) -> 383,823.60 | AE26: =SUM('법정동(2014.12월말)'!AE29) -> 417 | AF26: =SUM('법정동(2014.12월말)'!AF29) -> 22,933.00 | AG26: =SUM('법정동(2014.12월말)'!AG29) -> 33 | AH26: =SUM('법정동(2014.12월말)'!AH29) -> 0 | AI26: =SUM('법정동(2014.12월말)'!AI29) -> 0 | AJ26: =SUM('법정동(2014.12월말)'!AJ29) -> 9,119.10 | AK26: =SUM('법정동(2014.12월말)'!AK29) -> 3 | AL26: =SUM('법정동(2014.12월말)'!AL29) -> 21,254.00 | AM26: =SUM('법정동(2014.12월말)'!AM29) -> 11 | AN26: =SUM('법정동(2014.12월말)'!AN29) -> 0 | AO26: =SUM('법정동(2014.12월말)'!AO29) -> 0 | AP26: =SUM('법정동(2014.12월말)'!AP29) -> 0 | AQ26: =SUM('법정동(2014.12월말)'!AQ29) -> 0 | AR26: =SUM('법정동(2014.12월말)'!AR29) -> 72,838.00 | AS26: =SUM('법정동(2014.12월말)'!AS29) -> 4 | AT26: =SUM('법정동(2014.12월말)'!AT29) -> 18,073.40 | AU26: =SUM('법정동(2014.12월말)'!AU29) -> 8 | AV26: =SUM('법정동(2014.12월말)'!AV29) -> 166,279.00 | AW26: =SUM('법정동(2014.12월말)'!AW29) -> 6 | AX26: =SUM('법정동(2014.12월말)'!AX29) -> 0 | AY26: =SUM('법정동(2014.12월말)'!AY29) -> 0 | AZ26: =SUM('법정동(2014.12월말)'!AZ29) -> 14,763.30 | BA26: =SUM('법정동(2014.12월말)'!BA29) -> 10 | BB26: =SUM('법정동(2014.12월말)'!BB29) -> 0 | BC26: =SUM('법정동(2014.12월말)'!BC29) -> 0 | BD26: =SUM('법정동(2014.12월말)'!BD29) -> 3,315.00 | BE26: =SUM('법정동(2014.12월말)'!BE29) -> 9 | BF26: =SUM('법정동(2014.12월말)'!BF29) -> 83,568.50 | BG26: =SUM('법정동(2014.12월말)'!BG29) -> 47
A27: 만덕동 | B27: =SUM('법정동(2014.12월말)'!B30:B32) -> 15,960,587.8 | C27: =SUM('법정동(2014.12월말)'!C30:C32) -> 8,259 | D27: =SUM('법정동(2014.12월말)'!D30:D32) -> 1,450,698.00 | E27: =SUM('법정동(2014.12월말)'!E30:E32) -> 2,075 | F27: =SUM('법정동(2014.12월말)'!F30:F32) -> 794,456.00 | G27: =SUM('법정동(2014.12월말)'!G30:G32) -> 1,010 | H27: =SUM('법정동(2014.12월말)'!H30:H32) -> 0 | I27: =SUM('법정동(2014.12월말)'!I30:I32) -> 0 | J27: =SUM('법정동(2014.12월말)'!J30:J32) -> 0 | K27: =SUM('법정동(2014.12월말)'!K30:K32) -> 0 | L27: =SUM('법정동(2014.12월말)'!L30:L32) -> 9,908,068.60 | M27: =SUM('법정동(2014.12월말)'!M30:M32) -> 1,227 | N27: =SUM('법정동(2014.12월말)'!N30:N32) -> 0 | O27: =SUM('법정동(2014.12월말)'!O30:O32) -> 0 | P27: =SUM('법정동(2014.12월말)'!P30:P32) -> 0 | Q27: =SUM('법정동(2014.12월말)'!Q30:Q32) -> 0 | R27: =SUM('법정동(2014.12월말)'!R30:R32) -> 1,226,217.60 | S27: =SUM('법정동(2014.12월말)'!S30:S32) -> 1,769 | T27: =SUM('법정동(2014.12월말)'!T30:T32) -> 154,440.90 | U27: =SUM('법정동(2014.12월말)'!U30:U32) -> 89 | V27: =SUM('법정동(2014.12월말)'!V30:V32) -> 66,776.10 | W27: =SUM('법정동(2014.12월말)'!W30:W32) -> 7 | X27: =SUM('법정동(2014.12월말)'!X30:X32) -> 35,256.80 | Y27: =SUM('법정동(2014.12월말)'!Y30:Y32) -> 10 | Z27: =SUM('법정동(2014.12월말)'!Z30:Z32) -> 3,930.00 | AA27: =SUM('법정동(2014.12월말)'!AA30:AA32) -> 7 | AB27: =SUM('법정동(2014.12월말)'!AB30:AB32) -> 4,253.00 | AC27: =SUM('법정동(2014.12월말)'!AC30:AC32) -> 10 | AD27: =SUM('법정동(2014.12월말)'!AD30:AD32) -> 710,291.40 | AE27: =SUM('법정동(2014.12월말)'!AE30:AE32) -> 1,425 | AF27: =SUM('법정동(2014.12월말)'!AF30:AF32) -> 171,017.00 | AG27: =SUM('법정동(2014.12월말)'!AG30:AG32) -> 182 | AH27: =SUM('법정동(2014.12월말)'!AH30:AH32) -> 14,342.40 | AI27: =SUM('법정동(2014.12월말)'!AI30:AI32) -> 11 | AJ27: =SUM('법정동(2014.12월말)'!AJ30:AJ32) -> 19,770.90 | AK27: =SUM('법정동(2014.12월말)'!AK30:AK32) -> 9 | AL27: =SUM('법정동(2014.12월말)'!AL30:AL32) -> 112,337.80 | AM27: =SUM('법정동(2014.12월말)'!AM30:AM32) -> 109 | AN27: =SUM('법정동(2014.12월말)'!AN30:AN32) -> 0 | AO27: =SUM('법정동(2014.12월말)'!AO30:AO32) -> 0 | AP27: =SUM('법정동(2014.12월말)'!AP30:AP32) -> 0 | AQ27: =SUM('법정동(2014.12월말)'!AQ30:AQ32) -> 0 | AR27: =SUM('법정동(2014.12월말)'!AR30:AR32) -> 19,441.70 | AS27: =SUM('법정동(2014.12월말)'!AS30:AS32) -> 64 | AT27: =SUM('법정동(2014.12월말)'!AT30:AT32) -> 508,641.80 | AU27: =SUM('법정동(2014.12월말)'!AU30:AU32) -> 32 | AV27: =SUM('법정동(2014.12월말)'!AV30:AV32) -> 389,346.50 | AW27: =SUM('법정동(2014.12월말)'!AW30:AW32) -> 4 | AX27: =SUM('법정동(2014.12월말)'!AX30:AX32) -> 0 | AY27: =SUM('법정동(2014.12월말)'!AY30:AY32) -> 0 | AZ27: =SUM('법정동(2014.12월말)'!AZ30:AZ32) -> 21,199.80 | BA27: =SUM('법정동(2014.12월말)'!BA30:BA32) -> 21 | BB27: =SUM('법정동(2014.12월말)'!BB30:BB32) -> 0 | BC27: =SUM('법정동(2014.12월말)'!BC30:BC32) -> 0 | BD27: =SUM('법정동(2014.12월말)'!BD30:BD32) -> 45,557.00 | BE27: =SUM('법정동(2014.12월말)'!BE30:BE32) -> 89 | BF27: =SUM('법정동(2014.12월말)'!BF30:BF32) -> 304,544.50 | BG27: =SUM('법정동(2014.12월말)'!BG30:BG32) -> 109
A28: 쌍봉동 | B28: =SUM('법정동(2014.12월말)'!B34:B37) -> 7,165,960.9 | C28: =SUM('법정동(2014.12월말)'!C34:C37) -> 6,087 | D28: =SUM('법정동(2014.12월말)'!D34:D37) -> 501,738.00 | E28: =SUM('법정동(2014.12월말)'!E34:E37) -> 782 | F28: =SUM('법정동(2014.12월말)'!F34:F37) -> 342,998.00 | G28: =SUM('법정동(2014.12월말)'!G34:G37) -> 392 | H28: =SUM('법정동(2014.12월말)'!H34:H37) -> 3,826.00 | I28: =SUM('법정동(2014.12월말)'!I34:I37) -> 4 | J28: =SUM('법정동(2014.12월말)'!J34:J37) -> 0 | K28: =SUM('법정동(2014.12월말)'!K34:K37) -> 0 | L28: =SUM('법정동(2014.12월말)'!L34:L37) -> 2,782,718.20 | M28: =SUM('법정동(2014.12월말)'!M34:M37) -> 658 | N28: =SUM('법정동(2014.12월말)'!N34:N37) -> 0 | O28: =SUM('법정동(2014.12월말)'!O34:O37) -> 0 | P28: =SUM('법정동(2014.12월말)'!P34:P37) -> 0 | Q28: =SUM('법정동(2014.12월말)'!Q34:Q37) -> 0 | R28: =SUM('법정동(2014.12월말)'!R34:R37) -> 2,078,947.30 | S28: =SUM('법정동(2014.12월말)'!S34:S37) -> 3,219 | T28: =SUM('법정동(2014.12월말)'!T34:T37) -> 12,954.00 | U28: =SUM('법정동(2014.12월말)'!U34:U37) -> 11 | V28: =SUM('법정동(2014.12월말)'!V34:V37) -> 93,344.50 | W28: =SUM('법정동(2014.12월말)'!W34:W37) -> 9 | X28: =SUM('법정동(2014.12월말)'!X34:X37) -> 26,818.80 | Y28: =SUM('법정동(2014.12월말)'!Y34:Y37) -> 34 | Z28: =SUM('법정동(2014.12월말)'!Z34:Z37) -> 7,604.20 | AA28: =SUM('법정동(2014.12월말)'!AA34:AA37) -> 10 | AB28: =SUM('법정동(2014.12월말)'!AB34:AB37) -> 3,142.00 | AC28: =SUM('법정동(2014.12월말)'!AC34:AC37) -> 4 | AD28: =SUM('법정동(2014.12월말)'!AD34:AD37) -> 871,468.00 | AE28: =SUM('법정동(2014.12월말)'!AE34:AE37) -> 680 | AF28: =SUM('법정동(2014.12월말)'!AF34:AF37) -> 73,480.00 | AG28: =SUM('법정동(2014.12월말)'!AG34:AG37) -> 71 | AH28: =SUM('법정동(2014.12월말)'!AH34:AH37) -> 7,082.20 | AI28: =SUM('법정동(2014.12월말)'!AI34:AI37) -> 7 | AJ28: =SUM('법정동(2014.12월말)'!AJ34:AJ37) -> 6,362.00 | AK28: =SUM('법정동(2014.12월말)'!AK34:AK37) -> 16 | AL28: =SUM('법정동(2014.12월말)'!AL34:AL37) -> 26,441.50 | AM28: =SUM('법정동(2014.12월말)'!AM34:AM37) -> 38 | AN28: =SUM('법정동(2014.12월말)'!AN34:AN37) -> 11,448.50 | AO28: =SUM('법정동(2014.12월말)'!AO34:AO37) -> 3 | AP28: =SUM('법정동(2014.12월말)'!AP34:AP37) -> 0 | AQ28: =SUM('법정동(2014.12월말)'!AQ34:AQ37) -> 0 | AR28: =SUM('법정동(2014.12월말)'!AR34:AR37) -> 20,058.00 | AS28: =SUM('법정동(2014.12월말)'!AS34:AS37) -> 3 | AT28: =SUM('법정동(2014.12월말)'!AT34:AT37) -> 143,290.50 | AU28: =SUM('법정동(2014.12월말)'!AU34:AU37) -> 24 | AV28: =SUM('법정동(2014.12월말)'!AV34:AV37) -> 10,945.60 | AW28: =SUM('법정동(2014.12월말)'!AW34:AW37) -> 1 | AX28: =SUM('법정동(2014.12월말)'!AX34:AX37) -> 49,654.30 | AY28: =SUM('법정동(2014.12월말)'!AY34:AY37) -> 2 | AZ28: =SUM('법정동(2014.12월말)'!AZ34:AZ37) -> 22,115.10 | BA28: =SUM('법정동(2014.12월말)'!BA34:BA37) -> 19 | BB28: =SUM('법정동(2014.12월말)'!BB34:BB37) -> 0 | BC28: =SUM('법정동(2014.12월말)'!BC34:BC37) -> 0 | BD28: =SUM('법정동(2014.12월말)'!BD34:BD37) -> 32,230.00 | BE28: =SUM('법정동(2014.12월말)'!BE34:BE37) -> 53 | BF28: =SUM('법정동(2014.12월말)'!BF34:BF37) -> 37,294.20 | BG28: =SUM('법정동(2014.12월말)'!BG34:BG37) -> 47
A29: 시전동 | B29: =SUM('법정동(2014.12월말)'!B38:B40) -> 6,257,008.8 | C29: =SUM('법정동(2014.12월말)'!C38:C40) -> 6,360 | D29: =SUM('법정동(2014.12월말)'!D38:D40) -> 1,053,460.00 | E29: =SUM('법정동(2014.12월말)'!E38:E40) -> 1,328 | F29: =SUM('법정동(2014.12월말)'!F38:F40) -> 453,340.00 | G29: =SUM('법정동(2014.12월말)'!G38:G40) -> 723 | H29: =SUM('법정동(2014.12월말)'!H38:H40) -> 4,119.00 | I29: =SUM('법정동(2014.12월말)'!I38:I40) -> 4 | J29: =SUM('법정동(2014.12월말)'!J38:J40) -> 0 | K29: =SUM('법정동(2014.12월말)'!K38:K40) -> 0 | L29: =SUM('법정동(2014.12월말)'!L38:L40) -> 2,416,258.60 | M29: =SUM('법정동(2014.12월말)'!M38:M40) -> 955 | N29: =SUM('법정동(2014.12월말)'!N38:N40) -> 0 | O29: =SUM('법정동(2014.12월말)'!O38:O40) -> 0 | P29: =SUM('법정동(2014.12월말)'!P38:P40) -> 0 | Q29: =SUM('법정동(2014.12월말)'!Q38:Q40) -> 0 | R29: =SUM('법정동(2014.12월말)'!R38:R40) -> 1,106,674.30 | S29: =SUM('법정동(2014.12월말)'!S38:S40) -> 2,406 | T29: =SUM('법정동(2014.12월말)'!T38:T40) -> 0 | U29: =SUM('법정동(2014.12월말)'!U38:U40) -> 0 | V29: =SUM('법정동(2014.12월말)'!V38:V40) -> 64,545.00 | W29: =SUM('법정동(2014.12월말)'!W38:W40) -> 4 | X29: =SUM('법정동(2014.12월말)'!X38:X40) -> 26,790.60 | Y29: =SUM('법정동(2014.12월말)'!Y38:Y40) -> 23 | Z29: =SUM('법정동(2014.12월말)'!Z38:Z40) -> 4,565.20 | AA29: =SUM('법정동(2014.12월말)'!AA38:AA40) -> 5 | AB29: =SUM('법정동(2014.12월말)'!AB38:AB40) -> 350.00 | AC29: =SUM('법정동(2014.12월말)'!AC38:AC40) -> 1 | AD29: =SUM('법정동(2014.12월말)'!AD38:AD40) -> 605,254.90 | AE29: =SUM('법정동(2014.12월말)'!AE38:AE40) -> 687 | AF29: =SUM('법정동(2014.12월말)'!AF38:AF40) -> 0 | AG29: =SUM('법정동(2014.12월말)'!AG38:AG40) -> 0 | AH29: =SUM('법정동(2014.12월말)'!AH38:AH40) -> 1,881.60 | AI29: =SUM('법정동(2014.12월말)'!AI38:AI40) -> 6 | AJ29: =SUM('법정동(2014.12월말)'!AJ38:AJ40) -> 555.00 | AK29: =SUM('법정동(2014.12월말)'!AK38:AK40) -> 4 | AL29: =SUM('법정동(2014.12월말)'!AL38:AL40) -> 48,556.00 | AM29: =SUM('법정동(2014.12월말)'!AM38:AM40) -> 48 | AN29: =SUM('법정동(2014.12월말)'!AN38:AN40) -> 22,484.00 | AO29: =SUM('법정동(2014.12월말)'!AO38:AO40) -> 30 | AP29: =SUM('법정동(2014.12월말)'!AP38:AP40) -> 0 | AQ29: =SUM('법정동(2014.12월말)'!AQ38:AQ40) -> 0 | AR29: =SUM('법정동(2014.12월말)'!AR38:AR40) -> 3,742.10 | AS29: =SUM('법정동(2014.12월말)'!AS38:AS40) -> 13 | AT29: =SUM('법정동(2014.12월말)'!AT38:AT40) -> 175,805.70 | AU29: =SUM('법정동(2014.12월말)'!AU38:AU40) -> 41 | AV29: =SUM('법정동(2014.12월말)'!AV38:AV40) -> 157,345.00 | AW29: =SUM('법정동(2014.12월말)'!AW38:AW40) -> 4 | AX29: =SUM('법정동(2014.12월말)'!AX38:AX40) -> 0 | AY29: =SUM('법정동(2014.12월말)'!AY38:AY40) -> 0 | AZ29: =SUM('법정동(2014.12월말)'!AZ38:AZ40) -> 21,418.60 | BA29: =SUM('법정동(2014.12월말)'!BA38:BA40) -> 11 | BB29: =SUM('법정동(2014.12월말)'!BB38:BB40) -> 0 | BC29: =SUM('법정동(2014.12월말)'!BC38:BC40) -> 0 | BD29: =SUM('법정동(2014.12월말)'!BD38:BD40) -> 24,051.00 | BE29: =SUM('법정동(2014.12월말)'!BE38:BE40) -> 50 | BF29: =SUM('법정동(2014.12월말)'!BF38:BF40) -> 65,812.20 | BG29: =SUM('법정동(2014.12월말)'!BG38:BG40) -> 17
A30: 여천동 | B30: =SUM('법정동(2014.12월말)'!B41:B43) -> 7,531,364.6 | C30: =SUM('법정동(2014.12월말)'!C41:C43) -> 7,424 | D30: =SUM('법정동(2014.12월말)'!D41:D43) -> 821,817.00 | E30: =SUM('법정동(2014.12월말)'!E41:E43) -> 999 | F30: =SUM('법정동(2014.12월말)'!F41:F43) -> 1,229,222.00 | G30: =SUM('법정동(2014.12월말)'!G41:G43) -> 1,316 | H30: =SUM('법정동(2014.12월말)'!H41:H43) -> 17,444.00 | I30: =SUM('법정동(2014.12월말)'!I41:I43) -> 5 | J30: =SUM('법정동(2014.12월말)'!J41:J43) -> 3,663.00 | K30: =SUM('법정동(2014.12월말)'!K41:K43) -> 6 | L30: =SUM('법정동(2014.12월말)'!L41:L43) -> 2,434,934.50 | M30: =SUM('법정동(2014.12월말)'!M41:M43) -> 605 | N30: =SUM('법정동(2014.12월말)'!N41:N43) -> 0 | O30: =SUM('법정동(2014.12월말)'!O41:O43) -> 0 | P30: =SUM('법정동(2014.12월말)'!P41:P43) -> 0 | Q30: =SUM('법정동(2014.12월말)'!Q41:Q43) -> 0 | R30: =SUM('법정동(2014.12월말)'!R41:R43) -> 1,322,768.00 | S30: =SUM('법정동(2014.12월말)'!S41:S43) -> 3,180 | T30: =SUM('법정동(2014.12월말)'!T41:T43) -> 7,934.00 | U30: =SUM('법정동(2014.12월말)'!U41:U43) -> 6 | V30: =SUM('법정동(2014.12월말)'!V41:V43) -> 162,547.40 | W30: =SUM('법정동(2014.12월말)'!W41:W43) -> 8 | X30: =SUM('법정동(2014.12월말)'!X41:X43) -> 42,685.90 | Y30: =SUM('법정동(2014.12월말)'!Y41:Y43) -> 49 | Z30: =SUM('법정동(2014.12월말)'!Z41:Z43) -> 14,086.70 | AA30: =SUM('법정동(2014.12월말)'!AA41:AA43) -> 18 | AB30: =SUM('법정동(2014.12월말)'!AB41:AB43) -> 19,177.00 | AC30: =SUM('법정동(2014.12월말)'!AC41:AC43) -> 18 | AD30: =SUM('법정동(2014.12월말)'!AD41:AD43) -> 865,872.70 | AE30: =SUM('법정동(2014.12월말)'!AE41:AE43) -> 801 | AF30: =SUM('법정동(2014.12월말)'!AF41:AF43) -> 75,196.00 | AG30: =SUM('법정동(2014.12월말)'!AG41:AG43) -> 56 | AH30: =SUM('법정동(2014.12월말)'!AH41:AH43) -> 0 | AI30: =SUM('법정동(2014.12월말)'!AI41:AI43) -> 0 | AJ30: =SUM('법정동(2014.12월말)'!AJ41:AJ43) -> 87,254.00 | AK30: =SUM('법정동(2014.12월말)'!AK41:AK43) -> 52 | AL30: =SUM('법정동(2014.12월말)'!AL41:AL43) -> 89,829.90 | AM30: =SUM('법정동(2014.12월말)'!AM41:AM43) -> 164 | AN30: =SUM('법정동(2014.12월말)'!AN41:AN43) -> 23,888.00 | AO30: =SUM('법정동(2014.12월말)'!AO41:AO43) -> 17 | AP30: =SUM('법정동(2014.12월말)'!AP41:AP43) -> 1,016.00 | AQ30: =SUM('법정동(2014.12월말)'!AQ41:AQ43) -> 1 | AR30: =SUM('법정동(2014.12월말)'!AR41:AR43) -> 32,581.00 | AS30: =SUM('법정동(2014.12월말)'!AS41:AS43) -> 13 | AT30: =SUM('법정동(2014.12월말)'!AT41:AT43) -> 176,307.40 | AU30: =SUM('법정동(2014.12월말)'!AU41:AU43) -> 27 | AV30: =SUM('법정동(2014.12월말)'!AV41:AV43) -> 28,326.00 | AW30: =SUM('법정동(2014.12월말)'!AW41:AW43) -> 3 | AX30: =SUM('법정동(2014.12월말)'!AX41:AX43) -> 0 | AY30: =SUM('법정동(2014.12월말)'!AY41:AY43) -> 0 | AZ30: =SUM('법정동(2014.12월말)'!AZ41:AZ43) -> 21,334.00 | BA30: =SUM('법정동(2014.12월말)'!BA41:BA43) -> 15 | BB30: =SUM('법정동(2014.12월말)'!BB41:BB43) -> 6,450.00 | BC30: =SUM('법정동(2014.12월말)'!BC41:BC43) -> 2 | BD30: =SUM('법정동(2014.12월말)'!BD41:BD43) -> 14,704.00 | BE30: =SUM('법정동(2014.12월말)'!BE41:BE43) -> 27 | BF30: =SUM('법정동(2014.12월말)'!BF41:BF43) -> 32,326.10 | BG30: =SUM('법정동(2014.12월말)'!BG41:BG43) -> 36
A31: 주삼동 | B31: =SUM('법정동(2014.12월말)'!B44:B46) -> 11,528,575.1 | C31: =SUM('법정동(2014.12월말)'!C44:C46) -> 8,266 | D31: =SUM('법정동(2014.12월말)'!D44:D46) -> 1,029,452.00 | E31: =SUM('법정동(2014.12월말)'!E44:E46) -> 1,306 | F31: =SUM('법정동(2014.12월말)'!F44:F46) -> 2,010,309.40 | G31: =SUM('법정동(2014.12월말)'!G44:G46) -> 2,071 | H31: =SUM('법정동(2014.12월말)'!H44:H46) -> 3,307.00 | I31: =SUM('법정동(2014.12월말)'!I44:I46) -> 1 | J31: =SUM('법정동(2014.12월말)'!J44:J46) -> 5,658.00 | K31: =SUM('법정동(2014.12월말)'!K44:K46) -> 9 | L31: =SUM('법정동(2014.12월말)'!L44:L46) -> 5,448,328.00 | M31: =SUM('법정동(2014.12월말)'!M44:M46) -> 1,085 | N31: =SUM('법정동(2014.12월말)'!N44:N46) -> 0 | O31: =SUM('법정동(2014.12월말)'!O44:O46) -> 0 | P31: =SUM('법정동(2014.12월말)'!P44:P46) -> 0 | Q31: =SUM('법정동(2014.12월말)'!Q44:Q46) -> 0 | R31: =SUM('법정동(2014.12월말)'!R44:R46) -> 592,087.70 | S31: =SUM('법정동(2014.12월말)'!S44:S46) -> 994 | T31: =SUM('법정동(2014.12월말)'!T44:T46) -> 151,582.90 | U31: =SUM('법정동(2014.12월말)'!U44:U46) -> 58 | V31: =SUM('법정동(2014.12월말)'!V44:V46) -> 84,875.00 | W31: =SUM('법정동(2014.12월말)'!W44:W46) -> 3 | X31: =SUM('법정동(2014.12월말)'!X44:X46) -> 76,959.90 | Y31: =SUM('법정동(2014.12월말)'!Y44:Y46) -> 21 | Z31: =SUM('법정동(2014.12월말)'!Z44:Z46) -> 26,783.00 | AA31: =SUM('법정동(2014.12월말)'!AA44:AA46) -> 24 | AB31: =SUM('법정동(2014.12월말)'!AB44:AB46) -> 15,929.00 | AC31: =SUM('법정동(2014.12월말)'!AC44:AC46) -> 25 | AD31: =SUM('법정동(2014.12월말)'!AD44:AD46) -> 940,021.40 | AE31: =SUM('법정동(2014.12월말)'!AE44:AE46) -> 2,062 | AF31: =SUM('법정동(2014.12월말)'!AF44:AF46) -> 60,329.20 | AG31: =SUM('법정동(2014.12월말)'!AG44:AG46) -> 78 | AH31: =SUM('법정동(2014.12월말)'!AH44:AH46) -> 9,201.00 | AI31: =SUM('법정동(2014.12월말)'!AI44:AI46) -> 11 | AJ31: =SUM('법정동(2014.12월말)'!AJ44:AJ46) -> 109,024.00 | AK31: =SUM('법정동(2014.12월말)'!AK44:AK46) -> 58 | AL31: =SUM('법정동(2014.12월말)'!AL44:AL46) -> 201,814.00 | AM31: =SUM('법정동(2014.12월말)'!AM44:AM46) -> 231 | AN31: =SUM('법정동(2014.12월말)'!AN44:AN46) -> 119,944.00 | AO31: =SUM('법정동(2014.12월말)'!AO44:AO46) -> 58 | AP31: =SUM('법정동(2014.12월말)'!AP44:AP46) -> 0 | AQ31: =SUM('법정동(2014.12월말)'!AQ44:AQ46) -> 0 | AR31: =SUM('법정동(2014.12월말)'!AR44:AR46) -> 3,567.00 | AS31: =SUM('법정동(2014.12월말)'!AS44:AS46) -> 7 | AT31: =SUM('법정동(2014.12월말)'!AT44:AT46) -> 0 | AU31: =SUM('법정동(2014.12월말)'!AU44:AU46) -> 0 | AV31: =SUM('법정동(2014.12월말)'!AV44:AV46) -> 514,788.00 | AW31: =SUM('법정동(2014.12월말)'!AW44:AW46) -> 2 | AX31: =SUM('법정동(2014.12월말)'!AX44:AX46) -> 0 | AY31: =SUM('법정동(2014.12월말)'!AY44:AY46) -> 0 | AZ31: =SUM('법정동(2014.12월말)'!AZ44:AZ46) -> 9,549.00 | BA31: =SUM('법정동(2014.12월말)'!BA44:BA46) -> 7 | BB31: =SUM('법정동(2014.12월말)'!BB44:BB46) -> 0 | BC31: =SUM('법정동(2014.12월말)'!BC44:BC46) -> 0 | BD31: =SUM('법정동(2014.12월말)'!BD44:BD46) -> 11,926.00 | BE31: =SUM('법정동(2014.12월말)'!BE44:BE46) -> 18 | BF31: =SUM('법정동(2014.12월말)'!BF44:BF46) -> 103,139.60 | BG31: =SUM('법정동(2014.12월말)'!BG44:BG46) -> 137
A32: 삼일동 | B32: =SUM('법정동(2014.12월말)'!B47:B52,'법정동(2014.12월말)'!B54:B57) -> 72,538,920.4 | C32: =SUM('법정동(2014.12월말)'!C47:C52,'법정동(2014.12월말)'!C54:C57) -> 19,253 | D32: =SUM('법정동(2014.12월말)'!D47:D52,'법정동(2014.12월말)'!D54:D57) -> 2,804,039.00 | E32: =SUM('법정동(2014.12월말)'!E47:E52,'법정동(2014.12월말)'!E54:E57) -> 3,419 | F32: =SUM('법정동(2014.12월말)'!F47:F52,'법정동(2014.12월말)'!F54:F57) -> 3,150,850.50 | G32: =SUM('법정동(2014.12월말)'!G47:G52,'법정동(2014.12월말)'!G54:G57) -> 3,503 | H32: =SUM('법정동(2014.12월말)'!H47:H52,'법정동(2014.12월말)'!H54:H57) -> 36,339.00 | I32: =SUM('법정동(2014.12월말)'!I47:I52,'법정동(2014.12월말)'!I54:I57) -> 14 | J32: =SUM('법정동(2014.12월말)'!J47:J52,'법정동(2014.12월말)'!J54:J57) -> 7,471.00 | K32: =SUM('법정동(2014.12월말)'!K47:K52,'법정동(2014.12월말)'!K54:K57) -> 5 | L32: =SUM('법정동(2014.12월말)'!L47:L52,'법정동(2014.12월말)'!L54:L57) -> 38,647,551.20 | M32: =SUM('법정동(2014.12월말)'!M47:M52,'법정동(2014.12월말)'!M54:M57) -> 3,475 | N32: =SUM('법정동(2014.12월말)'!N47:N52,'법정동(2014.12월말)'!N54:N57) -> 0 | O32: =SUM('법정동(2014.12월말)'!O47:O52,'법정동(2014.12월말)'!O54:O57) -> 0 | P32: =SUM('법정동(2014.12월말)'!P47:P52,'법정동(2014.12월말)'!P54:P57) -> 0 | Q32: =SUM('법정동(2014.12월말)'!Q47:Q52,'법정동(2014.12월말)'!Q54:Q57) -> 0 | R32: =SUM('법정동(2014.12월말)'!R47:R52,'법정동(2014.12월말)'!R54:R57) -> 1,398,350.50 | S32: =SUM('법정동(2014.12월말)'!S47:S52,'법정동(2014.12월말)'!S54:S57) -> 2,143 | T32: =SUM('법정동(2014.12월말)'!T47:T52,'법정동(2014.12월말)'!T54:T57) -> 17,820,198.60 | U32: =SUM('법정동(2014.12월말)'!U47:U52,'법정동(2014.12월말)'!U54:U57) -> 727 | V32: =SUM('법정동(2014.12월말)'!V47:V52,'법정동(2014.12월말)'!V54:V57) -> 62,608.00 | W32: =SUM('법정동(2014.12월말)'!W47:W52,'법정동(2014.12월말)'!W54:W57) -> 12 | X32: =SUM('법정동(2014.12월말)'!X47:X52,'법정동(2014.12월말)'!X54:X57) -> 17,872.70 | Y32: =SUM('법정동(2014.12월말)'!Y47:Y52,'법정동(2014.12월말)'!Y54:Y57) -> 17 | Z32: =SUM('법정동(2014.12월말)'!Z47:Z52,'법정동(2014.12월말)'!Z54:Z57) -> 345,630.90 | AA32: =SUM('법정동(2014.12월말)'!AA47:AA52,'법정동(2014.12월말)'!AA54:AA57) -> 49 | AB32: =SUM('법정동(2014.12월말)'!AB47:AB52,'법정동(2014.12월말)'!AB54:AB57) -> 24,347.40 | AC32: =SUM('법정동(2014.12월말)'!AC47:AC52,'법정동(2014.12월말)'!AC54:AC57) -> 12 | AD32: =SUM('법정동(2014.12월말)'!AD47:AD52,'법정동(2014.12월말)'!AD54:AD57) -> 2,952,178.10 | AE32: =SUM('법정동(2014.12월말)'!AE47:AE52,'법정동(2014.12월말)'!AE54:AE57) -> 3,801 | AF32: =SUM('법정동(2014.12월말)'!AF47:AF52,'법정동(2014.12월말)'!AF54:AF57) -> 275,154.00 | AG32: =SUM('법정동(2014.12월말)'!AG47:AG52,'법정동(2014.12월말)'!AG54:AG57) -> 185 | AH32: =SUM('법정동(2014.12월말)'!AH47:AH52,'법정동(2014.12월말)'!AH54:AH57) -> 129,409.20 | AI32: =SUM('법정동(2014.12월말)'!AI47:AI52,'법정동(2014.12월말)'!AI54:AI57) -> 71 | AJ32: =SUM('법정동(2014.12월말)'!AJ47:AJ52,'법정동(2014.12월말)'!AJ54:AJ57) -> 1,018,548.20 | AK32: =SUM('법정동(2014.12월말)'!AK47:AK52,'법정동(2014.12월말)'!AK54:AK57) -> 345 | AL32: =SUM('법정동(2014.12월말)'!AL47:AL52,'법정동(2014.12월말)'!AL54:AL57) -> 417,958.50 | AM32: =SUM('법정동(2014.12월말)'!AM47:AM52,'법정동(2014.12월말)'!AM54:AM57) -> 364 | AN32: =SUM('법정동(2014.12월말)'!AN47:AN52,'법정동(2014.12월말)'!AN54:AN57) -> 201,243.00 | AO32: =SUM('법정동(2014.12월말)'!AO47:AO52,'법정동(2014.12월말)'!AO54:AO57) -> 187 | AP32: =SUM('법정동(2014.12월말)'!AP47:AP52,'법정동(2014.12월말)'!AP54:AP57) -> 0 | AQ32: =SUM('법정동(2014.12월말)'!AQ47:AQ52,'법정동(2014.12월말)'!AQ54:AQ57) -> 0 | AR32: =SUM('법정동(2014.12월말)'!AR47:AR52,'법정동(2014.12월말)'!AR54:AR57) -> 65,088.70 | AS32: =SUM('법정동(2014.12월말)'!AS47:AS52,'법정동(2014.12월말)'!AS54:AS57) -> 28 | AT32: =SUM('법정동(2014.12월말)'!AT47:AT52,'법정동(2014.12월말)'!AT54:AT57) -> 105,264.00 | AU32: =SUM('법정동(2014.12월말)'!AU47:AU52,'법정동(2014.12월말)'!AU54:AU57) -> 13 | AV32: =SUM('법정동(2014.12월말)'!AV47:AV52,'법정동(2014.12월말)'!AV54:AV57) -> 1,544.00 | AW32: =SUM('법정동(2014.12월말)'!AW47:AW52,'법정동(2014.12월말)'!AW54:AW57) -> 2 | AX32: =SUM('법정동(2014.12월말)'!AX47:AX52,'법정동(2014.12월말)'!AX54:AX57) -> 0 | AY32: =SUM('법정동(2014.12월말)'!AY47:AY52,'법정동(2014.12월말)'!AY54:AY57) -> 0 | AZ32: =SUM('법정동(2014.12월말)'!AZ47:AZ52,'법정동(2014.12월말)'!AZ54:AZ57) -> 37,336.00 | BA32: =SUM('법정동(2014.12월말)'!BA47:BA52,'법정동(2014.12월말)'!BA54:BA57) -> 30 | BB32: =SUM('법정동(2014.12월말)'!BB47:BB52,'법정동(2014.12월말)'!BB54:BB57) -> 0 | BC32: =SUM('법정동(2014.12월말)'!BC47:BC52,'법정동(2014.12월말)'!BC54:BC57) -> 0 | BD32: =SUM('법정동(2014.12월말)'!BD47:BD52,'법정동(2014.12월말)'!BD54:BD57) -> 86,797.00 | BE32: =SUM('법정동(2014.12월말)'!BE47:BE52,'법정동(2014.12월말)'!BE54:BE57) -> 109 | BF32: =SUM('법정동(2014.12월말)'!BF47:BF52,'법정동(2014.12월말)'!BF54:BF57) -> 2,933,140.90 | BG32: =SUM('법정동(2014.12월말)'!BG47:BG52,'법정동(2014.12월말)'!BG54:BG57) -> 742
A33: 묘도동 | B33: =SUM('법정동(2014.12월말)'!B53) -> 11,515,923.6 | C33: =SUM('법정동(2014.12월말)'!C53) -> 5,960 | D33: =SUM('법정동(2014.12월말)'!D53) -> 1,320,764.00 | E33: =SUM('법정동(2014.12월말)'!E53) -> 1,335 | F33: =SUM('법정동(2014.12월말)'!F53) -> 932,873.00 | G33: =SUM('법정동(2014.12월말)'!G53) -> 1,115 | H33: =SUM('법정동(2014.12월말)'!H53) -> 3,155.00 | I33: =SUM('법정동(2014.12월말)'!I53) -> 3 | J33: =SUM('법정동(2014.12월말)'!J53) -> 1,592.00 | K33: =SUM('법정동(2014.12월말)'!K53) -> 4 | L33: =SUM('법정동(2014.12월말)'!L53) -> 5,651,723.00 | M33: =SUM('법정동(2014.12월말)'!M53) -> 1,728 | N33: =SUM('법정동(2014.12월말)'!N53) -> 0 | O33: =SUM('법정동(2014.12월말)'!O53) -> 0 | P33: =SUM('법정동(2014.12월말)'!P53) -> 0 | Q33: =SUM('법정동(2014.12월말)'!Q53) -> 0 | R33: =SUM('법정동(2014.12월말)'!R53) -> 183,133.00 | S33: =SUM('법정동(2014.12월말)'!S53) -> 669 | T33: =SUM('법정동(2014.12월말)'!T53) -> 0 | U33: =SUM('법정동(2014.12월말)'!U53) -> 0 | V33: =SUM('법정동(2014.12월말)'!V53) -> 18,801.00 | W33: =SUM('법정동(2014.12월말)'!W53) -> 4 | X33: =SUM('법정동(2014.12월말)'!X53) -> 28.00 | Y33: =SUM('법정동(2014.12월말)'!Y53) -> 1 | Z33: =SUM('법정동(2014.12월말)'!Z53) -> 589.00 | AA33: =SUM('법정동(2014.12월말)'!AA53) -> 2 | AB33: =SUM('법정동(2014.12월말)'!AB53) -> 3,651.00 | AC33: =SUM('법정동(2014.12월말)'!AC53) -> 8 | AD33: =SUM('법정동(2014.12월말)'!AD53) -> 137,631.00 | AE33: =SUM('법정동(2014.12월말)'!AE53) -> 922 | AF33: =SUM('법정동(2014.12월말)'!AF53) -> 0 | AG33: =SUM('법정동(2014.12월말)'!AG53) -> 0 | AH33: =SUM('법정동(2014.12월말)'!AH53) -> 113,676.60 | AI33: =SUM('법정동(2014.12월말)'!AI53) -> 14 | AJ33: =SUM('법정동(2014.12월말)'!AJ53) -> 15,454.00 | AK33: =SUM('법정동(2014.12월말)'!AK53) -> 7 | AL33: =SUM('법정동(2014.12월말)'!AL53) -> 64,259.00 | AM33: =SUM('법정동(2014.12월말)'!AM53) -> 28 | AN33: =SUM('법정동(2014.12월말)'!AN53) -> 22,036.00 | AO33: =SUM('법정동(2014.12월말)'!AO53) -> 27 | AP33: =SUM('법정동(2014.12월말)'!AP53) -> 0 | AQ33: =SUM('법정동(2014.12월말)'!AQ53) -> 0 | AR33: =SUM('법정동(2014.12월말)'!AR53) -> 0 | AS33: =SUM('법정동(2014.12월말)'!AS53) -> 0 | AT33: =SUM('법정동(2014.12월말)'!AT53) -> 0 | AU33: =SUM('법정동(2014.12월말)'!AU53) -> 0 | AV33: =SUM('법정동(2014.12월말)'!AV53) -> 0 | AW33: =SUM('법정동(2014.12월말)'!AW53) -> 0 | AX33: =SUM('법정동(2014.12월말)'!AX53) -> 0 | AY33: =SUM('법정동(2014.12월말)'!AY53) -> 0 | AZ33: =SUM('법정동(2014.12월말)'!AZ53) -> 3,681.00 | BA33: =SUM('법정동(2014.12월말)'!BA53) -> 3 | BB33: =SUM('법정동(2014.12월말)'!BB53) -> 0 | BC33: =SUM('법정동(2014.12월말)'!BC53) -> 0 | BD33: =SUM('법정동(2014.12월말)'!BD53) -> 29,108.00 | BE33: =SUM('법정동(2014.12월말)'!BE53) -> 39 | BF33: =SUM('법정동(2014.12월말)'!BF53) -> 3,013,769.00 | BG33: =SUM('법정동(2014.12월말)'!BG53) -> 51

Sheet 2013년대비
A1: 구 분 | B1: 계 | D1: 전 | F1: 답 | H1: 과수원 | J1: 목장용지 | L1: 임야 | N1: 광천지 | P1: 염전 | R1: 대 | T1: 공장용지 | V1: 학교용지 | X1: 주차장 | Z1: 주유소용지 | AB1: 창고용지 | AD1: 도로 | AF1: 철도용지 | AH1: 제방 | AJ1: 하천 | AL1: 구거 | AN1: 유지 | AP1: 양어장 | AR1: 수도용지 | AT1: 공원 | AV1: 체육용지 | AX1: 유원지 | AZ1: 종교용지 | BB1: 사적지 | BD1: 묘지 | BF1: 잡종지
B2: 면 적 | C2: 지번수 | D2: 면 적 | E2: 지번수 | F2: 면 적 | G2: 지번수 | H2: 면 적 | I2: 지번수 | J2: 면 적 | K2: 지번수 | L2: 면 적 | M2: 지번수 | N2: 면 적 | O2: 지번수 | P2: 면 적 | Q2: 지번수 | R2: 면 적 | S2: 지번수 | T2: 면 적 | U2: 지번수 | V2: 면 적 | W2: 지번수 | X2: 면 적 | Y2: 지번수 | Z2: 면 적 | AA2: 지번수 | AB2: 면 적 | AC2: 지번수 | AD2: 면 적 | AE2: 지번수 | AF2: 면 적 | AG2: 지번수 | AH2: 면 적 | AI2: 지번수 | AJ2: 면 적 | AK2: 지번수 | AL2: 면 적 | AM2: 지번수 | AN2: 면 적 | AO2: 지번수 | AP2: 면 적 | AQ2: 지번수 | AR2: 면 적 | AS2: 지번수 | AT2: 면 적 | AU2: 지번수 | AV2: 면 적 | AW2: 지번수 | AX2: 면 적 | AY2: 지번수 | AZ2: 면 적 | BA2: 지번수 | BB2: 면 적 | BC2: 지번수 | BD2: 면 적 | BE2: 지번수 | BF2: 면 적 | BG2: 지번수
A3: 합 계 | B3: ='법정동(2014.12월말)'!B6-'법정동(2013년말)'!B7 -> 4,527,926.3 | C3: ='법정동(2014.12월말)'!C6-'법정동(2013년말)'!C7 -> -843.0 | D3: ='법정동(2014.12월말)'!D6-'법정동(2013년말)'!D7 -> -444,174.1 | E3: ='법정동(2014.12월말)'!E6-'법정동(2013년말)'!E7 -> -679.0 | F3: ='법정동(2014.12월말)'!F6-'법정동(2013년말)'!F7 -> -445,286.9 | G3: ='법정동(2014.12월말)'!G6-'법정동(2013년말)'!G7 -> -432.0 | H3: ='법정동(2014.12월말)'!H6-'법정동(2013년말)'!H7 -> -3,413.0 | I3: ='법정동(2014.12월말)'!I6-'법정동(2013년말)'!I7 -> -1.0 | J3: ='법정동(2014.12월말)'!J6-'법정동(2013년말)'!J7 -> -158.0 | K3: ='법정동(2014.12월말)'!K6-'법정동(2013년말)'!K7 -> 2.0 | L3: ='법정동(2014.12월말)'!L6-'법정동(2013년말)'!L7 -> -1,058,109.7 | M3: ='법정동(2014.12월말)'!M6-'법정동(2013년말)'!M7 -> -230.0 | N3: ='법정동(2014.12월말)'!N6-'법정동(2013년말)'!N7 -> 0.0 | O3: ='법정동(2014.12월말)'!O6-'법정동(2013년말)'!O7 -> 0.0 | P3: ='법정동(2014.12월말)'!P6-'법정동(2013년말)'!P7 -> 0.0 | Q3: ='법정동(2014.12월말)'!Q6-'법정동(2013년말)'!Q7 -> 0.0 | R3: ='법정동(2014.12월말)'!R6-'법정동(2013년말)'!R7 -> 648,585.7 | S3: ='법정동(2014.12월말)'!S6-'법정동(2013년말)'!S7 -> 94.0 | T3: ='법정동(2014.12월말)'!T6-'법정동(2013년말)'!T7 -> 4,009,602.4 | U3: ='법정동(2014.12월말)'!U6-'법정동(2013년말)'!U7 -> 78.0 | V3: ='법정동(2014.12월말)'!V6-'법정동(2013년말)'!V7 -> -814.9 | W3: ='법정동(2014.12월말)'!W6-'법정동(2013년말)'!W7 -> -7.0 | X3: ='법정동(2014.12월말)'!X6-'법정동(2013년말)'!X7 -> 75,247.9 | Y3: ='법정동(2014.12월말)'!Y6-'법정동(2013년말)'!Y7 -> 36.0 | Z3: ='법정동(2014.12월말)'!Z6-'법정동(2013년말)'!Z7 -> 3,451.9 | AA3: ='법정동(2014.12월말)'!AA6-'법정동(2013년말)'!AA7 -> 2.0 | AB3: ='법정동(2014.12월말)'!AB6-'법정동(2013년말)'!AB7 -> 10,235.0 | AC3: ='법정동(2014.12월말)'!AC6-'법정동(2013년말)'!AC7 -> 4.0 | AD3: ='법정동(2014.12월말)'!AD6-'법정동(2013년말)'!AD7 -> 661,145.8 | AE3: ='법정동(2014.12월말)'!AE6-'법정동(2013년말)'!AE7 -> 202.0 | AF3: ='법정동(2014.12월말)'!AF6-'법정동(2013년말)'!AF7 -> 1,055.0 | AG3: ='법정동(2014.12월말)'!AG6-'법정동(2013년말)'!AG7 -> 9.0 | AH3: ='법정동(2014.12월말)'!AH6-'법정동(2013년말)'!AH7 -> 3,907.7 | AI3: ='법정동(2014.12월말)'!AI6-'법정동(2013년말)'!AI7 -> -6.0 | AJ3: ='법정동(2014.12월말)'!AJ6-'법정동(2013년말)'!AJ7 -> 110,347.2 | AK3: ='법정동(2014.12월말)'!AK6-'법정동(2013년말)'!AK7 -> 20.0 | AL3: ='법정동(2014.12월말)'!AL6-'법정동(2013년말)'!AL7 -> 50,790.4 | AM3: ='법정동(2014.12월말)'!AM6-'법정동(2013년말)'!AM7 -> 33.0 | AN3: ='법정동(2014.12월말)'!AN6-'법정동(2013년말)'!AN7 -> -104,821.0 | AO3: ='법정동(2014.12월말)'!AO6-'법정동(2013년말)'!AO7 -> -22.0 | AP3: ='법정동(2014.12월말)'!AP6-'법정동(2013년말)'!AP7 -> 11,225.0 | AQ3: ='법정동(2014.12월말)'!AQ6-'법정동(2013년말)'!AQ7 -> 9.0 | AR3: ='법정동(2014.12월말)'!AR6-'법정동(2013년말)'!AR7 -> -11,302.0 | AS3: ='법정동(2014.12월말)'!AS6-'법정동(2013년말)'!AS7 -> -6.0 | AT3: ='법정동(2014.12월말)'!AT6-'법정동(2013년말)'!AT7 -> 484,520.3 | AU3: ='법정동(2014.12월말)'!AU6-'법정동(2013년말)'!AU7 -> 16.0 | AV3: ='법정동(2014.12월말)'!AV6-'법정동(2013년말)'!AV7 -> 418,435.5 | AW3: ='법정동(2014.12월말)'!AW6-'법정동(2013년말)'!AW7 -> 5.0 | AX3: ='법정동(2014.12월말)'!AX6-'법정동(2013년말)'!AX7 -> 0.0 | AY3: ='법정동(2014.12월말)'!AY6-'법정동(2013년말)'!AY7 -> 0.0 | AZ3: ='법정동(2014.12월말)'!AZ6-'법정동(2013년말)'!AZ7 -> 2,847.5 | BA3: ='법정동(2014.12월말)'!BA6-'법정동(2013년말)'!BA7 -> 4.0 | BB3: ='법정동(2014.12월말)'!BB6-'법정동(2013년말)'!BB7 -> 0.0 | BC3: ='법정동(2014.12월말)'!BC6-'법정동(2013년말)'!BC7 -> 0.0 | BD3: ='법정동(2014.12월말)'!BD6-'법정동(2013년말)'!BD7 -> -3,951.0 | BE3: ='법정동(2014.12월말)'!BE6-'법정동(2013년말)'!BE7 -> -17.0 | BF3: ='법정동(2014.12월말)'!BF6-'법정동(2013년말)'!BF7 -> 108,559.6 | BG3: ='법정동(2014.12월말)'!BG6-'법정동(2013년말)'!BG7 -> 43.0
A4: 종화동 | B4: ='법정동(2014.12월말)'!B7-'법정동(2013년말)'!B8 -> 155.0 | C4: ='법정동(2014.12월말)'!C7-'법정동(2013년말)'!C8 -> -43.0 | D4: ='법정동(2014.12월말)'!D7-'법정동(2013년말)'!D8 -> -5,692.0 | E4: ='법정동(2014.12월말)'!E7-'법정동(2013년말)'!E8 -> -23.0 | F4: ='법정동(2014.12월말)'!F7-'법정동(2013년말)'!F8 -> 0.0 | G4: ='법정동(2014.12월말)'!G7-'법정동(2013년말)'!G8 -> 0.0 | H4: ='법정동(2014.12월말)'!H7-'법정동(2013년말)'!H8 -> 0.0 | I4: ='법정동(2014.12월말)'!I7-'법정동(2013년말)'!I8 -> 0.0 | J4: ='법정동(2014.12월말)'!J7-'법정동(2013년말)'!J8 -> 0.0 | K4: ='법정동(2014.12월말)'!K7-'법정동(2013년말)'!K8 -> 0.0 | L4: ='법정동(2014.12월말)'!L7-'법정동(2013년말)'!L8 -> 0.0 | M4: ='법정동(2014.12월말)'!M7-'법정동(2013년말)'!M8 -> 0.0 | N4: ='법정동(2014.12월말)'!N7-'법정동(2013년말)'!N8 -> 0.0 | O4: ='법정동(2014.12월말)'!O7-'법정동(2013년말)'!O8 -> 0.0 | P4: ='법정동(2014.12월말)'!P7-'법정동(2013년말)'!P8 -> 0.0 | Q4: ='법정동(2014.12월말)'!Q7-'법정동(2013년말)'!Q8 -> 0.0 | R4: ='법정동(2014.12월말)'!R7-'법정동(2013년말)'!R8 -> -1,510.0 | S4: ='법정동(2014.12월말)'!S7-'법정동(2013년말)'!S8 -> -32.0 | T4: ='법정동(2014.12월말)'!T7-'법정동(2013년말)'!T8 -> 0.0 | U4: ='법정동(2014.12월말)'!U7-'법정동(2013년말)'!U8 -> 0.0 | V4: ='법정동(2014.12월말)'!V7-'법정동(2013년말)'!V8 -> 0.0 | W4: ='법정동(2014.12월말)'!W7-'법정동(2013년말)'!W8 -> 0.0 | X4: ='법정동(2014.12월말)'!X7-'법정동(2013년말)'!X8 -> 0.0 | Y4: ='법정동(2014.12월말)'!Y7-'법정동(2013년말)'!Y8 -> 0.0 | Z4: ='법정동(2014.12월말)'!Z7-'법정동(2013년말)'!Z8 -> 0.0 | AA4: ='법정동(2014.12월말)'!AA7-'법정동(2013년말)'!AA8 -> 0.0 | AB4: ='법정동(2014.12월말)'!AB7-'법정동(2013년말)'!AB8 -> -177.0 | AC4: ='법정동(2014.12월말)'!AC7-'법정동(2013년말)'!AC8 -> -1.0 | AD4: ='법정동(2014.12월말)'!AD7-'법정동(2013년말)'!AD8 -> 8,808.0 | AE4: ='법정동(2014.12월말)'!AE7-'법정동(2013년말)'!AE8 -> 18.0 | AF4: ='법정동(2014.12월말)'!AF7-'법정동(2013년말)'!AF8 -> 0.0 | AG4: ='법정동(2014.12월말)'!AG7-'법정동(2013년말)'!AG8 -> 0.0 | AH4: ='법정동(2014.12월말)'!AH7-'법정동(2013년말)'!AH8 -> 0.0 | AI4: ='법정동(2014.12월말)'!AI7-'법정동(2013년말)'!AI8 -> 0.0 | AJ4: ='법정동(2014.12월말)'!AJ7-'법정동(2013년말)'!AJ8 -> 0.0 | AK4: ='법정동(2014.12월말)'!AK7-'법정동(2013년말)'!AK8 -> 0.0 | AL4: ='법정동(2014.12월말)'!AL7-'법정동(2013년말)'!AL8 -> 0.0 | AM4: ='법정동(2014.12월말)'!AM7-'법정동(2013년말)'!AM8 -> 0.0 | AN4: ='법정동(2014.12월말)'!AN7-'법정동(2013년말)'!AN8 -> 0.0 | AO4: ='법정동(2014.12월말)'!AO7-'법정동(2013년말)'!AO8 -> 0.0 | AP4: ='법정동(2014.12월말)'!AP7-'법정동(2013년말)'!AP8 -> 0.0 | AQ4: ='법정동(2014.12월말)'!AQ7-'법정동(2013년말)'!AQ8 -> 0.0 | AR4: ='법정동(2014.12월말)'!AR7-'법정동(2013년말)'!AR8 -> 0.0 | AS4: ='법정동(2014.12월말)'!AS7-'법정동(2013년말)'!AS8 -> 0.0 | AT4: ='법정동(2014.12월말)'!AT7-'법정동(2013년말)'!AT8 -> 0.0 | AU4: ='법정동(2014.12월말)'!AU7-'법정동(2013년말)'!AU8 -> 0.0 | AV4: ='법정동(2014.12월말)'!AV7-'법정동(2013년말)'!AV8 -> 0.0 | AW4: ='법정동(2014.12월말)'!AW7-'법정동(2013년말)'!AW8 -> 0.0 | AX4: ='법정동(2014.12월말)'!AX7-'법정동(2013년말)'!AX8 -> 0.0 | AY4: ='법정동(2014.12월말)'!AY7-'법정동(2013년말)'!AY8 -> 0.0 | AZ4: ='법정동(2014.12월말)'!AZ7-'법정동(2013년말)'!AZ8 -> -418.0 | BA4: ='법정동(2014.12월말)'!BA7-'법정동(2013년말)'!BA8 -> -1.0 | BB4: ='법정동(2014.12월말)'!BB7-'법정동(2013년말)'!BB8 -> 0.0 | BC4: ='법정동(2014.12월말)'!BC7-'법정동(2013년말)'!BC8 -> 0.0 | BD4: ='법정동(2014.12월말)'!BD7-'법정동(2013년말)'!BD8 -> -747.0 | BE4: ='법정동(2014.12월말)'!BE7-'법정동(2013년말)'!BE8 -> -3.0 | BF4: ='법정동(2014.12월말)'!BF7-'법정동(2013년말)'!BF8 -> -109.0 | BG4: ='법정동(2014.12월말)'!BG7-'법정동(2013년말)'!BG8 -> -1.0
A5: 수정동 | B5: ='법정동(2014.12월말)'!B8-'법정동(2013년말)'!B9 -> 0.0 | C5: ='법정동(2014.12월말)'!C8-'법정동(2013년말)'!C9 -> -112.0 | D5: ='법정동(2014.12월말)'!D8-'법정동(2013년말)'!D9 -> -1,957.0 | E5: ='법정동(2014.12월말)'!E8-'법정동(2013년말)'!E9 -> -16.0 | F5: ='법정동(2014.12월말)'!F8-'법정동(2013년말)'!F9 -> 0.0 | G5: ='법정동(2014.12월말)'!G8-'법정동(2013년말)'!G9 -> 0.0 | H5: ='법정동(2014.12월말)'!H8-'법정동(2013년말)'!H9 -> 0.0 | I5: ='법정동(2014.12월말)'!I8-'법정동(2013년말)'!I9 -> 0.0 | J5: ='법정동(2014.12월말)'!J8-'법정동(2013년말)'!J9 -> 0.0 | K5: ='법정동(2014.12월말)'!K8-'법정동(2013년말)'!K9 -> 0.0 | L5: ='법정동(2014.12월말)'!L8-'법정동(2013년말)'!L9 -> 0.0 | M5: ='법정동(2014.12월말)'!M8-'법정동(2013년말)'!M9 -> 0.0 | N5: ='법정동(2014.12월말)'!N8-'법정동(2013년말)'!N9 -> 0.0 | O5: ='법정동(2014.12월말)'!O8-'법정동(2013년말)'!O9 -> 0.0 | P5: ='법정동(2014.12월말)'!P8-'법정동(2013년말)'!P9 -> 0.0 | Q5: ='법정동(2014.12월말)'!Q8-'법정동(2013년말)'!Q9 -> 0.0 | R5: ='법정동(2014.12월말)'!R8-'법정동(2013년말)'!R9 -> -6,138.0 | S5: ='법정동(2014.12월말)'!S8-'법정동(2013년말)'!S9 -> -103.0 | T5: ='법정동(2014.12월말)'!T8-'법정동(2013년말)'!T9 -> 0.0 | U5: ='법정동(2014.12월말)'!U8-'법정동(2013년말)'!U9 -> 0.0 | V5: ='법정동(2014.12월말)'!V8-'법정동(2013년말)'!V9 -> 0.0 | W5: ='법정동(2014.12월말)'!W8-'법정동(2013년말)'!W9 -> 0.0 | X5: ='법정동(2014.12월말)'!X8-'법정동(2013년말)'!X9 -> 165.0 | Y5: ='법정동(2014.12월말)'!Y8-'법정동(2013년말)'!Y9 -> 1.0 | Z5: ='법정동(2014.12월말)'!Z8-'법정동(2013년말)'!Z9 -> 0.0 | AA5: ='법정동(2014.12월말)'!AA8-'법정동(2013년말)'!AA9 -> 0.0 | AB5: ='법정동(2014.12월말)'!AB8-'법정동(2013년말)'!AB9 -> 0.0 | AC5: ='법정동(2014.12월말)'!AC8-'법정동(2013년말)'!AC9 -> 0.0 | AD5: ='법정동(2014.12월말)'!AD8-'법정동(2013년말)'!AD9 -> 7,930.0 | AE5: ='법정동(2014.12월말)'!AE8-'법정동(2013년말)'!AE9 -> 6.0 | AF5: ='법정동(2014.12월말)'!AF8-'법정동(2013년말)'!AF9 -> 0.0 | AG5: ='법정동(2014.12월말)'!AG8-'법정동(2013년말)'!AG9 -> 0.0 | AH5: ='법정동(2014.12월말)'!AH8-'법정동(2013년말)'!AH9 -> 0.0 | AI5: ='법정동(2014.12월말)'!AI8-'법정동(2013년말)'!AI9 -> 0.0 | AJ5: ='법정동(2014.12월말)'!AJ8-'법정동(2013년말)'!AJ9 -> 0.0 | AK5: ='법정동(2014.12월말)'!AK8-'법정동(2013년말)'!AK9 -> 0.0 | AL5: ='법정동(2014.12월말)'!AL8-'법정동(2013년말)'!AL9 -> 0.0 | AM5: ='법정동(2014.12월말)'!AM8-'법정동(2013년말)'!AM9 -> 0.0 | AN5: ='법정동(2014.12월말)'!AN8-'법정동(2013년말)'!AN9 -> 0.0 | AO5: ='법정동(2014.12월말)'!AO8-'법정동(2013년말)'!AO9 -> 0.0 | AP5: ='법정동(2014.12월말)'!AP8-'법정동(2013년말)'!AP9 -> 0.0 | AQ5: ='법정동(2014.12월말)'!AQ8-'법정동(2013년말)'!AQ9 -> 0.0 | AR5: ='법정동(2014.12월말)'!AR8-'법정동(2013년말)'!AR9 -> 0.0 | AS5: ='법정동(2014.12월말)'!AS8-'법정동(2013년말)'!AS9 -> 0.0 | AT5: ='법정동(2014.12월말)'!AT8-'법정동(2013년말)'!AT9 -> 0.0 | AU5: ='법정동(2014.12월말)'!AU8-'법정동(2013년말)'!AU9 -> 0.0 | AV5: ='법정동(2014.12월말)'!AV8-'법정동(2013년말)'!AV9 -> 0.0 | AW5: ='법정동(2014.12월말)'!AW8-'법정동(2013년말)'!AW9 -> 0.0 | AX5: ='법정동(2014.12월말)'!AX8-'법정동(2013년말)'!AX9 -> 0.0 | AY5: ='법정동(2014.12월말)'!AY8-'법정동(2013년말)'!AY9 -> 0.0 | AZ5: ='법정동(2014.12월말)'!AZ8-'법정동(2013년말)'!AZ9 -> 0.0 | BA5: ='법정동(2014.12월말)'!BA8-'법정동(2013년말)'!BA9 -> 0.0 | BB5: ='법정동(2014.12월말)'!BB8-'법정동(2013년말)'!BB9 -> 0.0 | BC5: ='법정동(2014.12월말)'!BC8-'법정동(2013년말)'!BC9 -> 0.0 | BD5: ='법정동(2014.12월말)'!BD8-'법정동(2013년말)'!BD9 -> 0.0 | BE5: ='법정동(2014.12월말)'!BE8-'법정동(2013년말)'!BE9 -> 0.0 | BF5: ='법정동(2014.12월말)'!BF8-'법정동(2013년말)'!BF9 -> 0.0 | BG5: ='법정동(2014.12월말)'!BG8-'법정동(2013년말)'!BG9 -> 0.0
A6: 공화동 | B6: ='법정동(2014.12월말)'!B9-'법정동(2013년말)'!B10 -> 0.0 | C6: ='법정동(2014.12월말)'!C9-'법정동(2013년말)'!C10 -> 2.0 | D6: ='법정동(2014.12월말)'!D9-'법정동(2013년말)'!D10 -> 0.0 | E6: ='법정동(2014.12월말)'!E9-'법정동(2013년말)'!E10 -> 0.0 | F6: ='법정동(2014.12월말)'!F9-'법정동(2013년말)'!F10 -> 0.0 | G6: ='법정동(2014.12월말)'!G9-'법정동(2013년말)'!G10 -> 0.0 | H6: ='법정동(2014.12월말)'!H9-'법정동(2013년말)'!H10 -> 0.0 | I6: ='법정동(2014.12월말)'!I9-'법정동(2013년말)'!I10 -> 0.0 | J6: ='법정동(2014.12월말)'!J9-'법정동(2013년말)'!J10 -> 0.0 | K6: ='법정동(2014.12월말)'!K9-'법정동(2013년말)'!K10 -> 0.0 | L6: ='법정동(2014.12월말)'!L9-'법정동(2013년말)'!L10 -> 0.0 | M6: ='법정동(2014.12월말)'!M9-'법정동(2013년말)'!M10 -> 0.0 | N6: ='법정동(2014.12월말)'!N9-'법정동(2013년말)'!N10 -> 0.0 | O6: ='법정동(2014.12월말)'!O9-'법정동(2013년말)'!O10 -> 0.0 | P6: ='법정동(2014.12월말)'!P9-'법정동(2013년말)'!P10 -> 0.0 | Q6: ='법정동(2014.12월말)'!Q9-'법정동(2013년말)'!Q10 -> 0.0 | R6: ='법정동(2014.12월말)'!R9-'법정동(2013년말)'!R10 -> -11.0 | S6: ='법정동(2014.12월말)'!S9-'법정동(2013년말)'!S10 -> -1.0 | T6: ='법정동(2014.12월말)'!T9-'법정동(2013년말)'!T10 -> 0.0 | U6: ='법정동(2014.12월말)'!U9-'법정동(2013년말)'!U10 -> 0.0 | V6: ='법정동(2014.12월말)'!V9-'법정동(2013년말)'!V10 -> -20.0 | W6: ='법정동(2014.12월말)'!W9-'법정동(2013년말)'!W10 -> -1.0 | X6: ='법정동(2014.12월말)'!X9-'법정동(2013년말)'!X10 -> 0.0 | Y6: ='법정동(2014.12월말)'!Y9-'법정동(2013년말)'!Y10 -> 0.0 | Z6: ='법정동(2014.12월말)'!Z9-'법정동(2013년말)'!Z10 -> 0.0 | AA6: ='법정동(2014.12월말)'!AA9-'법정동(2013년말)'!AA10 -> 0.0 | AB6: ='법정동(2014.12월말)'!AB9-'법정동(2013년말)'!AB10 -> 0.0 | AC6: ='법정동(2014.12월말)'!AC9-'법정동(2013년말)'!AC10 -> 0.0 | AD6: ='법정동(2014.12월말)'!AD9-'법정동(2013년말)'!AD10 -> 11.0 | AE6: ='법정동(2014.12월말)'!AE9-'법정동(2013년말)'!AE10 -> 3.0 | AF6: ='법정동(2014.12월말)'!AF9-'법정동(2013년말)'!AF10 -> 0.0 | AG6: ='법정동(2014.12월말)'!AG9-'법정동(2013년말)'!AG10 -> 0.0 | AH6: ='법정동(2014.12월말)'!AH9-'법정동(2013년말)'!AH10 -> 0.0 | AI6: ='법정동(2014.12월말)'!AI9-'법정동(2013년말)'!AI10 -> 0.0 | AJ6: ='법정동(2014.12월말)'!AJ9-'법정동(2013년말)'!AJ10 -> 0.0 | AK6: ='법정동(2014.12월말)'!AK9-'법정동(2013년말)'!AK10 -> 0.0 | AL6: ='법정동(2014.12월말)'!AL9-'법정동(2013년말)'!AL10 -> 20.0 | AM6: ='법정동(2014.12월말)'!AM9-'법정동(2013년말)'!AM10 -> 1.0 | AN6: ='법정동(2014.12월말)'!AN9-'법정동(2013년말)'!AN10 -> 0.0 | AO6: ='법정동(2014.12월말)'!AO9-'법정동(2013년말)'!AO10 -> 0.0 | AP6: ='법정동(2014.12월말)'!AP9-'법정동(2013년말)'!AP10 -> 0.0 | AQ6: ='법정동(2014.12월말)'!AQ9-'법정동(2013년말)'!AQ10 -> 0.0 | AR6: ='법정동(2014.12월말)'!AR9-'법정동(2013년말)'!AR10 -> 0.0 | AS6: ='법정동(2014.12월말)'!AS9-'법정동(2013년말)'!AS10 -> 0.0 | AT6: ='법정동(2014.12월말)'!AT9-'법정동(2013년말)'!AT10 -> 0.0 | AU6: ='법정동(2014.12월말)'!AU9-'법정동(2013년말)'!AU10 -> 0.0 | AV6: ='법정동(2014.12월말)'!AV9-'법정동(2013년말)'!AV10 -> 0.0 | AW6: ='법정동(2014.12월말)'!AW9-'법정동(2013년말)'!AW10 -> 0.0 | AX6: ='법정동(2014.12월말)'!AX9-'법정동(2013년말)'!AX10 -> 0.0 | AY6: ='법정동(2014.12월말)'!AY9-'법정동(2013년말)'!AY10 -> 0.0 | AZ6: ='법정동(2014.12월말)'!AZ9-'법정동(2013년말)'!AZ10 -> 0.0 | BA6: ='법정동(2014.12월말)'!BA9-'법정동(2013년말)'!BA10 -> 0.0 | BB6: ='법정동(2014.12월말)'!BB9-'법정동(2013년말)'!BB10 -> 0.0 | BC6: ='법정동(2014.12월말)'!BC9-'법정동(2013년말)'!BC10 -> 0.0 | BD6: ='법정동(2014.12월말)'!BD9-'법정동(2013년말)'!BD10 -> 0.0 | BE6: ='법정동(2014.12월말)'!BE9-'법정동(2013년말)'!BE10 -> 0.0 | BF6: ='법정동(2014.12월말)'!BF9-'법정동(2013년말)'!BF10 -> 0.0 | BG6: ='법정동(2014.12월말)'!BG9-'법정동(2013년말)'!BG10 -> 0.0
A7: 관문동 | B7: ='법정동(2014.12월말)'!B10-'법정동(2013년말)'!B11 -> 0.0 | C7: ='법정동(2014.12월말)'!C10-'법정동(2013년말)'!C11 -> -50.0 | D7: ='법정동(2014.12월말)'!D10-'법정동(2013년말)'!D11 -> -253.0 | E7: ='법정동(2014.12월말)'!E10-'법정동(2013년말)'!E11 -> -3.0 | F7: ='법정동(2014.12월말)'!F10-'법정동(2013년말)'!F11 -> 0.0 | G7: ='법정동(2014.12월말)'!G10-'법정동(2013년말)'!G11 -> 0.0 | H7: ='법정동(2014.12월말)'!H10-'법정동(2013년말)'!H11 -> 0.0 | I7: ='법정동(2014.12월말)'!I10-'법정동(2013년말)'!I11 -> 0.0 | J7: ='법정동(2014.12월말)'!J10-'법정동(2013년말)'!J11 -> 0.0 | K7: ='법정동(2014.12월말)'!K10-'법정동(2013년말)'!K11 -> 0.0 | L7: ='법정동(2014.12월말)'!L10-'법정동(2013년말)'!L11 -> -592.0 | M7: ='법정동(2014.12월말)'!M10-'법정동(2013년말)'!M11 -> -5.0 | N7: ='법정동(2014.12월말)'!N10-'법정동(2013년말)'!N11 -> 0.0 | O7: ='법정동(2014.12월말)'!O10-'법정동(2013년말)'!O11 -> 0.0 | P7: ='법정동(2014.12월말)'!P10-'법정동(2013년말)'!P11 -> 0.0 | Q7: ='법정동(2014.12월말)'!Q10-'법정동(2013년말)'!Q11 -> 0.0 | R7: ='법정동(2014.12월말)'!R10-'법정동(2013년말)'!R11 -> -1,882.0 | S7: ='법정동(2014.12월말)'!S10-'법정동(2013년말)'!S11 -> -40.0 | T7: ='법정동(2014.12월말)'!T10-'법정동(2013년말)'!T11 -> 0.0 | U7: ='법정동(2014.12월말)'!U10-'법정동(2013년말)'!U11 -> 0.0 | V7: ='법정동(2014.12월말)'!V10-'법정동(2013년말)'!V11 -> -216.0 | W7: ='법정동(2014.12월말)'!W10-'법정동(2013년말)'!W11 -> 0.0 | X7: ='법정동(2014.12월말)'!X10-'법정동(2013년말)'!X11 -> 378.0 | Y7: ='법정동(2014.12월말)'!Y10-'법정동(2013년말)'!Y11 -> 1.0 | Z7: ='법정동(2014.12월말)'!Z10-'법정동(2013년말)'!Z11 -> 0.0 | AA7: ='법정동(2014.12월말)'!AA10-'법정동(2013년말)'!AA11 -> 0.0 | AB7: ='법정동(2014.12월말)'!AB10-'법정동(2013년말)'!AB11 -> 0.0 | AC7: ='법정동(2014.12월말)'!AC10-'법정동(2013년말)'!AC11 -> 0.0 | AD7: ='법정동(2014.12월말)'!AD10-'법정동(2013년말)'!AD11 -> 2,644.0 | AE7: ='법정동(2014.12월말)'!AE10-'법정동(2013년말)'!AE11 -> -2.0 | AF7: ='법정동(2014.12월말)'!AF10-'법정동(2013년말)'!AF11 -> 0.0 | AG7: ='법정동(2014.12월말)'!AG10-'법정동(2013년말)'!AG11 -> 0.0 | AH7: ='법정동(2014.12월말)'!AH10-'법정동(2013년말)'!AH11 -> 0.0 | AI7: ='법정동(2014.12월말)'!AI10-'법정동(2013년말)'!AI11 -> 0.0 | AJ7: ='법정동(2014.12월말)'!AJ10-'법정동(2013년말)'!AJ11 -> 0.0 | AK7: ='법정동(2014.12월말)'!AK10-'법정동(2013년말)'!AK11 -> 0.0 | AL7: ='법정동(2014.12월말)'!AL10-'법정동(2013년말)'!AL11 -> 0.0 | AM7: ='법정동(2014.12월말)'!AM10-'법정동(2013년말)'!AM11 -> 0.0 | AN7: ='법정동(2014.12월말)'!AN10-'법정동(2013년말)'!AN11 -> 0.0 | AO7: ='법정동(2014.12월말)'!AO10-'법정동(2013년말)'!AO11 -> 0.0 | AP7: ='법정동(2014.12월말)'!AP10-'법정동(2013년말)'!AP11 -> 0.0 | AQ7: ='법정동(2014.12월말)'!AQ10-'법정동(2013년말)'!AQ11 -> 0.0 | AR7: ='법정동(2014.12월말)'!AR10-'법정동(2013년말)'!AR11 -> 0.0 | AS7: ='법정동(2014.12월말)'!AS10-'법정동(2013년말)'!AS11 -> 0.0 | AT7: ='법정동(2014.12월말)'!AT10-'법정동(2013년말)'!AT11 -> 0.0 | AU7: ='법정동(2014.12월말)'!AU10-'법정동(2013년말)'!AU11 -> 0.0 | AV7: ='법정동(2014.12월말)'!AV10-'법정동(2013년말)'!AV11 -> 0.0 | AW7: ='법정동(2014.12월말)'!AW10-'법정동(2013년말)'!AW11 -> 0.0 | AX7: ='법정동(2014.12월말)'!AX10-'법정동(2013년말)'!AX11 -> 0.0 | AY7: ='법정동(2014.12월말)'!AY10-'법정동(2013년말)'!AY11 -> 0.0 | AZ7: ='법정동(2014.12월말)'!AZ10-'법정동(2013년말)'!AZ11 -> 0.0 | BA7: ='법정동(2014.12월말)'!BA10-'법정동(2013년말)'!BA11 -> 0.0 | BB7: ='법정동(2014.12월말)'!BB10-'법정동(2013년말)'!BB11 -> 0.0 | BC7: ='법정동(2014.12월말)'!BC10-'법정동(2013년말)'!BC11 -> 0.0 | BD7: ='법정동(2014.12월말)'!BD10-'법정동(2013년말)'!BD11 -> 0.0 | BE7: ='법정동(2014.12월말)'!BE10-'법정동(2013년말)'!BE11 -> 0.0 | BF7: ='법정동(2014.12월말)'!BF10-'법정동(2013년말)'!BF11 -> -79.0 | BG7: ='법정동(2014.12월말)'!BG10-'법정동(2013년말)'!BG11 -> -1.0
A8: 고소동 | B8: ='법정동(2014.12월말)'!B11-'법정동(2013년말)'!B12 -> -47.0 | C8: ='법정동(2014.12월말)'!C11-'법정동(2013년말)'!C12 -> 2.0 | D8: ='법정동(2014.12월말)'!D11-'법정동(2013년말)'!D12 -> -317.0 | E8: ='법정동(2014.12월말)'!E11-'법정동(2013년말)'!E12 -> -1.0 | F8: ='법정동(2014.12월말)'!F11-'법정동(2013년말)'!F12 -> 0.0 | G8: ='법정동(2014.12월말)'!G11-'법정동(2013년말)'!G12 -> 0.0 | H8: ='법정동(2014.12월말)'!H11-'법정동(2013년말)'!H12 -> 0.0 | I8: ='법정동(2014.12월말)'!I11-'법정동(2013년말)'!I12 -> 0.0 | J8: ='법정동(2014.12월말)'!J11-'법정동(2013년말)'!J12 -> 0.0 | K8: ='법정동(2014.12월말)'!K11-'법정동(2013년말)'!K12 -> 0.0 | L8: ='법정동(2014.12월말)'!L11-'법정동(2013년말)'!L12 -> 0.0 | M8: ='법정동(2014.12월말)'!M11-'법정동(2013년말)'!M12 -> 0.0 | N8: ='법정동(2014.12월말)'!N11-'법정동(2013년말)'!N12 -> 0.0 | O8: ='법정동(2014.12월말)'!O11-'법정동(2013년말)'!O12 -> 0.0 | P8: ='법정동(2014.12월말)'!P11-'법정동(2013년말)'!P12 -> 0.0 | Q8: ='법정동(2014.12월말)'!Q11-'법정동(2013년말)'!Q12 -> 0.0 | R8: ='법정동(2014.12월말)'!R11-'법정동(2013년말)'!R12 -> 382.0 | S8: ='법정동(2014.12월말)'!S11-'법정동(2013년말)'!S12 -> 3.0 | T8: ='법정동(2014.12월말)'!T11-'법정동(2013년말)'!T12 -> 0.0 | U8: ='법정동(2014.12월말)'!U11-'법정동(2013년말)'!U12 -> 0.0 | V8: ='법정동(2014.12월말)'!V11-'법정동(2013년말)'!V12 -> 0.0 | W8: ='법정동(2014.12월말)'!W11-'법정동(2013년말)'!W12 -> 0.0 | X8: ='법정동(2014.12월말)'!X11-'법정동(2013년말)'!X12 -> 0.0 | Y8: ='법정동(2014.12월말)'!Y11-'법정동(2013년말)'!Y12 -> 0.0 | Z8: ='법정동(2014.12월말)'!Z11-'법정동(2013년말)'!Z12 -> 0.0 | AA8: ='법정동(2014.12월말)'!AA11-'법정동(2013년말)'!AA12 -> 0.0 | AB8: ='법정동(2014.12월말)'!AB11-'법정동(2013년말)'!AB12 -> 0.0 | AC8: ='법정동(2014.12월말)'!AC11-'법정동(2013년말)'!AC12 -> 0.0 | AD8: ='법정동(2014.12월말)'!AD11-'법정동(2013년말)'!AD12 -> -112.0 | AE8: ='법정동(2014.12월말)'!AE11-'법정동(2013년말)'!AE12 -> 0.0 | AF8: ='법정동(2014.12월말)'!AF11-'법정동(2013년말)'!AF12 -> 0.0 | AG8: ='법정동(2014.12월말)'!AG11-'법정동(2013년말)'!AG12 -> 0.0 | AH8: ='법정동(2014.12월말)'!AH11-'법정동(2013년말)'!AH12 -> 0.0 | AI8: ='법정동(2014.12월말)'!AI11-'법정동(2013년말)'!AI12 -> 0.0 | AJ8: ='법정동(2014.12월말)'!AJ11-'법정동(2013년말)'!AJ12 -> 0.0 | AK8: ='법정동(2014.12월말)'!AK11-'법정동(2013년말)'!AK12 -> 0.0 | AL8: ='법정동(2014.12월말)'!AL11-'법정동(2013년말)'!AL12 -> 0.0 | AM8: ='법정동(2014.12월말)'!AM11-'법정동(2013년말)'!AM12 -> 0.0 | AN8: ='법정동(2014.12월말)'!AN11-'법정동(2013년말)'!AN12 -> 0.0 | AO8: ='법정동(2014.12월말)'!AO11-'법정동(2013년말)'!AO12 -> 0.0 | AP8: ='법정동(2014.12월말)'!AP11-'법정동(2013년말)'!AP12 -> 0.0 | AQ8: ='법정동(2014.12월말)'!AQ11-'법정동(2013년말)'!AQ12 -> 0.0 | AR8: ='법정동(2014.12월말)'!AR11-'법정동(2013년말)'!AR12 -> 0.0 | AS8: ='법정동(2014.12월말)'!AS11-'법정동(2013년말)'!AS12 -> 0.0 | AT8: ='법정동(2014.12월말)'!AT11-'법정동(2013년말)'!AT12 -> 0.0 | AU8: ='법정동(2014.12월말)'!AU11-'법정동(2013년말)'!AU12 -> 0.0 | AV8: ='법정동(2014.12월말)'!AV11-'법정동(2013년말)'!AV12 -> 0.0 | AW8: ='법정동(2014.12월말)'!AW11-'법정동(2013년말)'!AW12 -> 0.0 | AX8: ='법정동(2014.12월말)'!AX11-'법정동(2013년말)'!AX12 -> 0.0 | AY8: ='법정동(2014.12월말)'!AY11-'법정동(2013년말)'!AY12 -> 0.0 | AZ8: ='법정동(2014.12월말)'!AZ11-'법정동(2013년말)'!AZ12 -> 0.0 | BA8: ='법정동(2014.12월말)'!BA11-'법정동(2013년말)'!BA12 -> 0.0 | BB8: ='법정동(2014.12월말)'!BB11-'법정동(2013년말)'!BB12 -> 0.0 | BC8: ='법정동(2014.12월말)'!BC11-'법정동(2013년말)'!BC12 -> 0.0 | BD8: ='법정동(2014.12월말)'!BD11-'법정동(2013년말)'!BD12 -> 0.0 | BE8: ='법정동(2014.12월말)'!BE11-'법정동(2013년말)'!BE12 -> 0.0 | BF8: ='법정동(2014.12월말)'!BF11-'법정동(2013년말)'!BF12 -> 0.0 | BG8: ='법정동(2014.12월말)'!BG11-'법정동(2013년말)'!BG12 -> 0.0
A9: 동산동 | B9: ='법정동(2014.12월말)'!B12-'법정동(2013년말)'!B13 -> 0.0 | C9: ='법정동(2014.12월말)'!C12-'법정동(2013년말)'!C13 -> 0.0 | D9: ='법정동(2014.12월말)'!D12-'법정동(2013년말)'!D13 -> 0.0 | E9: ='법정동(2014.12월말)'!E12-'법정동(2013년말)'!E13 -> 0.0 | F9: ='법정동(2014.12월말)'!F12-'법정동(2013년말)'!F13 -> 0.0 | G9: ='법정동(2014.12월말)'!G12-'법정동(2013년말)'!G13 -> 0.0 | H9: ='법정동(2014.12월말)'!H12-'법정동(2013년말)'!H13 -> 0.0 | I9: ='법정동(2014.12월말)'!I12-'법정동(2013년말)'!I13 -> 0.0 | J9: ='법정동(2014.12월말)'!J12-'법정동(2013년말)'!J13 -> 0.0 | K9: ='법정동(2014.12월말)'!K12-'법정동(2013년말)'!K13 -> 0.0 | L9: ='법정동(2014.12월말)'!L12-'법정동(2013년말)'!L13 -> 0.0 | M9: ='법정동(2014.12월말)'!M12-'법정동(2013년말)'!M13 -> 0.0 | N9: ='법정동(2014.12월말)'!N12-'법정동(2013년말)'!N13 -> 0.0 | O9: ='법정동(2014.12월말)'!O12-'법정동(2013년말)'!O13 -> 0.0 | P9: ='법정동(2014.12월말)'!P12-'법정동(2013년말)'!P13 -> 0.0 | Q9: ='법정동(2014.12월말)'!Q12-'법정동(2013년말)'!Q13 -> 0.0 | R9: ='법정동(2014.12월말)'!R12-'법정동(2013년말)'!R13 -> 107.0 | S9: ='법정동(2014.12월말)'!S12-'법정동(2013년말)'!S13 -> -1.0 | T9: ='법정동(2014.12월말)'!T12-'법정동(2013년말)'!T13 -> 0.0 | U9: ='법정동(2014.12월말)'!U12-'법정동(2013년말)'!U13 -> 0.0 | V9: ='법정동(2014.12월말)'!V12-'법정동(2013년말)'!V13 -> 0.0 | W9: ='법정동(2014.12월말)'!W12-'법정동(2013년말)'!W13 -> 0.0 | X9: ='법정동(2014.12월말)'!X12-'법정동(2013년말)'!X13 -> 0.0 | Y9: ='법정동(2014.12월말)'!Y12-'법정동(2013년말)'!Y13 -> 1.0 | Z9: ='법정동(2014.12월말)'!Z12-'법정동(2013년말)'!Z13 -> 0.0 | AA9: ='법정동(2014.12월말)'!AA12-'법정동(2013년말)'!AA13 -> 0.0 | AB9: ='법정동(2014.12월말)'!AB12-'법정동(2013년말)'!AB13 -> 0.0 | AC9: ='법정동(2014.12월말)'!AC12-'법정동(2013년말)'!AC13 -> 0.0 | AD9: ='법정동(2014.12월말)'!AD12-'법정동(2013년말)'!AD13 -> 0.0 | AE9: ='법정동(2014.12월말)'!AE12-'법정동(2013년말)'!AE13 -> 0.0 | AF9: ='법정동(2014.12월말)'!AF12-'법정동(2013년말)'!AF13 -> 0.0 | AG9: ='법정동(2014.12월말)'!AG12-'법정동(2013년말)'!AG13 -> 0.0 | AH9: ='법정동(2014.12월말)'!AH12-'법정동(2013년말)'!AH13 -> 0.0 | AI9: ='법정동(2014.12월말)'!AI12-'법정동(2013년말)'!AI13 -> 0.0 | AJ9: ='법정동(2014.12월말)'!AJ12-'법정동(2013년말)'!AJ13 -> 0.0 | AK9: ='법정동(2014.12월말)'!AK12-'법정동(2013년말)'!AK13 -> 0.0 | AL9: ='법정동(2014.12월말)'!AL12-'법정동(2013년말)'!AL13 -> 0.0 | AM9: ='법정동(2014.12월말)'!AM12-'법정동(2013년말)'!AM13 -> 0.0 | AN9: ='법정동(2014.12월말)'!AN12-'법정동(2013년말)'!AN13 -> 0.0 | AO9: ='법정동(2014.12월말)'!AO12-'법정동(2013년말)'!AO13 -> 0.0 | AP9: ='법정동(2014.12월말)'!AP12-'법정동(2013년말)'!AP13 -> 0.0 | AQ9: ='법정동(2014.12월말)'!AQ12-'법정동(2013년말)'!AQ13 -> 0.0 | AR9: ='법정동(2014.12월말)'!AR12-'법정동(2013년말)'!AR13 -> 0.0 | AS9: ='법정동(2014.12월말)'!AS12-'법정동(2013년말)'!AS13 -> 0.0 | AT9: ='법정동(2014.12월말)'!AT12-'법정동(2013년말)'!AT13 -> 0.0 | AU9: ='법정동(2014.12월말)'!AU12-'법정동(2013년말)'!AU13 -> 0.0 | AV9: ='법정동(2014.12월말)'!AV12-'법정동(2013년말)'!AV13 -> 0.0 | AW9: ='법정동(2014.12월말)'!AW12-'법정동(2013년말)'!AW13 -> 0.0 | AX9: ='법정동(2014.12월말)'!AX12-'법정동(2013년말)'!AX13 -> 0.0 | AY9: ='법정동(2014.12월말)'!AY12-'법정동(2013년말)'!AY13 -> 0.0 | AZ9: ='법정동(2014.12월말)'!AZ12-'법정동(2013년말)'!AZ13 -> -107.0 | BA9: ='법정동(2014.12월말)'!BA12-'법정동(2013년말)'!BA13 -> 0.0 | BB9: ='법정동(2014.12월말)'!BB12-'법정동(2013년말)'!BB13 -> 0.0 | BC9: ='법정동(2014.12월말)'!BC12-'법정동(2013년말)'!BC13 -> 0.0 | BD9: ='법정동(2014.12월말)'!BD12-'법정동(2013년말)'!BD13 -> 0.0 | BE9: ='법정동(2014.12월말)'!BE12-'법정동(2013년말)'!BE13 -> 0.0 | BF9: ='법정동(2014.12월말)'!BF12-'법정동(2013년말)'!BF13 -> 0.0 | BG9: ='법정동(2014.12월말)'!BG12-'법정동(2013년말)'!BG13 -> 0.0
A10: 중앙동 | B10: ='법정동(2014.12월말)'!B13-'법정동(2013년말)'!B14 -> 0.0 | C10: ='법정동(2014.12월말)'!C13-'법정동(2013년말)'!C14 -> 6.0 | D10: ='법정동(2014.12월말)'!D13-'법정동(2013년말)'!D14 -> 0.0 | E10: ='법정동(2014.12월말)'!E13-'법정동(2013년말)'!E14 -> 0.0 | F10: ='법정동(2014.12월말)'!F13-'법정동(2013년말)'!F14 -> 0.0 | G10: ='법정동(2014.12월말)'!G13-'법정동(2013년말)'!G14 -> 0.0 | H10: ='법정동(2014.12월말)'!H13-'법정동(2013년말)'!H14 -> 0.0 | I10: ='법정동(2014.12월말)'!I13-'법정동(2013년말)'!I14 -> 0.0 | J10: ='법정동(2014.12월말)'!J13-'법정동(2013년말)'!J14 -> 0.0 | K10: ='법정동(2014.12월말)'!K13-'법정동(2013년말)'!K14 -> 0.0 | L10: ='법정동(2014.12월말)'!L13-'법정동(2013년말)'!L14 -> 0.0 | M10: ='법정동(2014.12월말)'!M13-'법정동(2013년말)'!M14 -> 0.0 | N10: ='법정동(2014.12월말)'!N13-'법정동(2013년말)'!N14 -> 0.0 | O10: ='법정동(2014.12월말)'!O13-'법정동(2013년말)'!O14 -> 0.0 | P10: ='법정동(2014.12월말)'!P13-'법정동(2013년말)'!P14 -> 0.0 | Q10: ='법정동(2014.12월말)'!Q13-'법정동(2013년말)'!Q14 -> 0.0 | R10: ='법정동(2014.12월말)'!R13-'법정동(2013년말)'!R14 -> -74.0 | S10: ='법정동(2014.12월말)'!S13-'법정동(2013년말)'!S14 -> 4.0 | T10: ='법정동(2014.12월말)'!T13-'법정동(2013년말)'!T14 -> 0.0 | U10: ='법정동(2014.12월말)'!U13-'법정동(2013년말)'!U14 -> 0.0 | V10: ='법정동(2014.12월말)'!V13-'법정동(2013년말)'!V14 -> 0.0 | W10: ='법정동(2014.12월말)'!W13-'법정동(2013년말)'!W14 -> 0.0 | X10: ='법정동(2014.12월말)'!X13-'법정동(2013년말)'!X14 -> 0.0 | Y10: ='법정동(2014.12월말)'!Y13-'법정동(2013년말)'!Y14 -> 0.0 | Z10: ='법정동(2014.12월말)'!Z13-'법정동(2013년말)'!Z14 -> 0.0 | AA10: ='법정동(2014.12월말)'!AA13-'법정동(2013년말)'!AA14 -> 0.0 | AB10: ='법정동(2014.12월말)'!AB13-'법정동(2013년말)'!AB14 -> 0.0 | AC10: ='법정동(2014.12월말)'!AC13-'법정동(2013년말)'!AC14 -> 0.0 | AD10: ='법정동(2014.12월말)'!AD13-'법정동(2013년말)'!AD14 -> 74.0 | AE10: ='법정동(2014.12월말)'!AE13-'법정동(2013년말)'!AE14 -> 2.0 | AF10: ='법정동(2014.12월말)'!AF13-'법정동(2013년말)'!AF14 -> 0.0 | AG10: ='법정동(2014.12월말)'!AG13-'법정동(2013년말)'!AG14 -> 0.0 | AH10: ='법정동(2014.12월말)'!AH13-'법정동(2013년말)'!AH14 -> 0.0 | AI10: ='법정동(2014.12월말)'!AI13-'법정동(2013년말)'!AI14 -> 0.0 | AJ10: ='법정동(2014.12월말)'!AJ13-'법정동(2013년말)'!AJ14 -> 0.0 | AK10: ='법정동(2014.12월말)'!AK13-'법정동(2013년말)'!AK14 -> 0.0 | AL10: ='법정동(2014.12월말)'!AL13-'법정동(2013년말)'!AL14 -> 0.0 | AM10: ='법정동(2014.12월말)'!AM13-'법정동(2013년말)'!AM14 -> 0.0 | AN10: ='법정동(2014.12월말)'!AN13-'법정동(2013년말)'!AN14 -> 0.0 | AO10: ='법정동(2014.12월말)'!AO13-'법정동(2013년말)'!AO14 -> 0.0 | AP10: ='법정동(2014.12월말)'!AP13-'법정동(2013년말)'!AP14 -> 0.0 | AQ10: ='법정동(2014.12월말)'!AQ13-'법정동(2013년말)'!AQ14 -> 0.0 | AR10: ='법정동(2014.12월말)'!AR13-'법정동(2013년말)'!AR14 -> 0.0 | AS10: ='법정동(2014.12월말)'!AS13-'법정동(2013년말)'!AS14 -> 0.0 | AT10: ='법정동(2014.12월말)'!AT13-'법정동(2013년말)'!AT14 -> 0.0 | AU10: ='법정동(2014.12월말)'!AU13-'법정동(2013년말)'!AU14 -> 0.0 | AV10: ='법정동(2014.12월말)'!AV13-'법정동(2013년말)'!AV14 -> 0.0 | AW10: ='법정동(2014.12월말)'!AW13-'법정동(2013년말)'!AW14 -> 0.0 | AX10: ='법정동(2014.12월말)'!AX13-'법정동(2013년말)'!AX14 -> 0.0 | AY10: ='법정동(2014.12월말)'!AY13-'법정동(2013년말)'!AY14 -> 0.0 | AZ10: ='법정동(2014.12월말)'!AZ13-'법정동(2013년말)'!AZ14 -> 0.0 | BA10: ='법정동(2014.12월말)'!BA13-'법정동(2013년말)'!BA14 -> 0.0 | BB10: ='법정동(2014.12월말)'!BB13-'법정동(2013년말)'!BB14 -> 0.0 | BC10: ='법정동(2014.12월말)'!BC13-'법정동(2013년말)'!BC14 -> 0.0 | BD10: ='법정동(2014.12월말)'!BD13-'법정동(2013년말)'!BD14 -> 0.0 | BE10: ='법정동(2014.12월말)'!BE13-'법정동(2013년말)'!BE14 -> 0.0 | BF10: ='법정동(2014.12월말)'!BF13-'법정동(2013년말)'!BF14 -> 0.0 | BG10: ='법정동(2014.12월말)'!BG13-'법정동(2013년말)'!BG14 -> 0.0
A11: 교동 | B11: ='법정동(2014.12월말)'!B14-'법정동(2013년말)'!B15 -> 0.0 | C11: ='법정동(2014.12월말)'!C14-'법정동(2013년말)'!C15 -> -1.0 | D11: ='법정동(2014.12월말)'!D14-'법정동(2013년말)'!D15 -> 0.0 | E11: ='법정동(2014.12월말)'!E14-'법정동(2013년말)'!E15 -> 0.0 | F11: ='법정동(2014.12월말)'!F14-'법정동(2013년말)'!F15 -> 0.0 | G11: ='법정동(2014.12월말)'!G14-'법정동(2013년말)'!G15 -> 0.0 | H11: ='법정동(2014.12월말)'!H14-'법정동(2013년말)'!H15 -> 0.0 | I11: ='법정동(2014.12월말)'!I14-'법정동(2013년말)'!I15 -> 0.0 | J11: ='법정동(2014.12월말)'!J14-'법정동(2013년말)'!J15 -> 0.0 | K11: ='법정동(2014.12월말)'!K14-'법정동(2013년말)'!K15 -> 0.0 | L11: ='법정동(2014.12월말)'!L14-'법정동(2013년말)'!L15 -> 0.0 | M11: ='법정동(2014.12월말)'!M14-'법정동(2013년말)'!M15 -> 0.0 | N11: ='법정동(2014.12월말)'!N14-'법정동(2013년말)'!N15 -> 0.0 | O11: ='법정동(2014.12월말)'!O14-'법정동(2013년말)'!O15 -> 0.0 | P11: ='법정동(2014.12월말)'!P14-'법정동(2013년말)'!P15 -> 0.0 | Q11: ='법정동(2014.12월말)'!Q14-'법정동(2013년말)'!Q15 -> 0.0 | R11: ='법정동(2014.12월말)'!R14-'법정동(2013년말)'!R15 -> 0.0 | S11: ='법정동(2014.12월말)'!S14-'법정동(2013년말)'!S15 -> -1.0 | T11: ='법정동(2014.12월말)'!T14-'법정동(2013년말)'!T15 -> 0.0 | U11: ='법정동(2014.12월말)'!U14-'법정동(2013년말)'!U15 -> 0.0 | V11: ='법정동(2014.12월말)'!V14-'법정동(2013년말)'!V15 -> 0.0 | W11: ='법정동(2014.12월말)'!W14-'법정동(2013년말)'!W15 -> 0.0 | X11: ='법정동(2014.12월말)'!X14-'법정동(2013년말)'!X15 -> 0.0 | Y11: ='법정동(2014.12월말)'!Y14-'법정동(2013년말)'!Y15 -> 0.0 | Z11: ='법정동(2014.12월말)'!Z14-'법정동(2013년말)'!Z15 -> 0.0 | AA11: ='법정동(2014.12월말)'!AA14-'법정동(2013년말)'!AA15 -> 0.0 | AB11: ='법정동(2014.12월말)'!AB14-'법정동(2013년말)'!AB15 -> 0.0 | AC11: ='법정동(2014.12월말)'!AC14-'법정동(2013년말)'!AC15 -> 0.0 | AD11: ='법정동(2014.12월말)'!AD14-'법정동(2013년말)'!AD15 -> 0.0 | AE11: ='법정동(2014.12월말)'!AE14-'법정동(2013년말)'!AE15 -> 0.0 | AF11: ='법정동(2014.12월말)'!AF14-'법정동(2013년말)'!AF15 -> 0.0 | AG11: ='법정동(2014.12월말)'!AG14-'법정동(2013년말)'!AG15 -> 0.0 | AH11: ='법정동(2014.12월말)'!AH14-'법정동(2013년말)'!AH15 -> 0.0 | AI11: ='법정동(2014.12월말)'!AI14-'법정동(2013년말)'!AI15 -> 0.0 | AJ11: ='법정동(2014.12월말)'!AJ14-'법정동(2013년말)'!AJ15 -> 0.0 | AK11: ='법정동(2014.12월말)'!AK14-'법정동(2013년말)'!AK15 -> 0.0 | AL11: ='법정동(2014.12월말)'!AL14-'법정동(2013년말)'!AL15 -> 0.0 | AM11: ='법정동(2014.12월말)'!AM14-'법정동(2013년말)'!AM15 -> 0.0 | AN11: ='법정동(2014.12월말)'!AN14-'법정동(2013년말)'!AN15 -> 0.0 | AO11: ='법정동(2014.12월말)'!AO14-'법정동(2013년말)'!AO15 -> 0.0 | AP11: ='법정동(2014.12월말)'!AP14-'법정동(2013년말)'!AP15 -> 0.0 | AQ11: ='법정동(2014.12월말)'!AQ14-'법정동(2013년말)'!AQ15 -> 0.0 | AR11: ='법정동(2014.12월말)'!AR14-'법정동(2013년말)'!AR15 -> 0.0 | AS11: ='법정동(2014.12월말)'!AS14-'법정동(2013년말)'!AS15 -> 0.0 | AT11: ='법정동(2014.12월말)'!AT14-'법정동(2013년말)'!AT15 -> 0.0 | AU11: ='법정동(2014.12월말)'!AU14-'법정동(2013년말)'!AU15 -> 0.0 | AV11: ='법정동(2014.12월말)'!AV14-'법정동(2013년말)'!AV15 -> 0.0 | AW11: ='법정동(2014.12월말)'!AW14-'법정동(2013년말)'!AW15 -> 0.0 | AX11: ='법정동(2014.12월말)'!AX14-'법정동(2013년말)'!AX15 -> 0.0 | AY11: ='법정동(2014.12월말)'!AY14-'법정동(2013년말)'!AY15 -> 0.0 | AZ11: ='법정동(2014.12월말)'!AZ14-'법정동(2013년말)'!AZ15 -> 0.0 | BA11: ='법정동(2014.12월말)'!BA14-'법정동(2013년말)'!BA15 -> 0.0 | BB11: ='법정동(2014.12월말)'!BB14-'법정동(2013년말)'!BB15 -> 0.0 | BC11: ='법정동(2014.12월말)'!BC14-'법정동(2013년말)'!BC15 -> 0.0 | BD11: ='법정동(2014.12월말)'!BD14-'법정동(2013년말)'!BD15 -> 0.0 | BE11: ='법정동(2014.12월말)'!BE14-'법정동(2013년말)'!BE15 -> 0.0 | BF11: ='법정동(2014.12월말)'!BF14-'법정동(2013년말)'!BF15 -> 0.0 | BG11: ='법정동(2014.12월말)'!BG14-'법정동(2013년말)'!BG15 -> 0.0
A12: 군자동 | B12: ='법정동(2014.12월말)'!B15-'법정동(2013년말)'!B16 -> 0.0 | C12: ='법정동(2014.12월말)'!C15-'법정동(2013년말)'!C16 -> 3.0 | D12: ='법정동(2014.12월말)'!D15-'법정동(2013년말)'!D16 -> 0.0 | E12: ='법정동(2014.12월말)'!E15-'법정동(2013년말)'!E16 -> 0.0 | F12: ='법정동(2014.12월말)'!F15-'법정동(2013년말)'!F16 -> 0.0 | G12: ='법정동(2014.12월말)'!G15-'법정동(2013년말)'!G16 -> 0.0 | H12: ='법정동(2014.12월말)'!H15-'법정동(2013년말)'!H16 -> 0.0 | I12: ='법정동(2014.12월말)'!I15-'법정동(2013년말)'!I16 -> 0.0 | J12: ='법정동(2014.12월말)'!J15-'법정동(2013년말)'!J16 -> 0.0 | K12: ='법정동(2014.12월말)'!K15-'법정동(2013년말)'!K16 -> 0.0 | L12: ='법정동(2014.12월말)'!L15-'법정동(2013년말)'!L16 -> 0.0 | M12: ='법정동(2014.12월말)'!M15-'법정동(2013년말)'!M16 -> 0.0 | N12: ='법정동(2014.12월말)'!N15-'법정동(2013년말)'!N16 -> 0.0 | O12: ='법정동(2014.12월말)'!O15-'법정동(2013년말)'!O16 -> 0.0 | P12: ='법정동(2014.12월말)'!P15-'법정동(2013년말)'!P16 -> 0.0 | Q12: ='법정동(2014.12월말)'!Q15-'법정동(2013년말)'!Q16 -> 0.0 | R12: ='법정동(2014.12월말)'!R15-'법정동(2013년말)'!R16 -> 0.0 | S12: ='법정동(2014.12월말)'!S15-'법정동(2013년말)'!S16 -> 3.0 | T12: ='법정동(2014.12월말)'!T15-'법정동(2013년말)'!T16 -> 0.0 | U12: ='법정동(2014.12월말)'!U15-'법정동(2013년말)'!U16 -> 0.0 | V12: ='법정동(2014.12월말)'!V15-'법정동(2013년말)'!V16 -> 0.0 | W12: ='법정동(2014.12월말)'!W15-'법정동(2013년말)'!W16 -> 0.0 | X12: ='법정동(2014.12월말)'!X15-'법정동(2013년말)'!X16 -> 0.0 | Y12: ='법정동(2014.12월말)'!Y15-'법정동(2013년말)'!Y16 -> 0.0 | Z12: ='법정동(2014.12월말)'!Z15-'법정동(2013년말)'!Z16 -> 0.0 | AA12: ='법정동(2014.12월말)'!AA15-'법정동(2013년말)'!AA16 -> 0.0 | AB12: ='법정동(2014.12월말)'!AB15-'법정동(2013년말)'!AB16 -> 0.0 | AC12: ='법정동(2014.12월말)'!AC15-'법정동(2013년말)'!AC16 -> 0.0 | AD12: ='법정동(2014.12월말)'!AD15-'법정동(2013년말)'!AD16 -> 0.0 | AE12: ='법정동(2014.12월말)'!AE15-'법정동(2013년말)'!AE16 -> 0.0 | AF12: ='법정동(2014.12월말)'!AF15-'법정동(2013년말)'!AF16 -> 0.0 | AG12: ='법정동(2014.12월말)'!AG15-'법정동(2013년말)'!AG16 -> 0.0 | AH12: ='법정동(2014.12월말)'!AH15-'법정동(2013년말)'!AH16 -> 0.0 | AI12: ='법정동(2014.12월말)'!AI15-'법정동(2013년말)'!AI16 -> 0.0 | AJ12: ='법정동(2014.12월말)'!AJ15-'법정동(2013년말)'!AJ16 -> 0.0 | AK12: ='법정동(2014.12월말)'!AK15-'법정동(2013년말)'!AK16 -> 0.0 | AL12: ='법정동(2014.12월말)'!AL15-'법정동(2013년말)'!AL16 -> 0.0 | AM12: ='법정동(2014.12월말)'!AM15-'법정동(2013년말)'!AM16 -> 0.0 | AN12: ='법정동(2014.12월말)'!AN15-'법정동(2013년말)'!AN16 -> 0.0 | AO12: ='법정동(2014.12월말)'!AO15-'법정동(2013년말)'!AO16 -> 0.0 | AP12: ='법정동(2014.12월말)'!AP15-'법정동(2013년말)'!AP16 -> 0.0 | AQ12: ='법정동(2014.12월말)'!AQ15-'법정동(2013년말)'!AQ16 -> 0.0 | AR12: ='법정동(2014.12월말)'!AR15-'법정동(2013년말)'!AR16 -> 0.0 | AS12: ='법정동(2014.12월말)'!AS15-'법정동(2013년말)'!AS16 -> 0.0 | AT12: ='법정동(2014.12월말)'!AT15-'법정동(2013년말)'!AT16 -> 0.0 | AU12: ='법정동(2014.12월말)'!AU15-'법정동(2013년말)'!AU16 -> 0.0 | AV12: ='법정동(2014.12월말)'!AV15-'법정동(2013년말)'!AV16 -> 0.0 | AW12: ='법정동(2014.12월말)'!AW15-'법정동(2013년말)'!AW16 -> 0.0 | AX12: ='법정동(2014.12월말)'!AX15-'법정동(2013년말)'!AX16 -> 0.0 | AY12: ='법정동(2014.12월말)'!AY15-'법정동(2013년말)'!AY16 -> 0.0 | AZ12: ='법정동(2014.12월말)'!AZ15-'법정동(2013년말)'!AZ16 -> 0.0 | BA12: ='법정동(2014.12월말)'!BA15-'법정동(2013년말)'!BA16 -> 0.0 | BB12: ='법정동(2014.12월말)'!BB15-'법정동(2013년말)'!BB16 -> 0.0 | BC12: ='법정동(2014.12월말)'!BC15-'법정동(2013년말)'!BC16 -> 0.0 | BD12: ='법정동(2014.12월말)'!BD15-'법정동(2013년말)'!BD16 -> 0.0 | BE12: ='법정동(2014.12월말)'!BE15-'법정동(2013년말)'!BE16 -> 0.0 | BF12: ='법정동(2014.12월말)'!BF15-'법정동(2013년말)'!BF16 -> 0.0 | BG12: ='법정동(2014.12월말)'!BG15-'법정동(2013년말)'!BG16 -> 0.0
A13: 충무동 | B13: ='법정동(2014.12월말)'!B16-'법정동(2013년말)'!B17 -> 0.0 | C13: ='법정동(2014.12월말)'!C16-'법정동(2013년말)'!C17 -> -1.0 | D13: ='법정동(2014.12월말)'!D16-'법정동(2013년말)'!D17 -> 0.0 | E13: ='법정동(2014.12월말)'!E16-'법정동(2013년말)'!E17 -> 0.0 | F13: ='법정동(2014.12월말)'!F16-'법정동(2013년말)'!F17 -> 0.0 | G13: ='법정동(2014.12월말)'!G16-'법정동(2013년말)'!G17 -> 0.0 | H13: ='법정동(2014.12월말)'!H16-'법정동(2013년말)'!H17 -> 0.0 | I13: ='법정동(2014.12월말)'!I16-'법정동(2013년말)'!I17 -> 0.0 | J13: ='법정동(2014.12월말)'!J16-'법정동(2013년말)'!J17 -> 0.0 | K13: ='법정동(2014.12월말)'!K16-'법정동(2013년말)'!K17 -> 0.0 | L13: ='법정동(2014.12월말)'!L16-'법정동(2013년말)'!L17 -> 0.0 | M13: ='법정동(2014.12월말)'!M16-'법정동(2013년말)'!M17 -> 0.0 | N13: ='법정동(2014.12월말)'!N16-'법정동(2013년말)'!N17 -> 0.0 | O13: ='법정동(2014.12월말)'!O16-'법정동(2013년말)'!O17 -> 0.0 | P13: ='법정동(2014.12월말)'!P16-'법정동(2013년말)'!P17 -> 0.0 | Q13: ='법정동(2014.12월말)'!Q16-'법정동(2013년말)'!Q17 -> 0.0 | R13: ='법정동(2014.12월말)'!R16-'법정동(2013년말)'!R17 -> 0.0 | S13: ='법정동(2014.12월말)'!S16-'법정동(2013년말)'!S17 -> -1.0 | T13: ='법정동(2014.12월말)'!T16-'법정동(2013년말)'!T17 -> 0.0 | U13: ='법정동(2014.12월말)'!U16-'법정동(2013년말)'!U17 -> 0.0 | V13: ='법정동(2014.12월말)'!V16-'법정동(2013년말)'!V17 -> 0.0 | W13: ='법정동(2014.12월말)'!W16-'법정동(2013년말)'!W17 -> 0.0 | X13: ='법정동(2014.12월말)'!X16-'법정동(2013년말)'!X17 -> 0.0 | Y13: ='법정동(2014.12월말)'!Y16-'법정동(2013년말)'!Y17 -> 0.0 | Z13: ='법정동(2014.12월말)'!Z16-'법정동(2013년말)'!Z17 -> 0.0 | AA13: ='법정동(2014.12월말)'!AA16-'법정동(2013년말)'!AA17 -> 0.0 | AB13: ='법정동(2014.12월말)'!AB16-'법정동(2013년말)'!AB17 -> 0.0 | AC13: ='법정동(2014.12월말)'!AC16-'법정동(2013년말)'!AC17 -> 0.0 | AD13: ='법정동(2014.12월말)'!AD16-'법정동(2013년말)'!AD17 -> 0.0 | AE13: ='법정동(2014.12월말)'!AE16-'법정동(2013년말)'!AE17 -> 0.0 | AF13: ='법정동(2014.12월말)'!AF16-'법정동(2013년말)'!AF17 -> 0.0 | AG13: ='법정동(2014.12월말)'!AG16-'법정동(2013년말)'!AG17 -> 0.0 | AH13: ='법정동(2014.12월말)'!AH16-'법정동(2013년말)'!AH17 -> 0.0 | AI13: ='법정동(2014.12월말)'!AI16-'법정동(2013년말)'!AI17 -> 0.0 | AJ13: ='법정동(2014.12월말)'!AJ16-'법정동(2013년말)'!AJ17 -> 0.0 | AK13: ='법정동(2014.12월말)'!AK16-'법정동(2013년말)'!AK17 -> 0.0 | AL13: ='법정동(2014.12월말)'!AL16-'법정동(2013년말)'!AL17 -> 0.0 | AM13: ='법정동(2014.12월말)'!AM16-'법정동(2013년말)'!AM17 -> 0.0 | AN13: ='법정동(2014.12월말)'!AN16-'법정동(2013년말)'!AN17 -> 0.0 | AO13: ='법정동(2014.12월말)'!AO16-'법정동(2013년말)'!AO17 -> 0.0 | AP13: ='법정동(2014.12월말)'!AP16-'법정동(2013년말)'!AP17 -> 0.0 | AQ13: ='법정동(2014.12월말)'!AQ16-'법정동(2013년말)'!AQ17 -> 0.0 | AR13: ='법정동(2014.12월말)'!AR16-'법정동(2013년말)'!AR17 -> 0.0 | AS13: ='법정동(2014.12월말)'!AS16-'법정동(2013년말)'!AS17 -> 0.0 | AT13: ='법정동(2014.12월말)'!AT16-'법정동(2013년말)'!AT17 -> 0.0 | AU13: ='법정동(2014.12월말)'!AU16-'법정동(2013년말)'!AU17 -> 0.0 | AV13: ='법정동(2014.12월말)'!AV16-'법정동(2013년말)'!AV17 -> 0.0 | AW13: ='법정동(2014.12월말)'!AW16-'법정동(2013년말)'!AW17 -> 0.0 | AX13: ='법정동(2014.12월말)'!AX16-'법정동(2013년말)'!AX17 -> 0.0 | AY13: ='법정동(2014.12월말)'!AY16-'법정동(2013년말)'!AY17 -> 0.0 | AZ13: ='법정동(2014.12월말)'!AZ16-'법정동(2013년말)'!AZ17 -> 0.0 | BA13: ='법정동(2014.12월말)'!BA16-'법정동(2013년말)'!BA17 -> 0.0 | BB13: ='법정동(2014.12월말)'!BB16-'법정동(2013년말)'!BB17 -> 0.0 | BC13: ='법정동(2014.12월말)'!BC16-'법정동(2013년말)'!BC17 -> 0.0 | BD13: ='법정동(2014.12월말)'!BD16-'법정동(2013년말)'!BD17 -> 0.0 | BE13: ='법정동(2014.12월말)'!BE16-'법정동(2013년말)'!BE17 -> 0.0 | BF13: ='법정동(2014.12월말)'!BF16-'법정동(2013년말)'!BF17 -> 0.0 | BG13: ='법정동(2014.12월말)'!BG16-'법정동(2013년말)'!BG17 -> 0.0
A14: 연등동 | B14: ='법정동(2014.12월말)'!B17-'법정동(2013년말)'!B18 -> -1,868.0 | C14: ='법정동(2014.12월말)'!C17-'법정동(2013년말)'!C18 -> 4.0 | D14: ='법정동(2014.12월말)'!D17-'법정동(2013년말)'!D18 -> -118.0 | E14: ='법정동(2014.12월말)'!E17-'법정동(2013년말)'!E18 -> 1.0 | F14: ='법정동(2014.12월말)'!F17-'법정동(2013년말)'!F18 -> 0.0 | G14: ='법정동(2014.12월말)'!G17-'법정동(2013년말)'!G18 -> 0.0 | H14: ='법정동(2014.12월말)'!H17-'법정동(2013년말)'!H18 -> 0.0 | I14: ='법정동(2014.12월말)'!I17-'법정동(2013년말)'!I18 -> 0.0 | J14: ='법정동(2014.12월말)'!J17-'법정동(2013년말)'!J18 -> 0.0 | K14: ='법정동(2014.12월말)'!K17-'법정동(2013년말)'!K18 -> 0.0 | L14: ='법정동(2014.12월말)'!L17-'법정동(2013년말)'!L18 -> 0.0 | M14: ='법정동(2014.12월말)'!M17-'법정동(2013년말)'!M18 -> 0.0 | N14: ='법정동(2014.12월말)'!N17-'법정동(2013년말)'!N18 -> 0.0 | O14: ='법정동(2014.12월말)'!O17-'법정동(2013년말)'!O18 -> 0.0 | P14: ='법정동(2014.12월말)'!P17-'법정동(2013년말)'!P18 -> 0.0 | Q14: ='법정동(2014.12월말)'!Q17-'법정동(2013년말)'!Q18 -> 0.0 | R14: ='법정동(2014.12월말)'!R17-'법정동(2013년말)'!R18 -> -132.0 | S14: ='법정동(2014.12월말)'!S17-'법정동(2013년말)'!S18 -> 0.0 | T14: ='법정동(2014.12월말)'!T17-'법정동(2013년말)'!T18 -> 0.0 | U14: ='법정동(2014.12월말)'!U17-'법정동(2013년말)'!U18 -> 0.0 | V14: ='법정동(2014.12월말)'!V17-'법정동(2013년말)'!V18 -> 0.0 | W14: ='법정동(2014.12월말)'!W17-'법정동(2013년말)'!W18 -> 0.0 | X14: ='법정동(2014.12월말)'!X17-'법정동(2013년말)'!X18 -> 0.0 | Y14: ='법정동(2014.12월말)'!Y17-'법정동(2013년말)'!Y18 -> 0.0 | Z14: ='법정동(2014.12월말)'!Z17-'법정동(2013년말)'!Z18 -> 0.0 | AA14: ='법정동(2014.12월말)'!AA17-'법정동(2013년말)'!AA18 -> 0.0 | AB14: ='법정동(2014.12월말)'!AB17-'법정동(2013년말)'!AB18 -> 0.0 | AC14: ='법정동(2014.12월말)'!AC17-'법정동(2013년말)'!AC18 -> 0.0 | AD14: ='법정동(2014.12월말)'!AD17-'법정동(2013년말)'!AD18 -> 250.0 | AE14: ='법정동(2014.12월말)'!AE17-'법정동(2013년말)'!AE18 -> 3.0 | AF14: ='법정동(2014.12월말)'!AF17-'법정동(2013년말)'!AF18 -> 0.0 | AG14: ='법정동(2014.12월말)'!AG17-'법정동(2013년말)'!AG18 -> 0.0 | AH14: ='법정동(2014.12월말)'!AH17-'법정동(2013년말)'!AH18 -> 0.0 | AI14: ='법정동(2014.12월말)'!AI17-'법정동(2013년말)'!AI18 -> 0.0 | AJ14: ='법정동(2014.12월말)'!AJ17-'법정동(2013년말)'!AJ18 -> -1,868.0 | AK14: ='법정동(2014.12월말)'!AK17-'법정동(2013년말)'!AK18 -> 0.0 | AL14: ='법정동(2014.12월말)'!AL17-'법정동(2013년말)'!AL18 -> 0.0 | AM14: ='법정동(2014.12월말)'!AM17-'법정동(2013년말)'!AM18 -> 0.0 | AN14: ='법정동(2014.12월말)'!AN17-'법정동(2013년말)'!AN18 -> 0.0 | AO14: ='법정동(2014.12월말)'!AO17-'법정동(2013년말)'!AO18 -> 0.0 | AP14: ='법정동(2014.12월말)'!AP17-'법정동(2013년말)'!AP18 -> 0.0 | AQ14: ='법정동(2014.12월말)'!AQ17-'법정동(2013년말)'!AQ18 -> 0.0 | AR14: ='법정동(2014.12월말)'!AR17-'법정동(2013년말)'!AR18 -> 0.0 | AS14: ='법정동(2014.12월말)'!AS17-'법정동(2013년말)'!AS18 -> 0.0 | AT14: ='법정동(2014.12월말)'!AT17-'법정동(2013년말)'!AT18 -> 0.0 | AU14: ='법정동(2014.12월말)'!AU17-'법정동(2013년말)'!AU18 -> 0.0 | AV14: ='법정동(2014.12월말)'!AV17-'법정동(2013년말)'!AV18 -> 0.0 | AW14: ='법정동(2014.12월말)'!AW17-'법정동(2013년말)'!AW18 -> 0.0 | AX14: ='법정동(2014.12월말)'!AX17-'법정동(2013년말)'!AX18 -> 0.0 | AY14: ='법정동(2014.12월말)'!AY17-'법정동(2013년말)'!AY18 -> 0.0 | AZ14: ='법정동(2014.12월말)'!AZ17-'법정동(2013년말)'!AZ18 -> 0.0 | BA14: ='법정동(2014.12월말)'!BA17-'법정동(2013년말)'!BA18 -> 0.0 | BB14: ='법정동(2014.12월말)'!BB17-'법정동(2013년말)'!BB18 -> 0.0 | BC14: ='법정동(2014.12월말)'!BC17-'법정동(2013년말)'!BC18 -> 0.0 | BD14: ='법정동(2014.12월말)'!BD17-'법정동(2013년말)'!BD18 -> 0.0 | BE14: ='법정동(2014.12월말)'!BE17-'법정동(2013년말)'!BE18 -> 0.0 | BF14: ='법정동(2014.12월말)'!BF17-'법정동(2013년말)'!BF18 -> 0.0 | BG14: ='법정동(2014.12월말)'!BG17-'법정동(2013년말)'!BG18 -> 0.0
A15: 광무동 | B15: ='법정동(2014.12월말)'!B18-'법정동(2013년말)'!B19 -> 0.0 | C15: ='법정동(2014.12월말)'!C18-'법정동(2013년말)'!C19 -> -1.0 | D15: ='법정동(2014.12월말)'!D18-'법정동(2013년말)'!D19 -> 0.0 | E15: ='법정동(2014.12월말)'!E18-'법정동(2013년말)'!E19 -> 0.0 | F15: ='법정동(2014.12월말)'!F18-'법정동(2013년말)'!F19 -> 0.0 | G15: ='법정동(2014.12월말)'!G18-'법정동(2013년말)'!G19 -> 0.0 | H15: ='법정동(2014.12월말)'!H18-'법정동(2013년말)'!H19 -> 0.0 | I15: ='법정동(2014.12월말)'!I18-'법정동(2013년말)'!I19 -> 0.0 | J15: ='법정동(2014.12월말)'!J18-'법정동(2013년말)'!J19 -> 0.0 | K15: ='법정동(2014.12월말)'!K18-'법정동(2013년말)'!K19 -> 0.0 | L15: ='법정동(2014.12월말)'!L18-'법정동(2013년말)'!L19 -> 0.0 | M15: ='법정동(2014.12월말)'!M18-'법정동(2013년말)'!M19 -> 0.0 | N15: ='법정동(2014.12월말)'!N18-'법정동(2013년말)'!N19 -> 0.0 | O15: ='법정동(2014.12월말)'!O18-'법정동(2013년말)'!O19 -> 0.0 | P15: ='법정동(2014.12월말)'!P18-'법정동(2013년말)'!P19 -> 0.0 | Q15: ='법정동(2014.12월말)'!Q18-'법정동(2013년말)'!Q19 -> 0.0 | R15: ='법정동(2014.12월말)'!R18-'법정동(2013년말)'!R19 -> 0.0 | S15: ='법정동(2014.12월말)'!S18-'법정동(2013년말)'!S19 -> -1.0 | T15: ='법정동(2014.12월말)'!T18-'법정동(2013년말)'!T19 -> 0.0 | U15: ='법정동(2014.12월말)'!U18-'법정동(2013년말)'!U19 -> 0.0 | V15: ='법정동(2014.12월말)'!V18-'법정동(2013년말)'!V19 -> 0.0 | W15: ='법정동(2014.12월말)'!W18-'법정동(2013년말)'!W19 -> 0.0 | X15: ='법정동(2014.12월말)'!X18-'법정동(2013년말)'!X19 -> 0.0 | Y15: ='법정동(2014.12월말)'!Y18-'법정동(2013년말)'!Y19 -> 0.0 | Z15: ='법정동(2014.12월말)'!Z18-'법정동(2013년말)'!Z19 -> 0.0 | AA15: ='법정동(2014.12월말)'!AA18-'법정동(2013년말)'!AA19 -> 0.0 | AB15: ='법정동(2014.12월말)'!AB18-'법정동(2013년말)'!AB19 -> 0.0 | AC15: ='법정동(2014.12월말)'!AC18-'법정동(2013년말)'!AC19 -> 0.0 | AD15: ='법정동(2014.12월말)'!AD18-'법정동(2013년말)'!AD19 -> 0.0 | AE15: ='법정동(2014.12월말)'!AE18-'법정동(2013년말)'!AE19 -> 0.0 | AF15: ='법정동(2014.12월말)'!AF18-'법정동(2013년말)'!AF19 -> 0.0 | AG15: ='법정동(2014.12월말)'!AG18-'법정동(2013년말)'!AG19 -> 0.0 | AH15: ='법정동(2014.12월말)'!AH18-'법정동(2013년말)'!AH19 -> 0.0 | AI15: ='법정동(2014.12월말)'!AI18-'법정동(2013년말)'!AI19 -> 0.0 | AJ15: ='법정동(2014.12월말)'!AJ18-'법정동(2013년말)'!AJ19 -> 0.0 | AK15: ='법정동(2014.12월말)'!AK18-'법정동(2013년말)'!AK19 -> 0.0 | AL15: ='법정동(2014.12월말)'!AL18-'법정동(2013년말)'!AL19 -> 0.0 | AM15: ='법정동(2014.12월말)'!AM18-'법정동(2013년말)'!AM19 -> 0.0 | AN15: ='법정동(2014.12월말)'!AN18-'법정동(2013년말)'!AN19 -> 0.0 | AO15: ='법정동(2014.12월말)'!AO18-'법정동(2013년말)'!AO19 -> 0.0 | AP15: ='법정동(2014.12월말)'!AP18-'법정동(2013년말)'!AP19 -> 0.0 | AQ15: ='법정동(2014.12월말)'!AQ18-'법정동(2013년말)'!AQ19 -> 0.0 | AR15: ='법정동(2014.12월말)'!AR18-'법정동(2013년말)'!AR19 -> 0.0 | AS15: ='법정동(2014.12월말)'!AS18-'법정동(2013년말)'!AS19 -> 0.0 | AT15: ='법정동(2014.12월말)'!AT18-'법정동(2013년말)'!AT19 -> 0.0 | AU15: ='법정동(2014.12월말)'!AU18-'법정동(2013년말)'!AU19 -> 0.0 | AV15: ='법정동(2014.12월말)'!AV18-'법정동(2013년말)'!AV19 -> 0.0 | AW15: ='법정동(2014.12월말)'!AW18-'법정동(2013년말)'!AW19 -> 0.0 | AX15: ='법정동(2014.12월말)'!AX18-'법정동(2013년말)'!AX19 -> 0.0 | AY15: ='법정동(2014.12월말)'!AY18-'법정동(2013년말)'!AY19 -> 0.0 | AZ15: ='법정동(2014.12월말)'!AZ18-'법정동(2013년말)'!AZ19 -> 0.0 | BA15: ='법정동(2014.12월말)'!BA18-'법정동(2013년말)'!BA19 -> 0.0 | BB15: ='법정동(2014.12월말)'!BB18-'법정동(2013년말)'!BB19 -> 0.0 | BC15: ='법정동(2014.12월말)'!BC18-'법정동(2013년말)'!BC19 -> 0.0 | BD15: ='법정동(2014.12월말)'!BD18-'법정동(2013년말)'!BD19 -> 0.0 | BE15: ='법정동(2014.12월말)'!BE18-'법정동(2013년말)'!BE19 -> 0.0 | BF15: ='법정동(2014.12월말)'!BF18-'법정동(2013년말)'!BF19 -> 0.0 | BG15: ='법정동(2014.12월말)'!BG18-'법정동(2013년말)'!BG19 -> 0.0
A16: 서교동 | B16: ='법정동(2014.12월말)'!B19-'법정동(2013년말)'!B20 -> 0.0 | C16: ='법정동(2014.12월말)'!C19-'법정동(2013년말)'!C20 -> -6.0 | D16: ='법정동(2014.12월말)'!D19-'법정동(2013년말)'!D20 -> 0.0 | E16: ='법정동(2014.12월말)'!E19-'법정동(2013년말)'!E20 -> 0.0 | F16: ='법정동(2014.12월말)'!F19-'법정동(2013년말)'!F20 -> 0.0 | G16: ='법정동(2014.12월말)'!G19-'법정동(2013년말)'!G20 -> 0.0 | H16: ='법정동(2014.12월말)'!H19-'법정동(2013년말)'!H20 -> 0.0 | I16: ='법정동(2014.12월말)'!I19-'법정동(2013년말)'!I20 -> 0.0 | J16: ='법정동(2014.12월말)'!J19-'법정동(2013년말)'!J20 -> 0.0 | K16: ='법정동(2014.12월말)'!K19-'법정동(2013년말)'!K20 -> 0.0 | L16: ='법정동(2014.12월말)'!L19-'법정동(2013년말)'!L20 -> 0.0 | M16: ='법정동(2014.12월말)'!M19-'법정동(2013년말)'!M20 -> 0.0 | N16: ='법정동(2014.12월말)'!N19-'법정동(2013년말)'!N20 -> 0.0 | O16: ='법정동(2014.12월말)'!O19-'법정동(2013년말)'!O20 -> 0.0 | P16: ='법정동(2014.12월말)'!P19-'법정동(2013년말)'!P20 -> 0.0 | Q16: ='법정동(2014.12월말)'!Q19-'법정동(2013년말)'!Q20 -> 0.0 | R16: ='법정동(2014.12월말)'!R19-'법정동(2013년말)'!R20 -> -246.0 | S16: ='법정동(2014.12월말)'!S19-'법정동(2013년말)'!S20 -> -8.0 | T16: ='법정동(2014.12월말)'!T19-'법정동(2013년말)'!T20 -> 0.0 | U16: ='법정동(2014.12월말)'!U19-'법정동(2013년말)'!U20 -> 0.0 | V16: ='법정동(2014.12월말)'!V19-'법정동(2013년말)'!V20 -> 0.0 | W16: ='법정동(2014.12월말)'!W19-'법정동(2013년말)'!W20 -> 0.0 | X16: ='법정동(2014.12월말)'!X19-'법정동(2013년말)'!X20 -> 241.0 | Y16: ='법정동(2014.12월말)'!Y19-'법정동(2013년말)'!Y20 -> 1.0 | Z16: ='법정동(2014.12월말)'!Z19-'법정동(2013년말)'!Z20 -> 0.0 | AA16: ='법정동(2014.12월말)'!AA19-'법정동(2013년말)'!AA20 -> 0.0 | AB16: ='법정동(2014.12월말)'!AB19-'법정동(2013년말)'!AB20 -> 0.0 | AC16: ='법정동(2014.12월말)'!AC19-'법정동(2013년말)'!AC20 -> 0.0 | AD16: ='법정동(2014.12월말)'!AD19-'법정동(2013년말)'!AD20 -> 5.0 | AE16: ='법정동(2014.12월말)'!AE19-'법정동(2013년말)'!AE20 -> 1.0 | AF16: ='법정동(2014.12월말)'!AF19-'법정동(2013년말)'!AF20 -> 0.0 | AG16: ='법정동(2014.12월말)'!AG19-'법정동(2013년말)'!AG20 -> 0.0 | AH16: ='법정동(2014.12월말)'!AH19-'법정동(2013년말)'!AH20 -> 0.0 | AI16: ='법정동(2014.12월말)'!AI19-'법정동(2013년말)'!AI20 -> 0.0 | AJ16: ='법정동(2014.12월말)'!AJ19-'법정동(2013년말)'!AJ20 -> 0.0 | AK16: ='법정동(2014.12월말)'!AK19-'법정동(2013년말)'!AK20 -> 0.0 | AL16: ='법정동(2014.12월말)'!AL19-'법정동(2013년말)'!AL20 -> 0.0 | AM16: ='법정동(2014.12월말)'!AM19-'법정동(2013년말)'!AM20 -> 0.0 | AN16: ='법정동(2014.12월말)'!AN19-'법정동(2013년말)'!AN20 -> 0.0 | AO16: ='법정동(2014.12월말)'!AO19-'법정동(2013년말)'!AO20 -> 0.0 | AP16: ='법정동(2014.12월말)'!AP19-'법정동(2013년말)'!AP20 -> 0.0 | AQ16: ='법정동(2014.12월말)'!AQ19-'법정동(2013년말)'!AQ20 -> 0.0 | AR16: ='법정동(2014.12월말)'!AR19-'법정동(2013년말)'!AR20 -> 0.0 | AS16: ='법정동(2014.12월말)'!AS19-'법정동(2013년말)'!AS20 -> 0.0 | AT16: ='법정동(2014.12월말)'!AT19-'법정동(2013년말)'!AT20 -> 0.0 | AU16: ='법정동(2014.12월말)'!AU19-'법정동(2013년말)'!AU20 -> 0.0 | AV16: ='법정동(2014.12월말)'!AV19-'법정동(2013년말)'!AV20 -> 0.0 | AW16: ='법정동(2014.12월말)'!AW19-'법정동(2013년말)'!AW20 -> 0.0 | AX16: ='법정동(2014.12월말)'!AX19-'법정동(2013년말)'!AX20 -> 0.0 | AY16: ='법정동(2014.12월말)'!AY19-'법정동(2013년말)'!AY20 -> 0.0 | AZ16: ='법정동(2014.12월말)'!AZ19-'법정동(2013년말)'!AZ20 -> 0.0 | BA16: ='법정동(2014.12월말)'!BA19-'법정동(2013년말)'!BA20 -> 0.0 | BB16: ='법정동(2014.12월말)'!BB19-'법정동(2013년말)'!BB20 -> 0.0 | BC16: ='법정동(2014.12월말)'!BC19-'법정동(2013년말)'!BC20 -> 0.0 | BD16: ='법정동(2014.12월말)'!BD19-'법정동(2013년말)'!BD20 -> 0.0 | BE16: ='법정동(2014.12월말)'!BE19-'법정동(2013년말)'!BE20 -> 0.0 | BF16: ='법정동(2014.12월말)'!BF19-'법정동(2013년말)'!BF20 -> 0.0 | BG16: ='법정동(2014.12월말)'!BG19-'법정동(2013년말)'!BG20 -> 0.0
A17: 봉강동 | B17: ='법정동(2014.12월말)'!B20-'법정동(2013년말)'!B21 -> 4.0 | C17: ='법정동(2014.12월말)'!C20-'법정동(2013년말)'!C21 -> -15.0 | D17: ='법정동(2014.12월말)'!D20-'법정동(2013년말)'!D21 -> -97.0 | E17: ='법정동(2014.12월말)'!E20-'법정동(2013년말)'!E21 -> -4.0 | F17: ='법정동(2014.12월말)'!F20-'법정동(2013년말)'!F21 -> 0.0 | G17: ='법정동(2014.12월말)'!G20-'법정동(2013년말)'!G21 -> 0.0 | H17: ='법정동(2014.12월말)'!H20-'법정동(2013년말)'!H21 -> 0.0 | I17: ='법정동(2014.12월말)'!I20-'법정동(2013년말)'!I21 -> 0.0 | J17: ='법정동(2014.12월말)'!J20-'법정동(2013년말)'!J21 -> 0.0 | K17: ='법정동(2014.12월말)'!K20-'법정동(2013년말)'!K21 -> 0.0 | L17: ='법정동(2014.12월말)'!L20-'법정동(2013년말)'!L21 -> 0.0 | M17: ='법정동(2014.12월말)'!M20-'법정동(2013년말)'!M21 -> 0.0 | N17: ='법정동(2014.12월말)'!N20-'법정동(2013년말)'!N21 -> 0.0 | O17: ='법정동(2014.12월말)'!O20-'법정동(2013년말)'!O21 -> 0.0 | P17: ='법정동(2014.12월말)'!P20-'법정동(2013년말)'!P21 -> 0.0 | Q17: ='법정동(2014.12월말)'!Q20-'법정동(2013년말)'!Q21 -> 0.0 | R17: ='법정동(2014.12월말)'!R20-'법정동(2013년말)'!R21 -> -253.0 | S17: ='법정동(2014.12월말)'!S20-'법정동(2013년말)'!S21 -> -15.0 | T17: ='법정동(2014.12월말)'!T20-'법정동(2013년말)'!T21 -> 0.0 | U17: ='법정동(2014.12월말)'!U20-'법정동(2013년말)'!U21 -> 0.0 | V17: ='법정동(2014.12월말)'!V20-'법정동(2013년말)'!V21 -> 0.0 | W17: ='법정동(2014.12월말)'!W20-'법정동(2013년말)'!W21 -> 0.0 | X17: ='법정동(2014.12월말)'!X20-'법정동(2013년말)'!X21 -> 0.0 | Y17: ='법정동(2014.12월말)'!Y20-'법정동(2013년말)'!Y21 -> 0.0 | Z17: ='법정동(2014.12월말)'!Z20-'법정동(2013년말)'!Z21 -> 0.0 | AA17: ='법정동(2014.12월말)'!AA20-'법정동(2013년말)'!AA21 -> 0.0 | AB17: ='법정동(2014.12월말)'!AB20-'법정동(2013년말)'!AB21 -> 0.0 | AC17: ='법정동(2014.12월말)'!AC20-'법정동(2013년말)'!AC21 -> 0.0 | AD17: ='법정동(2014.12월말)'!AD20-'법정동(2013년말)'!AD21 -> 357.0 | AE17: ='법정동(2014.12월말)'!AE20-'법정동(2013년말)'!AE21 -> 4.0 | AF17: ='법정동(2014.12월말)'!AF20-'법정동(2013년말)'!AF21 -> 0.0 | AG17: ='법정동(2014.12월말)'!AG20-'법정동(2013년말)'!AG21 -> 0.0 | AH17: ='법정동(2014.12월말)'!AH20-'법정동(2013년말)'!AH21 -> 0.0 | AI17: ='법정동(2014.12월말)'!AI20-'법정동(2013년말)'!AI21 -> 0.0 | AJ17: ='법정동(2014.12월말)'!AJ20-'법정동(2013년말)'!AJ21 -> 0.0 | AK17: ='법정동(2014.12월말)'!AK20-'법정동(2013년말)'!AK21 -> 0.0 | AL17: ='법정동(2014.12월말)'!AL20-'법정동(2013년말)'!AL21 -> 0.0 | AM17: ='법정동(2014.12월말)'!AM20-'법정동(2013년말)'!AM21 -> 0.0 | AN17: ='법정동(2014.12월말)'!AN20-'법정동(2013년말)'!AN21 -> 0.0 | AO17: ='법정동(2014.12월말)'!AO20-'법정동(2013년말)'!AO21 -> 0.0 | AP17: ='법정동(2014.12월말)'!AP20-'법정동(2013년말)'!AP21 -> 0.0 | AQ17: ='법정동(2014.12월말)'!AQ20-'법정동(2013년말)'!AQ21 -> 0.0 | AR17: ='법정동(2014.12월말)'!AR20-'법정동(2013년말)'!AR21 -> 0.0 | AS17: ='법정동(2014.12월말)'!AS20-'법정동(2013년말)'!AS21 -> 0.0 | AT17: ='법정동(2014.12월말)'!AT20-'법정동(2013년말)'!AT21 -> 0.0 | AU17: ='법정동(2014.12월말)'!AU20-'법정동(2013년말)'!AU21 -> 0.0 | AV17: ='법정동(2014.12월말)'!AV20-'법정동(2013년말)'!AV21 -> 0.0 | AW17: ='법정동(2014.12월말)'!AW20-'법정동(2013년말)'!AW21 -> 0.0 | AX17: ='법정동(2014.12월말)'!AX20-'법정동(2013년말)'!AX21 -> 0.0 | AY17: ='법정동(2014.12월말)'!AY20-'법정동(2013년말)'!AY21 -> 0.0 | AZ17: ='법정동(2014.12월말)'!AZ20-'법정동(2013년말)'!AZ21 -> 0.0 | BA17: ='법정동(2014.12월말)'!BA20-'법정동(2013년말)'!BA21 -> 1.0 | BB17: ='법정동(2014.12월말)'!BB20-'법정동(2013년말)'!BB21 -> 0.0 | BC17: ='법정동(2014.12월말)'!BC20-'법정동(2013년말)'!BC21 -> 0.0 | BD17: ='법정동(2014.12월말)'!BD20-'법정동(2013년말)'!BD21 -> 0.0 | BE17: ='법정동(2014.12월말)'!BE20-'법정동(2013년말)'!BE21 -> 0.0 | BF17: ='법정동(2014.12월말)'!BF20-'법정동(2013년말)'!BF21 -> -3.0 | BG17: ='법정동(2014.12월말)'!BG20-'법정동(2013년말)'!BG21 -> -1.0
A18: 봉산동 | B18: ='법정동(2014.12월말)'!B21-'법정동(2013년말)'!B22 -> 0.0 | C18: ='법정동(2014.12월말)'!C21-'법정동(2013년말)'!C22 -> -7.0 | D18: ='법정동(2014.12월말)'!D21-'법정동(2013년말)'!D22 -> -1,150.0 | E18: ='법정동(2014.12월말)'!E21-'법정동(2013년말)'!E22 -> -1.0 | F18: ='법정동(2014.12월말)'!F21-'법정동(2013년말)'!F22 -> -279.0 | G18: ='법정동(2014.12월말)'!G21-'법정동(2013년말)'!G22 -> -1.0 | H18: ='법정동(2014.12월말)'!H21-'법정동(2013년말)'!H22 -> 0.0 | I18: ='법정동(2014.12월말)'!I21-'법정동(2013년말)'!I22 -> 0.0 | J18: ='법정동(2014.12월말)'!J21-'법정동(2013년말)'!J22 -> 0.0 | K18: ='법정동(2014.12월말)'!K21-'법정동(2013년말)'!K22 -> 0.0 | L18: ='법정동(2014.12월말)'!L21-'법정동(2013년말)'!L22 -> 0.0 | M18: ='법정동(2014.12월말)'!M21-'법정동(2013년말)'!M22 -> 0.0 | N18: ='법정동(2014.12월말)'!N21-'법정동(2013년말)'!N22 -> 0.0 | O18: ='법정동(2014.12월말)'!O21-'법정동(2013년말)'!O22 -> 0.0 | P18: ='법정동(2014.12월말)'!P21-'법정동(2013년말)'!P22 -> 0.0 | Q18: ='법정동(2014.12월말)'!Q21-'법정동(2013년말)'!Q22 -> 0.0 | R18: ='법정동(2014.12월말)'!R21-'법정동(2013년말)'!R22 -> 156.0 | S18: ='법정동(2014.12월말)'!S21-'법정동(2013년말)'!S22 -> -9.0 | T18: ='법정동(2014.12월말)'!T21-'법정동(2013년말)'!T22 -> 0.0 | U18: ='법정동(2014.12월말)'!U21-'법정동(2013년말)'!U22 -> 0.0 | V18: ='법정동(2014.12월말)'!V21-'법정동(2013년말)'!V22 -> 0.0 | W18: ='법정동(2014.12월말)'!W21-'법정동(2013년말)'!W22 -> 0.0 | X18: ='법정동(2014.12월말)'!X21-'법정동(2013년말)'!X22 -> 344.0 | Y18: ='법정동(2014.12월말)'!Y21-'법정동(2013년말)'!Y22 -> 1.0 | Z18: ='법정동(2014.12월말)'!Z21-'법정동(2013년말)'!Z22 -> 0.0 | AA18: ='법정동(2014.12월말)'!AA21-'법정동(2013년말)'!AA22 -> 0.0 | AB18: ='법정동(2014.12월말)'!AB21-'법정동(2013년말)'!AB22 -> 580.0 | AC18: ='법정동(2014.12월말)'!AC21-'법정동(2013년말)'!AC22 -> 1.0 | AD18: ='법정동(2014.12월말)'!AD21-'법정동(2013년말)'!AD22 -> 349.0 | AE18: ='법정동(2014.12월말)'!AE21-'법정동(2013년말)'!AE22 -> 1.0 | AF18: ='법정동(2014.12월말)'!AF21-'법정동(2013년말)'!AF22 -> 0.0 | AG18: ='법정동(2014.12월말)'!AG21-'법정동(2013년말)'!AG22 -> 0.0 | AH18: ='법정동(2014.12월말)'!AH21-'법정동(2013년말)'!AH22 -> 0.0 | AI18: ='법정동(2014.12월말)'!AI21-'법정동(2013년말)'!AI22 -> 0.0 | AJ18: ='법정동(2014.12월말)'!AJ21-'법정동(2013년말)'!AJ22 -> 0.0 | AK18: ='법정동(2014.12월말)'!AK21-'법정동(2013년말)'!AK22 -> 0.0 | AL18: ='법정동(2014.12월말)'!AL21-'법정동(2013년말)'!AL22 -> -78.0 | AM18: ='법정동(2014.12월말)'!AM21-'법정동(2013년말)'!AM22 -> 0.0 | AN18: ='법정동(2014.12월말)'!AN21-'법정동(2013년말)'!AN22 -> 0.0 | AO18: ='법정동(2014.12월말)'!AO21-'법정동(2013년말)'!AO22 -> 0.0 | AP18: ='법정동(2014.12월말)'!AP21-'법정동(2013년말)'!AP22 -> 0.0 | AQ18: ='법정동(2014.12월말)'!AQ21-'법정동(2013년말)'!AQ22 -> 0.0 | AR18: ='법정동(2014.12월말)'!AR21-'법정동(2013년말)'!AR22 -> 0.0 | AS18: ='법정동(2014.12월말)'!AS21-'법정동(2013년말)'!AS22 -> 0.0 | AT18: ='법정동(2014.12월말)'!AT21-'법정동(2013년말)'!AT22 -> 0.0 | AU18: ='법정동(2014.12월말)'!AU21-'법정동(2013년말)'!AU22 -> 0.0 | AV18: ='법정동(2014.12월말)'!AV21-'법정동(2013년말)'!AV22 -> 0.0 | AW18: ='법정동(2014.12월말)'!AW21-'법정동(2013년말)'!AW22 -> 0.0 | AX18: ='법정동(2014.12월말)'!AX21-'법정동(2013년말)'!AX22 -> 0.0 | AY18: ='법정동(2014.12월말)'!AY21-'법정동(2013년말)'!AY22 -> 0.0 | AZ18: ='법정동(2014.12월말)'!AZ21-'법정동(2013년말)'!AZ22 -> 0.0 | BA18: ='법정동(2014.12월말)'!BA21-'법정동(2013년말)'!BA22 -> 0.0 | BB18: ='법정동(2014.12월말)'!BB21-'법정동(2013년말)'!BB22 -> 0.0 | BC18: ='법정동(2014.12월말)'!BC21-'법정동(2013년말)'!BC22 -> 0.0 | BD18: ='법정동(2014.12월말)'!BD21-'법정동(2013년말)'!BD22 -> 0.0 | BE18: ='법정동(2014.12월말)'!BE21-'법정동(2013년말)'!BE22 -> 0.0 | BF18: ='법정동(2014.12월말)'!BF21-'법정동(2013년말)'!BF22 -> 78.0 | BG18: ='법정동(2014.12월말)'!BG21-'법정동(2013년말)'!BG22 -> 1.0
A19: 남산동 | B19: ='법정동(2014.12월말)'!B22-'법정동(2013년말)'!B23 -> -63.0 | C19: ='법정동(2014.12월말)'!C22-'법정동(2013년말)'!C23 -> -22.0 | D19: ='법정동(2014.12월말)'!D22-'법정동(2013년말)'!D23 -> -104.0 | E19: ='법정동(2014.12월말)'!E22-'법정동(2013년말)'!E23 -> -2.0 | F19: ='법정동(2014.12월말)'!F22-'법정동(2013년말)'!F23 -> 0.0 | G19: ='법정동(2014.12월말)'!G22-'법정동(2013년말)'!G23 -> 0.0 | H19: ='법정동(2014.12월말)'!H22-'법정동(2013년말)'!H23 -> 0.0 | I19: ='법정동(2014.12월말)'!I22-'법정동(2013년말)'!I23 -> 0.0 | J19: ='법정동(2014.12월말)'!J22-'법정동(2013년말)'!J23 -> 0.0 | K19: ='법정동(2014.12월말)'!K22-'법정동(2013년말)'!K23 -> 0.0 | L19: ='법정동(2014.12월말)'!L22-'법정동(2013년말)'!L23 -> 0.0 | M19: ='법정동(2014.12월말)'!M22-'법정동(2013년말)'!M23 -> 0.0 | N19: ='법정동(2014.12월말)'!N22-'법정동(2013년말)'!N23 -> 0.0 | O19: ='법정동(2014.12월말)'!O22-'법정동(2013년말)'!O23 -> 0.0 | P19: ='법정동(2014.12월말)'!P22-'법정동(2013년말)'!P23 -> 0.0 | Q19: ='법정동(2014.12월말)'!Q22-'법정동(2013년말)'!Q23 -> 0.0 | R19: ='법정동(2014.12월말)'!R22-'법정동(2013년말)'!R23 -> -592.0 | S19: ='법정동(2014.12월말)'!S22-'법정동(2013년말)'!S23 -> -26.0 | T19: ='법정동(2014.12월말)'!T22-'법정동(2013년말)'!T23 -> 0.0 | U19: ='법정동(2014.12월말)'!U22-'법정동(2013년말)'!U23 -> 0.0 | V19: ='법정동(2014.12월말)'!V22-'법정동(2013년말)'!V23 -> 0.0 | W19: ='법정동(2014.12월말)'!W22-'법정동(2013년말)'!W23 -> 0.0 | X19: ='법정동(2014.12월말)'!X22-'법정동(2013년말)'!X23 -> 356.0 | Y19: ='법정동(2014.12월말)'!Y22-'법정동(2013년말)'!Y23 -> 3.0 | Z19: ='법정동(2014.12월말)'!Z22-'법정동(2013년말)'!Z23 -> 0.0 | AA19: ='법정동(2014.12월말)'!AA22-'법정동(2013년말)'!AA23 -> 0.0 | AB19: ='법정동(2014.12월말)'!AB22-'법정동(2013년말)'!AB23 -> 0.0 | AC19: ='법정동(2014.12월말)'!AC22-'법정동(2013년말)'!AC23 -> 0.0 | AD19: ='법정동(2014.12월말)'!AD22-'법정동(2013년말)'!AD23 -> 277.0 | AE19: ='법정동(2014.12월말)'!AE22-'법정동(2013년말)'!AE23 -> 3.0 | AF19: ='법정동(2014.12월말)'!AF22-'법정동(2013년말)'!AF23 -> 0.0 | AG19: ='법정동(2014.12월말)'!AG22-'법정동(2013년말)'!AG23 -> 0.0 | AH19: ='법정동(2014.12월말)'!AH22-'법정동(2013년말)'!AH23 -> 0.0 | AI19: ='법정동(2014.12월말)'!AI22-'법정동(2013년말)'!AI23 -> 0.0 | AJ19: ='법정동(2014.12월말)'!AJ22-'법정동(2013년말)'!AJ23 -> 0.0 | AK19: ='법정동(2014.12월말)'!AK22-'법정동(2013년말)'!AK23 -> 0.0 | AL19: ='법정동(2014.12월말)'!AL22-'법정동(2013년말)'!AL23 -> 0.0 | AM19: ='법정동(2014.12월말)'!AM22-'법정동(2013년말)'!AM23 -> 0.0 | AN19: ='법정동(2014.12월말)'!AN22-'법정동(2013년말)'!AN23 -> 0.0 | AO19: ='법정동(2014.12월말)'!AO22-'법정동(2013년말)'!AO23 -> 0.0 | AP19: ='법정동(2014.12월말)'!AP22-'법정동(2013년말)'!AP23 -> 0.0 | AQ19: ='법정동(2014.12월말)'!AQ22-'법정동(2013년말)'!AQ23 -> 0.0 | AR19: ='법정동(2014.12월말)'!AR22-'법정동(2013년말)'!AR23 -> 0.0 | AS19: ='법정동(2014.12월말)'!AS22-'법정동(2013년말)'!AS23 -> 0.0 | AT19: ='법정동(2014.12월말)'!AT22-'법정동(2013년말)'!AT23 -> 0.0 | AU19: ='법정동(2014.12월말)'!AU22-'법정동(2013년말)'!AU23 -> 0.0 | AV19: ='법정동(2014.12월말)'!AV22-'법정동(2013년말)'!AV23 -> 0.0 | AW19: ='법정동(2014.12월말)'!AW22-'법정동(2013년말)'!AW23 -> 0.0 | AX19: ='법정동(2014.12월말)'!AX22-'법정동(2013년말)'!AX23 -> 0.0 | AY19: ='법정동(2014.12월말)'!AY22-'법정동(2013년말)'!AY23 -> 0.0 | AZ19: ='법정동(2014.12월말)'!AZ22-'법정동(2013년말)'!AZ23 -> 0.0 | BA19: ='법정동(2014.12월말)'!BA22-'법정동(2013년말)'!BA23 -> 0.0 | BB19: ='법정동(2014.12월말)'!BB22-'법정동(2013년말)'!BB23 -> 0.0 | BC19: ='법정동(2014.12월말)'!BC22-'법정동(2013년말)'!BC23 -> 0.0 | BD19: ='법정동(2014.12월말)'!BD22-'법정동(2013년말)'!BD23 -> 0.0 | BE19: ='법정동(2014.12월말)'!BE22-'법정동(2013년말)'!BE23 -> 0.0 | BF19: ='법정동(2014.12월말)'!BF22-'법정동(2013년말)'!BF23 -> 0.0 | BG19: ='법정동(2014.12월말)'!BG22-'법정동(2013년말)'!BG23 -> 0.0
A20: 국동 | B20: ='법정동(2014.12월말)'!B23-'법정동(2013년말)'!B24 -> 0.0 | C20: ='법정동(2014.12월말)'!C23-'법정동(2013년말)'!C24 -> -60.0 | D20: ='법정동(2014.12월말)'!D23-'법정동(2013년말)'!D24 -> -3,898.0 | E20: ='법정동(2014.12월말)'!E23-'법정동(2013년말)'!E24 -> -11.0 | F20: ='법정동(2014.12월말)'!F23-'법정동(2013년말)'!F24 -> -1,003.0 | G20: ='법정동(2014.12월말)'!G23-'법정동(2013년말)'!G24 -> -12.0 | H20: ='법정동(2014.12월말)'!H23-'법정동(2013년말)'!H24 -> 0.0 | I20: ='법정동(2014.12월말)'!I23-'법정동(2013년말)'!I24 -> 0.0 | J20: ='법정동(2014.12월말)'!J23-'법정동(2013년말)'!J24 -> 0.0 | K20: ='법정동(2014.12월말)'!K23-'법정동(2013년말)'!K24 -> 0.0 | L20: ='법정동(2014.12월말)'!L23-'법정동(2013년말)'!L24 -> -244.0 | M20: ='법정동(2014.12월말)'!M23-'법정동(2013년말)'!M24 -> -1.0 | N20: ='법정동(2014.12월말)'!N23-'법정동(2013년말)'!N24 -> 0.0 | O20: ='법정동(2014.12월말)'!O23-'법정동(2013년말)'!O24 -> 0.0 | P20: ='법정동(2014.12월말)'!P23-'법정동(2013년말)'!P24 -> 0.0 | Q20: ='법정동(2014.12월말)'!Q23-'법정동(2013년말)'!Q24 -> 0.0 | R20: ='법정동(2014.12월말)'!R23-'법정동(2013년말)'!R24 -> -63.0 | S20: ='법정동(2014.12월말)'!S23-'법정동(2013년말)'!S24 -> -19.0 | T20: ='법정동(2014.12월말)'!T23-'법정동(2013년말)'!T24 -> 1,691.0 | U20: ='법정동(2014.12월말)'!U23-'법정동(2013년말)'!U24 -> 3.0 | V20: ='법정동(2014.12월말)'!V23-'법정동(2013년말)'!V24 -> -430.0 | W20: ='법정동(2014.12월말)'!W23-'법정동(2013년말)'!W24 -> -4.0 | X20: ='법정동(2014.12월말)'!X23-'법정동(2013년말)'!X24 -> 484.0 | Y20: ='법정동(2014.12월말)'!Y23-'법정동(2013년말)'!Y24 -> 1.0 | Z20: ='법정동(2014.12월말)'!Z23-'법정동(2013년말)'!Z24 -> 0.0 | AA20: ='법정동(2014.12월말)'!AA23-'법정동(2013년말)'!AA24 -> 0.0 | AB20: ='법정동(2014.12월말)'!AB23-'법정동(2013년말)'!AB24 -> 303.0 | AC20: ='법정동(2014.12월말)'!AC23-'법정동(2013년말)'!AC24 -> 1.0 | AD20: ='법정동(2014.12월말)'!AD23-'법정동(2013년말)'!AD24 -> 2,447.0 | AE20: ='법정동(2014.12월말)'!AE23-'법정동(2013년말)'!AE24 -> -10.0 | AF20: ='법정동(2014.12월말)'!AF23-'법정동(2013년말)'!AF24 -> 0.0 | AG20: ='법정동(2014.12월말)'!AG23-'법정동(2013년말)'!AG24 -> 0.0 | AH20: ='법정동(2014.12월말)'!AH23-'법정동(2013년말)'!AH24 -> 0.0 | AI20: ='법정동(2014.12월말)'!AI23-'법정동(2013년말)'!AI24 -> 0.0 | AJ20: ='법정동(2014.12월말)'!AJ23-'법정동(2013년말)'!AJ24 -> 0.0 | AK20: ='법정동(2014.12월말)'!AK23-'법정동(2013년말)'!AK24 -> 0.0 | AL20: ='법정동(2014.12월말)'!AL23-'법정동(2013년말)'!AL24 -> -175.0 | AM20: ='법정동(2014.12월말)'!AM23-'법정동(2013년말)'!AM24 -> -1.0 | AN20: ='법정동(2014.12월말)'!AN23-'법정동(2013년말)'!AN24 -> 0.0 | AO20: ='법정동(2014.12월말)'!AO23-'법정동(2013년말)'!AO24 -> 0.0 | AP20: ='법정동(2014.12월말)'!AP23-'법정동(2013년말)'!AP24 -> 0.0 | AQ20: ='법정동(2014.12월말)'!AQ23-'법정동(2013년말)'!AQ24 -> 0.0 | AR20: ='법정동(2014.12월말)'!AR23-'법정동(2013년말)'!AR24 -> 0.0 | AS20: ='법정동(2014.12월말)'!AS23-'법정동(2013년말)'!AS24 -> 0.0 | AT20: ='법정동(2014.12월말)'!AT23-'법정동(2013년말)'!AT24 -> 0.0 | AU20: ='법정동(2014.12월말)'!AU23-'법정동(2013년말)'!AU24 -> 0.0 | AV20: ='법정동(2014.12월말)'!AV23-'법정동(2013년말)'!AV24 -> 1,163.0 | AW20: ='법정동(2014.12월말)'!AW23-'법정동(2013년말)'!AW24 -> 1.0 | AX20: ='법정동(2014.12월말)'!AX23-'법정동(2013년말)'!AX24 -> 0.0 | AY20: ='법정동(2014.12월말)'!AY23-'법정동(2013년말)'!AY24 -> 0.0 | AZ20: ='법정동(2014.12월말)'!AZ23-'법정동(2013년말)'!AZ24 -> 0.0 | BA20: ='법정동(2014.12월말)'!BA23-'법정동(2013년말)'!BA24 -> -3.0 | BB20: ='법정동(2014.12월말)'!BB23-'법정동(2013년말)'!BB24 -> 0.0 | BC20: ='법정동(2014.12월말)'!BC23-'법정동(2013년말)'!BC24 -> 0.0 | BD20: ='법정동(2014.12월말)'!BD23-'법정동(2013년말)'!BD24 -> -275.0 | BE20: ='법정동(2014.12월말)'!BE23-'법정동(2013년말)'!BE24 -> -5.0 | BF20: ='법정동(2014.12월말)'!BF23-'법정동(2013년말)'!BF24 -> 0.0 | BG20: ='법정동(2014.12월말)'!BG23-'법정동(2013년말)'!BG24 -> 0.0
A21: 신월동 | B21: ='법정동(2014.12월말)'!B24-'법정동(2013년말)'!B25 -> -1,955.0 | C21: ='법정동(2014.12월말)'!C24-'법정동(2013년말)'!C25 -> -30.0 | D21: ='법정동(2014.12월말)'!D24-'법정동(2013년말)'!D25 -> -1,550.0 | E21: ='법정동(2014.12월말)'!E24-'법정동(2013년말)'!E25 -> -15.0 | F21: ='법정동(2014.12월말)'!F24-'법정동(2013년말)'!F25 -> -1,687.0 | G21: ='법정동(2014.12월말)'!G24-'법정동(2013년말)'!G25 -> -10.0 | H21: ='법정동(2014.12월말)'!H24-'법정동(2013년말)'!H25 -> 0.0 | I21: ='법정동(2014.12월말)'!I24-'법정동(2013년말)'!I25 -> 0.0 | J21: ='법정동(2014.12월말)'!J24-'법정동(2013년말)'!J25 -> 0.0 | K21: ='법정동(2014.12월말)'!K24-'법정동(2013년말)'!K25 -> 0.0 | L21: ='법정동(2014.12월말)'!L24-'법정동(2013년말)'!L25 -> -1,955.0 | M21: ='법정동(2014.12월말)'!M24-'법정동(2013년말)'!M25 -> 0.0 | N21: ='법정동(2014.12월말)'!N24-'법정동(2013년말)'!N25 -> 0.0 | O21: ='법정동(2014.12월말)'!O24-'법정동(2013년말)'!O25 -> 0.0 | P21: ='법정동(2014.12월말)'!P24-'법정동(2013년말)'!P25 -> 0.0 | Q21: ='법정동(2014.12월말)'!Q24-'법정동(2013년말)'!Q25 -> 0.0 | R21: ='법정동(2014.12월말)'!R24-'법정동(2013년말)'!R25 -> -786.0 | S21: ='법정동(2014.12월말)'!S24-'법정동(2013년말)'!S25 -> -15.0 | T21: ='법정동(2014.12월말)'!T24-'법정동(2013년말)'!T25 -> 2,444.0 | U21: ='법정동(2014.12월말)'!U24-'법정동(2013년말)'!U25 -> 8.0 | V21: ='법정동(2014.12월말)'!V24-'법정동(2013년말)'!V25 -> 0.0 | W21: ='법정동(2014.12월말)'!W24-'법정동(2013년말)'!W25 -> 0.0 | X21: ='법정동(2014.12월말)'!X24-'법정동(2013년말)'!X25 -> 0.0 | Y21: ='법정동(2014.12월말)'!Y24-'법정동(2013년말)'!Y25 -> 0.0 | Z21: ='법정동(2014.12월말)'!Z24-'법정동(2013년말)'!Z25 -> 0.0 | AA21: ='법정동(2014.12월말)'!AA24-'법정동(2013년말)'!AA25 -> 0.0 | AB21: ='법정동(2014.12월말)'!AB24-'법정동(2013년말)'!AB25 -> 0.0 | AC21: ='법정동(2014.12월말)'!AC24-'법정동(2013년말)'!AC25 -> 0.0 | AD21: ='법정동(2014.12월말)'!AD24-'법정동(2013년말)'!AD25 -> 1,781.0 | AE21: ='법정동(2014.12월말)'!AE24-'법정동(2013년말)'!AE25 -> 1.0 | AF21: ='법정동(2014.12월말)'!AF24-'법정동(2013년말)'!AF25 -> 0.0 | AG21: ='법정동(2014.12월말)'!AG24-'법정동(2013년말)'!AG25 -> 0.0 | AH21: ='법정동(2014.12월말)'!AH24-'법정동(2013년말)'!AH25 -> 0.0 | AI21: ='법정동(2014.12월말)'!AI24-'법정동(2013년말)'!AI25 -> 0.0 | AJ21: ='법정동(2014.12월말)'!AJ24-'법정동(2013년말)'!AJ25 -> 0.0 | AK21: ='법정동(2014.12월말)'!AK24-'법정동(2013년말)'!AK25 -> 0.0 | AL21: ='법정동(2014.12월말)'!AL24-'법정동(2013년말)'!AL25 -> 0.0 | AM21: ='법정동(2014.12월말)'!AM24-'법정동(2013년말)'!AM25 -> 0.0 | AN21: ='법정동(2014.12월말)'!AN24-'법정동(2013년말)'!AN25 -> 0.0 | AO21: ='법정동(2014.12월말)'!AO24-'법정동(2013년말)'!AO25 -> 0.0 | AP21: ='법정동(2014.12월말)'!AP24-'법정동(2013년말)'!AP25 -> 0.0 | AQ21: ='법정동(2014.12월말)'!AQ24-'법정동(2013년말)'!AQ25 -> 0.0 | AR21: ='법정동(2014.12월말)'!AR24-'법정동(2013년말)'!AR25 -> 0.0 | AS21: ='법정동(2014.12월말)'!AS24-'법정동(2013년말)'!AS25 -> 0.0 | AT21: ='법정동(2014.12월말)'!AT24-'법정동(2013년말)'!AT25 -> 0.0 | AU21: ='법정동(2014.12월말)'!AU24-'법정동(2013년말)'!AU25 -> 0.0 | AV21: ='법정동(2014.12월말)'!AV24-'법정동(2013년말)'!AV25 -> 0.0 | AW21: ='법정동(2014.12월말)'!AW24-'법정동(2013년말)'!AW25 -> 0.0 | AX21: ='법정동(2014.12월말)'!AX24-'법정동(2013년말)'!AX25 -> 0.0 | AY21: ='법정동(2014.12월말)'!AY24-'법정동(2013년말)'!AY25 -> 0.0 | AZ21: ='법정동(2014.12월말)'!AZ24-'법정동(2013년말)'!AZ25 -> 0.0 | BA21: ='법정동(2014.12월말)'!BA24-'법정동(2013년말)'!BA25 -> 0.0 | BB21: ='법정동(2014.12월말)'!BB24-'법정동(2013년말)'!BB25 -> 0.0 | BC21: ='법정동(2014.12월말)'!BC24-'법정동(2013년말)'!BC25 -> 0.0 | BD21: ='법정동(2014.12월말)'!BD24-'법정동(2013년말)'!BD25 -> 0.0 | BE21: ='법정동(2014.12월말)'!BE24-'법정동(2013년말)'!BE25 -> 0.0 | BF21: ='법정동(2014.12월말)'!BF24-'법정동(2013년말)'!BF25 -> -202.0 | BG21: ='법정동(2014.12월말)'!BG24-'법정동(2013년말)'!BG25 -> 1.0
A22: 여서동 | B22: ='법정동(2014.12월말)'!B25-'법정동(2013년말)'!B26 -> -114.0 | C22: ='법정동(2014.12월말)'!C25-'법정동(2013년말)'!C26 -> 8.0 | D22: ='법정동(2014.12월말)'!D25-'법정동(2013년말)'!D26 -> -565.0 | E22: ='법정동(2014.12월말)'!E25-'법정동(2013년말)'!E26 -> -1.0 | F22: ='법정동(2014.12월말)'!F25-'법정동(2013년말)'!F26 -> -9.0 | G22: ='법정동(2014.12월말)'!G25-'법정동(2013년말)'!G26 -> -1.0 | H22: ='법정동(2014.12월말)'!H25-'법정동(2013년말)'!H26 -> 0.0 | I22: ='법정동(2014.12월말)'!I25-'법정동(2013년말)'!I26 -> 0.0 | J22: ='법정동(2014.12월말)'!J25-'법정동(2013년말)'!J26 -> 0.0 | K22: ='법정동(2014.12월말)'!K25-'법정동(2013년말)'!K26 -> 0.0 | L22: ='법정동(2014.12월말)'!L25-'법정동(2013년말)'!L26 -> -114.0 | M22: ='법정동(2014.12월말)'!M25-'법정동(2013년말)'!M26 -> 2.0 | N22: ='법정동(2014.12월말)'!N25-'법정동(2013년말)'!N26 -> 0.0 | O22: ='법정동(2014.12월말)'!O25-'법정동(2013년말)'!O26 -> 0.0 | P22: ='법정동(2014.12월말)'!P25-'법정동(2013년말)'!P26 -> 0.0 | Q22: ='법정동(2014.12월말)'!Q25-'법정동(2013년말)'!Q26 -> 0.0 | R22: ='법정동(2014.12월말)'!R25-'법정동(2013년말)'!R26 -> 24.0 | S22: ='법정동(2014.12월말)'!S25-'법정동(2013년말)'!S26 -> 4.0 | T22: ='법정동(2014.12월말)'!T25-'법정동(2013년말)'!T26 -> 0.0 | U22: ='법정동(2014.12월말)'!U25-'법정동(2013년말)'!U26 -> 0.0 | V22: ='법정동(2014.12월말)'!V25-'법정동(2013년말)'!V26 -> 0.0 | W22: ='법정동(2014.12월말)'!W25-'법정동(2013년말)'!W26 -> 0.0 | X22: ='법정동(2014.12월말)'!X25-'법정동(2013년말)'!X26 -> -13,013.6 | Y22: ='법정동(2014.12월말)'!Y25-'법정동(2013년말)'!Y26 -> -1.0 | Z22: ='법정동(2014.12월말)'!Z25-'법정동(2013년말)'!Z26 -> 0.0 | AA22: ='법정동(2014.12월말)'!AA25-'법정동(2013년말)'!AA26 -> 0.0 | AB22: ='법정동(2014.12월말)'!AB25-'법정동(2013년말)'!AB26 -> -143.0 | AC22: ='법정동(2014.12월말)'!AC25-'법정동(2013년말)'!AC26 -> 0.0 | AD22: ='법정동(2014.12월말)'!AD25-'법정동(2013년말)'!AD26 -> 119.0 | AE22: ='법정동(2014.12월말)'!AE25-'법정동(2013년말)'!AE26 -> 2.0 | AF22: ='법정동(2014.12월말)'!AF25-'법정동(2013년말)'!AF26 -> 0.0 | AG22: ='법정동(2014.12월말)'!AG25-'법정동(2013년말)'!AG26 -> 0.0 | AH22: ='법정동(2014.12월말)'!AH25-'법정동(2013년말)'!AH26 -> 0.0 | AI22: ='법정동(2014.12월말)'!AI25-'법정동(2013년말)'!AI26 -> 0.0 | AJ22: ='법정동(2014.12월말)'!AJ25-'법정동(2013년말)'!AJ26 -> 0.0 | AK22: ='법정동(2014.12월말)'!AK25-'법정동(2013년말)'!AK26 -> 0.0 | AL22: ='법정동(2014.12월말)'!AL25-'법정동(2013년말)'!AL26 -> 0.0 | AM22: ='법정동(2014.12월말)'!AM25-'법정동(2013년말)'!AM26 -> 0.0 | AN22: ='법정동(2014.12월말)'!AN25-'법정동(2013년말)'!AN26 -> 0.0 | AO22: ='법정동(2014.12월말)'!AO25-'법정동(2013년말)'!AO26 -> 0.0 | AP22: ='법정동(2014.12월말)'!AP25-'법정동(2013년말)'!AP26 -> 0.0 | AQ22: ='법정동(2014.12월말)'!AQ25-'법정동(2013년말)'!AQ26 -> 0.0 | AR22: ='법정동(2014.12월말)'!AR25-'법정동(2013년말)'!AR26 -> 0.0 | AS22: ='법정동(2014.12월말)'!AS25-'법정동(2013년말)'!AS26 -> 0.0 | AT22: ='법정동(2014.12월말)'!AT25-'법정동(2013년말)'!AT26 -> 13,013.6 | AU22: ='법정동(2014.12월말)'!AU25-'법정동(2013년말)'!AU26 -> 1.0 | AV22: ='법정동(2014.12월말)'!AV25-'법정동(2013년말)'!AV26 -> 0.0 | AW22: ='법정동(2014.12월말)'!AW25-'법정동(2013년말)'!AW26 -> 0.0 | AX22: ='법정동(2014.12월말)'!AX25-'법정동(2013년말)'!AX26 -> 0.0 | AY22: ='법정동(2014.12월말)'!AY25-'법정동(2013년말)'!AY26 -> 0.0 | AZ22: ='법정동(2014.12월말)'!AZ25-'법정동(2013년말)'!AZ26 -> 0.0 | BA22: ='법정동(2014.12월말)'!BA25-'법정동(2013년말)'!BA26 -> 0.0 | BB22: ='법정동(2014.12월말)'!BB25-'법정동(2013년말)'!BB26 -> 0.0 | BC22: ='법정동(2014.12월말)'!BC25-'법정동(2013년말)'!BC26 -> 0.0 | BD22: ='법정동(2014.12월말)'!BD25-'법정동(2013년말)'!BD26 -> 0.0 | BE22: ='법정동(2014.12월말)'!BE25-'법정동(2013년말)'!BE26 -> 0.0 | BF22: ='법정동(2014.12월말)'!BF25-'법정동(2013년말)'!BF26 -> 574.0 | BG22: ='법정동(2014.12월말)'!BG25-'법정동(2013년말)'!BG26 -> 2.0
A23: 문수동 | B23: ='법정동(2014.12월말)'!B26-'법정동(2013년말)'!B27 -> 0.0 | C23: ='법정동(2014.12월말)'!C26-'법정동(2013년말)'!C27 -> -5.0 | D23: ='법정동(2014.12월말)'!D26-'법정동(2013년말)'!D27 -> -1,386.0 | E23: ='법정동(2014.12월말)'!E26-'법정동(2013년말)'!E27 -> -4.0 | F23: ='법정동(2014.12월말)'!F26-'법정동(2013년말)'!F27 -> -491.0 | G23: ='법정동(2014.12월말)'!G26-'법정동(2013년말)'!G27 -> -3.0 | H23: ='법정동(2014.12월말)'!H26-'법정동(2013년말)'!H27 -> 0.0 | I23: ='법정동(2014.12월말)'!I26-'법정동(2013년말)'!I27 -> 0.0 | J23: ='법정동(2014.12월말)'!J26-'법정동(2013년말)'!J27 -> 0.0 | K23: ='법정동(2014.12월말)'!K26-'법정동(2013년말)'!K27 -> 0.0 | L23: ='법정동(2014.12월말)'!L26-'법정동(2013년말)'!L27 -> 0.0 | M23: ='법정동(2014.12월말)'!M26-'법정동(2013년말)'!M27 -> -10.0 | N23: ='법정동(2014.12월말)'!N26-'법정동(2013년말)'!N27 -> 0.0 | O23: ='법정동(2014.12월말)'!O26-'법정동(2013년말)'!O27 -> 0.0 | P23: ='법정동(2014.12월말)'!P26-'법정동(2013년말)'!P27 -> 0.0 | Q23: ='법정동(2014.12월말)'!Q26-'법정동(2013년말)'!Q27 -> 0.0 | R23: ='법정동(2014.12월말)'!R26-'법정동(2013년말)'!R27 -> 1,740.0 | S23: ='법정동(2014.12월말)'!S26-'법정동(2013년말)'!S27 -> 4.0 | T23: ='법정동(2014.12월말)'!T26-'법정동(2013년말)'!T27 -> 0.0 | U23: ='법정동(2014.12월말)'!U26-'법정동(2013년말)'!U27 -> 0.0 | V23: ='법정동(2014.12월말)'!V26-'법정동(2013년말)'!V27 -> 0.0 | W23: ='법정동(2014.12월말)'!W26-'법정동(2013년말)'!W27 -> 0.0 | X23: ='법정동(2014.12월말)'!X26-'법정동(2013년말)'!X27 -> 110.0 | Y23: ='법정동(2014.12월말)'!Y26-'법정동(2013년말)'!Y27 -> 2.0 | Z23: ='법정동(2014.12월말)'!Z26-'법정동(2013년말)'!Z27 -> 0.0 | AA23: ='법정동(2014.12월말)'!AA26-'법정동(2013년말)'!AA27 -> 0.0 | AB23: ='법정동(2014.12월말)'!AB26-'법정동(2013년말)'!AB27 -> 0.0 | AC23: ='법정동(2014.12월말)'!AC26-'법정동(2013년말)'!AC27 -> 0.0 | AD23: ='법정동(2014.12월말)'!AD26-'법정동(2013년말)'!AD27 -> 27.0 | AE23: ='법정동(2014.12월말)'!AE26-'법정동(2013년말)'!AE27 -> 6.0 | AF23: ='법정동(2014.12월말)'!AF26-'법정동(2013년말)'!AF27 -> 0.0 | AG23: ='법정동(2014.12월말)'!AG26-'법정동(2013년말)'!AG27 -> 0.0 | AH23: ='법정동(2014.12월말)'!AH26-'법정동(2013년말)'!AH27 -> 0.0 | AI23: ='법정동(2014.12월말)'!AI26-'법정동(2013년말)'!AI27 -> 0.0 | AJ23: ='법정동(2014.12월말)'!AJ26-'법정동(2013년말)'!AJ27 -> 0.0 | AK23: ='법정동(2014.12월말)'!AK26-'법정동(2013년말)'!AK27 -> 0.0 | AL23: ='법정동(2014.12월말)'!AL26-'법정동(2013년말)'!AL27 -> 0.0 | AM23: ='법정동(2014.12월말)'!AM26-'법정동(2013년말)'!AM27 -> 0.0 | AN23: ='법정동(2014.12월말)'!AN26-'법정동(2013년말)'!AN27 -> 0.0 | AO23: ='법정동(2014.12월말)'!AO26-'법정동(2013년말)'!AO27 -> 0.0 | AP23: ='법정동(2014.12월말)'!AP26-'법정동(2013년말)'!AP27 -> 0.0 | AQ23: ='법정동(2014.12월말)'!AQ26-'법정동(2013년말)'!AQ27 -> 0.0 | AR23: ='법정동(2014.12월말)'!AR26-'법정동(2013년말)'!AR27 -> 0.0 | AS23: ='법정동(2014.12월말)'!AS26-'법정동(2013년말)'!AS27 -> 0.0 | AT23: ='법정동(2014.12월말)'!AT26-'법정동(2013년말)'!AT27 -> 0.0 | AU23: ='법정동(2014.12월말)'!AU26-'법정동(2013년말)'!AU27 -> 0.0 | AV23: ='법정동(2014.12월말)'!AV26-'법정동(2013년말)'!AV27 -> 0.0 | AW23: ='법정동(2014.12월말)'!AW26-'법정동(2013년말)'!AW27 -> 0.0 | AX23: ='법정동(2014.12월말)'!AX26-'법정동(2013년말)'!AX27 -> 0.0 | AY23: ='법정동(2014.12월말)'!AY26-'법정동(2013년말)'!AY27 -> 0.0 | AZ23: ='법정동(2014.12월말)'!AZ26-'법정동(2013년말)'!AZ27 -> 0.0 | BA23: ='법정동(2014.12월말)'!BA26-'법정동(2013년말)'!BA27 -> 0.0 | BB23: ='법정동(2014.12월말)'!BB26-'법정동(2013년말)'!BB27 -> 0.0 | BC23: ='법정동(2014.12월말)'!BC26-'법정동(2013년말)'!BC27 -> 0.0 | BD23: ='법정동(2014.12월말)'!BD26-'법정동(2013년말)'!BD27 -> 0.0 | BE23: ='법정동(2014.12월말)'!BE26-'법정동(2013년말)'!BE27 -> 0.0 | BF23: ='법정동(2014.12월말)'!BF26-'법정동(2013년말)'!BF27 -> 0.0 | BG23: ='법정동(2014.12월말)'!BG26-'법정동(2013년말)'!BG27 -> 0.0
A24: 오림동 | B24: ='법정동(2014.12월말)'!B27-'법정동(2013년말)'!B28 -> 0.0 | C24: ='법정동(2014.12월말)'!C27-'법정동(2013년말)'!C28 -> 11.0 | D24: ='법정동(2014.12월말)'!D27-'법정동(2013년말)'!D28 -> -1,544.0 | E24: ='법정동(2014.12월말)'!E27-'법정동(2013년말)'!E28 -> 2.0 | F24: ='법정동(2014.12월말)'!F27-'법정동(2013년말)'!F28 -> 0.0 | G24: ='법정동(2014.12월말)'!G27-'법정동(2013년말)'!G28 -> 2.0 | H24: ='법정동(2014.12월말)'!H27-'법정동(2013년말)'!H28 -> 0.0 | I24: ='법정동(2014.12월말)'!I27-'법정동(2013년말)'!I28 -> 0.0 | J24: ='법정동(2014.12월말)'!J27-'법정동(2013년말)'!J28 -> 0.0 | K24: ='법정동(2014.12월말)'!K27-'법정동(2013년말)'!K28 -> 0.0 | L24: ='법정동(2014.12월말)'!L27-'법정동(2013년말)'!L28 -> 0.0 | M24: ='법정동(2014.12월말)'!M27-'법정동(2013년말)'!M28 -> 1.0 | N24: ='법정동(2014.12월말)'!N27-'법정동(2013년말)'!N28 -> 0.0 | O24: ='법정동(2014.12월말)'!O27-'법정동(2013년말)'!O28 -> 0.0 | P24: ='법정동(2014.12월말)'!P27-'법정동(2013년말)'!P28 -> 0.0 | Q24: ='법정동(2014.12월말)'!Q27-'법정동(2013년말)'!Q28 -> 0.0 | R24: ='법정동(2014.12월말)'!R27-'법정동(2013년말)'!R28 -> 568.0 | S24: ='법정동(2014.12월말)'!S27-'법정동(2013년말)'!S28 -> 0.0 | T24: ='법정동(2014.12월말)'!T27-'법정동(2013년말)'!T28 -> 0.0 | U24: ='법정동(2014.12월말)'!U27-'법정동(2013년말)'!U28 -> 1.0 | V24: ='법정동(2014.12월말)'!V27-'법정동(2013년말)'!V28 -> 0.0 | W24: ='법정동(2014.12월말)'!W27-'법정동(2013년말)'!W28 -> 0.0 | X24: ='법정동(2014.12월말)'!X27-'법정동(2013년말)'!X28 -> 0.0 | Y24: ='법정동(2014.12월말)'!Y27-'법정동(2013년말)'!Y28 -> 0.0 | Z24: ='법정동(2014.12월말)'!Z27-'법정동(2013년말)'!Z28 -> 0.0 | AA24: ='법정동(2014.12월말)'!AA27-'법정동(2013년말)'!AA28 -> 0.0 | AB24: ='법정동(2014.12월말)'!AB27-'법정동(2013년말)'!AB28 -> 0.0 | AC24: ='법정동(2014.12월말)'!AC27-'법정동(2013년말)'!AC28 -> 0.0 | AD24: ='법정동(2014.12월말)'!AD27-'법정동(2013년말)'!AD28 -> 51.0 | AE24: ='법정동(2014.12월말)'!AE27-'법정동(2013년말)'!AE28 -> 4.0 | AF24: ='법정동(2014.12월말)'!AF27-'법정동(2013년말)'!AF28 -> 0.0 | AG24: ='법정동(2014.12월말)'!AG27-'법정동(2013년말)'!AG28 -> 0.0 | AH24: ='법정동(2014.12월말)'!AH27-'법정동(2013년말)'!AH28 -> 0.0 | AI24: ='법정동(2014.12월말)'!AI27-'법정동(2013년말)'!AI28 -> 0.0 | AJ24: ='법정동(2014.12월말)'!AJ27-'법정동(2013년말)'!AJ28 -> 0.0 | AK24: ='법정동(2014.12월말)'!AK27-'법정동(2013년말)'!AK28 -> 0.0 | AL24: ='법정동(2014.12월말)'!AL27-'법정동(2013년말)'!AL28 -> 0.0 | AM24: ='법정동(2014.12월말)'!AM27-'법정동(2013년말)'!AM28 -> 0.0 | AN24: ='법정동(2014.12월말)'!AN27-'법정동(2013년말)'!AN28 -> 0.0 | AO24: ='법정동(2014.12월말)'!AO27-'법정동(2013년말)'!AO28 -> 0.0 | AP24: ='법정동(2014.12월말)'!AP27-'법정동(2013년말)'!AP28 -> 0.0 | AQ24: ='법정동(2014.12월말)'!AQ27-'법정동(2013년말)'!AQ28 -> 0.0 | AR24: ='법정동(2014.12월말)'!AR27-'법정동(2013년말)'!AR28 -> 0.0 | AS24: ='법정동(2014.12월말)'!AS27-'법정동(2013년말)'!AS28 -> 0.0 | AT24: ='법정동(2014.12월말)'!AT27-'법정동(2013년말)'!AT28 -> 0.0 | AU24: ='법정동(2014.12월말)'!AU27-'법정동(2013년말)'!AU28 -> 0.0 | AV24: ='법정동(2014.12월말)'!AV27-'법정동(2013년말)'!AV28 -> 0.0 | AW24: ='법정동(2014.12월말)'!AW27-'법정동(2013년말)'!AW28 -> 0.0 | AX24: ='법정동(2014.12월말)'!AX27-'법정동(2013년말)'!AX28 -> 0.0 | AY24: ='법정동(2014.12월말)'!AY27-'법정동(2013년말)'!AY28 -> 0.0 | AZ24: ='법정동(2014.12월말)'!AZ27-'법정동(2013년말)'!AZ28 -> 0.0 | BA24: ='법정동(2014.12월말)'!BA27-'법정동(2013년말)'!BA28 -> 0.0 | BB24: ='법정동(2014.12월말)'!BB27-'법정동(2013년말)'!BB28 -> 0.0 | BC24: ='법정동(2014.12월말)'!BC27-'법정동(2013년말)'!BC28 -> 0.0 | BD24: ='법정동(2014.12월말)'!BD27-'법정동(2013년말)'!BD28 -> 99.0 | BE24: ='법정동(2014.12월말)'!BE27-'법정동(2013년말)'!BE28 -> 1.0 | BF24: ='법정동(2014.12월말)'!BF27-'법정동(2013년말)'!BF28 -> 826.0 | BG24: ='법정동(2014.12월말)'!BG27-'법정동(2013년말)'!BG28 -> 0.0
A25: 미평동 | B25: ='법정동(2014.12월말)'!B28-'법정동(2013년말)'!B29 -> -409.0 | C25: ='법정동(2014.12월말)'!C28-'법정동(2013년말)'!C29 -> 16.0 | D25: ='법정동(2014.12월말)'!D28-'법정동(2013년말)'!D29 -> -3,252.0 | E25: ='법정동(2014.12월말)'!E28-'법정동(2013년말)'!E29 -> -3.0 | F25: ='법정동(2014.12월말)'!F28-'법정동(2013년말)'!F29 -> -2,144.0 | G25: ='법정동(2014.12월말)'!G28-'법정동(2013년말)'!G29 -> -6.0 | H25: ='법정동(2014.12월말)'!H28-'법정동(2013년말)'!H29 -> 0.0 | I25: ='법정동(2014.12월말)'!I28-'법정동(2013년말)'!I29 -> 0.0 | J25: ='법정동(2014.12월말)'!J28-'법정동(2013년말)'!J29 -> 0.0 | K25: ='법정동(2014.12월말)'!K28-'법정동(2013년말)'!K29 -> 0.0 | L25: ='법정동(2014.12월말)'!L28-'법정동(2013년말)'!L29 -> -409.0 | M25: ='법정동(2014.12월말)'!M28-'법정동(2013년말)'!M29 -> 0.0 | N25: ='법정동(2014.12월말)'!N28-'법정동(2013년말)'!N29 -> 0.0 | O25: ='법정동(2014.12월말)'!O28-'법정동(2013년말)'!O29 -> 0.0 | P25: ='법정동(2014.12월말)'!P28-'법정동(2013년말)'!P29 -> 0.0 | Q25: ='법정동(2014.12월말)'!Q28-'법정동(2013년말)'!Q29 -> 0.0 | R25: ='법정동(2014.12월말)'!R28-'법정동(2013년말)'!R29 -> 3,111.0 | S25: ='법정동(2014.12월말)'!S28-'법정동(2013년말)'!S29 -> 11.0 | T25: ='법정동(2014.12월말)'!T28-'법정동(2013년말)'!T29 -> 0.0 | U25: ='법정동(2014.12월말)'!U28-'법정동(2013년말)'!U29 -> 0.0 | V25: ='법정동(2014.12월말)'!V28-'법정동(2013년말)'!V29 -> 0.0 | W25: ='법정동(2014.12월말)'!W28-'법정동(2013년말)'!W29 -> 0.0 | X25: ='법정동(2014.12월말)'!X28-'법정동(2013년말)'!X29 -> 1,866.0 | Y25: ='법정동(2014.12월말)'!Y28-'법정동(2013년말)'!Y29 -> 1.0 | Z25: ='법정동(2014.12월말)'!Z28-'법정동(2013년말)'!Z29 -> 0.0 | AA25: ='법정동(2014.12월말)'!AA28-'법정동(2013년말)'!AA29 -> 0.0 | AB25: ='법정동(2014.12월말)'!AB28-'법정동(2013년말)'!AB29 -> 0.0 | AC25: ='법정동(2014.12월말)'!AC28-'법정동(2013년말)'!AC29 -> 0.0 | AD25: ='법정동(2014.12월말)'!AD28-'법정동(2013년말)'!AD29 -> 419.0 | AE25: ='법정동(2014.12월말)'!AE28-'법정동(2013년말)'!AE29 -> 13.0 | AF25: ='법정동(2014.12월말)'!AF28-'법정동(2013년말)'!AF29 -> 0.0 | AG25: ='법정동(2014.12월말)'!AG28-'법정동(2013년말)'!AG29 -> 0.0 | AH25: ='법정동(2014.12월말)'!AH28-'법정동(2013년말)'!AH29 -> 0.0 | AI25: ='법정동(2014.12월말)'!AI28-'법정동(2013년말)'!AI29 -> 0.0 | AJ25: ='법정동(2014.12월말)'!AJ28-'법정동(2013년말)'!AJ29 -> 0.0 | AK25: ='법정동(2014.12월말)'!AK28-'법정동(2013년말)'!AK29 -> 0.0 | AL25: ='법정동(2014.12월말)'!AL28-'법정동(2013년말)'!AL29 -> 0.0 | AM25: ='법정동(2014.12월말)'!AM28-'법정동(2013년말)'!AM29 -> 0.0 | AN25: ='법정동(2014.12월말)'!AN28-'법정동(2013년말)'!AN29 -> 0.0 | AO25: ='법정동(2014.12월말)'!AO28-'법정동(2013년말)'!AO29 -> 0.0 | AP25: ='법정동(2014.12월말)'!AP28-'법정동(2013년말)'!AP29 -> 0.0 | AQ25: ='법정동(2014.12월말)'!AQ28-'법정동(2013년말)'!AQ29 -> 0.0 | AR25: ='법정동(2014.12월말)'!AR28-'법정동(2013년말)'!AR29 -> 0.0 | AS25: ='법정동(2014.12월말)'!AS28-'법정동(2013년말)'!AS29 -> 0.0 | AT25: ='법정동(2014.12월말)'!AT28-'법정동(2013년말)'!AT29 -> 0.0 | AU25: ='법정동(2014.12월말)'!AU28-'법정동(2013년말)'!AU29 -> 0.0 | AV25: ='법정동(2014.12월말)'!AV28-'법정동(2013년말)'!AV29 -> 0.0 | AW25: ='법정동(2014.12월말)'!AW28-'법정동(2013년말)'!AW29 -> 0.0 | AX25: ='법정동(2014.12월말)'!AX28-'법정동(2013년말)'!AX29 -> 0.0 | AY25: ='법정동(2014.12월말)'!AY28-'법정동(2013년말)'!AY29 -> 0.0 | AZ25: ='법정동(2014.12월말)'!AZ28-'법정동(2013년말)'!AZ29 -> 0.0 | BA25: ='법정동(2014.12월말)'!BA28-'법정동(2013년말)'!BA29 -> 0.0 | BB25: ='법정동(2014.12월말)'!BB28-'법정동(2013년말)'!BB29 -> 0.0 | BC25: ='법정동(2014.12월말)'!BC28-'법정동(2013년말)'!BC29 -> 0.0 | BD25: ='법정동(2014.12월말)'!BD28-'법정동(2013년말)'!BD29 -> 0.0 | BE25: ='법정동(2014.12월말)'!BE28-'법정동(2013년말)'!BE29 -> 0.0 | BF25: ='법정동(2014.12월말)'!BF28-'법정동(2013년말)'!BF29 -> 0.0 | BG25: ='법정동(2014.12월말)'!BG28-'법정동(2013년말)'!BG29 -> 0.0
A26: 둔덕동 | B26: ='법정동(2014.12월말)'!B29-'법정동(2013년말)'!B30 -> -149.0 | C26: ='법정동(2014.12월말)'!C29-'법정동(2013년말)'!C30 -> -4.0 | D26: ='법정동(2014.12월말)'!D29-'법정동(2013년말)'!D30 -> -437.0 | E26: ='법정동(2014.12월말)'!E29-'법정동(2013년말)'!E30 -> -2.0 | F26: ='법정동(2014.12월말)'!F29-'법정동(2013년말)'!F30 -> 0.0 | G26: ='법정동(2014.12월말)'!G29-'법정동(2013년말)'!G30 -> -1.0 | H26: ='법정동(2014.12월말)'!H29-'법정동(2013년말)'!H30 -> 0.0 | I26: ='법정동(2014.12월말)'!I29-'법정동(2013년말)'!I30 -> 0.0 | J26: ='법정동(2014.12월말)'!J29-'법정동(2013년말)'!J30 -> 0.0 | K26: ='법정동(2014.12월말)'!K29-'법정동(2013년말)'!K30 -> 0.0 | L26: ='법정동(2014.12월말)'!L29-'법정동(2013년말)'!L30 -> -707.0 | M26: ='법정동(2014.12월말)'!M29-'법정동(2013년말)'!M30 -> 1.0 | N26: ='법정동(2014.12월말)'!N29-'법정동(2013년말)'!N30 -> 0.0 | O26: ='법정동(2014.12월말)'!O29-'법정동(2013년말)'!O30 -> 0.0 | P26: ='법정동(2014.12월말)'!P29-'법정동(2013년말)'!P30 -> 0.0 | Q26: ='법정동(2014.12월말)'!Q29-'법정동(2013년말)'!Q30 -> 0.0 | R26: ='법정동(2014.12월말)'!R29-'법정동(2013년말)'!R30 -> -81.0 | S26: ='법정동(2014.12월말)'!S29-'법정동(2013년말)'!S30 -> -2.0 | T26: ='법정동(2014.12월말)'!T29-'법정동(2013년말)'!T30 -> 0.0 | U26: ='법정동(2014.12월말)'!U29-'법정동(2013년말)'!U30 -> 0.0 | V26: ='법정동(2014.12월말)'!V29-'법정동(2013년말)'!V30 -> 0.0 | W26: ='법정동(2014.12월말)'!W29-'법정동(2013년말)'!W30 -> 0.0 | X26: ='법정동(2014.12월말)'!X29-'법정동(2013년말)'!X30 -> 234.0 | Y26: ='법정동(2014.12월말)'!Y29-'법정동(2013년말)'!Y30 -> -5.0 | Z26: ='법정동(2014.12월말)'!Z29-'법정동(2013년말)'!Z30 -> 0.0 | AA26: ='법정동(2014.12월말)'!AA29-'법정동(2013년말)'!AA30 -> 0.0 | AB26: ='법정동(2014.12월말)'!AB29-'법정동(2013년말)'!AB30 -> 222.0 | AC26: ='법정동(2014.12월말)'!AC29-'법정동(2013년말)'!AC30 -> 1.0 | AD26: ='법정동(2014.12월말)'!AD29-'법정동(2013년말)'!AD30 -> -20.0 | AE26: ='법정동(2014.12월말)'!AE29-'법정동(2013년말)'!AE30 -> 3.0 | AF26: ='법정동(2014.12월말)'!AF29-'법정동(2013년말)'!AF30 -> 0.0 | AG26: ='법정동(2014.12월말)'!AG29-'법정동(2013년말)'!AG30 -> 0.0 | AH26: ='법정동(2014.12월말)'!AH29-'법정동(2013년말)'!AH30 -> 0.0 | AI26: ='법정동(2014.12월말)'!AI29-'법정동(2013년말)'!AI30 -> 0.0 | AJ26: ='법정동(2014.12월말)'!AJ29-'법정동(2013년말)'!AJ30 -> 0.0 | AK26: ='법정동(2014.12월말)'!AK29-'법정동(2013년말)'!AK30 -> 0.0 | AL26: ='법정동(2014.12월말)'!AL29-'법정동(2013년말)'!AL30 -> 0.0 | AM26: ='법정동(2014.12월말)'!AM29-'법정동(2013년말)'!AM30 -> 0.0 | AN26: ='법정동(2014.12월말)'!AN29-'법정동(2013년말)'!AN30 -> 0.0 | AO26: ='법정동(2014.12월말)'!AO29-'법정동(2013년말)'!AO30 -> 0.0 | AP26: ='법정동(2014.12월말)'!AP29-'법정동(2013년말)'!AP30 -> 0.0 | AQ26: ='법정동(2014.12월말)'!AQ29-'법정동(2013년말)'!AQ30 -> 0.0 | AR26: ='법정동(2014.12월말)'!AR29-'법정동(2013년말)'!AR30 -> 0.0 | AS26: ='법정동(2014.12월말)'!AS29-'법정동(2013년말)'!AS30 -> 0.0 | AT26: ='법정동(2014.12월말)'!AT29-'법정동(2013년말)'!AT30 -> 0.0 | AU26: ='법정동(2014.12월말)'!AU29-'법정동(2013년말)'!AU30 -> 0.0 | AV26: ='법정동(2014.12월말)'!AV29-'법정동(2013년말)'!AV30 -> 0.0 | AW26: ='법정동(2014.12월말)'!AW29-'법정동(2013년말)'!AW30 -> 0.0 | AX26: ='법정동(2014.12월말)'!AX29-'법정동(2013년말)'!AX30 -> 0.0 | AY26: ='법정동(2014.12월말)'!AY29-'법정동(2013년말)'!AY30 -> 0.0 | AZ26: ='법정동(2014.12월말)'!AZ29-'법정동(2013년말)'!AZ30 -> 0.0 | BA26: ='법정동(2014.12월말)'!BA29-'법정동(2013년말)'!BA30 -> 0.0 | BB26: ='법정동(2014.12월말)'!BB29-'법정동(2013년말)'!BB30 -> 0.0 | BC26: ='법정동(2014.12월말)'!BC29-'법정동(2013년말)'!BC30 -> 0.0 | BD26: ='법정동(2014.12월말)'!BD29-'법정동(2013년말)'!BD30 -> 640.0 | BE26: ='법정동(2014.12월말)'!BE29-'법정동(2013년말)'!BE30 -> 1.0 | BF26: ='법정동(2014.12월말)'!BF29-'법정동(2013년말)'!BF30 -> 0.0 | BG26: ='법정동(2014.12월말)'!BG29-'법정동(2013년말)'!BG30 -> 0.0
A27: 오천동 | B27: ='법정동(2014.12월말)'!B30-'법정동(2013년말)'!B31 -> -20,076.9 | C27: ='법정동(2014.12월말)'!C30-'법정동(2013년말)'!C31 -> -540.0 | D27: ='법정동(2014.12월말)'!D30-'법정동(2013년말)'!D31 -> -190,532.0 | E27: ='법정동(2014.12월말)'!E30-'법정동(2013년말)'!E31 -> -226.0 | F27: ='법정동(2014.12월말)'!F30-'법정동(2013년말)'!F31 -> -135,654.0 | G27: ='법정동(2014.12월말)'!G30-'법정동(2013년말)'!G31 -> -150.0 | H27: ='법정동(2014.12월말)'!H30-'법정동(2013년말)'!H31 -> 0.0 | I27: ='법정동(2014.12월말)'!I30-'법정동(2013년말)'!I31 -> 0.0 | J27: ='법정동(2014.12월말)'!J30-'법정동(2013년말)'!J31 -> 0.0 | K27: ='법정동(2014.12월말)'!K30-'법정동(2013년말)'!K31 -> 0.0 | L27: ='법정동(2014.12월말)'!L30-'법정동(2013년말)'!L31 -> -705,663.4 | M27: ='법정동(2014.12월말)'!M30-'법정동(2013년말)'!M31 -> -137.0 | N27: ='법정동(2014.12월말)'!N30-'법정동(2013년말)'!N31 -> 0.0 | O27: ='법정동(2014.12월말)'!O30-'법정동(2013년말)'!O31 -> 0.0 | P27: ='법정동(2014.12월말)'!P30-'법정동(2013년말)'!P31 -> 0.0 | Q27: ='법정동(2014.12월말)'!Q30-'법정동(2013년말)'!Q31 -> 0.0 | R27: ='법정동(2014.12월말)'!R30-'법정동(2013년말)'!R31 -> 436,195.4 | S27: ='법정동(2014.12월말)'!S30-'법정동(2013년말)'!S31 -> 33.0 | T27: ='법정동(2014.12월말)'!T30-'법정동(2013년말)'!T31 -> -6.7 | U27: ='법정동(2014.12월말)'!U30-'법정동(2013년말)'!U31 -> 3.0 | V27: ='법정동(2014.12월말)'!V30-'법정동(2013년말)'!V31 -> 0.0 | W27: ='법정동(2014.12월말)'!W30-'법정동(2013년말)'!W31 -> 0.0 | X27: ='법정동(2014.12월말)'!X30-'법정동(2013년말)'!X31 -> 0.0 | Y27: ='법정동(2014.12월말)'!Y30-'법정동(2013년말)'!Y31 -> 0.0 | Z27: ='법정동(2014.12월말)'!Z30-'법정동(2013년말)'!Z31 -> 0.0 | AA27: ='법정동(2014.12월말)'!AA30-'법정동(2013년말)'!AA31 -> 0.0 | AB27: ='법정동(2014.12월말)'!AB30-'법정동(2013년말)'!AB31 -> 0.0 | AC27: ='법정동(2014.12월말)'!AC30-'법정동(2013년말)'!AC31 -> 0.0 | AD27: ='법정동(2014.12월말)'!AD30-'법정동(2013년말)'!AD31 -> -17,498.3 | AE27: ='법정동(2014.12월말)'!AE30-'법정동(2013년말)'!AE31 -> -22.0 | AF27: ='법정동(2014.12월말)'!AF30-'법정동(2013년말)'!AF31 -> 0.0 | AG27: ='법정동(2014.12월말)'!AG30-'법정동(2013년말)'!AG31 -> 0.0 | AH27: ='법정동(2014.12월말)'!AH30-'법정동(2013년말)'!AH31 -> -17,368.0 | AI27: ='법정동(2014.12월말)'!AI30-'법정동(2013년말)'!AI31 -> -11.0 | AJ27: ='법정동(2014.12월말)'!AJ30-'법정동(2013년말)'!AJ31 -> 0.0 | AK27: ='법정동(2014.12월말)'!AK30-'법정동(2013년말)'!AK31 -> 0.0 | AL27: ='법정동(2014.12월말)'!AL30-'법정동(2013년말)'!AL31 -> -33,372.0 | AM27: ='법정동(2014.12월말)'!AM30-'법정동(2013년말)'!AM31 -> -6.0 | AN27: ='법정동(2014.12월말)'!AN30-'법정동(2013년말)'!AN31 -> -104,581.0 | AO27: ='법정동(2014.12월말)'!AO30-'법정동(2013년말)'!AO31 -> -21.0 | AP27: ='법정동(2014.12월말)'!AP30-'법정동(2013년말)'!AP31 -> 0.0 | AQ27: ='법정동(2014.12월말)'!AQ30-'법정동(2013년말)'!AQ31 -> 0.0 | AR27: ='법정동(2014.12월말)'!AR30-'법정동(2013년말)'!AR31 -> -11,298.0 | AS27: ='법정동(2014.12월말)'!AS30-'법정동(2013년말)'!AS31 -> -5.0 | AT27: ='법정동(2014.12월말)'!AT30-'법정동(2013년말)'!AT31 -> 372,271.6 | AU27: ='법정동(2014.12월말)'!AU30-'법정동(2013년말)'!AU31 -> 5.0 | AV27: ='법정동(2014.12월말)'!AV30-'법정동(2013년말)'!AV31 -> 388,946.5 | AW27: ='법정동(2014.12월말)'!AW30-'법정동(2013년말)'!AW31 -> 1.0 | AX27: ='법정동(2014.12월말)'!AX30-'법정동(2013년말)'!AX31 -> 0.0 | AY27: ='법정동(2014.12월말)'!AY30-'법정동(2013년말)'!AY31 -> 0.0 | AZ27: ='법정동(2014.12월말)'!AZ30-'법정동(2013년말)'!AZ31 -> 0.0 | BA27: ='법정동(2014.12월말)'!BA30-'법정동(2013년말)'!BA31 -> 0.0 | BB27: ='법정동(2014.12월말)'!BB30-'법정동(2013년말)'!BB31 -> 0.0 | BC27: ='법정동(2014.12월말)'!BC30-'법정동(2013년말)'!BC31 -> 0.0 | BD27: ='법정동(2014.12월말)'!BD30-'법정동(2013년말)'!BD31 -> -1,200.0 | BE27: ='법정동(2014.12월말)'!BE30-'법정동(2013년말)'!BE31 -> -3.0 | BF27: ='법정동(2014.12월말)'!BF30-'법정동(2013년말)'!BF31 -> -317.0 | BG27: ='법정동(2014.12월말)'!BG30-'법정동(2013년말)'!BG31 -> -1.0
A28: 만흥동 | B28: ='법정동(2014.12월말)'!B31-'법정동(2013년말)'!B32 -> -285.0 | C28: ='법정동(2014.12월말)'!C31-'법정동(2013년말)'!C32 -> 19.0 | D28: ='법정동(2014.12월말)'!D31-'법정동(2013년말)'!D32 -> -302.0 | E28: ='법정동(2014.12월말)'!E31-'법정동(2013년말)'!E32 -> 8.0 | F28: ='법정동(2014.12월말)'!F31-'법정동(2013년말)'!F32 -> -255.0 | G28: ='법정동(2014.12월말)'!G31-'법정동(2013년말)'!G32 -> -1.0 | H28: ='법정동(2014.12월말)'!H31-'법정동(2013년말)'!H32 -> 0.0 | I28: ='법정동(2014.12월말)'!I31-'법정동(2013년말)'!I32 -> 0.0 | J28: ='법정동(2014.12월말)'!J31-'법정동(2013년말)'!J32 -> 0.0 | K28: ='법정동(2014.12월말)'!K31-'법정동(2013년말)'!K32 -> 0.0 | L28: ='법정동(2014.12월말)'!L31-'법정동(2013년말)'!L32 -> -1,215.0 | M28: ='법정동(2014.12월말)'!M31-'법정동(2013년말)'!M32 -> 9.0 | N28: ='법정동(2014.12월말)'!N31-'법정동(2013년말)'!N32 -> 0.0 | O28: ='법정동(2014.12월말)'!O31-'법정동(2013년말)'!O32 -> 0.0 | P28: ='법정동(2014.12월말)'!P31-'법정동(2013년말)'!P32 -> 0.0 | Q28: ='법정동(2014.12월말)'!Q31-'법정동(2013년말)'!Q32 -> 0.0 | R28: ='법정동(2014.12월말)'!R31-'법정동(2013년말)'!R32 -> 1,185.0 | S28: ='법정동(2014.12월말)'!S31-'법정동(2013년말)'!S32 -> 3.0 | T28: ='법정동(2014.12월말)'!T31-'법정동(2013년말)'!T32 -> 0.0 | U28: ='법정동(2014.12월말)'!U31-'법정동(2013년말)'!U32 -> 0.0 | V28: ='법정동(2014.12월말)'!V31-'법정동(2013년말)'!V32 -> 0.0 | W28: ='법정동(2014.12월말)'!W31-'법정동(2013년말)'!W32 -> 0.0 | X28: ='법정동(2014.12월말)'!X31-'법정동(2013년말)'!X32 -> 0.0 | Y28: ='법정동(2014.12월말)'!Y31-'법정동(2013년말)'!Y32 -> 0.0 | Z28: ='법정동(2014.12월말)'!Z31-'법정동(2013년말)'!Z32 -> 0.0 | AA28: ='법정동(2014.12월말)'!AA31-'법정동(2013년말)'!AA32 -> 0.0 | AB28: ='법정동(2014.12월말)'!AB31-'법정동(2013년말)'!AB32 -> 0.0 | AC28: ='법정동(2014.12월말)'!AC31-'법정동(2013년말)'!AC32 -> 0.0 | AD28: ='법정동(2014.12월말)'!AD31-'법정동(2013년말)'!AD32 -> 0.0 | AE28: ='법정동(2014.12월말)'!AE31-'법정동(2013년말)'!AE32 -> 0.0 | AF28: ='법정동(2014.12월말)'!AF31-'법정동(2013년말)'!AF32 -> 0.0 | AG28: ='법정동(2014.12월말)'!AG31-'법정동(2013년말)'!AG32 -> 0.0 | AH28: ='법정동(2014.12월말)'!AH31-'법정동(2013년말)'!AH32 -> 0.0 | AI28: ='법정동(2014.12월말)'!AI31-'법정동(2013년말)'!AI32 -> 0.0 | AJ28: ='법정동(2014.12월말)'!AJ31-'법정동(2013년말)'!AJ32 -> 0.0 | AK28: ='법정동(2014.12월말)'!AK31-'법정동(2013년말)'!AK32 -> 0.0 | AL28: ='법정동(2014.12월말)'!AL31-'법정동(2013년말)'!AL32 -> 0.0 | AM28: ='법정동(2014.12월말)'!AM31-'법정동(2013년말)'!AM32 -> 0.0 | AN28: ='법정동(2014.12월말)'!AN31-'법정동(2013년말)'!AN32 -> 0.0 | AO28: ='법정동(2014.12월말)'!AO31-'법정동(2013년말)'!AO32 -> 0.0 | AP28: ='법정동(2014.12월말)'!AP31-'법정동(2013년말)'!AP32 -> 0.0 | AQ28: ='법정동(2014.12월말)'!AQ31-'법정동(2013년말)'!AQ32 -> 0.0 | AR28: ='법정동(2014.12월말)'!AR31-'법정동(2013년말)'!AR32 -> 0.0 | AS28: ='법정동(2014.12월말)'!AS31-'법정동(2013년말)'!AS32 -> 0.0 | AT28: ='법정동(2014.12월말)'!AT31-'법정동(2013년말)'!AT32 -> 0.0 | AU28: ='법정동(2014.12월말)'!AU31-'법정동(2013년말)'!AU32 -> 0.0 | AV28: ='법정동(2014.12월말)'!AV31-'법정동(2013년말)'!AV32 -> 0.0 | AW28: ='법정동(2014.12월말)'!AW31-'법정동(2013년말)'!AW32 -> 0.0 | AX28: ='법정동(2014.12월말)'!AX31-'법정동(2013년말)'!AX32 -> 0.0 | AY28: ='법정동(2014.12월말)'!AY31-'법정동(2013년말)'!AY32 -> 0.0 | AZ28: ='법정동(2014.12월말)'!AZ31-'법정동(2013년말)'!AZ32 -> 0.0 | BA28: ='법정동(2014.12월말)'!BA31-'법정동(2013년말)'!BA32 -> -1.0 | BB28: ='법정동(2014.12월말)'!BB31-'법정동(2013년말)'!BB32 -> 0.0 | BC28: ='법정동(2014.12월말)'!BC31-'법정동(2013년말)'!BC32 -> 0.0 | BD28: ='법정동(2014.12월말)'!BD31-'법정동(2013년말)'!BD32 -> -183.0 | BE28: ='법정동(2014.12월말)'!BE31-'법정동(2013년말)'!BE32 -> -1.0 | BF28: ='법정동(2014.12월말)'!BF31-'법정동(2013년말)'!BF32 -> 485.0 | BG28: ='법정동(2014.12월말)'!BG31-'법정동(2013년말)'!BG32 -> 2.0
A29: 덕충동 | B29: ='법정동(2014.12월말)'!B32-'법정동(2013년말)'!B33 -> -126.9 | C29: ='법정동(2014.12월말)'!C32-'법정동(2013년말)'!C33 -> 7.0 | D29: ='법정동(2014.12월말)'!D32-'법정동(2013년말)'!D33 -> -1,846.0 | E29: ='법정동(2014.12월말)'!E32-'법정동(2013년말)'!E33 -> -4.0 | F29: ='법정동(2014.12월말)'!F32-'법정동(2013년말)'!F33 -> -780.0 | G29: ='법정동(2014.12월말)'!G32-'법정동(2013년말)'!G33 -> -1.0 | H29: ='법정동(2014.12월말)'!H32-'법정동(2013년말)'!H33 -> 0.0 | I29: ='법정동(2014.12월말)'!I32-'법정동(2013년말)'!I33 -> 0.0 | J29: ='법정동(2014.12월말)'!J32-'법정동(2013년말)'!J33 -> 0.0 | K29: ='법정동(2014.12월말)'!K32-'법정동(2013년말)'!K33 -> 0.0 | L29: ='법정동(2014.12월말)'!L32-'법정동(2013년말)'!L33 -> -4,191.0 | M29: ='법정동(2014.12월말)'!M32-'법정동(2013년말)'!M33 -> -7.0 | N29: ='법정동(2014.12월말)'!N32-'법정동(2013년말)'!N33 -> 0.0 | O29: ='법정동(2014.12월말)'!O32-'법정동(2013년말)'!O33 -> 0.0 | P29: ='법정동(2014.12월말)'!P32-'법정동(2013년말)'!P33 -> 0.0 | Q29: ='법정동(2014.12월말)'!Q32-'법정동(2013년말)'!Q33 -> 0.0 | R29: ='법정동(2014.12월말)'!R32-'법정동(2013년말)'!R33 -> 1,399.0 | S29: ='법정동(2014.12월말)'!S32-'법정동(2013년말)'!S33 -> 6.0 | T29: ='법정동(2014.12월말)'!T32-'법정동(2013년말)'!T33 -> 0.0 | U29: ='법정동(2014.12월말)'!U32-'법정동(2013년말)'!U33 -> 0.0 | V29: ='법정동(2014.12월말)'!V32-'법정동(2013년말)'!V33 -> -68.9 | W29: ='법정동(2014.12월말)'!W32-'법정동(2013년말)'!W33 -> -1.0 | X29: ='법정동(2014.12월말)'!X32-'법정동(2013년말)'!X33 -> 261.0 | Y29: ='법정동(2014.12월말)'!Y32-'법정동(2013년말)'!Y33 -> 1.0 | Z29: ='법정동(2014.12월말)'!Z32-'법정동(2013년말)'!Z33 -> 2,745.0 | AA29: ='법정동(2014.12월말)'!AA32-'법정동(2013년말)'!AA33 -> 4.0 | AB29: ='법정동(2014.12월말)'!AB32-'법정동(2013년말)'!AB33 -> 0.0 | AC29: ='법정동(2014.12월말)'!AC32-'법정동(2013년말)'!AC33 -> 0.0 | AD29: ='법정동(2014.12월말)'!AD32-'법정동(2013년말)'!AD33 -> -7,402.6 | AE29: ='법정동(2014.12월말)'!AE32-'법정동(2013년말)'!AE33 -> 1.0 | AF29: ='법정동(2014.12월말)'!AF32-'법정동(2013년말)'!AF33 -> 145.0 | AG29: ='법정동(2014.12월말)'!AG32-'법정동(2013년말)'!AG33 -> 3.0 | AH29: ='법정동(2014.12월말)'!AH32-'법정동(2013년말)'!AH33 -> 0.0 | AI29: ='법정동(2014.12월말)'!AI32-'법정동(2013년말)'!AI33 -> 0.0 | AJ29: ='법정동(2014.12월말)'!AJ32-'법정동(2013년말)'!AJ33 -> 0.0 | AK29: ='법정동(2014.12월말)'!AK32-'법정동(2013년말)'!AK33 -> 0.0 | AL29: ='법정동(2014.12월말)'!AL32-'법정동(2013년말)'!AL33 -> 0.0 | AM29: ='법정동(2014.12월말)'!AM32-'법정동(2013년말)'!AM33 -> 1.0 | AN29: ='법정동(2014.12월말)'!AN32-'법정동(2013년말)'!AN33 -> 0.0 | AO29: ='법정동(2014.12월말)'!AO32-'법정동(2013년말)'!AO33 -> 0.0 | AP29: ='법정동(2014.12월말)'!AP32-'법정동(2013년말)'!AP33 -> 0.0 | AQ29: ='법정동(2014.12월말)'!AQ32-'법정동(2013년말)'!AQ33 -> 0.0 | AR29: ='법정동(2014.12월말)'!AR32-'법정동(2013년말)'!AR33 -> 0.0 | AS29: ='법정동(2014.12월말)'!AS32-'법정동(2013년말)'!AS33 -> 0.0 | AT29: ='법정동(2014.12월말)'!AT32-'법정동(2013년말)'!AT33 -> 7,415.6 | AU29: ='법정동(2014.12월말)'!AU32-'법정동(2013년말)'!AU33 -> 1.0 | AV29: ='법정동(2014.12월말)'!AV32-'법정동(2013년말)'!AV33 -> 0.0 | AW29: ='법정동(2014.12월말)'!AW32-'법정동(2013년말)'!AW33 -> 0.0 | AX29: ='법정동(2014.12월말)'!AX32-'법정동(2013년말)'!AX33 -> 0.0 | AY29: ='법정동(2014.12월말)'!AY32-'법정동(2013년말)'!AY33 -> 0.0 | AZ29: ='법정동(2014.12월말)'!AZ32-'법정동(2013년말)'!AZ33 -> 1,315.0 | BA29: ='법정동(2014.12월말)'!BA32-'법정동(2013년말)'!BA33 -> 2.0 | BB29: ='법정동(2014.12월말)'!BB32-'법정동(2013년말)'!BB33 -> 0.0 | BC29: ='법정동(2014.12월말)'!BC32-'법정동(2013년말)'!BC33 -> 0.0 | BD29: ='법정동(2014.12월말)'!BD32-'법정동(2013년말)'!BD33 -> 881.0 | BE29: ='법정동(2014.12월말)'!BE32-'법정동(2013년말)'!BE33 -> 1.0 | BF29: ='법정동(2014.12월말)'!BF32-'법정동(2013년말)'!BF33 -> 0.0 | BG29: ='법정동(2014.12월말)'!BG32-'법정동(2013년말)'!BG33 -> 0.0
A30: 경호동 | B30: ='법정동(2014.12월말)'!B33-'법정동(2013년말)'!B34 -> -84.0 | C30: ='법정동(2014.12월말)'!C33-'법정동(2013년말)'!C34 -> 13.0 | D30: ='법정동(2014.12월말)'!D33-'법정동(2013년말)'!D34 -> 0.0 | E30: ='법정동(2014.12월말)'!E33-'법정동(2013년말)'!E34 -> 8.0 | F30: ='법정동(2014.12월말)'!F33-'법정동(2013년말)'!F34 -> 0.0 | G30: ='법정동(2014.12월말)'!G33-'법정동(2013년말)'!G34 -> 0.0 | H30: ='법정동(2014.12월말)'!H33-'법정동(2013년말)'!H34 -> 0.0 | I30: ='법정동(2014.12월말)'!I33-'법정동(2013년말)'!I34 -> 0.0 | J30: ='법정동(2014.12월말)'!J33-'법정동(2013년말)'!J34 -> 0.0 | K30: ='법정동(2014.12월말)'!K33-'법정동(2013년말)'!K34 -> 0.0 | L30: ='법정동(2014.12월말)'!L33-'법정동(2013년말)'!L34 -> 510.0 | M30: ='법정동(2014.12월말)'!M33-'법정동(2013년말)'!M34 -> 3.0 | N30: ='법정동(2014.12월말)'!N33-'법정동(2013년말)'!N34 -> 0.0 | O30: ='법정동(2014.12월말)'!O33-'법정동(2013년말)'!O34 -> 0.0 | P30: ='법정동(2014.12월말)'!P33-'법정동(2013년말)'!P34 -> 0.0 | Q30: ='법정동(2014.12월말)'!Q33-'법정동(2013년말)'!Q34 -> 0.0 | R30: ='법정동(2014.12월말)'!R33-'법정동(2013년말)'!R34 -> 0.0 | S30: ='법정동(2014.12월말)'!S33-'법정동(2013년말)'!S34 -> 1.0 | T30: ='법정동(2014.12월말)'!T33-'법정동(2013년말)'!T34 -> 0.0 | U30: ='법정동(2014.12월말)'!U33-'법정동(2013년말)'!U34 -> 0.0 | V30: ='법정동(2014.12월말)'!V33-'법정동(2013년말)'!V34 -> 0.0 | W30: ='법정동(2014.12월말)'!W33-'법정동(2013년말)'!W34 -> 0.0 | X30: ='법정동(2014.12월말)'!X33-'법정동(2013년말)'!X34 -> 0.0 | Y30: ='법정동(2014.12월말)'!Y33-'법정동(2013년말)'!Y34 -> 0.0 | Z30: ='법정동(2014.12월말)'!Z33-'법정동(2013년말)'!Z34 -> 0.0 | AA30: ='법정동(2014.12월말)'!AA33-'법정동(2013년말)'!AA34 -> 0.0 | AB30: ='법정동(2014.12월말)'!AB33-'법정동(2013년말)'!AB34 -> 0.0 | AC30: ='법정동(2014.12월말)'!AC33-'법정동(2013년말)'!AC34 -> 0.0 | AD30: ='법정동(2014.12월말)'!AD33-'법정동(2013년말)'!AD34 -> 0.0 | AE30: ='법정동(2014.12월말)'!AE33-'법정동(2013년말)'!AE34 -> 1.0 | AF30: ='법정동(2014.12월말)'!AF33-'법정동(2013년말)'!AF34 -> 0.0 | AG30: ='법정동(2014.12월말)'!AG33-'법정동(2013년말)'!AG34 -> 0.0 | AH30: ='법정동(2014.12월말)'!AH33-'법정동(2013년말)'!AH34 -> -84.0 | AI30: ='법정동(2014.12월말)'!AI33-'법정동(2013년말)'!AI34 -> 0.0 | AJ30: ='법정동(2014.12월말)'!AJ33-'법정동(2013년말)'!AJ34 -> 0.0 | AK30: ='법정동(2014.12월말)'!AK33-'법정동(2013년말)'!AK34 -> 0.0 | AL30: ='법정동(2014.12월말)'!AL33-'법정동(2013년말)'!AL34 -> 0.0 | AM30: ='법정동(2014.12월말)'!AM33-'법정동(2013년말)'!AM34 -> 0.0 | AN30: ='법정동(2014.12월말)'!AN33-'법정동(2013년말)'!AN34 -> 0.0 | AO30: ='법정동(2014.12월말)'!AO33-'법정동(2013년말)'!AO34 -> 0.0 | AP30: ='법정동(2014.12월말)'!AP33-'법정동(2013년말)'!AP34 -> 0.0 | AQ30: ='법정동(2014.12월말)'!AQ33-'법정동(2013년말)'!AQ34 -> 0.0 | AR30: ='법정동(2014.12월말)'!AR33-'법정동(2013년말)'!AR34 -> 0.0 | AS30: ='법정동(2014.12월말)'!AS33-'법정동(2013년말)'!AS34 -> 0.0 | AT30: ='법정동(2014.12월말)'!AT33-'법정동(2013년말)'!AT34 -> 0.0 | AU30: ='법정동(2014.12월말)'!AU33-'법정동(2013년말)'!AU34 -> 0.0 | AV30: ='법정동(2014.12월말)'!AV33-'법정동(2013년말)'!AV34 -> 0.0 | AW30: ='법정동(2014.12월말)'!AW33-'법정동(2013년말)'!AW34 -> 0.0 | AX30: ='법정동(2014.12월말)'!AX33-'법정동(2013년말)'!AX34 -> 0.0 | AY30: ='법정동(2014.12월말)'!AY33-'법정동(2013년말)'!AY34 -> 0.0 | AZ30: ='법정동(2014.12월말)'!AZ33-'법정동(2013년말)'!AZ34 -> 71.0 | BA30: ='법정동(2014.12월말)'!BA33-'법정동(2013년말)'!BA34 -> 1.0 | BB30: ='법정동(2014.12월말)'!BB33-'법정동(2013년말)'!BB34 -> 0.0 | BC30: ='법정동(2014.12월말)'!BC33-'법정동(2013년말)'!BC34 -> 0.0 | BD30: ='법정동(2014.12월말)'!BD33-'법정동(2013년말)'!BD34 -> -581.0 | BE30: ='법정동(2014.12월말)'!BE33-'법정동(2013년말)'!BE34 -> -1.0 | BF30: ='법정동(2014.12월말)'!BF33-'법정동(2013년말)'!BF34 -> 0.0 | BG30: ='법정동(2014.12월말)'!BG33-'법정동(2013년말)'!BG34 -> 0.0
A31: 학동 | B31: ='법정동(2014.12월말)'!B34-'법정동(2013년말)'!B35 -> 0.0 | C31: ='법정동(2014.12월말)'!C34-'법정동(2013년말)'!C35 -> 6.0 | D31: ='법정동(2014.12월말)'!D34-'법정동(2013년말)'!D35 -> 0.0 | E31: ='법정동(2014.12월말)'!E34-'법정동(2013년말)'!E35 -> 0.0 | F31: ='법정동(2014.12월말)'!F34-'법정동(2013년말)'!F35 -> 0.0 | G31: ='법정동(2014.12월말)'!G34-'법정동(2013년말)'!G35 -> 0.0 | H31: ='법정동(2014.12월말)'!H34-'법정동(2013년말)'!H35 -> 0.0 | I31: ='법정동(2014.12월말)'!I34-'법정동(2013년말)'!I35 -> 0.0 | J31: ='법정동(2014.12월말)'!J34-'법정동(2013년말)'!J35 -> 0.0 | K31: ='법정동(2014.12월말)'!K34-'법정동(2013년말)'!K35 -> 0.0 | L31: ='법정동(2014.12월말)'!L34-'법정동(2013년말)'!L35 -> 0.0 | M31: ='법정동(2014.12월말)'!M34-'법정동(2013년말)'!M35 -> 0.0 | N31: ='법정동(2014.12월말)'!N34-'법정동(2013년말)'!N35 -> 0.0 | O31: ='법정동(2014.12월말)'!O34-'법정동(2013년말)'!O35 -> 0.0 | P31: ='법정동(2014.12월말)'!P34-'법정동(2013년말)'!P35 -> 0.0 | Q31: ='법정동(2014.12월말)'!Q34-'법정동(2013년말)'!Q35 -> 0.0 | R31: ='법정동(2014.12월말)'!R34-'법정동(2013년말)'!R35 -> 4,410.5 | S31: ='법정동(2014.12월말)'!S34-'법정동(2013년말)'!S35 -> 4.0 | T31: ='법정동(2014.12월말)'!T34-'법정동(2013년말)'!T35 -> 0.0 | U31: ='법정동(2014.12월말)'!U34-'법정동(2013년말)'!U35 -> 0.0 | V31: ='법정동(2014.12월말)'!V34-'법정동(2013년말)'!V35 -> 0.0 | W31: ='법정동(2014.12월말)'!W34-'법정동(2013년말)'!W35 -> 0.0 | X31: ='법정동(2014.12월말)'!X34-'법정동(2013년말)'!X35 -> 0.0 | Y31: ='법정동(2014.12월말)'!Y34-'법정동(2013년말)'!Y35 -> 0.0 | Z31: ='법정동(2014.12월말)'!Z34-'법정동(2013년말)'!Z35 -> 0.0 | AA31: ='법정동(2014.12월말)'!AA34-'법정동(2013년말)'!AA35 -> 0.0 | AB31: ='법정동(2014.12월말)'!AB34-'법정동(2013년말)'!AB35 -> 0.0 | AC31: ='법정동(2014.12월말)'!AC34-'법정동(2013년말)'!AC35 -> 0.0 | AD31: ='법정동(2014.12월말)'!AD34-'법정동(2013년말)'!AD35 -> 192.9 | AE31: ='법정동(2014.12월말)'!AE34-'법정동(2013년말)'!AE35 -> 2.0 | AF31: ='법정동(2014.12월말)'!AF34-'법정동(2013년말)'!AF35 -> 0.0 | AG31: ='법정동(2014.12월말)'!AG34-'법정동(2013년말)'!AG35 -> 0.0 | AH31: ='법정동(2014.12월말)'!AH34-'법정동(2013년말)'!AH35 -> 0.0 | AI31: ='법정동(2014.12월말)'!AI34-'법정동(2013년말)'!AI35 -> 0.0 | AJ31: ='법정동(2014.12월말)'!AJ34-'법정동(2013년말)'!AJ35 -> 0.0 | AK31: ='법정동(2014.12월말)'!AK34-'법정동(2013년말)'!AK35 -> 0.0 | AL31: ='법정동(2014.12월말)'!AL34-'법정동(2013년말)'!AL35 -> 0.0 | AM31: ='법정동(2014.12월말)'!AM34-'법정동(2013년말)'!AM35 -> 0.0 | AN31: ='법정동(2014.12월말)'!AN34-'법정동(2013년말)'!AN35 -> 0.0 | AO31: ='법정동(2014.12월말)'!AO34-'법정동(2013년말)'!AO35 -> 0.0 | AP31: ='법정동(2014.12월말)'!AP34-'법정동(2013년말)'!AP35 -> 0.0 | AQ31: ='법정동(2014.12월말)'!AQ34-'법정동(2013년말)'!AQ35 -> 0.0 | AR31: ='법정동(2014.12월말)'!AR34-'법정동(2013년말)'!AR35 -> 0.0 | AS31: ='법정동(2014.12월말)'!AS34-'법정동(2013년말)'!AS35 -> 0.0 | AT31: ='법정동(2014.12월말)'!AT34-'법정동(2013년말)'!AT35 -> -4,603.4 | AU31: ='법정동(2014.12월말)'!AU34-'법정동(2013년말)'!AU35 -> 0.0 | AV31: ='법정동(2014.12월말)'!AV34-'법정동(2013년말)'!AV35 -> 0.0 | AW31: ='법정동(2014.12월말)'!AW34-'법정동(2013년말)'!AW35 -> 0.0 | AX31: ='법정동(2014.12월말)'!AX34-'법정동(2013년말)'!AX35 -> 0.0 | AY31: ='법정동(2014.12월말)'!AY34-'법정동(2013년말)'!AY35 -> 0.0 | AZ31: ='법정동(2014.12월말)'!AZ34-'법정동(2013년말)'!AZ35 -> 0.0 | BA31: ='법정동(2014.12월말)'!BA34-'법정동(2013년말)'!BA35 -> 0.0 | BB31: ='법정동(2014.12월말)'!BB34-'법정동(2013년말)'!BB35 -> 0.0 | BC31: ='법정동(2014.12월말)'!BC34-'법정동(2013년말)'!BC35 -> 0.0 | BD31: ='법정동(2014.12월말)'!BD34-'법정동(2013년말)'!BD35 -> 0.0 | BE31: ='법정동(2014.12월말)'!BE34-'법정동(2013년말)'!BE35 -> 0.0 | BF31: ='법정동(2014.12월말)'!BF34-'법정동(2013년말)'!BF35 -> 0.0 | BG31: ='법정동(2014.12월말)'!BG34-'법정동(2013년말)'!BG35 -> 0.0
A32: 학용동 | B32: ='법정동(2014.12월말)'!B35-'법정동(2013년말)'!B36 -> 0.0 | C32: ='법정동(2014.12월말)'!C35-'법정동(2013년말)'!C36 -> 0.0 | D32: ='법정동(2014.12월말)'!D35-'법정동(2013년말)'!D36 -> 0.0 | E32: ='법정동(2014.12월말)'!E35-'법정동(2013년말)'!E36 -> 0.0 | F32: ='법정동(2014.12월말)'!F35-'법정동(2013년말)'!F36 -> 0.0 | G32: ='법정동(2014.12월말)'!G35-'법정동(2013년말)'!G36 -> 0.0 | H32: ='법정동(2014.12월말)'!H35-'법정동(2013년말)'!H36 -> 0.0 | I32: ='법정동(2014.12월말)'!I35-'법정동(2013년말)'!I36 -> 0.0 | J32: ='법정동(2014.12월말)'!J35-'법정동(2013년말)'!J36 -> 0.0 | K32: ='법정동(2014.12월말)'!K35-'법정동(2013년말)'!K36 -> 0.0 | L32: ='법정동(2014.12월말)'!L35-'법정동(2013년말)'!L36 -> 0.0 | M32: ='법정동(2014.12월말)'!M35-'법정동(2013년말)'!M36 -> 0.0 | N32: ='법정동(2014.12월말)'!N35-'법정동(2013년말)'!N36 -> 0.0 | O32: ='법정동(2014.12월말)'!O35-'법정동(2013년말)'!O36 -> 0.0 | P32: ='법정동(2014.12월말)'!P35-'법정동(2013년말)'!P36 -> 0.0 | Q32: ='법정동(2014.12월말)'!Q35-'법정동(2013년말)'!Q36 -> 0.0 | R32: ='법정동(2014.12월말)'!R35-'법정동(2013년말)'!R36 -> 0.0 | S32: ='법정동(2014.12월말)'!S35-'법정동(2013년말)'!S36 -> 0.0 | T32: ='법정동(2014.12월말)'!T35-'법정동(2013년말)'!T36 -> 0.0 | U32: ='법정동(2014.12월말)'!U35-'법정동(2013년말)'!U36 -> 0.0 | V32: ='법정동(2014.12월말)'!V35-'법정동(2013년말)'!V36 -> 0.0 | W32: ='법정동(2014.12월말)'!W35-'법정동(2013년말)'!W36 -> 0.0 | X32: ='법정동(2014.12월말)'!X35-'법정동(2013년말)'!X36 -> 0.0 | Y32: ='법정동(2014.12월말)'!Y35-'법정동(2013년말)'!Y36 -> 0.0 | Z32: ='법정동(2014.12월말)'!Z35-'법정동(2013년말)'!Z36 -> 0.0 | AA32: ='법정동(2014.12월말)'!AA35-'법정동(2013년말)'!AA36 -> 0.0 | AB32: ='법정동(2014.12월말)'!AB35-'법정동(2013년말)'!AB36 -> 0.0 | AC32: ='법정동(2014.12월말)'!AC35-'법정동(2013년말)'!AC36 -> 0.0 | AD32: ='법정동(2014.12월말)'!AD35-'법정동(2013년말)'!AD36 -> 0.0 | AE32: ='법정동(2014.12월말)'!AE35-'법정동(2013년말)'!AE36 -> 0.0 | AF32: ='법정동(2014.12월말)'!AF35-'법정동(2013년말)'!AF36 -> 0.0 | AG32: ='법정동(2014.12월말)'!AG35-'법정동(2013년말)'!AG36 -> 0.0 | AH32: ='법정동(2014.12월말)'!AH35-'법정동(2013년말)'!AH36 -> 0.0 | AI32: ='법정동(2014.12월말)'!AI35-'법정동(2013년말)'!AI36 -> 0.0 | AJ32: ='법정동(2014.12월말)'!AJ35-'법정동(2013년말)'!AJ36 -> 0.0 | AK32: ='법정동(2014.12월말)'!AK35-'법정동(2013년말)'!AK36 -> 0.0 | AL32: ='법정동(2014.12월말)'!AL35-'법정동(2013년말)'!AL36 -> 0.0 | AM32: ='법정동(2014.12월말)'!AM35-'법정동(2013년말)'!AM36 -> 0.0 | AN32: ='법정동(2014.12월말)'!AN35-'법정동(2013년말)'!AN36 -> 0.0 | AO32: ='법정동(2014.12월말)'!AO35-'법정동(2013년말)'!AO36 -> 0.0 | AP32: ='법정동(2014.12월말)'!AP35-'법정동(2013년말)'!AP36 -> 0.0 | AQ32: ='법정동(2014.12월말)'!AQ35-'법정동(2013년말)'!AQ36 -> 0.0 | AR32: ='법정동(2014.12월말)'!AR35-'법정동(2013년말)'!AR36 -> 0.0 | AS32: ='법정동(2014.12월말)'!AS35-'법정동(2013년말)'!AS36 -> 0.0 | AT32: ='법정동(2014.12월말)'!AT35-'법정동(2013년말)'!AT36 -> 0.0 | AU32: ='법정동(2014.12월말)'!AU35-'법정동(2013년말)'!AU36 -> 0.0 | AV32: ='법정동(2014.12월말)'!AV35-'법정동(2013년말)'!AV36 -> 0.0 | AW32: ='법정동(2014.12월말)'!AW35-'법정동(2013년말)'!AW36 -> 0.0 | AX32: ='법정동(2014.12월말)'!AX35-'법정동(2013년말)'!AX36 -> 0.0 | AY32: ='법정동(2014.12월말)'!AY35-'법정동(2013년말)'!AY36 -> 0.0 | AZ32: ='법정동(2014.12월말)'!AZ35-'법정동(2013년말)'!AZ36 -> 0.0 | BA32: ='법정동(2014.12월말)'!BA35-'법정동(2013년말)'!BA36 -> 0.0 | BB32: ='법정동(2014.12월말)'!BB35-'법정동(2013년말)'!BB36 -> 0.0 | BC32: ='법정동(2014.12월말)'!BC35-'법정동(2013년말)'!BC36 -> 0.0 | BD32: ='법정동(2014.12월말)'!BD35-'법정동(2013년말)'!BD36 -> 0.0 | BE32: ='법정동(2014.12월말)'!BE35-'법정동(2013년말)'!BE36 -> 0.0 | BF32: ='법정동(2014.12월말)'!BF35-'법정동(2013년말)'!BF36 -> 0.0 | BG32: ='법정동(2014.12월말)'!BG35-'법정동(2013년말)'!BG36 -> 0.0
A33: 안산동 | B33: ='법정동(2014.12월말)'!B36-'법정동(2013년말)'!B37 -> 0.0 | C33: ='법정동(2014.12월말)'!C36-'법정동(2013년말)'!C37 -> -6.0 | D33: ='법정동(2014.12월말)'!D36-'법정동(2013년말)'!D37 -> 0.0 | E33: ='법정동(2014.12월말)'!E36-'법정동(2013년말)'!E37 -> 0.0 | F33: ='법정동(2014.12월말)'!F36-'법정동(2013년말)'!F37 -> 0.0 | G33: ='법정동(2014.12월말)'!G36-'법정동(2013년말)'!G37 -> 0.0 | H33: ='법정동(2014.12월말)'!H36-'법정동(2013년말)'!H37 -> 0.0 | I33: ='법정동(2014.12월말)'!I36-'법정동(2013년말)'!I37 -> 0.0 | J33: ='법정동(2014.12월말)'!J36-'법정동(2013년말)'!J37 -> 0.0 | K33: ='법정동(2014.12월말)'!K36-'법정동(2013년말)'!K37 -> 0.0 | L33: ='법정동(2014.12월말)'!L36-'법정동(2013년말)'!L37 -> 0.0 | M33: ='법정동(2014.12월말)'!M36-'법정동(2013년말)'!M37 -> -2.0 | N33: ='법정동(2014.12월말)'!N36-'법정동(2013년말)'!N37 -> 0.0 | O33: ='법정동(2014.12월말)'!O36-'법정동(2013년말)'!O37 -> 0.0 | P33: ='법정동(2014.12월말)'!P36-'법정동(2013년말)'!P37 -> 0.0 | Q33: ='법정동(2014.12월말)'!Q36-'법정동(2013년말)'!Q37 -> 0.0 | R33: ='법정동(2014.12월말)'!R36-'법정동(2013년말)'!R37 -> 0.0 | S33: ='법정동(2014.12월말)'!S36-'법정동(2013년말)'!S37 -> -4.0 | T33: ='법정동(2014.12월말)'!T36-'법정동(2013년말)'!T37 -> 0.0 | U33: ='법정동(2014.12월말)'!U36-'법정동(2013년말)'!U37 -> 0.0 | V33: ='법정동(2014.12월말)'!V36-'법정동(2013년말)'!V37 -> 0.0 | W33: ='법정동(2014.12월말)'!W36-'법정동(2013년말)'!W37 -> 0.0 | X33: ='법정동(2014.12월말)'!X36-'법정동(2013년말)'!X37 -> 0.0 | Y33: ='법정동(2014.12월말)'!Y36-'법정동(2013년말)'!Y37 -> 0.0 | Z33: ='법정동(2014.12월말)'!Z36-'법정동(2013년말)'!Z37 -> 0.0 | AA33: ='법정동(2014.12월말)'!AA36-'법정동(2013년말)'!AA37 -> 0.0 | AB33: ='법정동(2014.12월말)'!AB36-'법정동(2013년말)'!AB37 -> 0.0 | AC33: ='법정동(2014.12월말)'!AC36-'법정동(2013년말)'!AC37 -> 0.0 | AD33: ='법정동(2014.12월말)'!AD36-'법정동(2013년말)'!AD37 -> 0.0 | AE33: ='법정동(2014.12월말)'!AE36-'법정동(2013년말)'!AE37 -> 0.0 | AF33: ='법정동(2014.12월말)'!AF36-'법정동(2013년말)'!AF37 -> 0.0 | AG33: ='법정동(2014.12월말)'!AG36-'법정동(2013년말)'!AG37 -> 0.0 | AH33: ='법정동(2014.12월말)'!AH36-'법정동(2013년말)'!AH37 -> 0.0 | AI33: ='법정동(2014.12월말)'!AI36-'법정동(2013년말)'!AI37 -> 0.0 | AJ33: ='법정동(2014.12월말)'!AJ36-'법정동(2013년말)'!AJ37 -> 0.0 | AK33: ='법정동(2014.12월말)'!AK36-'법정동(2013년말)'!AK37 -> 0.0 | AL33: ='법정동(2014.12월말)'!AL36-'법정동(2013년말)'!AL37 -> 0.0 | AM33: ='법정동(2014.12월말)'!AM36-'법정동(2013년말)'!AM37 -> 0.0 | AN33: ='법정동(2014.12월말)'!AN36-'법정동(2013년말)'!AN37 -> 0.0 | AO33: ='법정동(2014.12월말)'!AO36-'법정동(2013년말)'!AO37 -> 0.0 | AP33: ='법정동(2014.12월말)'!AP36-'법정동(2013년말)'!AP37 -> 0.0 | AQ33: ='법정동(2014.12월말)'!AQ36-'법정동(2013년말)'!AQ37 -> 0.0 | AR33: ='법정동(2014.12월말)'!AR36-'법정동(2013년말)'!AR37 -> 0.0 | AS33: ='법정동(2014.12월말)'!AS36-'법정동(2013년말)'!AS37 -> 0.0 | AT33: ='법정동(2014.12월말)'!AT36-'법정동(2013년말)'!AT37 -> 0.0 | AU33: ='법정동(2014.12월말)'!AU36-'법정동(2013년말)'!AU37 -> 0.0 | AV33: ='법정동(2014.12월말)'!AV36-'법정동(2013년말)'!AV37 -> 0.0 | AW33: ='법정동(2014.12월말)'!AW36-'법정동(2013년말)'!AW37 -> 0.0 | AX33: ='법정동(2014.12월말)'!AX36-'법정동(2013년말)'!AX37 -> 0.0 | AY33: ='법정동(2014.12월말)'!AY36-'법정동(2013년말)'!AY37 -> 0.0 | AZ33: ='법정동(2014.12월말)'!AZ36-'법정동(2013년말)'!AZ37 -> 0.0 | BA33: ='법정동(2014.12월말)'!BA36-'법정동(2013년말)'!BA37 -> 0.0 | BB33: ='법정동(2014.12월말)'!BB36-'법정동(2013년말)'!BB37 -> 0.0 | BC33: ='법정동(2014.12월말)'!BC36-'법정동(2013년말)'!BC37 -> 0.0 | BD33: ='법정동(2014.12월말)'!BD36-'법정동(2013년말)'!BD37 -> 0.0 | BE33: ='법정동(2014.12월말)'!BE36-'법정동(2013년말)'!BE37 -> 0.0 | BF33: ='법정동(2014.12월말)'!BF36-'법정동(2013년말)'!BF37 -> 0.0 | BG33: ='법정동(2014.12월말)'!BG36-'법정동(2013년말)'!BG37 -> 0.0
A34: 소호동 | B34: ='법정동(2014.12월말)'!B37-'법정동(2013년말)'!B38 -> 0.0 | C34: ='법정동(2014.12월말)'!C37-'법정동(2013년말)'!C38 -> -94.0 | D34: ='법정동(2014.12월말)'!D37-'법정동(2013년말)'!D38 -> -15,352.0 | E34: ='법정동(2014.12월말)'!E37-'법정동(2013년말)'!E38 -> -27.0 | F34: ='법정동(2014.12월말)'!F37-'법정동(2013년말)'!F38 -> -32,987.0 | G34: ='법정동(2014.12월말)'!G37-'법정동(2013년말)'!G38 -> -62.0 | H34: ='법정동(2014.12월말)'!H37-'법정동(2013년말)'!H38 -> 0.0 | I34: ='법정동(2014.12월말)'!I37-'법정동(2013년말)'!I38 -> 0.0 | J34: ='법정동(2014.12월말)'!J37-'법정동(2013년말)'!J38 -> 0.0 | K34: ='법정동(2014.12월말)'!K37-'법정동(2013년말)'!K38 -> 0.0 | L34: ='법정동(2014.12월말)'!L37-'법정동(2013년말)'!L38 -> -18,479.0 | M34: ='법정동(2014.12월말)'!M37-'법정동(2013년말)'!M38 -> -6.0 | N34: ='법정동(2014.12월말)'!N37-'법정동(2013년말)'!N38 -> 0.0 | O34: ='법정동(2014.12월말)'!O37-'법정동(2013년말)'!O38 -> 0.0 | P34: ='법정동(2014.12월말)'!P37-'법정동(2013년말)'!P38 -> 0.0 | Q34: ='법정동(2014.12월말)'!Q37-'법정동(2013년말)'!Q38 -> 0.0 | R34: ='법정동(2014.12월말)'!R37-'법정동(2013년말)'!R38 -> -192.8 | S34: ='법정동(2014.12월말)'!S37-'법정동(2013년말)'!S38 -> -6.0 | T34: ='법정동(2014.12월말)'!T37-'법정동(2013년말)'!T38 -> 0.0 | U34: ='법정동(2014.12월말)'!U37-'법정동(2013년말)'!U38 -> 0.0 | V34: ='법정동(2014.12월말)'!V37-'법정동(2013년말)'!V38 -> 0.0 | W34: ='법정동(2014.12월말)'!W37-'법정동(2013년말)'!W38 -> 0.0 | X34: ='법정동(2014.12월말)'!X37-'법정동(2013년말)'!X38 -> 220.8 | Y34: ='법정동(2014.12월말)'!Y37-'법정동(2013년말)'!Y38 -> 1.0 | Z34: ='법정동(2014.12월말)'!Z37-'법정동(2013년말)'!Z38 -> 0.0 | AA34: ='법정동(2014.12월말)'!AA37-'법정동(2013년말)'!AA38 -> 0.0 | AB34: ='법정동(2014.12월말)'!AB37-'법정동(2013년말)'!AB38 -> 0.0 | AC34: ='법정동(2014.12월말)'!AC37-'법정동(2013년말)'!AC38 -> 0.0 | AD34: ='법정동(2014.12월말)'!AD37-'법정동(2013년말)'!AD38 -> 68,181.0 | AE34: ='법정동(2014.12월말)'!AE37-'법정동(2013년말)'!AE38 -> 10.0 | AF34: ='법정동(2014.12월말)'!AF37-'법정동(2013년말)'!AF38 -> 0.0 | AG34: ='법정동(2014.12월말)'!AG37-'법정동(2013년말)'!AG38 -> 0.0 | AH34: ='법정동(2014.12월말)'!AH37-'법정동(2013년말)'!AH38 -> 0.0 | AI34: ='법정동(2014.12월말)'!AI37-'법정동(2013년말)'!AI38 -> 0.0 | AJ34: ='법정동(2014.12월말)'!AJ37-'법정동(2013년말)'!AJ38 -> 0.0 | AK34: ='법정동(2014.12월말)'!AK37-'법정동(2013년말)'!AK38 -> 0.0 | AL34: ='법정동(2014.12월말)'!AL37-'법정동(2013년말)'!AL38 -> 0.0 | AM34: ='법정동(2014.12월말)'!AM37-'법정동(2013년말)'!AM38 -> 0.0 | AN34: ='법정동(2014.12월말)'!AN37-'법정동(2013년말)'!AN38 -> -240.0 | AO34: ='법정동(2014.12월말)'!AO37-'법정동(2013년말)'!AO38 -> -1.0 | AP34: ='법정동(2014.12월말)'!AP37-'법정동(2013년말)'!AP38 -> 0.0 | AQ34: ='법정동(2014.12월말)'!AQ37-'법정동(2013년말)'!AQ38 -> 0.0 | AR34: ='법정동(2014.12월말)'!AR37-'법정동(2013년말)'!AR38 -> 0.0 | AS34: ='법정동(2014.12월말)'!AS37-'법정동(2013년말)'!AS38 -> 0.0 | AT34: ='법정동(2014.12월말)'!AT37-'법정동(2013년말)'!AT38 -> 0.0 | AU34: ='법정동(2014.12월말)'!AU37-'법정동(2013년말)'!AU38 -> 0.0 | AV34: ='법정동(2014.12월말)'!AV37-'법정동(2013년말)'!AV38 -> 0.0 | AW34: ='법정동(2014.12월말)'!AW37-'법정동(2013년말)'!AW38 -> 0.0 | AX34: ='법정동(2014.12월말)'!AX37-'법정동(2013년말)'!AX38 -> 0.0 | AY34: ='법정동(2014.12월말)'!AY37-'법정동(2013년말)'!AY38 -> 0.0 | AZ34: ='법정동(2014.12월말)'!AZ37-'법정동(2013년말)'!AZ38 -> 0.0 | BA34: ='법정동(2014.12월말)'!BA37-'법정동(2013년말)'!BA38 -> 0.0 | BB34: ='법정동(2014.12월말)'!BB37-'법정동(2013년말)'!BB38 -> 0.0 | BC34: ='법정동(2014.12월말)'!BC37-'법정동(2013년말)'!BC38 -> 0.0 | BD34: ='법정동(2014.12월말)'!BD37-'법정동(2013년말)'!BD38 -> -1,151.0 | BE34: ='법정동(2014.12월말)'!BE37-'법정동(2013년말)'!BE38 -> -3.0 | BF34: ='법정동(2014.12월말)'!BF37-'법정동(2013년말)'!BF38 -> 0.0 | BG34: ='법정동(2014.12월말)'!BG37-'법정동(2013년말)'!BG38 -> 0.0
A35: 시전동 | B35: ='법정동(2014.12월말)'!B38-'법정동(2013년말)'!B39 -> 0.0 | C35: ='법정동(2014.12월말)'!C38-'법정동(2013년말)'!C39 -> 12.0 | D35: ='법정동(2014.12월말)'!D38-'법정동(2013년말)'!D39 -> 0.0 | E35: ='법정동(2014.12월말)'!E38-'법정동(2013년말)'!E39 -> 2.0 | F35: ='법정동(2014.12월말)'!F38-'법정동(2013년말)'!F39 -> 0.0 | G35: ='법정동(2014.12월말)'!G38-'법정동(2013년말)'!G39 -> 6.0 | H35: ='법정동(2014.12월말)'!H38-'법정동(2013년말)'!H39 -> 0.0 | I35: ='법정동(2014.12월말)'!I38-'법정동(2013년말)'!I39 -> 0.0 | J35: ='법정동(2014.12월말)'!J38-'법정동(2013년말)'!J39 -> 0.0 | K35: ='법정동(2014.12월말)'!K38-'법정동(2013년말)'!K39 -> 0.0 | L35: ='법정동(2014.12월말)'!L38-'법정동(2013년말)'!L39 -> 0.0 | M35: ='법정동(2014.12월말)'!M38-'법정동(2013년말)'!M39 -> 1.0 | N35: ='법정동(2014.12월말)'!N38-'법정동(2013년말)'!N39 -> 0.0 | O35: ='법정동(2014.12월말)'!O38-'법정동(2013년말)'!O39 -> 0.0 | P35: ='법정동(2014.12월말)'!P38-'법정동(2013년말)'!P39 -> 0.0 | Q35: ='법정동(2014.12월말)'!Q38-'법정동(2013년말)'!Q39 -> 0.0 | R35: ='법정동(2014.12월말)'!R38-'법정동(2013년말)'!R39 -> 0.0 | S35: ='법정동(2014.12월말)'!S38-'법정동(2013년말)'!S39 -> 0.0 | T35: ='법정동(2014.12월말)'!T38-'법정동(2013년말)'!T39 -> 0.0 | U35: ='법정동(2014.12월말)'!U38-'법정동(2013년말)'!U39 -> 0.0 | V35: ='법정동(2014.12월말)'!V38-'법정동(2013년말)'!V39 -> 0.0 | W35: ='법정동(2014.12월말)'!W38-'법정동(2013년말)'!W39 -> 0.0 | X35: ='법정동(2014.12월말)'!X38-'법정동(2013년말)'!X39 -> 0.0 | Y35: ='법정동(2014.12월말)'!Y38-'법정동(2013년말)'!Y39 -> 0.0 | Z35: ='법정동(2014.12월말)'!Z38-'법정동(2013년말)'!Z39 -> 0.0 | AA35: ='법정동(2014.12월말)'!AA38-'법정동(2013년말)'!AA39 -> 0.0 | AB35: ='법정동(2014.12월말)'!AB38-'법정동(2013년말)'!AB39 -> 0.0 | AC35: ='법정동(2014.12월말)'!AC38-'법정동(2013년말)'!AC39 -> 0.0 | AD35: ='법정동(2014.12월말)'!AD38-'법정동(2013년말)'!AD39 -> 0.0 | AE35: ='법정동(2014.12월말)'!AE38-'법정동(2013년말)'!AE39 -> 1.0 | AF35: ='법정동(2014.12월말)'!AF38-'법정동(2013년말)'!AF39 -> 0.0 | AG35: ='법정동(2014.12월말)'!AG38-'법정동(2013년말)'!AG39 -> 0.0 | AH35: ='법정동(2014.12월말)'!AH38-'법정동(2013년말)'!AH39 -> 0.0 | AI35: ='법정동(2014.12월말)'!AI38-'법정동(2013년말)'!AI39 -> 0.0 | AJ35: ='법정동(2014.12월말)'!AJ38-'법정동(2013년말)'!AJ39 -> 0.0 | AK35: ='법정동(2014.12월말)'!AK38-'법정동(2013년말)'!AK39 -> 0.0 | AL35: ='법정동(2014.12월말)'!AL38-'법정동(2013년말)'!AL39 -> 0.0 | AM35: ='법정동(2014.12월말)'!AM38-'법정동(2013년말)'!AM39 -> 2.0 | AN35: ='법정동(2014.12월말)'!AN38-'법정동(2013년말)'!AN39 -> 0.0 | AO35: ='법정동(2014.12월말)'!AO38-'법정동(2013년말)'!AO39 -> 0.0 | AP35: ='법정동(2014.12월말)'!AP38-'법정동(2013년말)'!AP39 -> 0.0 | AQ35: ='법정동(2014.12월말)'!AQ38-'법정동(2013년말)'!AQ39 -> 0.0 | AR35: ='법정동(2014.12월말)'!AR38-'법정동(2013년말)'!AR39 -> 0.0 | AS35: ='법정동(2014.12월말)'!AS38-'법정동(2013년말)'!AS39 -> 0.0 | AT35: ='법정동(2014.12월말)'!AT38-'법정동(2013년말)'!AT39 -> 0.0 | AU35: ='법정동(2014.12월말)'!AU38-'법정동(2013년말)'!AU39 -> 0.0 | AV35: ='법정동(2014.12월말)'!AV38-'법정동(2013년말)'!AV39 -> 0.0 | AW35: ='법정동(2014.12월말)'!AW38-'법정동(2013년말)'!AW39 -> 0.0 | AX35: ='법정동(2014.12월말)'!AX38-'법정동(2013년말)'!AX39 -> 0.0 | AY35: ='법정동(2014.12월말)'!AY38-'법정동(2013년말)'!AY39 -> 0.0 | AZ35: ='법정동(2014.12월말)'!AZ38-'법정동(2013년말)'!AZ39 -> 0.0 | BA35: ='법정동(2014.12월말)'!BA38-'법정동(2013년말)'!BA39 -> 0.0 | BB35: ='법정동(2014.12월말)'!BB38-'법정동(2013년말)'!BB39 -> 0.0 | BC35: ='법정동(2014.12월말)'!BC38-'법정동(2013년말)'!BC39 -> 0.0 | BD35: ='법정동(2014.12월말)'!BD38-'법정동(2013년말)'!BD39 -> 0.0 | BE35: ='법정동(2014.12월말)'!BE38-'법정동(2013년말)'!BE39 -> 0.0 | BF35: ='법정동(2014.12월말)'!BF38-'법정동(2013년말)'!BF39 -> 0.0 | BG35: ='법정동(2014.12월말)'!BG38-'법정동(2013년말)'!BG39 -> 0.0
A36: 신기동 | B36: ='법정동(2014.12월말)'!B39-'법정동(2013년말)'!B40 -> 0.0 | C36: ='법정동(2014.12월말)'!C39-'법정동(2013년말)'!C40 -> 1.0 | D36: ='법정동(2014.12월말)'!D39-'법정동(2013년말)'!D40 -> 0.0 | E36: ='법정동(2014.12월말)'!E39-'법정동(2013년말)'!E40 -> 0.0 | F36: ='법정동(2014.12월말)'!F39-'법정동(2013년말)'!F40 -> 0.0 | G36: ='법정동(2014.12월말)'!G39-'법정동(2013년말)'!G40 -> 0.0 | H36: ='법정동(2014.12월말)'!H39-'법정동(2013년말)'!H40 -> 0.0 | I36: ='법정동(2014.12월말)'!I39-'법정동(2013년말)'!I40 -> 0.0 | J36: ='법정동(2014.12월말)'!J39-'법정동(2013년말)'!J40 -> 0.0 | K36: ='법정동(2014.12월말)'!K39-'법정동(2013년말)'!K40 -> 0.0 | L36: ='법정동(2014.12월말)'!L39-'법정동(2013년말)'!L40 -> 0.0 | M36: ='법정동(2014.12월말)'!M39-'법정동(2013년말)'!M40 -> 0.0 | N36: ='법정동(2014.12월말)'!N39-'법정동(2013년말)'!N40 -> 0.0 | O36: ='법정동(2014.12월말)'!O39-'법정동(2013년말)'!O40 -> 0.0 | P36: ='법정동(2014.12월말)'!P39-'법정동(2013년말)'!P40 -> 0.0 | Q36: ='법정동(2014.12월말)'!Q39-'법정동(2013년말)'!Q40 -> 0.0 | R36: ='법정동(2014.12월말)'!R39-'법정동(2013년말)'!R40 -> -737.1 | S36: ='법정동(2014.12월말)'!S39-'법정동(2013년말)'!S40 -> 0.0 | T36: ='법정동(2014.12월말)'!T39-'법정동(2013년말)'!T40 -> 0.0 | U36: ='법정동(2014.12월말)'!U39-'법정동(2013년말)'!U40 -> 0.0 | V36: ='법정동(2014.12월말)'!V39-'법정동(2013년말)'!V40 -> 0.0 | W36: ='법정동(2014.12월말)'!W39-'법정동(2013년말)'!W40 -> 0.0 | X36: ='법정동(2014.12월말)'!X39-'법정동(2013년말)'!X40 -> 737.1 | Y36: ='법정동(2014.12월말)'!Y39-'법정동(2013년말)'!Y40 -> 1.0 | Z36: ='법정동(2014.12월말)'!Z39-'법정동(2013년말)'!Z40 -> 0.0 | AA36: ='법정동(2014.12월말)'!AA39-'법정동(2013년말)'!AA40 -> 0.0 | AB36: ='법정동(2014.12월말)'!AB39-'법정동(2013년말)'!AB40 -> 0.0 | AC36: ='법정동(2014.12월말)'!AC39-'법정동(2013년말)'!AC40 -> 0.0 | AD36: ='법정동(2014.12월말)'!AD39-'법정동(2013년말)'!AD40 -> 0.0 | AE36: ='법정동(2014.12월말)'!AE39-'법정동(2013년말)'!AE40 -> 0.0 | AF36: ='법정동(2014.12월말)'!AF39-'법정동(2013년말)'!AF40 -> 0.0 | AG36: ='법정동(2014.12월말)'!AG39-'법정동(2013년말)'!AG40 -> 0.0 | AH36: ='법정동(2014.12월말)'!AH39-'법정동(2013년말)'!AH40 -> 0.0 | AI36: ='법정동(2014.12월말)'!AI39-'법정동(2013년말)'!AI40 -> 0.0 | AJ36: ='법정동(2014.12월말)'!AJ39-'법정동(2013년말)'!AJ40 -> 0.0 | AK36: ='법정동(2014.12월말)'!AK39-'법정동(2013년말)'!AK40 -> 0.0 | AL36: ='법정동(2014.12월말)'!AL39-'법정동(2013년말)'!AL40 -> 0.0 | AM36: ='법정동(2014.12월말)'!AM39-'법정동(2013년말)'!AM40 -> 0.0 | AN36: ='법정동(2014.12월말)'!AN39-'법정동(2013년말)'!AN40 -> 0.0 | AO36: ='법정동(2014.12월말)'!AO39-'법정동(2013년말)'!AO40 -> 0.0 | AP36: ='법정동(2014.12월말)'!AP39-'법정동(2013년말)'!AP40 -> 0.0 | AQ36: ='법정동(2014.12월말)'!AQ39-'법정동(2013년말)'!AQ40 -> 0.0 | AR36: ='법정동(2014.12월말)'!AR39-'법정동(2013년말)'!AR40 -> 0.0 | AS36: ='법정동(2014.12월말)'!AS39-'법정동(2013년말)'!AS40 -> 0.0 | AT36: ='법정동(2014.12월말)'!AT39-'법정동(2013년말)'!AT40 -> 0.0 | AU36: ='법정동(2014.12월말)'!AU39-'법정동(2013년말)'!AU40 -> 0.0 | AV36: ='법정동(2014.12월말)'!AV39-'법정동(2013년말)'!AV40 -> 0.0 | AW36: ='법정동(2014.12월말)'!AW39-'법정동(2013년말)'!AW40 -> 0.0 | AX36: ='법정동(2014.12월말)'!AX39-'법정동(2013년말)'!AX40 -> 0.0 | AY36: ='법정동(2014.12월말)'!AY39-'법정동(2013년말)'!AY40 -> 0.0 | AZ36: ='법정동(2014.12월말)'!AZ39-'법정동(2013년말)'!AZ40 -> 0.0 | BA36: ='법정동(2014.12월말)'!BA39-'법정동(2013년말)'!BA40 -> 0.0 | BB36: ='법정동(2014.12월말)'!BB39-'법정동(2013년말)'!BB40 -> 0.0 | BC36: ='법정동(2014.12월말)'!BC39-'법정동(2013년말)'!BC40 -> 0.0 | BD36: ='법정동(2014.12월말)'!BD39-'법정동(2013년말)'!BD40 -> 0.0 | BE36: ='법정동(2014.12월말)'!BE39-'법정동(2013년말)'!BE40 -> 0.0 | BF36: ='법정동(2014.12월말)'!BF39-'법정동(2013년말)'!BF40 -> 0.0 | BG36: ='법정동(2014.12월말)'!BG39-'법정동(2013년말)'!BG40 -> 0.0
A37: 웅천동 | B37: ='법정동(2014.12월말)'!B40-'법정동(2013년말)'!B41 -> -1,307.0 | C37: ='법정동(2014.12월말)'!C40-'법정동(2013년말)'!C41 -> 54.0 | D37: ='법정동(2014.12월말)'!D40-'법정동(2013년말)'!D41 -> -19,125.0 | E37: ='법정동(2014.12월말)'!E40-'법정동(2013년말)'!E41 -> -21.0 | F37: ='법정동(2014.12월말)'!F40-'법정동(2013년말)'!F41 -> -23,332.0 | G37: ='법정동(2014.12월말)'!G40-'법정동(2013년말)'!G41 -> -29.0 | H37: ='법정동(2014.12월말)'!H40-'법정동(2013년말)'!H41 -> 0.0 | I37: ='법정동(2014.12월말)'!I40-'법정동(2013년말)'!I41 -> 0.0 | J37: ='법정동(2014.12월말)'!J40-'법정동(2013년말)'!J41 -> 0.0 | K37: ='법정동(2014.12월말)'!K40-'법정동(2013년말)'!K41 -> 0.0 | L37: ='법정동(2014.12월말)'!L40-'법정동(2013년말)'!L41 -> -3,613.0 | M37: ='법정동(2014.12월말)'!M40-'법정동(2013년말)'!M41 -> 0.0 | N37: ='법정동(2014.12월말)'!N40-'법정동(2013년말)'!N41 -> 0.0 | O37: ='법정동(2014.12월말)'!O40-'법정동(2013년말)'!O41 -> 0.0 | P37: ='법정동(2014.12월말)'!P40-'법정동(2013년말)'!P41 -> 0.0 | Q37: ='법정동(2014.12월말)'!Q40-'법정동(2013년말)'!Q41 -> 0.0 | R37: ='법정동(2014.12월말)'!R40-'법정동(2013년말)'!R41 -> 22,614.7 | S37: ='법정동(2014.12월말)'!S40-'법정동(2013년말)'!S41 -> 102.0 | T37: ='법정동(2014.12월말)'!T40-'법정동(2013년말)'!T41 -> 0.0 | U37: ='법정동(2014.12월말)'!U40-'법정동(2013년말)'!U41 -> 0.0 | V37: ='법정동(2014.12월말)'!V40-'법정동(2013년말)'!V41 -> 0.0 | W37: ='법정동(2014.12월말)'!W40-'법정동(2013년말)'!W41 -> 0.0 | X37: ='법정동(2014.12월말)'!X40-'법정동(2013년말)'!X41 -> 1,204.2 | Y37: ='법정동(2014.12월말)'!Y40-'법정동(2013년말)'!Y41 -> 2.0 | Z37: ='법정동(2014.12월말)'!Z40-'법정동(2013년말)'!Z41 -> 0.0 | AA37: ='법정동(2014.12월말)'!AA40-'법정동(2013년말)'!AA41 -> 0.0 | AB37: ='법정동(2014.12월말)'!AB40-'법정동(2013년말)'!AB41 -> 0.0 | AC37: ='법정동(2014.12월말)'!AC40-'법정동(2013년말)'!AC41 -> 0.0 | AD37: ='법정동(2014.12월말)'!AD40-'법정동(2013년말)'!AD41 -> 20,069.6 | AE37: ='법정동(2014.12월말)'!AE40-'법정동(2013년말)'!AE41 -> -8.0 | AF37: ='법정동(2014.12월말)'!AF40-'법정동(2013년말)'!AF41 -> 0.0 | AG37: ='법정동(2014.12월말)'!AG40-'법정동(2013년말)'!AG41 -> 0.0 | AH37: ='법정동(2014.12월말)'!AH40-'법정동(2013년말)'!AH41 -> 0.0 | AI37: ='법정동(2014.12월말)'!AI40-'법정동(2013년말)'!AI41 -> 0.0 | AJ37: ='법정동(2014.12월말)'!AJ40-'법정동(2013년말)'!AJ41 -> 0.0 | AK37: ='법정동(2014.12월말)'!AK40-'법정동(2013년말)'!AK41 -> 0.0 | AL37: ='법정동(2014.12월말)'!AL40-'법정동(2013년말)'!AL41 -> -353.0 | AM37: ='법정동(2014.12월말)'!AM40-'법정동(2013년말)'!AM41 -> 7.0 | AN37: ='법정동(2014.12월말)'!AN40-'법정동(2013년말)'!AN41 -> 0.0 | AO37: ='법정동(2014.12월말)'!AO40-'법정동(2013년말)'!AO41 -> 0.0 | AP37: ='법정동(2014.12월말)'!AP40-'법정동(2013년말)'!AP41 -> 0.0 | AQ37: ='법정동(2014.12월말)'!AQ40-'법정동(2013년말)'!AQ41 -> 0.0 | AR37: ='법정동(2014.12월말)'!AR40-'법정동(2013년말)'!AR41 -> 0.0 | AS37: ='법정동(2014.12월말)'!AS40-'법정동(2013년말)'!AS41 -> 0.0 | AT37: ='법정동(2014.12월말)'!AT40-'법정동(2013년말)'!AT41 -> 609.6 | AU37: ='법정동(2014.12월말)'!AU40-'법정동(2013년말)'!AU41 -> 1.0 | AV37: ='법정동(2014.12월말)'!AV40-'법정동(2013년말)'!AV41 -> 0.0 | AW37: ='법정동(2014.12월말)'!AW40-'법정동(2013년말)'!AW41 -> 0.0 | AX37: ='법정동(2014.12월말)'!AX40-'법정동(2013년말)'!AX41 -> 0.0 | AY37: ='법정동(2014.12월말)'!AY40-'법정동(2013년말)'!AY41 -> 0.0 | AZ37: ='법정동(2014.12월말)'!AZ40-'법정동(2013년말)'!AZ41 -> 934.9 | BA37: ='법정동(2014.12월말)'!BA40-'법정동(2013년말)'!BA41 -> 1.0 | BB37: ='법정동(2014.12월말)'!BB40-'법정동(2013년말)'!BB41 -> 0.0 | BC37: ='법정동(2014.12월말)'!BC40-'법정동(2013년말)'!BC41 -> 0.0 | BD37: ='법정동(2014.12월말)'!BD40-'법정동(2013년말)'!BD41 -> -317.0 | BE37: ='법정동(2014.12월말)'!BE40-'법정동(2013년말)'!BE41 -> -1.0 | BF37: ='법정동(2014.12월말)'!BF40-'법정동(2013년말)'!BF41 -> 0.0 | BG37: ='법정동(2014.12월말)'!BG40-'법정동(2013년말)'!BG41 -> 0.0
A38: 선원동 | B38: ='법정동(2014.12월말)'!B41-'법정동(2013년말)'!B42 -> -76.0 | C38: ='법정동(2014.12월말)'!C41-'법정동(2013년말)'!C42 -> 1.0 | D38: ='법정동(2014.12월말)'!D41-'법정동(2013년말)'!D42 -> 7,919.0 | E38: ='법정동(2014.12월말)'!E41-'법정동(2013년말)'!E42 -> 3.0 | F38: ='법정동(2014.12월말)'!F41-'법정동(2013년말)'!F42 -> -7,986.0 | G38: ='법정동(2014.12월말)'!G41-'법정동(2013년말)'!G42 -> -5.0 | H38: ='법정동(2014.12월말)'!H41-'법정동(2013년말)'!H42 -> 0.0 | I38: ='법정동(2014.12월말)'!I41-'법정동(2013년말)'!I42 -> 0.0 | J38: ='법정동(2014.12월말)'!J41-'법정동(2013년말)'!J42 -> 0.0 | K38: ='법정동(2014.12월말)'!K41-'법정동(2013년말)'!K42 -> 0.0 | L38: ='법정동(2014.12월말)'!L41-'법정동(2013년말)'!L42 -> -4,952.0 | M38: ='법정동(2014.12월말)'!M41-'법정동(2013년말)'!M42 -> 1.0 | N38: ='법정동(2014.12월말)'!N41-'법정동(2013년말)'!N42 -> 0.0 | O38: ='법정동(2014.12월말)'!O41-'법정동(2013년말)'!O42 -> 0.0 | P38: ='법정동(2014.12월말)'!P41-'법정동(2013년말)'!P42 -> 0.0 | Q38: ='법정동(2014.12월말)'!Q41-'법정동(2013년말)'!Q42 -> 0.0 | R38: ='법정동(2014.12월말)'!R41-'법정동(2013년말)'!R42 -> 4,632.8 | S38: ='법정동(2014.12월말)'!S41-'법정동(2013년말)'!S42 -> -1.0 | T38: ='법정동(2014.12월말)'!T41-'법정동(2013년말)'!T42 -> 0.0 | U38: ='법정동(2014.12월말)'!U41-'법정동(2013년말)'!U42 -> 0.0 | V38: ='법정동(2014.12월말)'!V41-'법정동(2013년말)'!V42 -> 0.0 | W38: ='법정동(2014.12월말)'!W41-'법정동(2013년말)'!W42 -> 0.0 | X38: ='법정동(2014.12월말)'!X41-'법정동(2013년말)'!X42 -> 760.0 | Y38: ='법정동(2014.12월말)'!Y41-'법정동(2013년말)'!Y42 -> 2.0 | Z38: ='법정동(2014.12월말)'!Z41-'법정동(2013년말)'!Z42 -> -511.1 | AA38: ='법정동(2014.12월말)'!AA41-'법정동(2013년말)'!AA42 -> -1.0 | AB38: ='법정동(2014.12월말)'!AB41-'법정동(2013년말)'!AB42 -> -544.0 | AC38: ='법정동(2014.12월말)'!AC41-'법정동(2013년말)'!AC42 -> -1.0 | AD38: ='법정동(2014.12월말)'!AD41-'법정동(2013년말)'!AD42 -> 764.3 | AE38: ='법정동(2014.12월말)'!AE41-'법정동(2013년말)'!AE42 -> 4.0 | AF38: ='법정동(2014.12월말)'!AF41-'법정동(2013년말)'!AF42 -> 0.0 | AG38: ='법정동(2014.12월말)'!AG41-'법정동(2013년말)'!AG42 -> 0.0 | AH38: ='법정동(2014.12월말)'!AH41-'법정동(2013년말)'!AH42 -> 0.0 | AI38: ='법정동(2014.12월말)'!AI41-'법정동(2013년말)'!AI42 -> 0.0 | AJ38: ='법정동(2014.12월말)'!AJ41-'법정동(2013년말)'!AJ42 -> 0.0 | AK38: ='법정동(2014.12월말)'!AK41-'법정동(2013년말)'!AK42 -> 0.0 | AL38: ='법정동(2014.12월말)'!AL41-'법정동(2013년말)'!AL42 -> 0.0 | AM38: ='법정동(2014.12월말)'!AM41-'법정동(2013년말)'!AM42 -> 0.0 | AN38: ='법정동(2014.12월말)'!AN41-'법정동(2013년말)'!AN42 -> 0.0 | AO38: ='법정동(2014.12월말)'!AO41-'법정동(2013년말)'!AO42 -> 0.0 | AP38: ='법정동(2014.12월말)'!AP41-'법정동(2013년말)'!AP42 -> 0.0 | AQ38: ='법정동(2014.12월말)'!AQ41-'법정동(2013년말)'!AQ42 -> 0.0 | AR38: ='법정동(2014.12월말)'!AR41-'법정동(2013년말)'!AR42 -> 0.0 | AS38: ='법정동(2014.12월말)'!AS41-'법정동(2013년말)'!AS42 -> 0.0 | AT38: ='법정동(2014.12월말)'!AT41-'법정동(2013년말)'!AT42 -> 0.0 | AU38: ='법정동(2014.12월말)'!AU41-'법정동(2013년말)'!AU42 -> 0.0 | AV38: ='법정동(2014.12월말)'!AV41-'법정동(2013년말)'!AV42 -> 0.0 | AW38: ='법정동(2014.12월말)'!AW41-'법정동(2013년말)'!AW42 -> 0.0 | AX38: ='법정동(2014.12월말)'!AX41-'법정동(2013년말)'!AX42 -> 0.0 | AY38: ='법정동(2014.12월말)'!AY41-'법정동(2013년말)'!AY42 -> 0.0 | AZ38: ='법정동(2014.12월말)'!AZ41-'법정동(2013년말)'!AZ42 -> 0.0 | BA38: ='법정동(2014.12월말)'!BA41-'법정동(2013년말)'!BA42 -> 0.0 | BB38: ='법정동(2014.12월말)'!BB41-'법정동(2013년말)'!BB42 -> 0.0 | BC38: ='법정동(2014.12월말)'!BC41-'법정동(2013년말)'!BC42 -> 0.0 | BD38: ='법정동(2014.12월말)'!BD41-'법정동(2013년말)'!BD42 -> -159.0 | BE38: ='법정동(2014.12월말)'!BE41-'법정동(2013년말)'!BE42 -> -1.0 | BF38: ='법정동(2014.12월말)'!BF41-'법정동(2013년말)'!BF42 -> 0.0 | BG38: ='법정동(2014.12월말)'!BG41-'법정동(2013년말)'!BG42 -> 0.0
A39: 여천동 | B39: ='법정동(2014.12월말)'!B42-'법정동(2013년말)'!B43 -> 0.0 | C39: ='법정동(2014.12월말)'!C42-'법정동(2013년말)'!C43 -> -5.0 | D39: ='법정동(2014.12월말)'!D42-'법정동(2013년말)'!D43 -> 627.0 | E39: ='법정동(2014.12월말)'!E42-'법정동(2013년말)'!E43 -> 2.0 | F39: ='법정동(2014.12월말)'!F42-'법정동(2013년말)'!F43 -> -10,242.0 | G39: ='법정동(2014.12월말)'!G42-'법정동(2013년말)'!G43 -> -15.0 | H39: ='법정동(2014.12월말)'!H42-'법정동(2013년말)'!H43 -> 0.0 | I39: ='법정동(2014.12월말)'!I42-'법정동(2013년말)'!I43 -> 0.0 | J39: ='법정동(2014.12월말)'!J42-'법정동(2013년말)'!J43 -> 0.0 | K39: ='법정동(2014.12월말)'!K42-'법정동(2013년말)'!K43 -> 0.0 | L39: ='법정동(2014.12월말)'!L42-'법정동(2013년말)'!L43 -> 0.0 | M39: ='법정동(2014.12월말)'!M42-'법정동(2013년말)'!M43 -> 0.0 | N39: ='법정동(2014.12월말)'!N42-'법정동(2013년말)'!N43 -> 0.0 | O39: ='법정동(2014.12월말)'!O42-'법정동(2013년말)'!O43 -> 0.0 | P39: ='법정동(2014.12월말)'!P42-'법정동(2013년말)'!P43 -> 0.0 | Q39: ='법정동(2014.12월말)'!Q42-'법정동(2013년말)'!Q43 -> 0.0 | R39: ='법정동(2014.12월말)'!R42-'법정동(2013년말)'!R43 -> -579.0 | S39: ='법정동(2014.12월말)'!S42-'법정동(2013년말)'!S43 -> -1.0 | T39: ='법정동(2014.12월말)'!T42-'법정동(2013년말)'!T43 -> 2,381.0 | U39: ='법정동(2014.12월말)'!U42-'법정동(2013년말)'!U43 -> 2.0 | V39: ='법정동(2014.12월말)'!V42-'법정동(2013년말)'!V43 -> 0.0 | W39: ='법정동(2014.12월말)'!W42-'법정동(2013년말)'!W43 -> 0.0 | X39: ='법정동(2014.12월말)'!X42-'법정동(2013년말)'!X43 -> 736.0 | Y39: ='법정동(2014.12월말)'!Y42-'법정동(2013년말)'!Y43 -> -1.0 | Z39: ='법정동(2014.12월말)'!Z42-'법정동(2013년말)'!Z43 -> 0.0 | AA39: ='법정동(2014.12월말)'!AA42-'법정동(2013년말)'!AA43 -> 0.0 | AB39: ='법정동(2014.12월말)'!AB42-'법정동(2013년말)'!AB43 -> 4,327.0 | AC39: ='법정동(2014.12월말)'!AC42-'법정동(2013년말)'!AC43 -> 2.0 | AD39: ='법정동(2014.12월말)'!AD42-'법정동(2013년말)'!AD43 -> 181.0 | AE39: ='법정동(2014.12월말)'!AE42-'법정동(2013년말)'!AE43 -> 4.0 | AF39: ='법정동(2014.12월말)'!AF42-'법정동(2013년말)'!AF43 -> 0.0 | AG39: ='법정동(2014.12월말)'!AG42-'법정동(2013년말)'!AG43 -> 0.0 | AH39: ='법정동(2014.12월말)'!AH42-'법정동(2013년말)'!AH43 -> 0.0 | AI39: ='법정동(2014.12월말)'!AI42-'법정동(2013년말)'!AI43 -> 0.0 | AJ39: ='법정동(2014.12월말)'!AJ42-'법정동(2013년말)'!AJ43 -> -377.0 | AK39: ='법정동(2014.12월말)'!AK42-'법정동(2013년말)'!AK43 -> -1.0 | AL39: ='법정동(2014.12월말)'!AL42-'법정동(2013년말)'!AL43 -> 0.0 | AM39: ='법정동(2014.12월말)'!AM42-'법정동(2013년말)'!AM43 -> 0.0 | AN39: ='법정동(2014.12월말)'!AN42-'법정동(2013년말)'!AN43 -> 0.0 | AO39: ='법정동(2014.12월말)'!AO42-'법정동(2013년말)'!AO43 -> 0.0 | AP39: ='법정동(2014.12월말)'!AP42-'법정동(2013년말)'!AP43 -> 0.0 | AQ39: ='법정동(2014.12월말)'!AQ42-'법정동(2013년말)'!AQ43 -> 0.0 | AR39: ='법정동(2014.12월말)'!AR42-'법정동(2013년말)'!AR43 -> 0.0 | AS39: ='법정동(2014.12월말)'!AS42-'법정동(2013년말)'!AS43 -> 0.0 | AT39: ='법정동(2014.12월말)'!AT42-'법정동(2013년말)'!AT43 -> 0.0 | AU39: ='법정동(2014.12월말)'!AU42-'법정동(2013년말)'!AU43 -> 0.0 | AV39: ='법정동(2014.12월말)'!AV42-'법정동(2013년말)'!AV43 -> 0.0 | AW39: ='법정동(2014.12월말)'!AW42-'법정동(2013년말)'!AW43 -> 0.0 | AX39: ='법정동(2014.12월말)'!AX42-'법정동(2013년말)'!AX43 -> 0.0 | AY39: ='법정동(2014.12월말)'!AY42-'법정동(2013년말)'!AY43 -> 0.0 | AZ39: ='법정동(2014.12월말)'!AZ42-'법정동(2013년말)'!AZ43 -> 0.0 | BA39: ='법정동(2014.12월말)'!BA42-'법정동(2013년말)'!BA43 -> 0.0 | BB39: ='법정동(2014.12월말)'!BB42-'법정동(2013년말)'!BB43 -> 0.0 | BC39: ='법정동(2014.12월말)'!BC42-'법정동(2013년말)'!BC43 -> 0.0 | BD39: ='법정동(2014.12월말)'!BD42-'법정동(2013년말)'!BD43 -> 0.0 | BE39: ='법정동(2014.12월말)'!BE42-'법정동(2013년말)'!BE43 -> 0.0 | BF39: ='법정동(2014.12월말)'!BF42-'법정동(2013년말)'!BF43 -> 2,946.0 | BG39: ='법정동(2014.12월말)'!BG42-'법정동(2013년말)'!BG43 -> 3.0
A40: 화장동 | B40: ='법정동(2014.12월말)'!B43-'법정동(2013년말)'!B44 -> 351.0 | C40: ='법정동(2014.12월말)'!C43-'법정동(2013년말)'!C44 -> 1.0 | D40: ='법정동(2014.12월말)'!D43-'법정동(2013년말)'!D44 -> -353.0 | E40: ='법정동(2014.12월말)'!E43-'법정동(2013년말)'!E44 -> -1.0 | F40: ='법정동(2014.12월말)'!F43-'법정동(2013년말)'!F44 -> -1,286.0 | G40: ='법정동(2014.12월말)'!G43-'법정동(2013년말)'!G44 -> -5.0 | H40: ='법정동(2014.12월말)'!H43-'법정동(2013년말)'!H44 -> 0.0 | I40: ='법정동(2014.12월말)'!I43-'법정동(2013년말)'!I44 -> 0.0 | J40: ='법정동(2014.12월말)'!J43-'법정동(2013년말)'!J44 -> 0.0 | K40: ='법정동(2014.12월말)'!K43-'법정동(2013년말)'!K44 -> 0.0 | L40: ='법정동(2014.12월말)'!L43-'법정동(2013년말)'!L44 -> -32,091.0 | M40: ='법정동(2014.12월말)'!M43-'법정동(2013년말)'!M44 -> -1.0 | N40: ='법정동(2014.12월말)'!N43-'법정동(2013년말)'!N44 -> 0.0 | O40: ='법정동(2014.12월말)'!O43-'법정동(2013년말)'!O44 -> 0.0 | P40: ='법정동(2014.12월말)'!P43-'법정동(2013년말)'!P44 -> 0.0 | Q40: ='법정동(2014.12월말)'!Q43-'법정동(2013년말)'!Q44 -> 0.0 | R40: ='법정동(2014.12월말)'!R43-'법정동(2013년말)'!R44 -> 64.4 | S40: ='법정동(2014.12월말)'!S43-'법정동(2013년말)'!S44 -> -2.0 | T40: ='법정동(2014.12월말)'!T43-'법정동(2013년말)'!T44 -> 307.0 | U40: ='법정동(2014.12월말)'!U43-'법정동(2013년말)'!U44 -> 1.0 | V40: ='법정동(2014.12월말)'!V43-'법정동(2013년말)'!V44 -> 0.0 | W40: ='법정동(2014.12월말)'!W43-'법정동(2013년말)'!W44 -> 0.0 | X40: ='법정동(2014.12월말)'!X43-'법정동(2013년말)'!X44 -> 0.0 | Y40: ='법정동(2014.12월말)'!Y43-'법정동(2013년말)'!Y44 -> 0.0 | Z40: ='법정동(2014.12월말)'!Z43-'법정동(2013년말)'!Z44 -> 0.0 | AA40: ='법정동(2014.12월말)'!AA43-'법정동(2013년말)'!AA44 -> 0.0 | AB40: ='법정동(2014.12월말)'!AB43-'법정동(2013년말)'!AB44 -> 0.0 | AC40: ='법정동(2014.12월말)'!AC43-'법정동(2013년말)'!AC44 -> -1.0 | AD40: ='법정동(2014.12월말)'!AD43-'법정동(2013년말)'!AD44 -> -347.0 | AE40: ='법정동(2014.12월말)'!AE43-'법정동(2013년말)'!AE44 -> 3.0 | AF40: ='법정동(2014.12월말)'!AF43-'법정동(2013년말)'!AF44 -> 258.0 | AG40: ='법정동(2014.12월말)'!AG43-'법정동(2013년말)'!AG44 -> 1.0 | AH40: ='법정동(2014.12월말)'!AH43-'법정동(2013년말)'!AH44 -> 0.0 | AI40: ='법정동(2014.12월말)'!AI43-'법정동(2013년말)'!AI44 -> 0.0 | AJ40: ='법정동(2014.12월말)'!AJ43-'법정동(2013년말)'!AJ44 -> 0.0 | AK40: ='법정동(2014.12월말)'!AK43-'법정동(2013년말)'!AK44 -> 0.0 | AL40: ='법정동(2014.12월말)'!AL43-'법정동(2013년말)'!AL44 -> 0.0 | AM40: ='법정동(2014.12월말)'!AM43-'법정동(2013년말)'!AM44 -> 0.0 | AN40: ='법정동(2014.12월말)'!AN43-'법정동(2013년말)'!AN44 -> 0.0 | AO40: ='법정동(2014.12월말)'!AO43-'법정동(2013년말)'!AO44 -> 0.0 | AP40: ='법정동(2014.12월말)'!AP43-'법정동(2013년말)'!AP44 -> 0.0 | AQ40: ='법정동(2014.12월말)'!AQ43-'법정동(2013년말)'!AQ44 -> 0.0 | AR40: ='법정동(2014.12월말)'!AR43-'법정동(2013년말)'!AR44 -> 0.0 | AS40: ='법정동(2014.12월말)'!AS43-'법정동(2013년말)'!AS44 -> 0.0 | AT40: ='법정동(2014.12월말)'!AT43-'법정동(2013년말)'!AT44 -> 0.0 | AU40: ='법정동(2014.12월말)'!AU43-'법정동(2013년말)'!AU44 -> 0.0 | AV40: ='법정동(2014.12월말)'!AV43-'법정동(2013년말)'!AV44 -> 28,326.0 | AW40: ='법정동(2014.12월말)'!AW43-'법정동(2013년말)'!AW44 -> 3.0 | AX40: ='법정동(2014.12월말)'!AX43-'법정동(2013년말)'!AX44 -> 0.0 | AY40: ='법정동(2014.12월말)'!AY43-'법정동(2013년말)'!AY44 -> 0.0 | AZ40: ='법정동(2014.12월말)'!AZ43-'법정동(2013년말)'!AZ44 -> 699.6 | BA40: ='법정동(2014.12월말)'!BA43-'법정동(2013년말)'!BA44 -> 1.0 | BB40: ='법정동(2014.12월말)'!BB43-'법정동(2013년말)'!BB44 -> 0.0 | BC40: ='법정동(2014.12월말)'!BC43-'법정동(2013년말)'!BC44 -> 0.0 | BD40: ='법정동(2014.12월말)'!BD43-'법정동(2013년말)'!BD44 -> 0.0 | BE40: ='법정동(2014.12월말)'!BE43-'법정동(2013년말)'!BE44 -> 0.0 | BF40: ='법정동(2014.12월말)'!BF43-'법정동(2013년말)'!BF44 -> 4,773.0 | BG40: ='법정동(2014.12월말)'!BG43-'법정동(2013년말)'!BG44 -> 2.0
A41: 주삼동 | B41: ='법정동(2014.12월말)'!B44-'법정동(2013년말)'!B45 -> -198.3 | C41: ='법정동(2014.12월말)'!C44-'법정동(2013년말)'!C45 -> -134.0 | D41: ='법정동(2014.12월말)'!D44-'법정동(2013년말)'!D45 -> -37,867.0 | E41: ='법정동(2014.12월말)'!E44-'법정동(2013년말)'!E45 -> -51.0 | F41: ='법정동(2014.12월말)'!F44-'법정동(2013년말)'!F45 -> -20,868.0 | G41: ='법정동(2014.12월말)'!G44-'법정동(2013년말)'!G45 -> -14.0 | H41: ='법정동(2014.12월말)'!H44-'법정동(2013년말)'!H45 -> 0.0 | I41: ='법정동(2014.12월말)'!I44-'법정동(2013년말)'!I45 -> 0.0 | J41: ='법정동(2014.12월말)'!J44-'법정동(2013년말)'!J45 -> -875.0 | K41: ='법정동(2014.12월말)'!K44-'법정동(2013년말)'!K45 -> -1.0 | L41: ='법정동(2014.12월말)'!L44-'법정동(2013년말)'!L45 -> -10,742.0 | M41: ='법정동(2014.12월말)'!M44-'법정동(2013년말)'!M45 -> -20.0 | N41: ='법정동(2014.12월말)'!N44-'법정동(2013년말)'!N45 -> 0.0 | O41: ='법정동(2014.12월말)'!O44-'법정동(2013년말)'!O45 -> 0.0 | P41: ='법정동(2014.12월말)'!P44-'법정동(2013년말)'!P45 -> 0.0 | Q41: ='법정동(2014.12월말)'!Q44-'법정동(2013년말)'!Q45 -> 0.0 | R41: ='법정동(2014.12월말)'!R44-'법정동(2013년말)'!R45 -> -2,436.0 | S41: ='법정동(2014.12월말)'!S44-'법정동(2013년말)'!S45 -> -12.0 | T41: ='법정동(2014.12월말)'!T44-'법정동(2013년말)'!T45 -> 13,790.9 | U41: ='법정동(2014.12월말)'!U44-'법정동(2013년말)'!U45 -> 5.0 | V41: ='법정동(2014.12월말)'!V44-'법정동(2013년말)'!V45 -> 0.0 | W41: ='법정동(2014.12월말)'!W44-'법정동(2013년말)'!W45 -> 0.0 | X41: ='법정동(2014.12월말)'!X44-'법정동(2013년말)'!X45 -> 45,759.9 | Y41: ='법정동(2014.12월말)'!Y44-'법정동(2013년말)'!Y45 -> 1.0 | Z41: ='법정동(2014.12월말)'!Z44-'법정동(2013년말)'!Z45 -> 0.0 | AA41: ='법정동(2014.12월말)'!AA44-'법정동(2013년말)'!AA45 -> 0.0 | AB41: ='법정동(2014.12월말)'!AB44-'법정동(2013년말)'!AB45 -> 810.0 | AC41: ='법정동(2014.12월말)'!AC44-'법정동(2013년말)'!AC45 -> 1.0 | AD41: ='법정동(2014.12월말)'!AD44-'법정동(2013년말)'!AD45 -> 9,752.9 | AE41: ='법정동(2014.12월말)'!AE44-'법정동(2013년말)'!AE45 -> -42.0 | AF41: ='법정동(2014.12월말)'!AF44-'법정동(2013년말)'!AF45 -> 0.0 | AG41: ='법정동(2014.12월말)'!AG44-'법정동(2013년말)'!AG45 -> 0.0 | AH41: ='법정동(2014.12월말)'!AH44-'법정동(2013년말)'!AH45 -> 0.0 | AI41: ='법정동(2014.12월말)'!AI44-'법정동(2013년말)'!AI45 -> 0.0 | AJ41: ='법정동(2014.12월말)'!AJ44-'법정동(2013년말)'!AJ45 -> 0.0 | AK41: ='법정동(2014.12월말)'!AK44-'법정동(2013년말)'!AK45 -> 0.0 | AL41: ='법정동(2014.12월말)'!AL44-'법정동(2013년말)'!AL45 -> -26.0 | AM41: ='법정동(2014.12월말)'!AM44-'법정동(2013년말)'!AM45 -> 0.0 | AN41: ='법정동(2014.12월말)'!AN44-'법정동(2013년말)'!AN45 -> 0.0 | AO41: ='법정동(2014.12월말)'!AO44-'법정동(2013년말)'!AO45 -> 0.0 | AP41: ='법정동(2014.12월말)'!AP44-'법정동(2013년말)'!AP45 -> 0.0 | AQ41: ='법정동(2014.12월말)'!AQ44-'법정동(2013년말)'!AQ45 -> 0.0 | AR41: ='법정동(2014.12월말)'!AR44-'법정동(2013년말)'!AR45 -> 0.0 | AS41: ='법정동(2014.12월말)'!AS44-'법정동(2013년말)'!AS45 -> 0.0 | AT41: ='법정동(2014.12월말)'!AT44-'법정동(2013년말)'!AT45 -> 0.0 | AU41: ='법정동(2014.12월말)'!AU44-'법정동(2013년말)'!AU45 -> 0.0 | AV41: ='법정동(2014.12월말)'!AV44-'법정동(2013년말)'!AV45 -> 0.0 | AW41: ='법정동(2014.12월말)'!AW44-'법정동(2013년말)'!AW45 -> 0.0 | AX41: ='법정동(2014.12월말)'!AX44-'법정동(2013년말)'!AX45 -> 0.0 | AY41: ='법정동(2014.12월말)'!AY44-'법정동(2013년말)'!AY45 -> 0.0 | AZ41: ='법정동(2014.12월말)'!AZ44-'법정동(2013년말)'!AZ45 -> 0.0 | BA41: ='법정동(2014.12월말)'!BA44-'법정동(2013년말)'!BA45 -> 0.0 | BB41: ='법정동(2014.12월말)'!BB44-'법정동(2013년말)'!BB45 -> 0.0 | BC41: ='법정동(2014.12월말)'!BC44-'법정동(2013년말)'!BC45 -> 0.0 | BD41: ='법정동(2014.12월말)'!BD44-'법정동(2013년말)'!BD45 -> 0.0 | BE41: ='법정동(2014.12월말)'!BE44-'법정동(2013년말)'!BE45 -> 0.0 | BF41: ='법정동(2014.12월말)'!BF44-'법정동(2013년말)'!BF45 -> 2,502.0 | BG41: ='법정동(2014.12월말)'!BG44-'법정동(2013년말)'!BG45 -> -1.0
A42: 봉계동 | B42: ='법정동(2014.12월말)'!B45-'법정동(2013년말)'!B46 -> 732.0 | C42: ='법정동(2014.12월말)'!C45-'법정동(2013년말)'!C46 -> -5.0 | D42: ='법정동(2014.12월말)'!D45-'법정동(2013년말)'!D46 -> -9,428.0 | E42: ='법정동(2014.12월말)'!E45-'법정동(2013년말)'!E46 -> -30.0 | F42: ='법정동(2014.12월말)'!F45-'법정동(2013년말)'!F46 -> -2,004.0 | G42: ='법정동(2014.12월말)'!G45-'법정동(2013년말)'!G46 -> -10.0 | H42: ='법정동(2014.12월말)'!H45-'법정동(2013년말)'!H46 -> 0.0 | I42: ='법정동(2014.12월말)'!I45-'법정동(2013년말)'!I46 -> 0.0 | J42: ='법정동(2014.12월말)'!J45-'법정동(2013년말)'!J46 -> 0.0 | K42: ='법정동(2014.12월말)'!K45-'법정동(2013년말)'!K46 -> 0.0 | L42: ='법정동(2014.12월말)'!L45-'법정동(2013년말)'!L46 -> -17,720.0 | M42: ='법정동(2014.12월말)'!M45-'법정동(2013년말)'!M46 -> -7.0 | N42: ='법정동(2014.12월말)'!N45-'법정동(2013년말)'!N46 -> 0.0 | O42: ='법정동(2014.12월말)'!O45-'법정동(2013년말)'!O46 -> 0.0 | P42: ='법정동(2014.12월말)'!P45-'법정동(2013년말)'!P46 -> 0.0 | Q42: ='법정동(2014.12월말)'!Q45-'법정동(2013년말)'!Q46 -> 0.0 | R42: ='법정동(2014.12월말)'!R45-'법정동(2013년말)'!R46 -> 12,205.0 | S42: ='법정동(2014.12월말)'!S45-'법정동(2013년말)'!S46 -> 8.0 | T42: ='법정동(2014.12월말)'!T45-'법정동(2013년말)'!T46 -> 3,719.0 | U42: ='법정동(2014.12월말)'!U45-'법정동(2013년말)'!U46 -> 2.0 | V42: ='법정동(2014.12월말)'!V45-'법정동(2013년말)'!V46 -> 0.0 | W42: ='법정동(2014.12월말)'!W45-'법정동(2013년말)'!W46 -> 0.0 | X42: ='법정동(2014.12월말)'!X45-'법정동(2013년말)'!X46 -> 4,864.0 | Y42: ='법정동(2014.12월말)'!Y45-'법정동(2013년말)'!Y46 -> 3.0 | Z42: ='법정동(2014.12월말)'!Z45-'법정동(2013년말)'!Z46 -> 0.0 | AA42: ='법정동(2014.12월말)'!AA45-'법정동(2013년말)'!AA46 -> 0.0 | AB42: ='법정동(2014.12월말)'!AB45-'법정동(2013년말)'!AB46 -> -684.0 | AC42: ='법정동(2014.12월말)'!AC45-'법정동(2013년말)'!AC46 -> -2.0 | AD42: ='법정동(2014.12월말)'!AD45-'법정동(2013년말)'!AD46 -> 10,389.0 | AE42: ='법정동(2014.12월말)'!AE45-'법정동(2013년말)'!AE46 -> 27.0 | AF42: ='법정동(2014.12월말)'!AF45-'법정동(2013년말)'!AF46 -> 0.0 | AG42: ='법정동(2014.12월말)'!AG45-'법정동(2013년말)'!AG46 -> 0.0 | AH42: ='법정동(2014.12월말)'!AH45-'법정동(2013년말)'!AH46 -> 0.0 | AI42: ='법정동(2014.12월말)'!AI45-'법정동(2013년말)'!AI46 -> 0.0 | AJ42: ='법정동(2014.12월말)'!AJ45-'법정동(2013년말)'!AJ46 -> 0.0 | AK42: ='법정동(2014.12월말)'!AK45-'법정동(2013년말)'!AK46 -> 0.0 | AL42: ='법정동(2014.12월말)'!AL45-'법정동(2013년말)'!AL46 -> 0.0 | AM42: ='법정동(2014.12월말)'!AM45-'법정동(2013년말)'!AM46 -> 0.0 | AN42: ='법정동(2014.12월말)'!AN45-'법정동(2013년말)'!AN46 -> 0.0 | AO42: ='법정동(2014.12월말)'!AO45-'법정동(2013년말)'!AO46 -> 0.0 | AP42: ='법정동(2014.12월말)'!AP45-'법정동(2013년말)'!AP46 -> 0.0 | AQ42: ='법정동(2014.12월말)'!AQ45-'법정동(2013년말)'!AQ46 -> 0.0 | AR42: ='법정동(2014.12월말)'!AR45-'법정동(2013년말)'!AR46 -> 0.0 | AS42: ='법정동(2014.12월말)'!AS45-'법정동(2013년말)'!AS46 -> 0.0 | AT42: ='법정동(2014.12월말)'!AT45-'법정동(2013년말)'!AT46 -> 0.0 | AU42: ='법정동(2014.12월말)'!AU45-'법정동(2013년말)'!AU46 -> 0.0 | AV42: ='법정동(2014.12월말)'!AV45-'법정동(2013년말)'!AV46 -> 0.0 | AW42: ='법정동(2014.12월말)'!AW45-'법정동(2013년말)'!AW46 -> 0.0 | AX42: ='법정동(2014.12월말)'!AX45-'법정동(2013년말)'!AX46 -> 0.0 | AY42: ='법정동(2014.12월말)'!AY45-'법정동(2013년말)'!AY46 -> 0.0 | AZ42: ='법정동(2014.12월말)'!AZ45-'법정동(2013년말)'!AZ46 -> 0.0 | BA42: ='법정동(2014.12월말)'!BA45-'법정동(2013년말)'!BA46 -> 0.0 | BB42: ='법정동(2014.12월말)'!BB45-'법정동(2013년말)'!BB46 -> 0.0 | BC42: ='법정동(2014.12월말)'!BC45-'법정동(2013년말)'!BC46 -> 0.0 | BD42: ='법정동(2014.12월말)'!BD45-'법정동(2013년말)'!BD46 -> 0.0 | BE42: ='법정동(2014.12월말)'!BE45-'법정동(2013년말)'!BE46 -> 0.0 | BF42: ='법정동(2014.12월말)'!BF45-'법정동(2013년말)'!BF46 -> -609.0 | BG42: ='법정동(2014.12월말)'!BG45-'법정동(2013년말)'!BG46 -> 4.0
A43: 해산동 | B43: ='법정동(2014.12월말)'!B46-'법정동(2013년말)'!B47 -> -70.0 | C43: ='법정동(2014.12월말)'!C46-'법정동(2013년말)'!C47 -> -148.0 | D43: ='법정동(2014.12월말)'!D46-'법정동(2013년말)'!D47 -> -2,827.0 | E43: ='법정동(2014.12월말)'!E46-'법정동(2013년말)'!E47 -> -5.0 | F43: ='법정동(2014.12월말)'!F46-'법정동(2013년말)'!F47 -> -12,759.0 | G43: ='법정동(2014.12월말)'!G46-'법정동(2013년말)'!G47 -> -5.0 | H43: ='법정동(2014.12월말)'!H46-'법정동(2013년말)'!H47 -> 0.0 | I43: ='법정동(2014.12월말)'!I46-'법정동(2013년말)'!I47 -> 0.0 | J43: ='법정동(2014.12월말)'!J46-'법정동(2013년말)'!J47 -> 0.0 | K43: ='법정동(2014.12월말)'!K46-'법정동(2013년말)'!K47 -> 0.0 | L43: ='법정동(2014.12월말)'!L46-'법정동(2013년말)'!L47 -> -3,017.0 | M43: ='법정동(2014.12월말)'!M46-'법정동(2013년말)'!M47 -> 1.0 | N43: ='법정동(2014.12월말)'!N46-'법정동(2013년말)'!N47 -> 0.0 | O43: ='법정동(2014.12월말)'!O46-'법정동(2013년말)'!O47 -> 0.0 | P43: ='법정동(2014.12월말)'!P46-'법정동(2013년말)'!P47 -> 0.0 | Q43: ='법정동(2014.12월말)'!Q46-'법정동(2013년말)'!Q47 -> 0.0 | R43: ='법정동(2014.12월말)'!R46-'법정동(2013년말)'!R47 -> 11,497.0 | S43: ='법정동(2014.12월말)'!S46-'법정동(2013년말)'!S47 -> 4.0 | T43: ='법정동(2014.12월말)'!T46-'법정동(2013년말)'!T47 -> 3,596.0 | U43: ='법정동(2014.12월말)'!U46-'법정동(2013년말)'!U47 -> 2.0 | V43: ='법정동(2014.12월말)'!V46-'법정동(2013년말)'!V47 -> 0.0 | W43: ='법정동(2014.12월말)'!W46-'법정동(2013년말)'!W47 -> 0.0 | X43: ='법정동(2014.12월말)'!X46-'법정동(2013년말)'!X47 -> 0.0 | Y43: ='법정동(2014.12월말)'!Y46-'법정동(2013년말)'!Y47 -> 0.0 | Z43: ='법정동(2014.12월말)'!Z46-'법정동(2013년말)'!Z47 -> -307.0 | AA43: ='법정동(2014.12월말)'!AA46-'법정동(2013년말)'!AA47 -> -3.0 | AB43: ='법정동(2014.12월말)'!AB46-'법정동(2013년말)'!AB47 -> 0.0 | AC43: ='법정동(2014.12월말)'!AC46-'법정동(2013년말)'!AC47 -> 0.0 | AD43: ='법정동(2014.12월말)'!AD46-'법정동(2013년말)'!AD47 -> 3,710.0 | AE43: ='법정동(2014.12월말)'!AE46-'법정동(2013년말)'!AE47 -> -142.0 | AF43: ='법정동(2014.12월말)'!AF46-'법정동(2013년말)'!AF47 -> 0.0 | AG43: ='법정동(2014.12월말)'!AG46-'법정동(2013년말)'!AG47 -> 0.0 | AH43: ='법정동(2014.12월말)'!AH46-'법정동(2013년말)'!AH47 -> 0.0 | AI43: ='법정동(2014.12월말)'!AI46-'법정동(2013년말)'!AI47 -> 0.0 | AJ43: ='법정동(2014.12월말)'!AJ46-'법정동(2013년말)'!AJ47 -> 0.0 | AK43: ='법정동(2014.12월말)'!AK46-'법정동(2013년말)'!AK47 -> 0.0 | AL43: ='법정동(2014.12월말)'!AL46-'법정동(2013년말)'!AL47 -> 0.0 | AM43: ='법정동(2014.12월말)'!AM46-'법정동(2013년말)'!AM47 -> 0.0 | AN43: ='법정동(2014.12월말)'!AN46-'법정동(2013년말)'!AN47 -> 0.0 | AO43: ='법정동(2014.12월말)'!AO46-'법정동(2013년말)'!AO47 -> 0.0 | AP43: ='법정동(2014.12월말)'!AP46-'법정동(2013년말)'!AP47 -> 0.0 | AQ43: ='법정동(2014.12월말)'!AQ46-'법정동(2013년말)'!AQ47 -> 0.0 | AR43: ='법정동(2014.12월말)'!AR46-'법정동(2013년말)'!AR47 -> 0.0 | AS43: ='법정동(2014.12월말)'!AS46-'법정동(2013년말)'!AS47 -> 0.0 | AT43: ='법정동(2014.12월말)'!AT46-'법정동(2013년말)'!AT47 -> 0.0 | AU43: ='법정동(2014.12월말)'!AU46-'법정동(2013년말)'!AU47 -> 0.0 | AV43: ='법정동(2014.12월말)'!AV46-'법정동(2013년말)'!AV47 -> 0.0 | AW43: ='법정동(2014.12월말)'!AW46-'법정동(2013년말)'!AW47 -> 0.0 | AX43: ='법정동(2014.12월말)'!AX46-'법정동(2013년말)'!AX47 -> 0.0 | AY43: ='법정동(2014.12월말)'!AY46-'법정동(2013년말)'!AY47 -> 0.0 | AZ43: ='법정동(2014.12월말)'!AZ46-'법정동(2013년말)'!AZ47 -> 0.0 | BA43: ='법정동(2014.12월말)'!BA46-'법정동(2013년말)'!BA47 -> 0.0 | BB43: ='법정동(2014.12월말)'!BB46-'법정동(2013년말)'!BB47 -> 0.0 | BC43: ='법정동(2014.12월말)'!BC46-'법정동(2013년말)'!BC47 -> 0.0 | BD43: ='법정동(2014.12월말)'!BD46-'법정동(2013년말)'!BD47 -> 0.0 | BE43: ='법정동(2014.12월말)'!BE46-'법정동(2013년말)'!BE47 -> 0.0 | BF43: ='법정동(2014.12월말)'!BF46-'법정동(2013년말)'!BF47 -> 37.0 | BG43: ='법정동(2014.12월말)'!BG46-'법정동(2013년말)'!BG47 -> 0.0
